Workbook

Sheet Übersicht
B3: LUZ Prüfstand Übersicht | O3: Software Dietmar Mauerbauer v5.211001
T4: Anzeige | V4: PS | W4: NM | X4: DEL
T5: ()
T6: o | U6: 1 | V6: o | W6: o | X6: ý
T7: ()
T8: o | U8: 2 | V8: o | W8: o | X8: ý
T9: ()
T10: o | U10: 3 | V10: o | W10: o | X10: ý
T11: ()
T12: o | U12: 4 | V12: o | W12: o | X12: ý
T13: ()
T14: o | U14: 5 | V14: o | W14: o | X14: ý
T15: ()
T16: o | U16: 6 | V16: o | W16: o | X16: ý
T17: ()
T18: o | U18: 7 | V18: o | W18: o | X18: ý
T19: ()
L20: TRUE | T20: o | U20: 8 | V20: o | W20: o | X20: ý
T21: ()
T22: o | U22: 9 | V22: o | W22: o | X22: ý
T23: ()
T24: o | U24: 10 | V24: o | W24: o | X24: ý
T25: ()
T26: o | U26: 11 | V26: o | W26: o | X26: ý
T27: ()
T28: o | U28: 12 | V28: o | W28: o | X28: ý
S29: PS | T29: ()
S30: 0 | T30: o | U30: 13 | V30: o | W30: o | X30: ý
S31: 0 | T31: ()
T32: o | U32: 14 | V32: o | W32: o | X32: ý
S33: km/h | T33: ()
S34: 0 | T34: o | U34: 15 | V34: o | W34: o | X34: ý
S35: 0 | T35: ()
T36: o | U36: 16 | V36: o | W36: o | X36: ý
T37: ü | V37: o | W37: o | X37: ý | Y37: ALLE
B38: 30.18471416 | C38: 1 | D38: Hornets / Dresi / PX | H38: 04.09.2021 18:16 | L38: 30.18471416 | M38: 8202.7176 | N38: 27.89770362 | O38: 6867.399 | P38: 116.8589529 | Q38: 9828.126 | R38: 974.4913 | S38: 21.21 | T38: eingegebene Übersetzung: 5,39
C39: Polini Direkt | F39: Kurbelwelle: k.A. / B57/H54/138ccm | L39: Vespatronic Zündeinstellung: k.A. Schwungrad: k.A. | P39: Zeiten: k.A. | S39: k=1,0156
C40: Falc Auspuff | F40: Mikuni /Vforce3 | L40: 5000 | P40: bis 138ccm | S40: J=4,11 I=1000
B41: 0 | C41: 2 | D41: / / | L41: 0 | M41: 0 | N41: 0 | O41: 0 | P41: 0 | Q41: 0 | T41: eingegebene Übersetzung: 1
C42: Quattrini M200 | F42: Kurbelwelle: k.A. / B70/H60/231ccm | L42: Vespower Zündeinstellung: k.A. Schwungrad: k.A. | P42: Zeiten: k.A. | S42: k=1,0156
C43: Scoodrenator | F43: Vergaser: k.A./ Ansaugsystem: k.A. | L43: Bedüsung: k.A. | P43: ab 231ccm | S43: J=k.A. I=k.A.
B44: 2.643787237 | C44: 3 | D44: M200 / Mauerbauer Dietmar / Motor | H44: 13.03.2019 15:58 | L44: 2.643787237 | M44: 2349.515164 | N44: 7.900975646 | O44: 2228.376222 | P44: 24.90991434 | Q44: 2349.515164 | R44: 957.56 | S44: 10.44 | T44: gemessene Übersetzung: 6,045
C45: Malossi MHR | F45: Kurbelwelle: k.A. / B68,5/H60/221ccm | L45: Piaggio12V Zündeinstellung: k.A. Schwungrad: k.A. | P45: Zeiten: k.A. | S45: k=1,0129
C46: JL | F46: Dellorto 30/MRP Membran | L46: 3000 | P46: bis 230ccm | S46: J=4,11 I=1000
B47: 16.96235701 | C47: 4 | D47: Marco GTR / Marco / GTR | H47: 2021-10-16T17:24:03 | L47: 16.96235701 | M47: 7469.374587 | N47: 16.13027692 | O47: 6844.926247 | P47: 131.0959169 | Q47: 9077.376403 | R47: 1013 | S47: 20 | T47: gemessene Übersetzung: 4,581
C48: Malossi MHR | F48: Kurbelwelle: k.A. / B68,5/H60/221ccm | L48: Piaggio12V Zündeinstellung: k.A. Schwungrad: k.A. | P48: Zeiten: k.A. | S48: k=1,0128
C49: JL | F49: Dellorto 30/MRP Membran | L49: 3000 | P49: bis 230ccm | S49: J=4,68 I=1000
B50: 16.96235701 | C50: 5 | D50: Marco GTR / Marco / GTR | H50: 16.10.2021 17:24 | L50: 16.96235701 | M50: 7469.374587 | N50: 16.13027692 | O50: 6844.926247 | P50: 131.0959169 | Q50: 9077.376403 | R50: 1013 | S50: 20 | T50: gemessene Übersetzung: 4,581
C51: Malossi MHR | F51: Kurbelwelle: k.A. / B68,5/H60/221ccm | L51: Piaggio12V Zündeinstellung: k.A. Schwungrad: k.A. | P51: Zeiten: k.A. | S51: k=1,0128
C52: JL | F52: Dellorto 30/MRP Membran | L52: 3000 | P52: bis 230ccm | S52: J=4,68 I=1000
B53: 0 | C53: 6 | D53: / / | L53: 0 | M53: 0 | N53: 0 | O53: 0 | P53: 0 | Q53: 0 | T53: eingegebene Übersetzung: 1
C54: Malossi MHR | F54: Kurbelwelle: k.A. / B68,5/H60/221ccm | L54: Piaggio12V Zündeinstellung: k.A. Schwungrad: k.A. | P54: Zeiten: k.A. | S54: k=1,0128
C55: JL | F55: Dellorto 30/MRP Membran | L55: 3000 | P55: bis 230ccm | S55: J=k.A. I=k.A.
B56: 0 | C56: 7 | D56: / / | L56: 0 | M56: 0 | N56: 0 | O56: 0 | P56: 0 | Q56: 0 | T56: eingegebene Übersetzung: 1
C57: Malossi MHR | F57: Kurbelwelle: k.A. / B68,5/H60/221ccm | L57: Piaggio12V Zündeinstellung: k.A. Schwungrad: k.A. | P57: Zeiten: k.A. | S57: k=1,016
C58: JL | F58: Dellorto 30/MRP Membran | L58: 3000 | P58: bis 230ccm | S58: J=k.A. I=k.A.
B59: 0 | C59: 8 | D59: / / | L59: 0 | M59: 0 | N59: 0 | O59: 0 | P59: 0 | Q59: 0 | T59: eingegebene Übersetzung: 1
C60: Malossi MHR | F60: Kurbelwelle: k.A. / B68,5/H60/221ccm | L60: Piaggio12V Zündeinstellung: k.A. Schwungrad: k.A. | P60: Zeiten: k.A. | S60: k=1,016
C61: JL | F61: Dellorto 30/MRP Membran | L61: 3000 | P61: bis 230ccm | S61: J=k.A. I=k.A.
B62: 0 | C62: 9 | D62: / / | L62: 0 | M62: 0 | N62: 0 | O62: 0 | P62: 0 | Q62: 0 | T62: eingegebene Übersetzung: 1
C63: Quattrini M200 | F63: Kurbelwelle: k.A. / B70/H60/231ccm | L63: Vespower Zündeinstellung: k.A. Schwungrad: k.A. | P63: Zeiten: k.A. | S63: k=1,0156
C64: Scoodrenator | F64: Vergaser: k.A./ Ansaugsystem: k.A. | L64: Bedüsung: k.A. | P64: ab 231ccm | S64: J=k.A. I=k.A.
B65: 0 | C65: 10 | D65: / / | L65: 0 | M65: 0 | N65: 0 | O65: 0 | P65: 0 | Q65: 0 | T65: eingegebene Übersetzung: 1
C66: Quattrini M200 | F66: Kurbelwelle: k.A. / B70/H60/231ccm | L66: Vespower Zündeinstellung: k.A. Schwungrad: k.A. | P66: Zeiten: k.A. | S66: k=1,0156
C67: Scoodrenator | F67: Vergaser: k.A./ Ansaugsystem: k.A. | L67: Bedüsung: k.A. | P67: ab 231ccm | S67: J=k.A. I=k.A.
B68: 0 | C68: 11 | D68: / / | L68: 0 | M68: 0 | N68: 0 | O68: 0 | P68: 0 | Q68: 0 | T68: eingegebene Übersetzung: 1
C69: Simonini | F69: Kurbelwelle: k.A. / 230ccm | L69: Vespatronic Zündeinstellung: k.A. Schwungrad: k.A. | P69: Zeiten: k.A. | S69: k=1,0136
C70: Nordspeed | F70: 41er/ Ansaugsystem: k.A. | L70: 4500 | P70: bis 230ccm | S70: J=k.A. I=k.A.
B71: 0 | C71: 12 | D71: / / | L71: 0 | M71: 0 | N71: 0 | O71: 0 | P71: 0 | Q71: 0 | T71: eingegebene Übersetzung: 1
C72: Simonini | F72: Kurbelwelle: k.A. / 230ccm | L72: Vespatronic Zündeinstellung: k.A. Schwungrad: k.A. | P72: Zeiten: k.A. | S72: k=1,0137
C73: Nordspeed | F73: 41er/ Ansaugsystem: k.A. | L73: 4500 | P73: bis 230ccm | S73: J=k.A. I=k.A.
B74: 0 | C74: 13 | D74: / / | L74: 0 | M74: 0 | N74: 0 | O74: 0 | P74: 0 | Q74: 0 | T74: eingegebene Übersetzung: 1
C75: Simonini | F75: Kurbelwelle: k.A. / 230ccm | L75: Vespatronic Zündeinstellung: k.A. Schwungrad: k.A. | P75: Zeiten: k.A. | S75: k=1,0156
C76: Nordspeed | F76: 41er/ Ansaugsystem: k.A. | L76: 4500 | P76: bis 230ccm | S76: J=k.A. I=k.A.
B77: 0 | C77: 14 | D77: / / | L77: 0 | M77: 0 | N77: 0 | O77: 0 | P77: 0 | Q77: 0 | T77: eingegebene Übersetzung: 1
C78: Pinasco Magny Cours | F78: Piaggio DS / B63/H57/P/178ccm | L78: Piaggio12V Zündeinstellung: k.A. Elestart | P78: /voT118 noT60/Qk1,6 | S78: k=1,0363
C79: Big Box Touring | F79: Dellorto SI24/ Ansaugsystem: k.A. | L79: BE3/HD125/HLK160/OriLuf | P79: Kein Kommentar | S79: J=k.A. I=k.A.
B80: 0 | C80: 15 | D80: / / | L80: 0 | M80: 0 | N80: 0 | O80: 0 | P80: 0 | Q80: 0 | T80: eingegebene Übersetzung: 1
C81: Pinasco Magny Cours | F81: Piaggio DS / B63/H57/P/178ccm | L81: Piaggio12V Zündeinstellung: k.A. Elestart | P81: /voT118 noT60/Qk1,6 | S81: k=1,0362
C82: Big Box Touring | F82: Dellorto SI24/ Ansaugsystem: k.A. | L82: BE3/HD125/HLK160/OriLuf | P82: Kein Kommentar | S82: J=k.A. I=k.A.
B83: 0 | C83: 16 | D83: / / | L83: 0 | M83: 0 | N83: 0 | O83: 0 | P83: 0 | Q83: 0 | T83: eingegebene Übersetzung: 1
C84: Polini Alu | F84: Piaggio DS / B63/H57/P/178ccm | L84: Piaggio12V Zündeinstellung: k.A. Elestart | P84: /voT118 noT60/Qk1,6 | S84: k=1,0182
C85: Sip Road 2 | F85: Dellorto SI24/ Ansaugsystem: k.A. | L85: BE3/HD125/HLK160/OriLuf | P85: Kein Kommentar | S85: J=k.A. I=k.A.
H94: Franz | J94: Franz

Sheet Getrieberechner
C2: Drehzahlen [U/min]
B3: Geschwindigkeiten | C3: 1000 | D3: 1500 | E3: 2000 | F3: 2500 | G3: 3000 | H3: 3500 | I3: 4000 | J3: 4500 | K3: 5000 | L3: 5500 | M3: 6000 | N3: 6500 | O3: 7000 | P3: 7500 | Q3: 8000 | R3: 8500 | S3: 9000 | T3: 9500 | U3: 10000 | V3: 10500 | W3: 11000 | X3: 11500 | Y3: 12000 | Z3: 12500 | AA3: 13000
B4: 1.Gang | C4: =C3/$D11*$J$31/1000*60/1000 -> 5.290704648 | D4: =D3/$D$11*$J$31/1000*60/1000 -> 7.936056972 | E4: 10.5814093 | F4: 13.22676162 | G4: 15.87211394 | H4: 18.51746627 | I4: 21.16281859 | J4: 23.80817091 | K4: 26.45352324 | L4: 29.09887556 | M4: 31.74422789 | N4: 34.38958021 | O4: 37.03493253 | P4: 39.68028486 | Q4: 42.32563718 | R4: 44.97098951 | S4: 47.61634183 | T4: 50.26169415 | U4: 52.90704648 | V4: 55.5523988 | W4: 58.19775112 | X4: 60.84310345 | Y4: 63.48845577 | Z4: 66.1338081 | AA4: 68.77916042
B5: 2.Gang | C5: =C3/$D$12*$J$31/1000*60/1000 -> 7.955652174 | D5: 11.93347826 | E5: 15.91130435 | F5: 19.88913043 | G5: 23.86695652 | H5: 27.84478261 | I5: 31.8226087 | J5: 35.80043478 | K5: 39.77826087 | L5: 43.75608696 | M5: 47.73391304 | N5: 51.71173913 | O5: 55.68956522 | P5: 59.6673913 | Q5: 63.64521739 | R5: 67.62304348 | S5: 71.60086957 | T5: 75.57869565 | U5: 79.55652174 | V5: 83.53434783 | W5: 87.51217391 | X5: 91.49 | Y5: 95.46782609 | Z5: 99.44565217 | AA5: 103.4234783
B6: 3.Gang | C6: =C3/$D$13*$J$31/1000*60/1000 -> 11.0469913 | D6: 16.57048696 | E6: 22.09398261 | F6: 27.61747826 | G6: 33.14097391 | H6: 38.66446957 | I6: 44.18796522 | J6: 49.71146087 | K6: 55.23495652 | L6: 60.75845217 | M6: 66.28194783 | N6: 71.80544348 | O6: 77.32893913 | P6: 82.85243478 | Q6: 88.37593043 | R6: 93.89942609 | S6: 99.42292174 | T6: 104.9464174 | U6: 110.469913 | V6: 115.9934087 | W6: 121.5169043 | X6: 127.0404 | Y6: 132.5638957 | Z6: 138.0873913 | AA6: 143.610887
B7: 4.Gang | C7: =C3/$D$14*$J$31/1000*60/1000 -> 14.67595463 | D7: 22.01393195 | E7: 29.35190926 | F7: 36.68988658 | G7: 44.02786389 | H7: 51.36584121 | I7: 58.70381853 | J7: 66.04179584 | K7: 73.37977316 | L7: 80.71775047 | M7: 88.05572779 | N7: 95.3937051 | O7: 102.7316824 | P7: 110.0696597 | Q7: 117.4076371 | R7: 124.7456144 | S7: 132.0835917 | T7: 139.421569 | U7: 146.7595463 | V7: 154.0975236 | W7: 161.4355009 | X7: 168.7734783 | Y7: 176.1114556 | Z7: 183.4494329 | AA7: 190.7874102
B9: Primärübersetzung | C9: =C18/C17 -> 2.555555556 | D9: D.Mauerbauer v5.211001
C10: Getriebe | D10: Prim+Getr+Diff | F10: V1 | H10: v2 | J10: vmax | L10: 1 | AT10: XX | AU10: =IF(ROW(AT11)>COUNTA(AT:AT),"",INDEX(AT:AT,SMALL(IF(AT$1:AT$1001<>"",ROW($1:$1001)),ROW(AT1)))) -> XX | AV10: =AU10 -> XX
B11: 1.Gang | C11: =C25/C20 -> 5.8 | D11: =IF(AND(Getrieberechner_Differential<>"",Getrieberechner_Differential<>0),C11*$C$9*Getrieberechner_Differential,C11*$C$9) -> 14.82222222 | F11: =$C$31/D11*$J$31/1000*60/1000 -> 31.74422789 | H11: =IF(Getrieberechner_SchaltUmin_AUTO="ü",$C33/D11*$J$31/1000*60/1000,$C$32/D11*$J$31/1000*60/1000) -> 50.26169415 | J11: =$C$30/D11*$J$31/1000*60/1000 -> 52.90704648 | AS11: 1 | AT11: =IF(INDIRECT("'Aufzeichnung "&AS11&"'!"&"C51",TRUE)<>0,AS11,"") -> 
B12: 2.Gang | C12: =C26/C21 -> 3.857142857 | D12: =IF(AND(Getrieberechner_Differential<>"",Getrieberechner_Differential<>0),C12*$C$9*Getrieberechner_Differential,C12*$C$9) -> 9.857142857 | F12: =$C$31/D12*$J$31/1000*60/1000 -> 47.73391304 | H12: =IF(Getrieberechner_SchaltUmin_AUTO="ü",$C34/D12*$J$31/1000*60/1000,$C$32/D12*$J$31/1000*60/1000) -> 75.57869565 | J12: =$C$30/D12*$J$31/1000*60/1000 -> 79.55652174 | AS12: 2 | AT12: =IF(INDIRECT("'Aufzeichnung "&AS12&"'!"&"C51",TRUE)<>0,AS12,"") -> 
B13: 3.Gang | C13: =C27/C22 -> 2.777777778 | D13: =IF(AND(Getrieberechner_Differential<>"",Getrieberechner_Differential<>0),C13*$C$9*Getrieberechner_Differential,C13*$C$9) -> 7.098765432 | F13: =$C$31/D13*$J$31/1000*60/1000 -> 66.28194783 | H13: =IF(Getrieberechner_SchaltUmin_AUTO="ü",$C35/D13*$J$31/1000*60/1000,$C$32/D13*$J$31/1000*60/1000) -> 104.9464174 | J13: =$C$30/D13*$J$31/1000*60/1000 -> 110.469913 | AS13: 3
B14: 4.Gang | C14: =C28/C23 -> 2.090909091 | D14: =IF(AND(Getrieberechner_Differential<>"",Getrieberechner_Differential<>0),C14*$C$9*Getrieberechner_Differential,C14*$C$9) -> 5.343434343 | F14: =$C$31/D14*$J$31/1000*60/1000 -> 88.05572779 | H14: =IF(Getrieberechner_SchaltUmin_AUTO="ü",$C36/D14*$J$31/1000*60/1000,$C$32/D14*$J$31/1000*60/1000) -> 139.421569 | J14: =$C$30/D14*$J$31/1000*60/1000 -> 146.7595463 | AS14: 4
AS15: 5
B16: Primär | D16: Auswählen | AS16: 6
B17: klein | C17: 27 | D17: 27 | E17: 20 | F17: 21 | G17: 22 | H17: 23 | I17: 24 | J17: 25 | K17: 26 | L17: 28 | M17: 29 | N17: 30 | AS17: 7
B18: groß | C18: 69 | D18: 69 | E18: 58 | F18: 60 | G18: 62 | H18: 63 | I18: 68 | J18: 72 | AS18: 8
D19: Standard | E19: Runner | F19: Sincro Rep | G19: Sincro Pista | H19: Nürburg | I19: ex. Kurz 4 | J19: kurz 4 | K19: Sincro | L19: ? | M19: Racing | N19: Matrix | AS19: 9
B20: 1.Gang | C20: 10 | D20: 10 | E20: 10 | F20: 10 | G20: 10 | H20: 10 | I20: 10 | J20: 10 | K20: 10 | L20: 10 | M20: 10 | N20: 10 | AS20: 10
B21: 2.Gang | C21: 14 | D21: 14 | E21: 14 | F21: 14 | G21: 13 | H21: 14 | I21: 14 | J21: 14 | K21: 14 | L21: 14 | M21: 14 | N21: 13 | AS21: 11
B22: 3.Gang | C22: 18 | D22: 18 | E22: 17 | F22: 17 | G22: 17 | H22: 17 | I22: 18 | J22: 18 | K22: 18 | L22: 17 | M22: 16 | N22: 16 | AS22: 12
B23: 4.Gang | C23: 22 | D23: 22 | E23: 20 | F23: 19 | G23: 19 | H23: 20 | I23: 20 | J23: 21 | K23: 19 | L23: 18 | M23: 23 | N23: 18 | AS23: 13
B24: Hauptwelle | AS24: 14
B25: 1.Gang | C25: 58 | D25: 58 | E25: 54 | F25: 55 | AS25: 15
B26: 2.Gang | C26: 54 | D26: 54 | E26: 55 | F26: 56 | G26: 52 | AS26: 16
B27: 3.Gang | C27: 50 | D27: 50 | E27: 48 | F27: 49
B28: 4.Gang | C28: 46 | D28: 46 | E28: 47 | F28: 48
B29: Antrieb/Diff. | C29: 1
B30: Max. Drehzahl | C30: 10000
B31: Min. Drehzahl | C31: 6000 | D31: Reifenumfang [cm] | J31: 1307 | AS31: Ansaugsystem
B32: Schaltdrehzahl | C32: 9500 | D32: ü | F32: 3.50 - 10 59 J TT reinf. | AS32: Auspuff
B33: 1 auf 2 | C33: 9875.496542 | D33: o | AS33: Bedüsung
B34: 2 auf 3 | C34: 9849.025416 | F34: hier kannst du eintragen | AS34: Kurbelwelle
B35: 3 auf 4 | C35: 9837.544255 | F35: zum auswählen klicken | AS35: Maße[mm]
B36: Enddrehzahl | C36: =Getrieberechner_Schalt_Umin -> 9500 | AS36: Schwung
AS37: Vergaser
H38: =IF(Getrieberechner_SchaltUmin_AUTO="ü","AUTO",Getrieberechner_Schalt_Umin) -> 9500 | J38: =Getrieberechner_Max_Umin -> 10000 | AS38: Zeiten[mm]
B39: Schaltgeschw. 1 auf 2 [km/h] | F39: =H11 -> 50.26169415 | H39: =H11-F12 -> 2.527781109 | J39: =J11-F12 -> 5.173133433 | AS39: Zündeinstellung
B40: Schaltgeschw. 2 auf 3 [km/h] | F40: =H12 -> 75.57869565 | H40: =H12-F13 -> 9.296747826 | J40: =J12-F13 -> 13.27457391 | L40: =F40-F39 -> 25.3170015 | AS40: Zündung
B41: Schaltgeschw. 3 auf 4 [km/h] | F41: =H13 -> 104.9464174 | H41: =H13-F14 -> 16.8906896 | J41: =J13-F14 -> 22.41418526 | L41: =F41-F40 -> 29.36772174 | AS41: Zylinder
B42: Endgeschw [km/h] | F42: =H14 -> 139.421569 | H42: =H14 -> 139.421569 | J42: =J14 -> 146.7595463 | L42: =F42-F41 -> 34.47515161
B53: =$C$30 -> 10000 | C53: 0 | E53: =$C$31 -> 6000 | F53: 0 | H53: =IF(Getrieberechner_SchaltUmin_AUTO="ü",Getrieberechner_Schalt23_Umin,Getrieberechner_Schalt_Umin) -> 9500 | I53: 0 | L53: =$H$11 -> 50.26169415 | O53: =$H$12 -> 75.57869565 | R53: =$H$13 -> 104.9464174
B54: =$C$30 -> 10000 | C54: =J11 -> 52.90704648 | E54: =$C$31 -> 6000 | F54: =F11 -> 31.74422789 | H54: =IF(Getrieberechner_SchaltUmin_AUTO="ü",Getrieberechner_Schalt23_Umin,Getrieberechner_Schalt_Umin) -> 9500 | I54: =H11 -> 50.26169415 | K54: =C3*F39/C5 -> 6317.73399 | L54: =$H$11 -> 50.26169415 | N54: =C3*F40/C6 -> 6841.563786 | O54: =$H$12 -> 75.57869565 | Q54: =C3*F41/C7 -> 7150.909091 | R54: =$H$13 -> 104.9464174
B55: =$C$30 -> 10000 | C55: =J12 -> 79.55652174 | E55: =$C$31 -> 6000 | F55: =F12 -> 47.73391304 | H55: =IF(Getrieberechner_SchaltUmin_AUTO="ü",Getrieberechner_Schalt23_Umin,Getrieberechner_Schalt_Umin) -> 9500 | I55: =H12 -> 75.57869565 | K55: =IF(Getrieberechner_SchaltUmin_AUTO="ü",Getrieberechner_Schalt12_Umin,Getrieberechner_Schalt_Umin) -> 9500 | L55: =$H$11 -> 50.26169415 | N55: =IF(Getrieberechner_SchaltUmin_AUTO="ü",Getrieberechner_Schalt23_Umin,Getrieberechner_Schalt_Umin) -> 9500 | O55: =$H$12 -> 75.57869565 | Q55: =IF(Getrieberechner_SchaltUmin_AUTO="ü",Getrieberechner_Schalt34_Umin,Getrieberechner_Schalt_Umin) -> 9500 | R55: =$H$13 -> 104.9464174
B56: =$C$30 -> 10000 | C56: =J13 -> 110.469913 | E56: =$C$31 -> 6000 | F56: =F13 -> 66.28194783 | H56: =IF(Getrieberechner_SchaltUmin_AUTO="ü",Getrieberechner_Schalt23_Umin,Getrieberechner_Schalt_Umin) -> 9500 | I56: =H13 -> 104.9464174
B57: =$C$30 -> 10000 | C57: =J14 -> 146.7595463 | E57: =$C$31 -> 6000 | F57: =F14 -> 88.05572779 | H57: =IF(Getrieberechner_SchaltUmin_AUTO="ü",Getrieberechner_Schalt23_Umin,Getrieberechner_Schalt_Umin) -> 9500 | I57: =H14 -> 139.421569

Sheet Radzugdiagramm
B17: Aufzeichnung | D17: 1 | E17: Z1 | F17: =IF(N40<=0,"Z1 eingeben","Z1 vorhanden") -> Z1 eingeben | G17: 21 | H17: Schaltdrehzahl 1 auf2 | J17: 9875.496542 | K17: 53.90430731 | L17: 40.54641132 | M17: LUZ Radzug D.Mauerbauer v5.211001
B18: Name | D18: Hornets | E18: Z2 | F18: =IF(O40<=0,"Z2 eingeben","Z2 vorhanden") -> Z2 eingeben | G18: 35 | H18: Schaltdrehzahl 2 auf3 | J18: 9849.025416 | K18: 42.93972391 | L18: 60.80636023
D19: BEREIT | E19: Zähne der Gangräder(gelb=nachträglich) | H19: Schaltdrehzahl 3 auf4 | J19: 9837.544255 | K19: 33.13888425 | L19: 84.33554851
B20: Berechnet werden die 4 Gänge auf das eingestellte Getriebe im Getrieberechner. Gundlage ist die ausgewählte Kurve. Wichtig ist die Angabe der Gangräder mit denen der Lauf gemessen wurde. Waren sie damals nicht eingetragen kann man sie hier bei Z1 und Z2 eingeben. Das ist nur notwendig wenn die Felder nicht schwarz sind, sondern gelb. Nur in gelben Felder schreiben.
Z28: FERTIG
B29: Rechenbare Punkte | D29: 28 | Z29: LADEN…
W30: 10
B31: Ausgangswerte | F31: km/h | J31: NM | S31: UMIN | T31: NM | U31: kmh | W31: 10
A32: lfdNr | B32: Umin | C32: NM | D32: km/h | E32: 1.Gang | F32: 2.Gang | G32: 3.Gang | H32: 4.Gang | I32: 1.Gang | J32: 2.Gang | K32: 3.Gang | L32: 4.Gang | M32: =IF(AND(N32=INDIRECT("'Aufzeichnung "&Radzug_Aufzeichnungsnummer&"'!"&N39,TRUE),O32=INDIRECT("'Aufzeichnung "&Radzug_Aufzeichnungsnummer&"'!"&O39,TRUE)),1,0) -> 0 | N32: =Getrieberechner_NW1 -> 10 | O32: =Getrieberechner_HW1 -> 58 | P32: =O32/N32 -> 5.8 | Q32: =P32/$Q$39 -> 3.48 | S32: U51 | T32: T51 | U32: V51 | W32: 11
A33: 1 | B33: =INDIRECT("'Aufzeichnung "&Radzug_Aufzeichnungsnummer&"'!"&S32,TRUE) ->  | C33: =INDIRECT("'Aufzeichnung "&Radzug_Aufzeichnungsnummer&"'!"&T32,TRUE) -> 0 | D33: =INDIRECT("'Aufzeichnung "&Radzug_Aufzeichnungsnummer&"'!"&U32,TRUE) ->  | E33: =$D33/$Q$32 ->  | F33: =$D33/$Q$33 ->  | G33: =$D33/$Q$34 ->  | H33: =$D33/$Q$35 ->  | I33: =$C33*Radzug_Uebersetzung1 -> 0 | J33: =$C33*Radzug_Uebersetzung2 -> 0 | K33: =$C33*Radzug_Uebersetzung3 -> 0 | L33: =$C33*Radzug_Uebersetzung4 -> 0 | M33: =IF(AND(N33=INDIRECT("'Aufzeichnung "&Radzug_Aufzeichnungsnummer&"'!"&N39,TRUE),O33=INDIRECT("'Aufzeichnung "&Radzug_Aufzeichnungsnummer&"'!"&O39,TRUE)),1,0) -> 0 | N33: =Getrieberechner_NW2 -> 14 | O33: =Getrieberechner_HW2 -> 54 | P33: =O33/N33 -> 3.857142857 | Q33: =P33/$Q$39 -> 2.314285714 | S33: U52 | T33: T52 | U33: V52 | W33: 11
A34: 2 | E34: =$D34/$Q$32 ->  | F34: =$D34/$Q$33 ->  | G34: =$D34/$Q$34 ->  | H34: =$D34/$Q$35 ->  | M34: =IF(AND(N34=INDIRECT("'Aufzeichnung "&Radzug_Aufzeichnungsnummer&"'!"&N39,TRUE),O34=INDIRECT("'Aufzeichnung "&Radzug_Aufzeichnungsnummer&"'!"&O39,TRUE)),1,0) -> 0 | N34: =Getrieberechner_NW3 -> 18 | O34: =Getrieberechner_HW3 -> 50 | P34: =O34/N34 -> 2.777777778 | Q34: =P34/$Q$39 -> 1.666666667 | S34: U53 | T34: T53 | U34: V53 | W34: 12
A35: 3 | M35: =IF(AND(N35=INDIRECT("'Aufzeichnung "&Radzug_Aufzeichnungsnummer&"'!"&N39,TRUE),O35=INDIRECT("'Aufzeichnung "&Radzug_Aufzeichnungsnummer&"'!"&O39,TRUE)),1,0) -> 0 | N35: =Getrieberechner_NW4 -> 22 | O35: =Getrieberechner_HW4 -> 46 | P35: =O35/N35 -> 2.090909091 | Q35: =P35/$Q$39 -> 1.254545455 | S35: U54 | T35: T54 | U35: V54 | W35: 13
A36: 4 | S36: U55 | T36: T55 | U36: V55 | W36: 13
A37: 5 | N37: =INDIRECT("'Aufzeichnung "&Radzug_Aufzeichnungsnummer&"'!"&N38,TRUE) -> 0 | O37: =INDIRECT("'Aufzeichnung "&Radzug_Aufzeichnungsnummer&"'!"&O38,TRUE) -> 0 | P37: =O37/N37/INDIRECT("'Aufzeichnung "&Radzug_Aufzeichnungsnummer&"'!"&P38,TRUE) ->  | S37: U56 | T37: T56 | U37: V56 | W37: 14
A38: 6 | N38: Aufzeichnung_Primär_Z1 | O38: Aufzeichnung_Primär_Z2 | P38: Aufzeichnung_Reifenübersetzung | S38: U57 | T38: T57 | U38: V57 | W38: 14
A39: 7 | N39: Aufzeichnung_Getriebe_Z1 | O39: Aufzeichnung_Getriebe_Z2 | Q39: =IF(ISERROR(P40),Q40,IF(P40<=0,Q40,P40)) -> 1.666666667 | S39: U58 | T39: T58 | U39: V58 | W39: 15
A40: 8 | N40: =INDIRECT("'Aufzeichnung "&Radzug_Aufzeichnungsnummer&"'!"&N39,TRUE) -> 0 | O40: =INDIRECT("'Aufzeichnung "&Radzug_Aufzeichnungsnummer&"'!"&O39,TRUE) -> 0 | P40: =O40/N40 ->  | Q40: =Radzug_Z2_Eingabe/Radzug_Z1_Eingabe -> 1.666666667 | S40: U59 | T40: T59 | U40: V59 | W40: 15
A41: 9 | O41: =Radzug_SchaltKmh_1auf2 -> 40.54641132 | P41: 0 | S41: U60 | T41: T60 | U41: V60 | W41: 16
A42: 10 | O42: =Radzug_SchaltKmh_1auf2 -> 40.54641132 | P42: =Radzug_SchaltPS_1auf2 -> 53.90430731 | S42: U61 | T42: T61 | U42: V61 | W42: 17
A43: 11 | S43: U62 | T43: T62 | U43: V62 | W43: 17
A44: 12 | O44: =Radzug_SchaltKmh_2auf3 -> 60.80636023 | P44: 0 | S44: U63 | T44: T63 | U44: V63 | W44: 18
A45: 13 | O45: =Radzug_SchaltKmh_2auf3 -> 60.80636023 | P45: =Radzug_SchaltPS_2auf3 -> 42.93972391 | S45: U64 | T45: T64 | U45: V64 | W45: 18 | X45: 15
A46: 14 | S46: U65 | T46: T65 | U46: V65 | W46: 19 | X46: 14
A47: 15 | O47: =Radzug_SchaltKmh_3auf4 -> 84.33554851 | P47: 0 | S47: U66 | T47: T66 | U47: V66 | W47: 20 | X47: 11
A48: 16 | O48: =Radzug_SchaltKmh_3auf4 -> 84.33554851 | P48: =Radzug_SchaltPS_3auf4 -> 33.13888425 | S48: U67 | T48: T67 | U48: V67 | W48: 20 | X48: 11
A49: 17 | S49: U68 | T49: T68 | U49: V68 | W49: 21
A50: 18 | S50: U69 | T50: T69 | U50: V69 | W50: 21
A51: 19 | S51: U70 | T51: T70 | U51: V70 | W51: 22 | X51: 15
A52: 20 | S52: U71 | T52: T71 | U52: V71 | W52: 22 | X52: 18
A53: 21 | S53: U72 | T53: T72 | U53: V72 | W53: 23 | X53: 12
A54: 22 | S54: U73 | T54: T73 | U54: V73 | W54: 24 | X54: 14
A55: 23 | S55: U74 | T55: T74 | U55: V74 | W55: 24 | X55: 16
A56: 24 | S56: U75 | T56: T75 | U56: V75 | W56: 25 | X56: 15
A57: 25 | S57: U76 | T57: T76 | U57: V76 | W57: 24 | X57: 16
A58: 26 | S58: U77 | T58: T77 | U58: V77 | W58: 24 | X58: 15
A59: 27 | S59: U78 | T59: T78 | U59: V78 | W59: 25 | X59: 14
A60: 28 | S60: U79 | T60: T79 | U60: V79 | W60: 26 | X60: 17
A61: 29 | S61: U80 | T61: T80 | U61: V80 | W61: 26
A62: 30 | S62: U81 | T62: T81 | U62: V81 | W62: 27 | X62: 16
A63: 31 | S63: U82 | T63: T82 | U63: V82 | W63: 27 | X63: 17
A64: 32 | S64: U83 | T64: T83 | U64: V83 | W64: 28 | X64: 17
A65: 33 | B65: =INDIRECT("'Aufzeichnung "&Radzug_Aufzeichnungsnummer&"'!"&S64,TRUE) ->  | C65: =INDIRECT("'Aufzeichnung "&Radzug_Aufzeichnungsnummer&"'!"&T64,TRUE) ->  | D65: =INDIRECT("'Aufzeichnung "&Radzug_Aufzeichnungsnummer&"'!"&U64,TRUE) ->  | S65: U84 | T65: T84 | U65: V84 | W65: 27 | X65: 18
A66: 34 | S66: U85 | T66: T85 | U66: V85 | W66: 28 | X66: 18
A67: 35 | S67: U86 | T67: T86 | U67: V86 | W67: 27
A68: 36 | S68: U87 | T68: T87 | U68: V87 | W68: 28 | X68: 19
A69: 37 | S69: U88 | T69: T88 | U69: V88 | W69: 31
A70: 38 | S70: U89 | T70: T89 | U70: V89 | W70: 31
A71: 39 | S71: U90 | T71: T90 | U71: V90 | W71: 32 | X71: 20
A72: 40 | S72: U91 | T72: T91 | U72: V91 | W72: 33
A73: 41 | S73: U92 | T73: T92 | U73: V92 | W73: 33
A74: 42 | S74: U93 | T74: T93 | U74: V93 | W74: 34
A75: 43 | S75: U94 | T75: T94 | U75: V94 | W75: 34
A76: 44 | S76: U95 | T76: T95 | U76: V95 | W76: 35
A77: 45 | S77: U96 | T77: T96 | U77: V96 | W77: 36 | X77: 24
A78: 46 | S78: U97 | T78: T97 | U78: V97
A79: 47 | S79: U98 | T79: T98 | U79: V98
A80: 48 | S80: U99 | T80: T99 | U80: V99
A81: 49 | S81: U100 | T81: T100 | U81: V100
A82: 50 | S82: U101 | T82: T101 | U82: V101
A83: 51 | S83: U102 | T83: T102 | U83: V102
A84: 52 | S84: U103 | T84: T103 | U84: V103
A85: 53 | S85: U104 | T85: T104 | U85: V104
A86: 54 | S86: U105 | T86: T105 | U86: V105
A87: 55 | S87: U106 | T87: T106 | U87: V106
A88: 56 | S88: U107 | T88: T107 | U88: V107
A89: 57 | S89: U108 | T89: T108 | U89: V108
A90: 58 | S90: U109 | T90: T109 | U90: V109
A91: 59 | S91: U110 | T91: T110 | U91: V110
A92: 60 | S92: U111 | T92: T111 | U92: V111
A93: 61 | S93: U112 | T93: T112 | U93: V112
A94: 62 | S94: U113 | T94: T113 | U94: V113
A95: 63 | S95: U114 | T95: T114 | U95: V114
A96: 64 | S96: U115 | T96: T115 | U96: V115
A97: 65 | I97: =$C97*Radzug_Uebersetzung1 ->  | J97: =$C97*Radzug_Uebersetzung2 ->  | K97: =$C97*Radzug_Uebersetzung3 ->  | L97: =$C97*Radzug_Uebersetzung4 ->  | S97: U116 | T97: T116 | U97: V116
A98: 66 | E98: =$D98/$Q$32 ->  | F98: =$D98/$Q$33 ->  | G98: =$D98/$Q$34 ->  | H98: =$D98/$Q$35 ->  | S98: U117 | T98: T117 | U98: V117
A99: 67 | S99: U118 | T99: T118 | U99: V118
A100: 68 | S100: U119 | T100: T119 | U100: V119
A101: 69 | S101: U120 | T101: T120 | U101: V120
A102: 70 | S102: U121 | T102: T121 | U102: V121
A103: 71 | S103: U122 | T103: T122 | U103: V122
A104: 72 | S104: U123 | T104: T123 | U104: V123
A105: 73 | S105: U124 | T105: T124 | U105: V124
A106: 74 | S106: U125 | T106: T125 | U106: V125
A107: 75 | S107: U126 | T107: T126 | U107: V126
A108: 76 | S108: U127 | T108: T127 | U108: V127
A109: 77 | S109: U128 | T109: T128 | U109: V128
A110: 78 | S110: U129 | T110: T129 | U110: V129
A111: 79 | S111: U130 | T111: T130 | U111: V130
A112: 80 | S112: U131 | T112: T131 | U112: V131
A113: 81 | S113: U132 | T113: T132 | U113: V132
A114: 82 | S114: U133 | T114: T133 | U114: V133
A115: 83 | S115: U134 | T115: T134 | U115: V134
A116: 84 | S116: U135 | T116: T135 | U116: V135
A117: 85 | S117: U136 | T117: T136 | U117: V136
A118: 86 | S118: U137 | T118: T137 | U118: V137
A119: 87 | S119: U138 | T119: T138 | U119: V138
A120: 88 | S120: U139 | T120: T139 | U120: V139
A121: 89 | S121: U140 | T121: T140 | U121: V140
A122: 90 | S122: U141 | T122: T141 | U122: V141
A123: 91 | S123: U142 | T123: T142 | U123: V142
A124: 92 | S124: U143 | T124: T143 | U124: V143
A125: 93 | S125: U144 | T125: T144 | U125: V144
A126: 94 | S126: U145 | T126: T145 | U126: V145
A127: 95 | S127: U146 | T127: T146 | U127: V146
A128: 96 | S128: U147 | T128: T147 | U128: V147
A129: 97 | B129: =INDIRECT("'Aufzeichnung "&Radzug_Aufzeichnungsnummer&"'!"&S128,TRUE) ->  | C129: =INDIRECT("'Aufzeichnung "&Radzug_Aufzeichnungsnummer&"'!"&T128,TRUE) ->  | D129: =INDIRECT("'Aufzeichnung "&Radzug_Aufzeichnungsnummer&"'!"&U128,TRUE) ->  | S129: U148 | T129: T148 | U129: V148
A130: 98 | S130: U149 | T130: T149 | U130: V149
A131: 99 | S131: U150 | T131: T150 | U131: V150
A132: 100 | S132: U151 | T132: T151 | U132: V151
A133: 101 | S133: U152 | T133: T152 | U133: V152
A134: 102 | S134: U153 | T134: T153 | U134: V153
A135: 103 | S135: U154 | T135: T154 | U135: V154
A136: 104 | S136: U155 | T136: T155 | U136: V155
A137: 105 | S137: U156 | T137: T156 | U137: V156
A138: 106 | S138: U157 | T138: T157 | U138: V157
A139: 107 | S139: U158 | T139: T158 | U139: V158
A140: 108 | S140: U159 | T140: T159 | U140: V159
A141: 109 | S141: U160 | T141: T160 | U141: V160
A142: 110 | S142: U161 | T142: T161 | U142: V161
A143: 111 | S143: U162 | T143: T162 | U143: V162
A144: 112 | S144: U163 | T144: T163 | U144: V163
A145: 113 | S145: U164 | T145: T164 | U145: V164
A146: 114 | S146: U165 | T146: T165 | U146: V165
A147: 115 | S147: U166 | T147: T166 | U147: V166
A148: 116 | S148: U167 | T148: T167 | U148: V167
A149: 117 | S149: U168 | T149: T168 | U149: V168
A150: 118 | S150: U169 | T150: T169 | U150: V169
A151: 119 | S151: U170 | T151: T170 | U151: V170
A152: 120 | S152: U171 | T152: T171 | U152: V171
A153: 121 | S153: U172 | T153: T172 | U153: V172
A154: 122 | S154: U173 | T154: T173 | U154: V173
A155: 123 | S155: U174 | T155: T174 | U155: V174
A156: 124 | S156: U175 | T156: T175 | U156: V175
A157: 125 | S157: U176 | T157: T176 | U157: V176
A158: 126 | S158: U177 | T158: T177 | U158: V177
A159: 127 | S159: U178 | T159: T178 | U159: V178
A160: 128 | S160: U179 | T160: T179 | U160: V179
A161: 129 | I161: =$C161*Radzug_Uebersetzung1 ->  | J161: =$C161*Radzug_Uebersetzung2 ->  | K161: =$C161*Radzug_Uebersetzung3 ->  | L161: =$C161*Radzug_Uebersetzung4 ->  | S161: U180 | T161: T180 | U161: V180
A162: 130 | E162: =$D162/$Q$32 ->  | F162: =$D162/$Q$33 ->  | G162: =$D162/$Q$34 ->  | H162: =$D162/$Q$35 ->  | S162: U181 | T162: T181 | U162: V181
A163: 131 | S163: U182 | T163: T182 | U163: V182
A164: 132 | S164: U183 | T164: T183 | U164: V183
A165: 133 | S165: U184 | T165: T184 | U165: V184
A166: 134 | S166: U185 | T166: T185 | U166: V185
A167: 135 | S167: U186 | T167: T186 | U167: V186
A168: 136 | S168: U187 | T168: T187 | U168: V187
A169: 137 | S169: U188 | T169: T188 | U169: V188
A170: 138 | S170: U189 | T170: T189 | U170: V189
A171: 139 | S171: U190 | T171: T190 | U171: V190
A172: 140 | S172: U191 | T172: T191 | U172: V191
A173: 141 | S173: U192 | T173: T192 | U173: V192
A174: 142 | S174: U193 | T174: T193 | U174: V193
A175: 143 | S175: U194 | T175: T194 | U175: V194
A176: 144 | S176: U195 | T176: T195 | U176: V195
A177: 145 | S177: U196 | T177: T196 | U177: V196
A178: 146 | S178: U197 | T178: T197 | U178: V197
A179: 147 | S179: U198 | T179: T198 | U179: V198
A180: 148 | S180: U199 | T180: T199 | U180: V199
A181: 149 | S181: U200 | T181: T200 | U181: V200
A182: 150 | S182: U201 | T182: T201 | U182: V201
A183: 151 | S183: U202 | T183: T202 | U183: V202
A184: 152 | S184: U203 | T184: T203 | U184: V203
A185: 153 | S185: U204 | T185: T204 | U185: V204
A186: 154 | S186: U205 | T186: T205 | U186: V205
A187: 155 | S187: U206 | T187: T206 | U187: V206
A188: 156 | S188: U207 | T188: T207 | U188: V207
A189: 157 | S189: U208 | T189: T208 | U189: V208
A190: 158 | S190: U209 | T190: T209 | U190: V209
A191: 159 | S191: U210 | T191: T210 | U191: V210
A192: 160 | S192: U211 | T192: T211 | U192: V211
A193: 161 | B193: =INDIRECT("'Aufzeichnung "&Radzug_Aufzeichnungsnummer&"'!"&S192,TRUE) ->  | C193: =INDIRECT("'Aufzeichnung "&Radzug_Aufzeichnungsnummer&"'!"&T192,TRUE) ->  | D193: =INDIRECT("'Aufzeichnung "&Radzug_Aufzeichnungsnummer&"'!"&U192,TRUE) ->  | S193: U212 | T193: T212 | U193: V212
A194: 162 | S194: U213 | T194: T213 | U194: V213
A195: 163 | S195: U214 | T195: T214 | U195: V214
A196: 164 | S196: U215 | T196: T215 | U196: V215
A197: 165 | S197: U216 | T197: T216 | U197: V216
A198: 166 | S198: U217 | T198: T217 | U198: V217
A199: 167 | S199: U218 | T199: T218 | U199: V218
A200: 168 | S200: U219 | T200: T219 | U200: V219
A201: 169 | S201: U220 | T201: T220 | U201: V220
A202: 170 | S202: U221 | T202: T221 | U202: V221
A203: 171 | S203: U222 | T203: T222 | U203: V222
A204: 172 | S204: U223 | T204: T223 | U204: V223
A205: 173 | S205: U224 | T205: T224 | U205: V224
A206: 174 | S206: U225 | T206: T225 | U206: V225
A207: 175 | S207: U226 | T207: T226 | U207: V226
A208: 176 | S208: U227 | T208: T227 | U208: V227
A209: 177 | S209: U228 | T209: T228 | U209: V228
A210: 178 | S210: U229 | T210: T229 | U210: V229
A211: 179 | S211: U230 | T211: T230 | U211: V230
A212: 180 | S212: U231 | T212: T231 | U212: V231
A213: 181 | S213: U232 | T213: T232 | U213: V232
A214: 182 | S214: U233 | T214: T233 | U214: V233
A215: 183 | S215: U234 | T215: T234 | U215: V234
A216: 184 | S216: U235 | T216: T235 | U216: V235
A217: 185 | S217: U236 | T217: T236 | U217: V236
A218: 186 | S218: U237 | T218: T237 | U218: V237
A219: 187 | S219: U238 | T219: T238 | U219: V238
A220: 188 | S220: U239 | T220: T239 | U220: V239
A221: 189 | S221: U240 | T221: T240 | U221: V240
A222: 190 | S222: U241 | T222: T241 | U222: V241
A223: 191 | S223: U242 | T223: T242 | U223: V242
... 160 more rows

Sheet Steuerzeiten
C3: Steuerzeitenrechner | L3: Bogenmaß
C4: Daten | L4: Daten
C6: Hub | D6: 54 | F6: halber Hub | H6: =SUM(STZ_Hub/2) -> 27 | L6: Bohrung [mm] | M6: 26.7
C7: Pleuellänge | D7: 105
C9: Eingabe | L9: Eingabe
C11: Auslass mm | L11: Bogenlänge [mm] | M11: 40
C12: Einlass mm | L12: Bogenlänge [%] | M12: 95.37374726
C14: Auslass Grad | G14: LUZ Steuerzeiten D.Mauerbauer v2.160309 | L14: Sehnenmaß [mm] | M14: 26.62953259
C15: Einlass Grad | L15: Sehnenmaß [%] | M15: 99.7360771
C16: Vorauslass | D16: =(STZ_Eingabe_Auslass_Grad-STZ_Eingabe_Einlass_Grad)/2 -> 0
C18: Änderung mm | L18: Auslassbreite = Bogenlänge
G19: Fußdichtung(+/-)
G20: 0
C21: Auslass | E21: =(180-(ACOS((POWER(STZ_Halbhub+STZ_Pleuellänge-STZ_AuslassMM,2)+POWER(STZ_Halbhub,2)-POWER(STZ_Pleuellänge,2))/(2*(STZ_Halbhub+STZ_Pleuellänge-STZ_AuslassMM)*STZ_Halbhub))*180/PI()))*2 -> 360 | G21: =(180-(ACOS((POWER(STZ_Halbhub+STZ_Pleuellänge-STZ_AuslassMM+STZ_FußMM,2)+POWER(STZ_Halbhub,2)-POWER(STZ_Pleuellänge,2))/(2*(STZ_Halbhub+STZ_Pleuellänge-STZ_AuslassMM+STZ_FußMM)*STZ_Halbhub))*180/PI()))*2 -> 360
C22: Einlass | E22: =(180-(ACOS((POWER(STZ_Halbhub+STZ_Pleuellänge-STZ_EinlassMM,2)+POWER(STZ_Halbhub,2)-POWER(STZ_Pleuellänge,2))/(2*(STZ_Halbhub+STZ_Pleuellänge-STZ_EinlassMM)*STZ_Halbhub))*180/PI()))*2 -> 360 | G22: =(180-(ACOS((POWER(STZ_Halbhub+STZ_Pleuellänge-STZ_EinlassMM+STZ_FußMM,2)+POWER(STZ_Halbhub,2)-POWER(STZ_Pleuellänge,2))/(2*(STZ_Halbhub+STZ_Pleuellänge-STZ_EinlassMM+STZ_FußMM)*STZ_Halbhub))*180/PI()))*2 -> 360
C23: Vorauslass | E23: =SUM(E21-E22)/2 -> 0 | G23: =SUM(G21-G22)/2 -> 0
C25: Änderung Grad
C27: Auslass | E27: =STZ_Halbhub*(1+(STZ_Halbhub)/(4*STZ_Pleuellänge)-COS(RADIANS(DEGREES(RADIANS(180)-RADIANS(STZ_AuslassGRAD)/2)))-(STZ_Halbhub)/(4*STZ_Pleuellänge)*COS(RADIANS(2*DEGREES(RADIANS(180)-RADIANS(STZ_AuslassGRAD)/2)))) -> 54 | G27: =STZ_Eingabe_Auslass_MM-STZ_AuslassGRAD_Ergebnis -> -54
C28: Einlass | E28: =STZ_Halbhub*(1+(STZ_Halbhub)/(4*STZ_Pleuellänge)-COS(RADIANS(DEGREES(RADIANS(180)-RADIANS(STZ_EinlassGrad)/2)))-(STZ_Halbhub)/(4*STZ_Pleuellänge)*COS(RADIANS(2*DEGREES(RADIANS(180)-RADIANS(STZ_EinlassGrad)/2)))) -> 54 | G28: =STZ_Eingabe_Einlass_MM-STZ_EinlassGrad_Ergebnis -> -54
C29: Vorauslass | D29: =(STZ_AuslassGRAD-STZ_EinlassGrad)/2 -> 0

Sheet Konfig (hidden)
B2: MESSUNG | G2: ALLGEMEIN | L2: ANSICHT | Q2: Getrieberechner | AI2: gespeicherte Fahrzeuge | BN2: Getriebedaten | CF2: Details 2-Takt | CR2: Details 4-Takt | DL2: 1 | DM2: 2 | DN2: 3 | DO2: 4 | DP2: 5 | DQ2: 6 | DR2: 7 | DS2: 8 | DT2: 9 | DU2: 10 | DV2: 11 | DW2: 12 | DX2: 13 | DY2: 14 | DZ2: 15 | EA2: 16 | EB2: 17 | EC2: 18
DL3: DPI 100% | DU3: DPI 125%
DK4: Einstellungen Drehzahlmesser | DL4: 1280x1024 | DM4: 1366x768 | DN4: 1600x900 | DO4: 1680x1050 | DP4: 1920x1080 | DU4: 1280x1024 | DV4: 1366x768 | DW4: 1600x900 | DX4: 1680x1050 | DY4: 1920x1080
Q5: Auswahlfelder | AC5: Reifen (auch für Messung) | AI5: es darf keine Leerzeile in der Spalte "lfdNr" sein | BP5: Leerzeilen einhalten | CG5: es darf keine Leerzeile je Spalte sein | CS5: es darf keine Leerzeile je Spalte sein | DD5: Detailname Individuell | DK5: Drehzahlmesser aktiv(-1,0) | DL5: -1 | DM5: -1 | DN5: -1 | DO5: -1 | DP5: -1 | DU5: -1 | DV5: -1 | DW5: -1 | DX5: -1 | DY5: -1
B6: Einstellungen Hardware | G6: Archivierungsoptionen | Q6: Smallframe | AC6: es darf keine Leerzeile sein | AH6: lfdNr | AI6: Name | AJ6: Messungname | AK6: Fahrzeug | AL6: Primär Z1 | AM6: Primär Z2 | AN6: Nebenwelle Z1 | AO6: Nebenwelle Z2 | AP6: Nebenwelle Z3 | AQ6: Nebenwelle Z4 | AR6: Getriebe Z1 | AS6: Getriebe Z2 | AT6: Getriebe Z3 | AU6: Getriebe Z4 | AV6: Reifen | AW6: Schlupf | AX6: Motor Type | AY6: Zylinder | AZ6: Vergaser | BA6: Zündung | BB6: Zündzeitpunkt | BC6: Schwung | BD6: Auspuff | BE6: Kurbelwelle | BF6: Maße | BG6: Zeiten | BH6: Ansaugsyste | BI6: Übersetzung_gemessen | BJ6: Detailtyp | BK6: Bedüsung | BN6: Smallframe | BV6: Largeframe | CF6: Zylinder List1 | CG6: Zylinder List2 | CH6: Kurbelwelle List1 | CI6: Kurbelwelle List2 | CJ6: Vergaser | CK6: Ansaugsystem List1 | CL6: Ansaugsystem List2 | CM6: Auspuff | CN6: Zündung | CO6: Schwung | CR6: Motortype | CS6: Nockenw List1 | CT6: Nockenw List2 | CU6: Einlasss.1 | CV6: Einlasss.2 | CW6: Aufladung1 | CX6: Aufladung2 | CY6: Luftsystem | CZ6: Auspuff1 | DA6: Auspuff2 | DB6: Programm | DD6: Individuell Detail 1 | DE6: Detail 1 | DK6: Mindestdrehzahl (0 = Standard) | DL6: 0 | DM6: 0 | DN6: 0 | DO6: 0 | DP6: 0 | DU6: 0 | DV6: 0 | DW6: 0 | DX6: 0 | DY6: 0
B7: Signale / Umdrehung | C7: 1000 | G7: Messungspfad relativ: | L7: Diagramm | AC7: Reifen | AD7: Umfang[mm] | BN7: Primär | BO7: Z2 | BP7: Kommentar | BV7: Primär | BW7: Z2 | BX7: Kommentar | CF7: BFA | CG7: Gehäuse | CH7: Mazzu | CI7: VW | CJ7: Dellorto | CK7: EigenAns | CL7: Self | CM7: 55er | CN7: Vespatronic | CO7: Alu | CR7: R | CS7: Original | CT7: OHV | CU7: Direkt | CV7: Common-Rail | CW7: Sauger | CX7: Original | CY7: Original | CZ7: Komplett | DA7: Original | DB7: Original | DD7: Individuell Detail 2 | DE7: Detail 2 | DK7: Maximaldrehzahl (0 - 20000) | DL7: 13000 | DM7: 13000 | DN7: 13000 | DO7: 13000 | DP7: 13000 | DU7: 13000 | DV7: 13000 | DW7: 13000 | DX7: 13000 | DY7: 13000
B8: Trägheitsdurchmesser 1 | C8: 0,31 | D8: m | G8: Messungspfad absolut: | Q8: Primär | AC8: 3.50 - 8 46 J | AD8: 1154 | BN8: 15 | BO8: 68 | BP8: schräg | BV8: 20 | BW8: 65 | BX8: DRT | CF8: BGM | CG8: Direkt | CH8: Piaggio | CI8: DS | CJ8: Keihin | CK8: OriAns | CL8: Ori | CM8: Bertha | CN8: Parmakit | CO8: Elestart | CR8: V | CS8: Campro | CT8: OHC | CU8: Common-Rail | CV8: Verteilerpumpe | CW8: Turbo | CX8: Turbonetics | CY8: Rennluftfilter | CZ8: Fächerkrümmer | DA8: Akrapovic | DB8: 1,9TDI Standard | DD8: Individuell Detail 3 | DE8: Detail 3 | DK8: Anfang roter Bereich | DL8: 10000 | DM8: 10000 | DN8: 10000 | DO8: 10000 | DP8: 10000 | DU8: 10000 | DV8: 10000 | DW8: 10000 | DX8: 10000 | DY8: 10000
B9: Trägheitsmoment (C60 7830kg) | C9: 3,56 | D9: kg/m² | E9: 4.111501729 | G9: Screenshot Pfad | H9: C:\Messungen\Bilder | L9: Werte bei INIT | M9: (x = ja, leer = nein, 0 = deaktiviert) | Q9: klein | R9: 27 | S9: 20 | T9: 21 | U9: 22 | V9: 23 | W9: 24 | X9: 25 | Y9: 26 | Z9: 28 | AA9: 29 | AB9: 30 | AC9: 4.00 - 8 55 J | AD9: 1241 | BN9: 16 | BO9: 68 | BP9: schräg | BV9: 21 | BW9: 65 | BX9: P125 | CF9: DR | CG9: Doppel | CH9: King | CI9: Lippe | CJ9: Koso | CK9: Polini | CL9: Vforce | CM9: BigBoxSport | CN9: ParmakitRace | CO9: HP4 | CR9: W | CS9: Schrick | CT9: SV | CU9: Direkteinblasung | CV9: Reihenpumpe | CW9: Biturbo | CX9: Garrett | CY9: Rennansaugkit | CZ9: Enddämpfer | DA9: Bastuck | DB9: 1,9TDI Upgrade2 | DD9: Individuell Detail 4 | DE9: Detail 4 | DK9: Startwinkel (0-180°) | DL9: 60 | DM9: 60 | DN9: 40 | DO9: 20 | DP9: 40 | DU9: 60 | DV9: 90 | DW9: 30 | DX9: 30 | DY9: 30
B10: Verluste Rolle [NM] | C10: 5 | E10: 4.681897669 | G10: BackupPfad | H10: C:\Pruefstand\Backup | L10: Mindestdrehzahl | M10: 1000 | Q10: groß | R10: 69 | S10: 58 | T10: 60 | U10: 62 | V10: 63 | W10: 68 | X10: 72 | AC10: 90/90 - 10 50 J TL | AD10: 1240 | BN10: 17 | BO10: 68 | BP10: schräg | BV10: 22 | BW10: 65 | BX10: P125 | CF10: Falc | CG10: Reverse | CH10: Falc | CJ10: Mikuni | CK10: Malossi | CL10: Vforce2 | CM10: BigBoxTouring | CN10: Piaggio12V | CO10: Piaggio | CR10: VR | CS10: Megacycle | CT10: CIH | CU10: Vergaser | CV10: Lufteinblasung | CW10: Kompressor | CX10: KKK | CY10: Ram Air | CZ10: Downpipe | DA10: Eisenmann | DB10: 320d Standard | DD10: Individuell Detail 5 | DE10: Detail 5 | DK10: Endwinkel (180-360°) | DL10: 300 | DM10: 360 | DN10: 320 | DO10: 300 | DP10: 320 | DU10: 300 | DV10: 270 | DW10: 300 | DX10: 310 | DY10: 300
B11: Verluste nur für Pnorm verwenden | G11: Konfig Pfad | H11: C:\Pruefstand\Konfig | L11: Max Drehzahl | M11: 10000 | Q11: Nebenwelle | R11: Standard | S11: Runner | T11: Sincro Rep | U11: Sincro Pista | V11: Nürburg | W11: ex. Kurz 4 | X11: kurz 4 | Y11: Sincro | Z11: ? | AA11: Racing | AB11: Matrix | AC11: 100/80 - 10 53 J TL | AD11: 1286 | BN11: 18 | BO11: 67 | BP11: schräg | BV11: 23 | BW11: 65 | BX11: P200 | CF11: Malossi | CH11: Polini | CJ11: Pinasco | CK11: MRP | CL11: Vforce3 | CM11: Falc | CN11: Piaggio6V | CO11: Plastik | CR11: Wankel | CS11: Großewächter | CT11: DOHC | CU11: Saugrohr | CV11: M-Verfahren | CW11: Registerturbo | CX11: BorgWarner | CY11: Airbox | CZ11: Racinganlage | DA11: Fox | DB11: 320d Upgrade2 | DD11: Individuell Detail 6 | DE11: Detail 6 | DK11: Breite Diagramm | DL11: 500 | DM11: 580 | DN11: 730 | DO11: 740 | DP11: 870 | DU11: 390 | DV11: 390 | DW11: 570 | DX11: 600 | DY11: 690
B12: Berechnungsuntergrenze (not in Use) | C12: 3000 | D12: Umin | L12: Mindest PS | M12: 0 | Q12: 1.Gang | R12: 10 | S12: 10 | T12: 10 | U12: 10 | V12: 10 | W12: 10 | X12: 10 | Y12: 10 | Z12: 10 | AA12: 10 | AB12: 10 | AC12: 100/80 - 10 53 L TL | AD12: 1240 | BN12: 22 | BO12: 63 | BP12: schräg | BV12: 24 | BW12: 65 | BX12: DRT | CF12: Parmakit | CH12: Quattrini | CJ12: Polini | CK12: MMW | CL12: Vforce4 | CM12: Feuerzauber | CN12: PoliniDigital | CR12: Boxer | CS12: Dbilas | CT12: SOHC | CV12: Nachkammer | CW12: Turbokompressor | CX12: Precision | CY12: ohne Luftfilter | DA12: FSW | DB12: 330d v180313 | DD12: Individuell Detail 7 | DE12: Detail 7 | DK12: Höhe Diagramm | DL12: 560 | DM12: 373 | DN12: 472 | DO12: 585 | DP12: 607 | DU12: 410 | DV12: 260 | DW12: 340 | DX12: 430 | DY12: 445
G13: Expert Version | H13: x | L13: Max PS | M13: 20 | Q13: 2.Gang | R13: 14 | S13: 14 | T13: 14 | U13: 13 | V13: 14 | W13: 14 | X13: 14 | Y13: 14 | Z13: 14 | AA13: 14 | AB13: 13 | AC13: 100/90 - 10 61 J reinf. TT/TL | AD13: 1298 | BN13: 22 | BO13: 60 | BP13: gerade Cobra | BV13: 20 | BW13: 68 | BX13: P80 | CF13: Piaggio | CH13: Pinasco | CJ13: Spaco | CK13: ScootRS | CL13: TopPerf. | CM13: Franz | CN13: PoliniAnalog | CS13: Bar-Tek | CV13: Pumpe-Düse | CX13: CtComp | CY13: Eigenbau | DA13: Gestec | DB13: 335d v190222 GT | DD13: Individuell Detail 8 | DE13: Detail 8 | DK13: Koordinate X Analog Drehzahlmesser | DL13: 960 | DM13: 1090 | DN13: 1290 | DO13: 1325 | DP13: 1550 | DU13: 980 | DV13: 1020 | DW13: 1300 | DX13: 1350 | DY13: 1550
B14: vorrangig USB Online | C14: x | G14: Name des Prüfstandes | H14: LUZ Prüfstand | L14: Min kmh | M14: 10 | Q14: 3.Gang | R14: 18 | S14: 17 | T14: 17 | U14: 17 | V14: 17 | W14: 18 | X14: 18 | Y14: 18 | Z14: 17 | AA14: 16 | AB14: 16 | AC14: 110/80 - 10 58 L TL | AD14: 1238 | BN14: 23 | BO14: 60 | BP14: gerade Polini | BV14: 21 | BW14: 68 | CF14: Pinasco | CH14: MC Eur | CL14: Quattrini | CM14: LTH Box | CN14: Vespower | CV14: Pumpe-Leitung-Düse | CX14: Loba | DA14: HJS | DD14: Individuell Detail 9 | DE14: Detail 9 | DK14: Koordinate Y Analog Drehzahlmesser | DL14: 550 | DM14: 435 | DN14: 470 | DO14: 560 | DP14: 550 | DU14: 570 | DV14: 490 | DW14: 490 | DX14: 560 | DY14: 580
B15: Com Online | C15: 3 | G15: ComputerName (Autofeld - wird überschrieben) | H15: DESKTOP-34MGDT5 | L15: Max kmh | M15: 100 | Q15: 4.Gang | R15: 22 | S15: 20 | T15: 19 | U15: 19 | V15: 20 | W15: 20 | X15: 21 | Y15: 19 | Z15: 18 | AA15: 23 | AB15: 18 | AC15: 120/70 - 10 54 L reinf. TL | AD15: 1262 | BN15: 24 | BO15: 61 | BP15: schräg | BV15: 22 | BW15: 68 | CF15: Polini | CH15: DRT | CL15: Falc | CM15: LTH Midrange | CN15: PVL | CV15: Acro | DA15: Racepipe | DD15: Individuell Detail 10 | DE15: Detail 10 | DK15: Zeigerlänge | DL15: 210 | DM15: 160 | DN15: 210 | DO15: 240 | DP15: 250 | DU15: 180 | DV15: 170 | DW15: 170 | DX15: 215 | DY15: 240
B16: Com online Bluetooth | C16: 7 | G16: Kontrolle archiviert(Autowert) | H16: FALSE | L16: Min Zeit | M16: 0 | Q16: Hauptwelle | AC16: 120/90 - 10 66 L TL | AD16: 1405 | BN16: 24 | BO16: 72 | BP16: gerade RMS/Olympia | BV16: 23 | BW16: 68 | CF16: Quattrini | CH16: BGM | CL16: Polini | CM16: LTH Race | CV16: Lanova | DA16: Remus | DD16: Individuell Detail 11 | DE16: Detail 11 | DK16: Zeigerbreite (10 = Standard) | DL16: 15 | DM16: 15 | DN16: 15 | DO16: 15 | DP16: 20 | DU16: 13 | DV16: 10 | DW16: 10 | DX16: 18 | DY16: 16
G17: Kontrolle verändert(Autowert) | H17: TRUE | L17: Max Zeit | M17: 30 | Q17: 1.Gang | R17: 58 | S17: 54 | T17: 55 | AC17: 130/90 - 10 61 L TL | AD17: 1459 | BN17: 24 | BO17: 58 | BP17: gerade Polini | BV17: 22 | BW17: 67 | BX17: FA Italia | CF17: Zirri | CL17: Wforce | CM17: LTH Road | CV17: Vorkammer | DA17: Sebring | DK17: Startdrehzahlen anzeigen(-1,0) | DL17: -1 | DM17: -1 | DN17: -1 | DO17: -1 | DP17: -1 | DU17: -1 | DV17: -1 | DW17: -1 | DX17: -1 | DY17: -1
B18: max. Anzahl Kurvenpunkte | C18: 1000 | G18: Blattschutz(Autowert) | Q18: 2.Gang | R18: 54 | S18: 55 | T18: 56 | U18: 52 | AC18: 3.00 - 10 50 J reinf. | AD18: 1235 | BN18: 27 | BO18: 69 | BP18: gerade | CL18: RD350 | CM18: M3R | CV18: Wirbelkammer | DA18: Supersprint | DK18: Offset Zahlen X-Achse | DL18: 3 | DM18: 3 | DN18: 3 | DO18: 5 | DP18: 3 | DU18: -147 | DV18: -152 | DW18: -195 | DX18: -198 | DY18: -230
B19: Standard Messpunkte Intervall in U/min | C19: 200 | G19: MAC Adresse | Q19: 3.Gang | R19: 50 | S19: 48 | T19: 49 | AC19: 3.50 - 10 59 J TT reinf. | AD19: 1307 | BN19: 29 | BO19: 68 | BP19: gerade | CM19: M3XC | DA19: Ulter | DK19: Offset Zahlen Y-Achse | DL19: -55 | DM19: -50 | DN19: -55 | DO19: -70 | DP19: -70 | DU19: -130 | DV19: -120 | DW19: -120 | DX19: -140 | DY19: -145
B20: Messzyklus (schnelle Messung) | C20: 50 | G20: Dateipfad Autowert | L20: Korrektur DIN PS aktiv Übersicht | M20: x | Q20: 4.Gang | R20: 46 | S20: 47 | T20: 48 | AC20: 4.00 - 10 60 J | AD20: 1394 | CM20: Piaggio | DA20: Eigenbau | DK20: Faktor Schriftgröße Zahlen (2..Standard) | DL20: 2,4 | DM20: 2 | DN20: 2,4 | DO20: 3 | DP20: 3 | DU20: 2 | DV20: 1,9 | DW20: 1,9 | DX20: 2,5 | DY20: 2,5
B21: Messzyklus (Langzeitmessung) | C21: 500 | G21: Farbschema | H21: 1 | AC21: 120/70 - 11 50 L TL | AD21: 1337 | CM21: Polini Box | DK21: Überstand Zahlen | DL21: 35 | DM21: 35 | DN21: 35 | DO21: 44 | DP21: 50 | DU21: -5 | DV21: -5 | DW21: -10 | DX21: -10 | DY21: -10
G22: LUZ Logo | H22: x | L22: Verhalten bei Aktualisierung | AC22: 110/90 - 12 54 L TL | AD22: 1504 | CM22: Polini Schnecke | DK22: Anzeige Digitalanzeige RPM (-1, 0) | DL22: -1 | DM22: -1 | DN22: -1 | DO22: -1 | DP22: -1 | DU22: -1 | DV22: -1 | DW22: -1 | DX22: -1 | DY22: -1
L23: Automatisch Aktualisieren | M23: x | AC23: 110/100 - 12 67 L TL | AD23: 1570 | CM23: S-Box | DK23: Anzeige Digitalanzeige KMH (-1, 0) | DL23: -1 | DM23: -1 | DN23: -1 | DO23: -1 | DP23: -1 | DU23: -1 | DV23: -1 | DW23: -1 | DX23: -1 | DY23: -1
B24: Einstellungen Drehzahlmesser | C24: 1 Monitor | D24: 2. Monitor | G24: DPI Anzeigenkorrektur | L24: Details immer alle ein | Q24: Largeframe | AC24: 130/70 - 12 56 L TL | AD24: 1456 | CM24: Scorpion | DK24: Skalierung Digitalanzeige (1 Standard) | DL24: 1 | DM24: 1 | DN24: 1 | DP24: 1 | DU24: 1 | DV24: 1 | DW24: 1 | DX24: 1 | DY24: 1
B25: Drehzahlmesser aktiv(-1,0) | C25: -1 | D25: -1 | E25: 1 | G25: Anzeigekorrektur Auto | H25: x | L25: Zoom bei MaxMonitor | M25: 80 | AC25: 140/70 - 12 60 L TL | AD25: 1498 | CM25: Sip Road | DK25: OffSet Digitalanzeige X | DL25: 700 | DM25: 597 | DN25: 910 | DO25: 980 | DP25: 1100 | DU25: 570 | DV25: 570 | DW25: 760 | DX25: 790 | DY25: 900
B26: Mindestdrehzahl (0 = Standard) | C26: 0 | D26: 0 | E26: 2 | G26: DPI Auto Korr | H26: 1 | L26: Zoom bei MinMonitor | M26: 70 | Q26: Primär | AC26: 120/70 - 13 M/C 53 L TL | AD26: 1504 | CM26: T5 | DK26: OffSet Digitalanzeige Y | DL26: 590 | DM26: 350 | DN26: 510 | DO26: 620 | DP26: 600 | DU26: 448 | DV26: 300 | DW26: 377 | DX26: 468 | DY26: 470
B27: Maximaldrehzahl (0 - 20000) | C27: 13000 | D27: 13000 | E27: 3 | G27: Anzeigekorrektur X | H27: 1 | L27: Messpunkte anzeigen | Q27: klein | R27: 23 | S27: 24 | U27: 20 | V27: 21 | W27: 22 | X27: 23 | AC27: 130/60 - 13 M/C 53 L TL | AD27: 1468 | BO27: diese Leerzeile muß sein!! | CM27: VSP Race | DK27: Anzeigereihe Lambda (1 oder 2) | DL27: 2 | DM27: 2 | DN27: 2 | DO27: 2 | DP27: 2 | DU27: 2 | DV27: 2 | DW27: 2 | DX27: 2 | DY27: 2
B28: Anfang roter Bereich | C28: 10000 | D28: 10000 | E28: 4 | G28: Anzeigekorrektur Y | H28: 1 | L28: Immer Blattschutz | Q28: groß | R28: 65 | T28: 67 | U28: 68 | AC28: 140/60 - 13 M/C 57 L TL | AD28: 1504 | BN28: Nebenwelle | BO28: 2.Gang | BP28: 3.Gang | BQ28: 4.Gang | BR28: Name | BV28: Nebenwelle | BW28: 2.Gang | BX28: 3.Gang | BY28: 4.Gang | BZ28: Name | CM28: VSP Road | DK28: Anzeigereihe EGT (1 oder 2) | DL28: 2 | DM28: 2 | DN28: 2 | DO28: 2 | DP28: 2 | DU28: 2 | DV28: 2 | DW28: 2 | DX28: 2 | DY28: 2
B29: Startwinkel (0-180°) | C29: 60 | D29: 60 | E29: 5 | G29: Monitorkontrolle aktiv | H29: x | L29: Nachfragen bei Löschen | Q29: Nebenwelle | R29: PX200 | T29: Px 150 | U29: Px80 | AC29: 140/80 B 15 M/C 73 H reinf. | AD29: 1827 | BN29: 10 | BO29: 14 | BP29: 18 | BQ29: 22 | BR29: Standard PK | BV29: 12 | BW29: 13 | BX29: 17 | BY29: 21 | BZ29: P200 | CM29: VSP2 | DK29: Anzeigereihe PS (1 oder 2) | DL29: 2 | DM29: 2 | DN29: 2 | DO29: 2 | DP29: 2 | DU29: 2 | DV29: 2 | DW29: 2 | DX29: 2 | DY29: 2
B30: Endwinkel (180-360°) | C30: 300 | D30: 300 | E30: 6 | G30: Auflösung | H30: 1 | L30: Nachfragen bei Import | Q30: 1.Gang | R30: 12 | T30: 12 | U30: 13 | AC30: 140/90 B 15 M/C 70 H TL | AD30: 1912 | BN30: 10 | BO30: 15 | BP30: 21 | BQ30: 26 | BR30: Special | BV30: 12 | BW30: 13 | BX30: 17 | BY30: 20 | BZ30: Pinasco kurz 4 | CM30: Zirri | DK30: Anzeigereihe NM (1 oder 2) | DL30: 2 | DM30: 2 | DN30: 2 | DO30: 2 | DP30: 2 | DU30: 2 | DV30: 2 | DW30: 2 | DX30: 2 | DY30: 2
B31: Breite Diagramm | C31: 500 | D31: 500 | E31: 7 | Q31: 2.Gang | R31: 13 | T31: 16 | U31: 17 | AC31: 150/80 B 15 M/C 70 V TL | AD31: 1875 | BN31: 10 | BO31: 15 | BP31: 20 | BQ31: 25 | BR31: XLS | BV31: 12 | BW31: 16 | BX31: 20 | BY31: 25 | BZ31: P125/150X/GTR/TS/GL/Sprint | DK31: Anzeigereihe Analog1 (1 oder 2) | DL31: 2 | DM31: 2 | DN31: 2 | DO31: 2 | DP31: 2 | DU31: 2 | DV31: 2 | DW31: 2 | DX31: 2 | DY31: 2
B32: Höhe Diagramm | C32: 400 | D32: 400 | E32: 8 | L32: Drucken | Q32: 3.Gang | R32: 17 | T32: 20 | U32: 22 | AC32: 150/90 B 15 M/C 74 H TL | AD32: 1966 | BN32: 10 | BO32: 14 | BP32: 17 | BQ32: 20 | BR32: DRT Runner / Zirri | BV32: 13 | BW32: 17 | BX32: 22 | BY32: 27 | BZ32: P150S/125Super2°/150Super | DK32: Anzeigereihe Analog2 (1 oder 2) | DL32: 2 | DM32: 2 | DN32: 2 | DO32: 2 | DP32: 2 | DU32: 2 | DV32: 2 | DW32: 2 | DX32: 2 | DY32: 2
B33: Koordinate X Analog Drehzahlmesser | C33: 1000 | D33: 1000 | E33: 9 | L33: Seitenansicht immer zeigen | M33: x | Q33: 4.Gang | R33: 21 | T33: 25 | U33: 27 | AC33: 170/80 B 15 M/C 83H reinf. | AD33: 1972 | BN33: 10 | BO33: 14 | BP33: 17 | BQ33: 19 | BR33: DRT Sincro Replica | BV33: 12 | BW33: 16 | BX33: 20 | BY33: 19 | BZ33: DRT Spitfire P125-150 | DK33: PS Fenster anzeigen (x oder leer) | DL33: x | DM33: x | DN33: x | DO33: x | DP33: x | DU33: x | DV33: x | DW33: x | DX33: x | DY33: x
B34: Koordinate Y Analog Drehzahlmesser | C34: 450 | D34: 450 | E34: 10 | L34: Übersicht mit Footer/Header | Q34: Hauptwelle | AC34: 180/70 B 15 M/C 76 H TL | AD34: 1912 | BN34: 10 | BO34: 13 | BP34: 17 | BQ34: 19 | BR34: DRT Sincro Pista | BV34: 12 | BW34: 13 | BX34: 16 | BY34: 20 | BZ34: DRT Spitfire / Pinasco P200 | DK34: NM Fenster anzeigen (x oder leer) | DL34: x | DM34: x | DN34: x | DO34: x | DP34: x | DU34: x | DV34: x | DW34: x | DX34: x | DY34: x
B35: Zeigerlänge | C35: 180 | D35: 180 | E35: 11 | Q35: 1.Gang | R35: 57 | S35: 55 | U35: 57 | V35: 58 | W35: 59 | AC35: 200/70 B 15 M/C 82 H TL | AD35: 1996 | BN35: 10 | BO35: 14 | BP35: 17 | BQ35: 20 | BR35: DRT Nürburg | BV35: 12 | BW35: 13 | BX35: 16 | BY35: 19 | BZ35: Pinasco Supersport P200 | DK35: Reserve
B36: Zeigerbreite (10 = Standard) | C36: 15 | D36: 15 | E36: 12 | Q36: 2.Gang | R36: 42 | S36: 40 | T36: 41 | V36: 54 | W36: 52 | X36: 55 | AC36: 100/90 - 16 54 H TL | AD36: 1770 | BN36: 10 | BO36: 14 | BP36: 18 | BQ36: 20 | BR36: DRT extra kurz 4 | BV36: 12 | BW36: 16 | BX36: 20 | BY36: 21 | BZ36: Pinasco lang4 mit Z35 | DK36: Drehzahlvorgabe Extern X | DL36: 900 | DM36: 900 | DN36: 900 | DO36: 900 | DP36: 900 | DU36: 900 | DV36: 900 | DW36: 900 | DX36: 900 | DY36: 900
B37: Startdrehzahlen anzeigen(-1,0) | C37: -1 | D37: -1 | E37: 13 | L37: Allgemein | Q37: 3.Gang | R37: 38 | S37: 39 | T37: 37 | U37: 36 | W37: 48 | X37: 50 | AC37: 120/80 V 16 V250 (60V) | AD37: 1805 | BN37: 10 | BO37: 14 | BP37: 18 | BQ37: 21 | BR37: DRT kurz 4 / Zirri kurz 4 | BV37: 12 | BW37: 13 | BX37: 16 | BY37: 19 | BZ37: DRT kurz3/extra kurz4 | DK37: Drehzahlvorgabe Extern Y | DL37: 400 | DM37: 400 | DN37: 400 | DO37: 400 | DP37: 400 | DU37: 400 | DV37: 400 | DW37: 400 | DX37: 400 | DY37: 400
B38: Offset Zahlen X-Achse | C38: 3 | D38: 3 | E38: 14 | L38: letzten Pfad Import merken | M38: x | Q38: 4.Gang | R38: 35 | S38: 36 | T38: 37 | U38: 34 | V38: 35 | X38: 42 | Y38: 44 | Z38: 47 | AC38: 120/90 - 16 63 H TL | AD38: 1878 | BN38: 10 | BO38: 14 | BP38: 18 | BQ38: 19 | BR38: DRT Sincro | DK38: Kreisüberstand 1 (bei 0 kein Kreis) | DL38: 5 | DM38: 5 | DN38: 5 | DO38: 5 | DP38: 5 | DU38: 5 | DV38: 5 | DW38: 5 | DX38: 5 | DY38: 5
B39: Offset Zahlen Y-Achse | C39: -55 | D39: -55 | E39: 15 | L39: PS Flächenfenster anzeigen | AC39: 130/70 ZR 16 (61W) TL | AD39: 1776 | BN39: 10 | BO39: 14 | BP39: 17 | BQ39: 18 | BR39: DRT ? | DK39: Klimadaten anzeigen | DL39: x | DM39: x | DN39: x | DO39: x | DP39: x | DU39: x | DV39: x | DW39: x | DX39: x | DY39: x
B40: Faktor Schriftgröße Zahlen (2..Standard) | C40: 2,4 | D40: 2,4 | E40: 16 | L40: NM Flächenfenster anzeigen | AC40: 130/90 - 16 67 H TL | AD40: 1933 | BN40: 10 | BO40: 15 | BP40: 16 | BQ40: 23 | BR40: DRT Racing | DK40: Linienbreite dick (10 = Standard) | DL40: 10 | DM40: 10 | DN40: 10 | DO40: 10 | DP40: 12 | DU40: 10 | DV40: 8 | DW40: 8 | DX40: 10 | DY40: 13
B41: Überstand Zahlen | C41: 35 | D41: 35 | E41: 17 | L41: Legende einblenden | M41: x | AC41: 140/80 VB 16 (68V) TL | AD41: 1903 | BN41: 10 | BO41: 13 | BP41: 16 | BQ41: 18 | BR41: DRT Matrix | DK41: Linienbreite dünn (2 = Standard) | DL41: 3 | DM41: 3 | DN41: 3 | DO41: 3 | DP41: 3 | DU41: 3 | DV41: 2 | DW41: 2 | DX41: 2 | DY41: 4
B42: Anzeige Digitalanzeige RPM (-1, 0) | C42: -1 | D42: -1 | E42: 18 | L42: Spaltenbreite Übersichtfenster | M42: 15 | Q42: Benutzer | AC42: 150/80 - 16 M/C 71 H TL | AD42: 1951 | BN42: 10 | BO42: 16 | BP42: 22 | BR42: 3 Gang | DK42: Linienbreite Begrenzer (5 = Standard) | DL42: 3 | DM42: 3 | DN42: 3 | DO42: 3 | DP42: 3 | DU42: 3 | DV42: 2 | DW42: 2 | DX42: 2 | DY42: 2
B43: Anzeige Digitalanzeige KMH (-1, 0) | C43: -1 | D43: -1 | E43: 19 | L43: Achsenanzeige oben | M43: x | AC43: 160/70 VB 16 (71V) TL | AD43: 1903 | DK43: Unterteilung dick (1000 = Standard) | DL43: 1000 | DM43: 1000 | DN43: 1000 | DO43: 1000 | DP43: 1000 | DU43: 1000 | DV43: 1000 | DW43: 1000 | DX43: 1000 | DY43: 1000
B44: Skalierung Digitalanzeige (in Arbeit) | E44: 20 | L44: Farbauswahl Auto | M44: x | Q44: Primär | AC44: 160/80 B 16 81 H reinf. TL | AD44: 1999 | DK44: Unterteilung dünn(200 = Standard) | DL44: 200 | DM44: 200 | DN44: 200 | DO44: 200 | DP44: 200 | DU44: 200 | DV44: 200 | DW44: 200 | DX44: 200 | DY44: 200
B45: OffSet Digitalanzeige X | C45: 680 | D45: 680 | E45: 21 | L45: NM Spalte einblenden | Q45: klein | R45: 14 | S45: 15 | T45: 16 | U45: 18 | AC45: 180/70 R 16 M/C 77 H TL | AD45: 1987 | DK45: Unterteilung Begrenzer | DL45: 10 | DM45: 10 | DN45: 10 | DO45: 10 | DP45: 10 | DU45: 10 | DV45: 10 | DW45: 10 | DX45: 10 | DY45: 10
B46: OffSet Digitalanzeige Y | C46: 430 | D46: 430 | E46: 22 | L46: PS Spalte einblenden | Q46: groß | R46: 69 | S46: 65 | AC46: 180/70 VB 16 (71V) TL | AD46: 1903 | DK46: Zeigerübstand dick | DL46: 15 | DM46: 15 | DN46: 15 | DO46: 15 | DP46: 15 | DU46: 15 | DV46: 15 | DW46: 15 | DX46: 15 | DY46: 15
B47: Anzeigereihe Lambda (1 oder 2) | C47: 2 | D47: 2 | E47: 23 | L47: Kurven von Null aus | Q47: Nebenwelle | R47: Standard | AC47: 2.75 - 16 46 P reinf. | AD47: 1698 | DK47: Zeigerübersand dünn | DL47: 5 | DM47: 5 | DN47: 5 | DO47: 5 | DP47: 5 | DU47: 5 | DV47: 5 | DW47: 5 | DX47: 5 | DY47: 5
B48: Anzeigereihe EGT (1 oder 2) | C48: 2 | D48: 2 | E48: 24 | L48: mit Optionen | Q48: 1.Gang | R48: 10 | AC48: 3.25 - 16 55 P reinf. | AD48: 1776 | DK48: Zeigerüberstand Begrenzer | DL48: 17 | DM48: 17 | DN48: 17 | DO48: 17 | DP48: 17 | DU48: 17 | DV48: 17 | DW48: 17 | DX48: 17 | DY48: 17
B49: Anzeigereihe PS (1 oder 2) | C49: 2 | D49: 2 | E49: 25 | L49: Ansicht mit Minus | Q49: 2.Gang | R49: 14 | AC49: 3.50 - 16 58 P reinf. | AD49: 1806 | DK49: Zeigerunterstand dick | DL49: 30 | DM49: 30 | DN49: 30 | DO49: 30 | DP49: 45 | DU49: 30 | DV49: 20 | DW49: 20 | DX49: 40 | DY49: 40
B50: Anzeigereihe NM (1 oder 2) | C50: 2 | D50: 2 | E50: 26 | L50: Abgaswerte als AFR | M50: x | Q50: 3.Gang | R50: 18 | DK50: Zeigerunterstand dünn | DL50: 30 | DM50: 30 | DN50: 30 | DO50: 30 | DP50: 30 | DU50: 20 | DV50: 20 | DW50: 20 | DX50: 30 | DY50: 30
B51: Anzeigereihe Analog1 (1 oder 2) | C51: 2 | D51: 2 | E51: 27 | L51: Pnorm Auswahl | M51: x | Q51: 4.Gang | R51: 22 | BO51: diese Leerzeile muß sein!! | DK51: Zeigerunterstand Begrenzer | DL51: 10 | DM51: 10 | DN51: 10 | DO51: 10 | DP51: 10 | DU51: 10 | DV51: 10 | DW51: 10 | DX51: 10 | DY51: 20
B52: Anzeigereihe Analog2 (1 oder 2) | C52: 2 | D52: 2 | E52: 28 | L52: Kontrolle Kurve geladen | M52: x | Q52: Hauptwelle | BN52: Hauptwelle Smallframe | BP52: 2.Gang | BQ52: Bezeichnung | BR52: 3.Gang | BS52: Bezeichnung | BT52: 4.Gang | BU52: Bezeichnung | BV52: Hauptwelle Largeframe | BX52: 2.Gang | BY52: Bezeichnung | BZ52: 3.Gang | CA52: Bezeichnung | CB52: 4.Gang | DK52: Linie Zeiger Farbe Rot (RGB Anteil 0-255) | DL52: 0 | DM52: 0 | DN52: 0 | DO52: 0 | DP52: 0 | DU52: 0 | DV52: 0 | DW52: 0 | DX52: 0 | DY52: 0
B53: PS Fenster anzeigen (x oder leer) | C53: x | D53: x | E53: 29 | L53: NM Aufteilung | M53: 3 | Q53: 1.Gang | R53: 58 | BN53: 58 | BO53: Standard | BP53: 54 | BQ53: Standard | BR53: 50 | BS53: Standard | BT53: 46 | BU53: Standard | BV53: 57 | BW53: Standard P200 | BX53: 42 | BY53: Standard P200 | BZ53: 38 | CA53: Standard P200 | CB53: 35 | DK53: Linie Zeiger Farbe Grün (RGB Anteil 0-255) | DL53: 0 | DM53: 0 | DN53: 0 | DO53: 0 | DP53: 0 | DU53: 0 | DV53: 0 | DW53: 0 | DX53: 0 | DY53: 0
B54: NM Fenster anzeigen (x oder leer) | C54: x | D54: x | E54: 30 | Q54: 2.Gang | R54: 54 | BN54: 54 | BO54: DRT extra lang | BP54: 52 | BQ54: DRT lang 2 | BR54: 48 | BS54: DRT lang 3 | BT54: 47 | BU54: DRT Parma | BV54: 56 | BW54: DRT lang 1 | BX54: 41 | BY54: DRT lang 2 | BZ54: 37 | CA54: DRT lang 3 | CB54: 36 | DK54: Linie Zeiger Farbe Blau (RGB Anteil 0-255) | DL54: 255 | DM54: 255 | DN54: 255 | DO54: 255 | DP54: 255 | DU54: 255 | DV54: 255 | DW54: 255 | DX54: 255 | DY54: 255
B55: Reserve | E55: 31 | Q55: 3.Gang | R55: 50 | BN55: 55 | BO55: DRT lang Rovigo | BP55: 55 | BQ55: DRT kurz 2 | BR55: 49 | BS55: DRT lang 3 RSP | BT55: 48 | BU55: DRT/BGM kurz 4 | BV55: 55 | BW55: DRT extra lang 1 | BX55: 40 | BY55: DRT extra lang 2 | BZ55: 36 | CA55: DRT extra lang 3 | CB55: 37 | DK55: Zoom Aufzeichnung | DL55: 97 | DM55: 70 | DN55: 83 | DO55: 100 | DP55: 102 | DU55: 75 | DV55: 55 | DW55: 66 | DX55: 79 | DY55: 81
B56: Drehzahlvorgabe Extern X | C56: 900 | D56: 900 | E56: 32 | Q56: 4.Gang | R56: 48 | BN56: 60 | BO56: 3 Gang alt | BP56: 56 | BQ56: DRt extra kurz 2 | BR56: 51 | BS56: DRT kurz 3 | BT56: 49 | BU56: Zirri kurz 4 | BV56: 58 | BW56: Standard P125 | BX56: 54 | BY56: Standard P125/P150 | BZ56: 38 | CA56: P125-150X/Lusso1°/P150s 2°/P200E/Fally | CB56: 34 | DK56: Länge Aufzeichnung | DL56: 10 | DM56: 100 | DN56: 96 | DO56: 61 | DP56: 90 | DU56: 10 | DV56: 97 | DW56: 91 | DX56: 58 | DY56: 85
B57: Drehzahlvorgabe Extern Y | C57: 400 | D57: 400 | E57: 33 | BN57: 60 | BO57: 3 Gang neu | BP57: 52 | BQ57: 3 Gang XL HP | BR57: 49 | BS57: 50s / Ape | BT57: 43 | BU57: 50s/v50 | BV57: 59 | BW57: Standard P80 | BX57: 52 | BY57: Standard 125Super°2/150 Super/GT/P150s | BZ57: 48 | CA57: 125 GT/GTR/TS/150GL/Sprint v/P125 | CB57: 33 | DK57: Zoom Übersicht | DL57: 69 | DM57: 60 | DN57: 72 | DO57: 85 | DP57: 88 | DU57: 53 | DV57: 48 | DW57: 57 | DX57: 65 | DY57: 71
B58: Kreisüberstand 1 (bei 0 kein Kreis) | C58: 5 | D58: 5 | E58: 34 | BN58: 59 | BO58: Ape | BP58: 55 | BQ58: 3 Gang | BR58: 47 | BS58: 3 Gang | BT58: 44 | BU58: XLS | BX58: 55 | BY58: Standard P80 | BZ58: 48 | CA58: Standard 125Super°2/150 Super/GT/P150s | CB58: 44 | DK58: Länge Übersicht | DL58: 10 | DM58: 69 | DN58: 63 | DO58: 25 | DP58: 55 | DU58: 13 | DV58: 60 | DW58: 56 | DX58: 32 | DY58: 45
B59: Klimadaten anzeigen | C59: x | D59: x | E59: 35 | BR59: 49 | BS59: 3 Gang / SS / Ape | BZ59: 50 | CA59: Standard P80 | CB59: 42
B60: Linienbreite dick (10 = Standard) | C60: 10 | D60: 10 | E60: 36 | CB60: 47
B61: Linienbreite dünn (2 = Standard) | C61: 3 | D61: 3 | E61: 37
B62: Linienbreite Begrenzer (5 = Standard) | C62: 3 | D62: 3 | E62: 38
B63: Unterteilung dick (1000 = Standard) | C63: 1000 | D63: 1000 | E63: 39
B64: Unterteilung dünn(200 = Standard) | C64: 200 | D64: 200 | E64: 40
B65: Unterteilung Begrenzer | C65: 10 | D65: 10 | E65: 41
B66: Zeigerübstand dick | C66: 15 | D66: 15 | E66: 42
B67: Zeigerübersand dünn | C67: 5 | D67: 5 | E67: 43
B68: Zeigerüberstand Begrenzer | C68: 17 | D68: 17 | E68: 44
B69: Zeigerunterstand dick | C69: 30 | D69: 30 | E69: 45
B70: Zeigerunterstand dünn | C70: 30 | D70: 30 | E70: 46
B71: Zeigerunterstand Begrenzer | C71: 10 | D71: 10 | E71: 47
B72: Linie Zeiger Farbe Rot (RGB Anteil 0-255) | C72: 0 | D72: 0 | E72: 48
B73: Linie Zeiger Farbe Grün (RGB Anteil 0-255) | C73: 0 | D73: 0 | E73: 49
B74: Linie Zeiger Farbe Blau (RGB Anteil 0-255) | C74: 255 | D74: 255 | E74: 50
B75: Linie Begr. Farbe Rot (RGB Anteil 0-255) | C75: 255 | D75: 255 | E75: nicht angzeigt
B76: Linie Begr. Farbe Grün (RGB Anteil 0-255) | C76: 0 | D76: 0 | E76: nicht angzeigt
B77: Linie Begr. Farbe Blau (RGB Anteil 0-255) | C77: 0 | D77: 0 | E77: nicht angzeigt
B78: Kreis Farbe Blau (RGB Anteil 0-255) | C78: 0 | D78: 0 | E78: nicht angzeigt
B79: Kreis Farbe Rot (RGB Anteil 0-255) | C79: 0 | D79: 0 | E79: nicht angzeigt
B80: Kreis Farbe Grün (RGB Anteil 0-255) | C80: 0 | D80: 0 | E80: nicht angzeigt
B81: Linie dick Farbe Rot (RGB Anteil 0-255) | C81: 0 | D81: 0 | E81: nicht angzeigt
B82: Linie dick Farbe Grün (RGB Anteil 0-255) | C82: 0 | D82: 0 | E82: nicht angzeigt
B83: Linie dick Farbe Blau (RGB Anteil 0-255) | C83: 0 | D83: 0 | E83: nicht angzeigt
B84: Linie dünn Farbe Rot (RGB Anteil 0-255) | C84: 0 | D84: 0 | E84: nicht angzeigt
B85: Linie dünn Farbe Grün (RGB Anteil 0-255) | C85: 0 | D85: 0 | E85: nicht angzeigt
B86: Linie dünn Farbe Blau (RGB Anteil 0-255) | C86: 0 | D86: 0 | E86: nicht angzeigt
B87: Kreisüberstand 2 (bei 0 kein Kreis) | C87: 0 | D87: 0
B88: aktive Monitoreinstellung | C88: 0
B89: PS Fenster
B90: Anzeige PS nach Transfer | C90: x
B91: Fensterposition (1 = links oben, 2= mittig, 3 =voll) | C91: 3
B92: Kommastellen PS | C92: 1
B93: Breite | C93: 800
B94: Höhe | C94: 600
B96: Allgemeine Einstellungen
B97: Automatischer Transfer nach Stop | C97: x
B98: Korrektur DIN PS aktiv Messen | C98: x
B99: Temp/Drucksensor vorhanden | C99: x
B100: Korrektur Feuchtigkeit (Real) | C100: 0
B101: Korrektur Temperatur (Real) | C101: 0
B102: Korrektur Druck (mbar) | C102: 0
B103: Korrektur Höhe (Meter) | C103: 0
B104: Temp/Druckwerte immer löschen | C104: x
B105: Gemessene Übersetzung immer löschen
B106: Userformen auf 2. Bildschirm anzeigen
B107: Userform für Fernbedienung 2. Mon anz | C107: x
B108: 2. Userform max Anzeige | C108: x | G108: 0 | H108: 0
B109: Zeit für Anzeige PS [s] | C109: 3 | G109: 1 | H109: 500
B110: Zoom bei MaxMonitor | C110: 70 | G110: 2 | H110: 1000
B111: Zoom bei MinMonitor | C111: 78 | G111: 3 | H111: 1500
B112: COM Fenster nach Messung immer zeigen | C112: x | G112: 4 | H112: 2000
B113: Spaltenbreite im Messfenster | C113: 20 | G113: 5 | H113: 2500
B114: Achse oben anzeigen | C114: x | G114: 6 | H114: 3000
B115: Automatische Folgemessungen ein | C115: x | G115: 7 | H115: 3500
B116: Spitzenerkennung | G116: 8 | H116: 4000
B117: PNormAusblendezeit | C117: 1 | G117: 9 | H117: 4500
B118: Vorgabe Anzeigezeit nach Start | C118: 0 | G118: 10 | H118: 5000
B119: Klassen Aktiv | G119: 11 | H119: 5500
B120: Klassen_Export | C120: x | G120: 12 | H120: 6000
B121: Spitzenerkennung Prozentwert | C121: 10 | G121: 13 | H121: 6500
B122: Schnittstellen Livekontrolle ein | C122: x | G122: 14 | H122: 7000
B123: Diagramm Auflösung (50-400) | C123: 200 | G123: 15 | H123: 7500
B124: Zeit wie lange Rolle langsamer bis Stop | C124: 2 | G124: 16 | H124: 8000
B125: große Zusatzanzeige | C125: Aus | G125: 17 | H125: 8500
B126: Windows Import Aktiv | C126: x | G126: 18 | H126: 9000
B127: Windows Import Funktion | C127: 3 | G127: 19 | H127: 9500
G128: 20 | H128: 10000
G129: 21 | H129: 10500
G130: 22 | H130: 11000
G131: 23 | H131: 11500
G132: 24 | H132: 12000
G133: 25 | H133: 12500
B134: CHART | G134: 26 | H134: 13000
B135: Starteinstellung Umin Max | C135: 8000 | G135: 27 | H135: 13500
B136: Starteinstellung Umin Min | C136: 2000 | G136: 28 | H136: 14000
B137: Starteinstellung PS Max | C137: 18 | G137: 29 | H137: 14500
B138: Starteinstellung PS Min | C138: 0 | G138: 30 | H138: 15000
B139: Auflösung Anzeige | C139: 6 | G139: 31
B140: Alte Kurve anzeigen | C140: x | G140: 32
B141: Pfad für Klassendateien | C141: C:\Freigabe | G141: 33
B142: Abbruchkurven anzeigen | C142: x | G142: 34
B143: Folgemessungen anzeigen | C143: x | G143: 35
G144: 36
G145: 37
G146: 38
G147: 39
B148: EGT | G148: 40
B149: Korrekturfaktor | C149: 1 | G149: 41
B150: vertikale Skala Viertel (1, 2 oder 3) | C150: 3 | G150: 42
B151: horizontale Skala Viertel (1, 2 oder 3) | C151: 3 | G151: 43
B152: EGT Standardwert [°C] | C152: 550 | G152: 44
B153: Auflösung ( 10, 25, 50,100) | C153: 50 | G153: 45
B154: EGT aktiv | G154: 46
B155: Skalaanzeige hor wenn nur EGT oder Lambda | C155: 2 | G155: 47
B156: Skalaanzeige vert wenn nur EGT oder Lambda | C156: 2 | G156: 48
B157: Tabelle Auflösung EGT | G157: 49
B158: 10 | G158: 50
B159: 25
B160: 50
B161: 100
B163: LiveDrehzahl
B164: Korrekturfaktor | C164: 1
B165: vertikale Skala Viertel (1, 2 oder 3) | C165: 2
B166: horizontale Skala Viertel (1, 2 oder 3) | C166: 2
B167: Standardwert Prozent | C167: 0
B168: Auflösung Prozent | C168: 2
B169: min/maxAuflösung Umin bei Vario | C169: 3000
B170: Livedrehzahlanzeige aktiv | C170: x
B171: Tabelle Auflösung LiveUmin
B172: 0,5
B173: 1
B174: 2
B175: 4
B178: Lambda
B179: Korrekturfaktor | C179: 1
B180: vertikale Skala Viertel (1, 2 oder 3) | C180: 1
B181: horizontale Skala Viertel (1, 2 oder 3) | C181: 1
B182: Lambda Standardwert | C182: 0,8
B183: AFR Standardwert | C183: 11
B184: Auflösung ( 0.25, 0.5, 1, 2 ) | C184: 0,5
B185: Auflösung ( 0.05, 0.1, 0.2 ) | C185: 0,05
B186: Lambda aktiv
B187: AFR Wert | C187: 14,7
B188: Tabelle Auflösung Lambda
B189: 0,02
B190: 0,05
B191: 0,1
B192: 0,2
B193: Tabelle Auflösung AFR
B194: 0,25
B195: 0,5
B196: 1
B197: 2
B200: Tabelle Messen
B201: JA
B202: NEIN
B204: Tabelle Zündfunkenanzahl
B205: 1 | C205: 0.25 | D205: 4
B206: 1 | C206: 0.5 | D206: 2
B207: 1 | C207: 1 | D207: 1
B208: 2 | C208: 2 | D208: 1
... 197 more rows

Sheet Aufzeichnung 1 (hidden)
B2: Nummer:
D8: TRUE
B25: Ergebnis
B26: Leistung | C26: =IF(ISERROR(MAX(R51:R1050)),0,MAX(R51:R1050)) -> 0 | D26: Drehmoment | E26: =IF(ISERROR(MAX(P51:P1050)),0,MAX(P51:P1050)) -> 0 | F26: maxDrehzahl | G26: =IF(ISERROR(MAX(L51:L1050)),0,MAX(L51:L1050)) -> 0 | H26: max x-Achse | J26: Software: v5.191227
B27: Drehzahl | C27: =IF(ISERROR(INDEX(L51:L1050,MATCH(C26,R51:R1050,0))),0,INDEX(L51:L1050,MATCH(C26,R51:R1050,0))) -> 0 | D27: Drehzahl | E27: =IF(ISERROR(INDEX(U51:U1050,MATCH(E26,P51:P1050,0))),0,INDEX(U51:U1050,MATCH(E26,P51:P1050,0))) -> 0 | F27: Vmax | G27: =IF(ISERROR(MAX(G51:G1050)),0,MAX(G51:G1050)) -> 0 | H27: min x-Achse
B28: Übersetzung | C28: =IF(ISERROR(ROUND(IF(Aufzeichnung_Messen="JA",Aufzeichnung_Übersetzung_gemessen,Aufzeichnung_Übersetzung_berechnet),2)),1,ROUND(IF(Aufzeichnung_Messen="JA",Aufzeichnung_Übersetzung_gemessen,Aufzeichnung_Übersetzung_berechnet),2)) -> 1 | D28: Luftdruck | F28: Temperatur | H28: Luftfeuchte
B30: Getriebe | D30: =IF(#REF!,#REF!,IF(OR(#REF!,Aufzeichnung_Rechenbare_Punkte=0),#REF!,#REF!)) -> 
B31: freie Eingabe | D31: Übersetzung messen | F31: Auspuff | K31: Details
B32: Gang Z1 | D32: Zündungstype | F32: Kurbelwelle | H32: Name
B33: Z2 | D33: Zylinder | F33: Maße | H33: Kommentar
B34: Gang Z2 | D34: Vergaser | F34: Zeiten
B35: Z2 | D35: Zündung | F35: Ansaugsystem
B36: Reifenumfang | D36: Zündeinstellung | F36: Bedüsung
B37: Reifenschlupf | C37: 0 | D37: Schwungrad
B42: Prüfstand | F42: Messzyklus | H42: Gemessene Übersetzung | J42: {EGT Standard} | L42: {EGT Auflösung vertikal} | N42: Lambda Standard | P42: Lambda Auflösung | R42: CRC Daten | U42: drar | W42: LiveUmin Standard | Z42: LiveUmin Auflösung | AB42: LiveNM Aktiv | AD42: FALSE | AE42: Analog1 Standard | AG42: Analog1 Auflösung | AI42: Analog2 Standard | AK42: Analog2 Auflösung
A43: Rollenumfang | D43: Verluste Rolle nur Pnorm | F43: Zündung (nur bei Messverfahren) | H43: Berechnete Übersetzung | I43: =IF(Aufzeichnung_Übersetzung_Manuelle_Eingabe<>"",Aufzeichnung_Übersetzung_Manuelle_Eingabe,IF(ISERROR((Aufzeichnung_Primär_Z2/Aufzeichnung_Primär_Z1)*(Aufzeichnung_Getriebe_Z2/Aufzeichnung_Getriebe_Z1)*Aufzeichnung_Reifenübersetzung),1,(Aufzeichnung_Primär_Z2/Aufzeichnung_Primär_Z1)*(Aufzeichnung_Getriebe_Z2/Aufzeichnung_Getriebe_Z1)*Aufzeichnung_Reifenübersetzung)) -> 1 | J43: {EGT Korr} | N43: Lambda Korrektur | P43: AFR | Q43: 1 | R43: CRC Werte | W43: LiveUmin Korrektur | AB43: LiveNM Faktor | AE43: Analog1 Korrektur | AG43: Analog1 Faktor | AI43: Analog2 Korrektur | AK43: Analog2 Faktor
A44: Trägheitsmoment | D44: Verluste Rolle[NM] | E44: 0 | F44: Rechenbare Punke | H44: Reifen/Rollenübersetzung+ Schlupf | I44: =IF(ISERROR(Aufzeichnung_Rollenumfang/(Aufzeichnung_Reifen*(1+Aufzeichnung_Reifenschlupf))),1,Aufzeichnung_Rollenumfang/(Aufzeichnung_Reifen*(1+Aufzeichnung_Reifenschlupf))) -> 1 | J44: {EGT NM} | N44: Lambda NM | R44: CRC Daten lokal | W44: LiveUmin NM | AB44: Langzeitmessung | AD44: Falsch | AE44: Analog1 NM | AI44: Analog2 NM
B45: Impulse | D45: Verlust NM | E45: 0 | F45: Verluste [NM] | G45: 0 | H45: Prüfstandfaktor | J45: {EGT U/Min} | N45: Lambda U/Min | R45: CRC Werte lokal | W45: LiveUmin U/Min | AE45: Analog1 U/Min | AI45: Analog2 U/Min
A46: FahrzeugID | E46: DIN PS Faktor | F46: JA | G46: =IF(ISERROR((1013/(Aufzeichnung_Luftdruck-Aufzeichnung_Faktor_Feuchte))*((273+Aufzeichnung_Temperatur)/293)),1,(1013/(Aufzeichnung_Luftdruck-Aufzeichnung_Faktor_Feuchte))*((273+Aufzeichnung_Temperatur)/293)) -> 1 | H46: Aktueller NMFaktor | I46: =IF(1=1,drar(),Aufzeichnung_DINPS_Faktor&Aufzeichnung_DIN_PS_Faktor_Aktiv) -> 0 | J46: {EGT Anzahl} | N46: Lambda Anzahl | R46: Version | W46: LiveUmin Anzahl | AE46: Analog1 Anzahl | AI46: Analog2 Anzahl
B47: Detailstype | D47: Gesamtpunkte | F47: Feuchtekorrektur | G47: =(Aufzeichnung_Feuchte*(2.408*10^11*(300/(Aufzeichnung_Temperatur+273.15))^5 *EXP(-22.644*(300/(Aufzeichnung_Temperatur+273.15))))/100) -> 0
A49: lfd Nr. | B49: Impulse | C49: Drehzahl Rolle | H49: Drehzahl Reifen | I49: Drehzahl KW berechnet | J49: Drehzahl KW gemessen | L49: Drehzahl | M49: Winkelgeschwindigkeit | N49: Winkelbeschleunigung | O49: Drehmoment | Q49: Leistung | S49: Anzeige PS | T49: Anzeige NM | U49: Anzeige Drehzahl | V49: Anzeige kmh | W49: EGT | AE49: Lambda | AM49: Livedrehzahl | AV49: LiveNM | AX49: Zeit | AZ49: Analog1 | BH49: Analog2 | BP49: Allgemein Optionen
A50: lfdNr | B50: Werte | C50: Messwerte Berechnet | D50: Zyklus berechnet | E50: U/min | F50: m/s | G50: km/h | H50: U/min | I50: U/min | J50: Werte | K50: U/min | L50: U/min | M50: rad/sec | N50: rad/sec² | O50: am Rad Trägheit | P50: mit Übersetzung | Q50: W | R50: PS | S50: PS | T50: NM | U50: Umin | W50: Messwerte EGT | X50: Werte aufb. | Y50: auf NM | Z50: Horizontal1 | AA50: Horizonal2 | AB50: Vertikal1 | AC50: Vertikal1 NM | AD50: Vertikal2 | AE50: Messwerte Lambda | AF50: Werte aufb. | AG50: auf NM | AH50: Horizontal1 | AI50: Horizonal2 | AJ50: Vertikal1 | AK50: Vertikal1 NM | AL50: Vertikal2 | AM50: LiveDrezahl mit Funkenaufteilung | AN50: Live Umin berechnet | AO50: Werte aufb | AP50: auf NM | AQ50: Horizontal1 | AR50: Horizontal2 | AS50: Vertikal1 | AT50: Vertikal1NM | AU50: Vertikal2 | AV50: Messwerte LiveNM | AW50: Messwerte_LiveNM_berechnet | AX50: sekunden | AY50: Anzeige | AZ50: Messwerte_Analog1 | BA50: Werte aufb. | BB50: auf NM | BC50: Horizontal1 | BD50: Horizonal2 | BE50: Vertikal1 | BF50: Vertikal1 NM | BG50: Vertikal2 | BH50: Messwerte_Analog2 | BI50: Werte aufb. | BJ50: auf NM | BK50: Horizontal1 | BL50: Horizonal2 | BM50: Vertikal1 | BN50: Vertikal1 NM | BO50: Vertikal2 | BP50: Drehzahl | BQ50: KMH
A51: 1 | E51: =C51*60*1000/Aufzeichnung_Impulse/D51 ->  | F51: =E51*Aufzeichnung_Rollenumfang/60/1000 ->  | G51: =F51*3.6 ->  | H51: =E51*Aufzeichnung_Reifenübersetzung ->  | I51: =Aufzeichnung_Übersetzung_berechnet*E51 ->  | K51: =Aufzeichnung_Übersetzung_gemessen*E51 ->  | L51: =IF(Aufzeichnung_Messen="JA",K51,I51) ->  | M51: =2*PI()*E51/60 ->  | N51: 0 | O51: =IF(Aufzeichnung_LiveNM_Aktiv,IF(OR(AW51<=0,N51=0),0,Aufzeichnung_NM_Faktor*N51+Aufzeichnung_Verluste+AW51),IF(N51>0,Aufzeichnung_NM_Faktor*N51+Aufzeichnung_Verluste,IF(N51<0,Aufzeichnung_NM_Faktor*N51+Aufzeichnung_Verluste_Rolle,0))) -> 0 | P51: =O51/Aufzeichnung_Übersetzung -> 0 | Q51: =IF(Aufzeichnung_Messen="JA",2*PI()*K51/60*P51,2*PI()*I51/60*P51) ->  | R51: =Q51*1.36/1000 ->  | S51: =AVERAGE(R50:R51) ->  | T51: =AVERAGE(P50:P51) -> 0 | U51: =AVERAGE(L50:L51) ->  | V51: =AVERAGE(G50:G51) ->  | X51: =W51*Aufzeichnung_EGT_Korrekturfaktor -> 0 | Y51: =Aufzeichnung_EGT_NM+(X51-Aufzeichnung_EGT_Standard)/Aufzeichnung_EGT_Auflösung_vertikal*($AC$52-$AC$51) ->  | Z51: =Aufzeichnung_EGT_NM -> 0 | AA51: 0 | AD51: =Aufzeichnung_EGT_Umin -> 0 | AF51: =AE51*Aufzeichnung_Lambda_Korrekturfaktor*Aufzeichnung_Als_AFR -> 0 | AG51: =Aufzeichnung_Lambda_NM+(AF51-Aufzeichnung_Lambda_Standard)/Aufzeichnung_Lambda_Auflösung_vertikal*($AK$52-$AK$51) ->  | AH51: =Aufzeichnung_Lambda_NM -> 0 | AI51: 0 | AL51: =Aufzeichnung_Lambda_Umin -> 0 | AO51: =IF(Aufzeichnung_LiveUmin_Auswahl_Vario="",IF(BP51<>"",AM51/BP51*100-100,0),AM51) -> 0 | AP51: =Aufzeichnung_LiveUmin_NM+(AO51-Aufzeichnung_LiveUmin_Standard)/Aufzeichnung_LiveUmin_Auflösung_vertikal*($AT$51-$AT$52) ->  | AQ51: =Aufzeichnung_LiveUmin_NM -> 0 | AR51: 0 | AU51: =Aufzeichnung_LiveUmin_Umin -> 0 | BB51: =Aufzeichnung_Analog1_NM+(BA51-Aufzeichnung_Analog1_Standard)/Aufzeichnung_Analog1_Auflösung_vertikal*($BF$52-$BF$51) ->  | BC51: =Aufzeichnung_Analog1_NM -> 0 | BD51: 0 | BG51: =Aufzeichnung_Analog1_Umin -> 0 | BJ51: =Aufzeichnung_Analog2_NM+(BI51-Aufzeichnung_Analog2_Standard)/Aufzeichnung_Analog2_Auflösung_vertikal*($BN$52-$BN$51) ->  | BK51: =Aufzeichnung_Analog2_NM -> 0 | BL51: 0 | BO51: =Aufzeichnung_Analog2_Umin -> 0 | BQ51: =B51/Aufzeichnung_Impulse/Aufzeichnung_Messzyklus*Aufzeichnung_Rollenumfang*3.6 -> 
A52: 2 | F52: =E52*Aufzeichnung_Rollenumfang/60/1000 ->  | G52: =F52*3.6 ->  | M52: =2*PI()*E52/60 ->  | N52: =IF(D52<>1,(M52-M51)/(D52/1000)*SQRT((D52/D51)),0) ->  | R52: =Q52*1.36/1000 ->  | S52: =AVERAGE(R51:R52) ->  | T52: =AVERAGE(P51:P52) ->  | U52: =AVERAGE(L51:L52) ->  | V52: =AVERAGE(G51:G52) ->  | X52: 0 | Y52: =Aufzeichnung_EGT_NM+(X52-Aufzeichnung_EGT_Standard)/Aufzeichnung_EGT_Auflösung_vertikal*($AC$52-$AC$51) ->  | Z52: =Aufzeichnung_EGT_NM -> 0 | AA52: 30000 | AD52: 0 | AF52: 0 | AH52: =Aufzeichnung_Lambda_NM -> 0 | AI52: 30000 | AL52: 0 | AO52: 0 | AQ52: =Aufzeichnung_LiveUmin_NM -> 0 | AR52: 30000 | AU52: 0 | BC52: =Aufzeichnung_Analog1_NM -> 0 | BD52: 300 | BG52: 0 | BJ52: =Aufzeichnung_Analog2_NM+(BI52-Aufzeichnung_Analog2_Standard)/Aufzeichnung_Analog2_Auflösung_vertikal*($BN$52-$BN$51) ->  | BK52: =Aufzeichnung_Analog2_NM -> 0 | BL52: 300 | BO52: 0
A53: 3 | F53: =E53*Aufzeichnung_Rollenumfang/60/1000 ->  | H53: =E53*Aufzeichnung_Reifenübersetzung ->  | I53: =Aufzeichnung_Übersetzung_berechnet*E53 ->  | K53: =Aufzeichnung_Übersetzung_gemessen*E53 ->  | L53: =IF(Aufzeichnung_Messen="JA",K53,I53) ->  | U53: =AVERAGE(L52:L53) ->  | X53: 0 | AD53: 0 | AF53: 0 | AL53: 0 | AO53: 0 | AU53: 0 | BG53: 0 | BO53: 0
A54: 4 | X54: 0 | AD54: 0 | AF54: 0 | AL54: 0 | AO54: 0 | AU54: 0 | BG54: 0 | BO54: 0
A55: 5 | X55: 0 | AD55: 0 | AF55: 0 | AL55: 0 | AO55: 0 | AU55: 0 | BG55: 0 | BO55: 0
A56: 6 | X56: 0 | AD56: 0 | AF56: 0 | AL56: 0 | AO56: 0 | AU56: 0 | BG56: 0 | BO56: 0
A57: 7 | X57: 0 | AD57: 0 | AF57: 0 | AL57: 0 | AO57: 0 | AU57: 0 | BG57: 0 | BO57: 0
A58: 8 | X58: 0 | AD58: 0 | AF58: 0 | AL58: 0 | AO58: 0 | AU58: 0 | BG58: 0 | BO58: 0
A59: 9 | Q59: =IF(Aufzeichnung_Messen="JA",2*PI()*K59/60*P59,2*PI()*I59/60*P59) ->  | X59: 0 | AD59: 0 | AF59: 0 | AL59: 0 | AO59: 0 | AU59: 0 | BG59: 0 | BO59: 0
A60: 10 | X60: 0 | AD60: 0 | AF60: 0 | AL60: 0 | AO60: 0 | AU60: 0 | BG60: 0 | BO60: 0
A61: 11 | X61: 0 | AD61: 0 | AF61: 0 | AL61: 0 | AO61: 0 | AU61: 0 | BG61: 0 | BO61: 0
A62: 12 | X62: 0 | AD62: 0 | AF62: 0 | AL62: 0 | AO62: 0 | AU62: 0 | BG62: 0 | BO62: 0
A63: 13 | X63: 0 | AD63: 0 | AF63: 0 | AL63: 0 | AO63: 0 | AU63: 0 | BG63: 0 | BO63: 0
A64: 14 | X64: 0 | AF64: 0 | AO64: 0
A65: 15 | X65: 0 | AF65: 0 | AO65: 0
A66: 16 | X66: 0 | AF66: 0 | AO66: 0
A67: 17 | X67: 0 | AF67: 0 | AO67: 0
A68: 18 | X68: 0 | AF68: 0 | AO68: 0
A69: 19 | X69: 0 | AF69: 0 | AO69: 0
A70: 20 | X70: 0 | AF70: 0 | AO70: 0
A71: 21 | X71: 0 | AF71: 0 | AO71: 0
A72: 22 | N72: =IF(D72<>1,(M72-M71)/(D72/1000)*SQRT((D72/D71)),0) ->  | X72: 0 | AF72: 0 | AO72: 0
A73: 23 | X73: 0 | AF73: 0 | AO73: 0
A74: 24 | X74: 0 | AF74: 0 | AO74: 0
A75: 25 | X75: 0 | AF75: 0 | AO75: 0
A76: 26 | X76: 0 | AF76: 0 | AO76: 0
A77: 27 | X77: 0 | AF77: 0 | AO77: 0
A78: 28 | X78: 0 | AF78: 0 | AO78: 0
A79: 29 | X79: 0 | AF79: 0 | AO79: 0
A80: 30 | X80: 0 | AF80: 0 | AO80: 0
A81: 31 | X81: 0 | AF81: 0 | AO81: 0
A82: 32 | F82: =E82*Aufzeichnung_Rollenumfang/60/1000 ->  | X82: 0 | AF82: 0 | AO82: 0
A83: 33 | F83: =E83*Aufzeichnung_Rollenumfang/60/1000 ->  | X83: 0 | AF83: 0 | AO83: 0
A84: 34 | X84: 0 | AF84: 0 | AO84: 0
A85: 35 | X85: 0 | AF85: 0 | AO85: 0
A86: 36 | X86: 0 | AF86: 0 | AO86: 0
A87: 37 | X87: 0 | AF87: 0 | AO87: 0
A88: 38 | X88: 0 | AF88: 0 | AO88: 0
A89: 39 | X89: 0 | AF89: 0 | AO89: 0
A90: 40 | X90: 0 | AF90: 0 | AO90: 0
A91: 41 | X91: 0 | AF91: 0 | AO91: 0
A92: 42 | X92: 0 | AF92: 0 | AO92: 0
A93: 43 | X93: 0 | AF93: 0 | AO93: 0
A94: 44 | X94: 0 | AF94: 0 | AO94: 0
A95: 45 | X95: 0 | AF95: 0 | AO95: 0
A96: 46 | X96: 0 | AF96: 0 | AO96: 0
A97: 47 | X97: 0 | AF97: 0 | AO97: 0
A98: 48 | X98: 0 | AF98: 0 | AO98: 0
A99: 49 | X99: 0 | AF99: 0 | AO99: 0
A100: 50 | X100: 0 | AF100: 0 | AO100: 0
A101: 51 | X101: 0 | AF101: 0 | AO101: 0
A102: 52 | X102: 0 | AF102: 0 | AO102: 0
A103: 53 | X103: 0 | AF103: 0 | AO103: 0
A104: 54 | X104: 0 | AF104: 0 | AO104: 0
A105: 55 | X105: 0 | AF105: 0 | AO105: 0
A106: 56 | X106: 0 | AF106: 0 | AO106: 0
A107: 57 | X107: 0 | AF107: 0 | AO107: 0
A108: 58 | X108: 0 | AF108: 0 | AO108: 0
A109: 59 | X109: 0 | AF109: 0 | AO109: 0
A110: 60 | X110: 0 | AF110: 0 | AO110: 0
A111: 61 | X111: 0 | AF111: 0 | AO111: 0
A112: 62 | X112: 0 | AF112: 0 | AO112: 0
A113: 63 | X113: 0 | AF113: 0 | AO113: 0
A114: 64 | X114: 0 | AF114: 0 | AO114: 0
A115: 65 | E115: =C115*60*1000/Aufzeichnung_Impulse/D115 ->  | F115: =E115*Aufzeichnung_Rollenumfang/60/1000 ->  | H115: =E115*Aufzeichnung_Reifenübersetzung ->  | I115: =Aufzeichnung_Übersetzung_berechnet*E115 ->  | K115: =Aufzeichnung_Übersetzung_gemessen*E115 ->  | L115: =IF(Aufzeichnung_Messen="JA",K115,I115) ->  | O115: =IF(Aufzeichnung_LiveNM_Aktiv,IF(OR(AW115<=0,N115=0),0,Aufzeichnung_NM_Faktor*N115+Aufzeichnung_Verluste+AW115),IF(N115>0,Aufzeichnung_NM_Faktor*N115+Aufzeichnung_Verluste,IF(N115<0,Aufzeichnung_NM_Faktor*N115+Aufzeichnung_Verluste_Rolle,0))) ->  | P115: =O115/Aufzeichnung_Übersetzung ->  | Q115: =IF(Aufzeichnung_Messen="JA",2*PI()*K115/60*P115,2*PI()*I115/60*P115) ->  | X115: =W115*Aufzeichnung_EGT_Korrekturfaktor -> 0 | Y115: =Aufzeichnung_EGT_NM+(X115-Aufzeichnung_EGT_Standard)/Aufzeichnung_EGT_Auflösung_vertikal*($AC$52-$AC$51) ->  | AF115: =AE115*Aufzeichnung_Lambda_Korrekturfaktor*Aufzeichnung_Als_AFR -> 0 | AG115: =Aufzeichnung_Lambda_NM+(AF115-Aufzeichnung_Lambda_Standard)/Aufzeichnung_Lambda_Auflösung_vertikal*($AK$52-$AK$51) ->  | AO115: =IF(Aufzeichnung_LiveUmin_Auswahl_Vario="",IF(BP115<>"",AM115/BP115*100-100,0),AM115) -> 0 | AP115: =Aufzeichnung_LiveUmin_NM+(AO115-Aufzeichnung_LiveUmin_Standard)/Aufzeichnung_LiveUmin_Auflösung_vertikal*($AT$51-$AT$52) ->  | BB115: =Aufzeichnung_Analog1_NM+(BA115-Aufzeichnung_Analog1_Standard)/Aufzeichnung_Analog1_Auflösung_vertikal*($BF$52-$BF$51) ->  | BJ115: =Aufzeichnung_Analog2_NM+(BI115-Aufzeichnung_Analog2_Standard)/Aufzeichnung_Analog2_Auflösung_vertikal*($BN$52-$BN$51) ->  | BQ115: =B115/Aufzeichnung_Impulse/Aufzeichnung_Messzyklus*Aufzeichnung_Rollenumfang*3.6 -> 
A116: 66 | G116: =F116*3.6 ->  | M116: =2*PI()*E116/60 ->  | N116: =IF(D116<>1,(M116-M115)/(D116/1000)*SQRT((D116/D115)),0) ->  | R116: =Q116*1.36/1000 ->  | S116: =AVERAGE(R115:R116) ->  | T116: =AVERAGE(P115:P116) ->  | V116: =AVERAGE(G115:G116) ->  | X116: 0 | AF116: 0 | AO116: 0
A117: 67 | U117: =AVERAGE(L116:L117) ->  | X117: 0 | AF117: 0 | AO117: 0
A118: 68 | X118: 0 | AF118: 0 | AO118: 0
A119: 69 | X119: 0 | AF119: 0 | AO119: 0
A120: 70 | X120: 0 | AF120: 0 | AO120: 0
A121: 71 | X121: 0 | AF121: 0 | AO121: 0
A122: 72 | X122: 0 | AF122: 0 | AO122: 0
A123: 73 | X123: 0 | AF123: 0 | AO123: 0
A124: 74 | X124: 0 | AF124: 0 | AO124: 0
A125: 75 | X125: 0 | AF125: 0 | AO125: 0
A126: 76 | X126: 0 | AF126: 0 | AO126: 0
A127: 77 | X127: 0 | AF127: 0 | AO127: 0
A128: 78 | X128: 0 | AF128: 0 | AO128: 0
A129: 79 | X129: 0 | AF129: 0 | AO129: 0
A130: 80 | X130: 0 | AF130: 0 | AO130: 0
A131: 81 | X131: 0 | AF131: 0 | AO131: 0
A132: 82 | X132: 0 | AF132: 0 | AO132: 0
A133: 83 | X133: 0 | AF133: 0 | AO133: 0
A134: 84 | X134: 0 | AF134: 0 | AO134: 0
A135: 85 | X135: 0 | AF135: 0 | AO135: 0
A136: 86 | X136: 0 | AF136: 0 | AO136: 0
A137: 87 | X137: 0 | AF137: 0 | AO137: 0
A138: 88 | X138: 0 | AF138: 0 | AO138: 0
A139: 89 | X139: 0 | AF139: 0 | AO139: 0
A140: 90 | F140: =E140*Aufzeichnung_Rollenumfang/60/1000 ->  | X140: 0 | AF140: 0 | AO140: 0
A141: 91 | X141: 0 | AF141: 0 | AO141: 0
A142: 92 | X142: 0 | AF142: 0 | AO142: 0
A143: 93 | X143: 0 | AF143: 0 | AO143: 0
A144: 94 | X144: 0 | AF144: 0 | AO144: 0
A145: 95 | X145: 0 | AF145: 0 | AO145: 0
A146: 96 | X146: 0 | AF146: 0 | AO146: 0
A147: 97 | X147: 0 | AF147: 0 | AO147: 0
A148: 98 | X148: 0 | AF148: 0 | AO148: 0
A149: 99 | X149: 0 | AF149: 0 | AO149: 0
A150: 100 | X150: 0 | AF150: 0 | AO150: 0
A151: 101 | X151: 0 | AF151: 0 | AO151: 0
A152: 102 | X152: 0 | AF152: 0 | AO152: 0
A153: 103 | X153: 0 | AF153: 0 | AO153: 0
A154: 104 | X154: 0 | AF154: 0 | AO154: 0
A155: 105 | X155: 0 | AF155: 0 | AO155: 0
A156: 106 | X156: 0 | AF156: 0 | AO156: 0
A157: 107 | X157: 0 | AF157: 0 | AO157: 0
A158: 108 | X158: 0 | AF158: 0 | AO158: 0
A159: 109 | X159: 0 | AF159: 0 | AO159: 0
A160: 110 | X160: 0 | AF160: 0 | AO160: 0
A161: 111 | X161: 0 | AF161: 0 | AO161: 0
A162: 112 | X162: 0 | AF162: 0 | AO162: 0
A163: 113 | X163: 0 | AF163: 0 | AO163: 0
A164: 114 | X164: 0 | AF164: 0 | AO164: 0
A165: 115 | X165: 0 | AF165: 0 | AO165: 0
A166: 116 | X166: 0 | AF166: 0 | AO166: 0
A167: 117 | X167: 0 | AF167: 0 | AO167: 0
A168: 118 | F168: =E168*Aufzeichnung_Rollenumfang/60/1000 ->  | X168: 0 | AF168: 0 | AO168: 0
A169: 119 | X169: 0 | AF169: 0 | AO169: 0
A170: 120 | X170: 0 | AF170: 0 | AO170: 0
A171: 121 | X171: 0 | AF171: 0 | AO171: 0
A172: 122 | X172: 0 | AF172: 0 | AO172: 0
A173: 123 | X173: 0 | AF173: 0 | AO173: 0
A174: 124 | X174: 0 | AF174: 0 | AO174: 0
A175: 125 | X175: 0 | AF175: 0 | AO175: 0
A176: 126 | X176: 0 | AF176: 0 | AO176: 0
A177: 127 | X177: 0 | AF177: 0 | AO177: 0
A178: 128 | X178: 0 | AF178: 0 | AO178: 0
A179: 129 | E179: =C179*60*1000/Aufzeichnung_Impulse/D179 ->  | H179: =E179*Aufzeichnung_Reifenübersetzung ->  | I179: =Aufzeichnung_Übersetzung_berechnet*E179 ->  | K179: =Aufzeichnung_Übersetzung_gemessen*E179 ->  | L179: =IF(Aufzeichnung_Messen="JA",K179,I179) ->  | O179: =IF(Aufzeichnung_LiveNM_Aktiv,IF(OR(AW179<=0,N179=0),0,Aufzeichnung_NM_Faktor*N179+Aufzeichnung_Verluste+AW179),IF(N179>0,Aufzeichnung_NM_Faktor*N179+Aufzeichnung_Verluste,IF(N179<0,Aufzeichnung_NM_Faktor*N179+Aufzeichnung_Verluste_Rolle,0))) ->  | P179: =O179/Aufzeichnung_Übersetzung ->  | Q179: =IF(Aufzeichnung_Messen="JA",2*PI()*K179/60*P179,2*PI()*I179/60*P179) ->  | X179: =W179*Aufzeichnung_EGT_Korrekturfaktor -> 0 | Y179: =Aufzeichnung_EGT_NM+(X179-Aufzeichnung_EGT_Standard)/Aufzeichnung_EGT_Auflösung_vertikal*($AC$52-$AC$51) ->  | AF179: =AE179*Aufzeichnung_Lambda_Korrekturfaktor*Aufzeichnung_Als_AFR -> 0 | AG179: =Aufzeichnung_Lambda_NM+(AF179-Aufzeichnung_Lambda_Standard)/Aufzeichnung_Lambda_Auflösung_vertikal*($AK$52-$AK$51) ->  | AO179: =IF(Aufzeichnung_LiveUmin_Auswahl_Vario="",IF(BP179<>"",AM179/BP179*100-100,0),AM179) -> 0 | AP179: =Aufzeichnung_LiveUmin_NM+(AO179-Aufzeichnung_LiveUmin_Standard)/Aufzeichnung_LiveUmin_Auflösung_vertikal*($AT$51-$AT$52) ->  | BB179: =Aufzeichnung_Analog1_NM+(BA179-Aufzeichnung_Analog1_Standard)/Aufzeichnung_Analog1_Auflösung_vertikal*($BF$52-$BF$51) ->  | BJ179: =Aufzeichnung_Analog2_NM+(BI179-Aufzeichnung_Analog2_Standard)/Aufzeichnung_Analog2_Auflösung_vertikal*($BN$52-$BN$51) ->  | BQ179: =B179/Aufzeichnung_Impulse/Aufzeichnung_Messzyklus*Aufzeichnung_Rollenumfang*3.6 -> 
A180: 130 | G180: =F180*3.6 ->  | M180: =2*PI()*E180/60 ->  | N180: =IF(D180<>1,(M180-M179)/(D180/1000)*SQRT((D180/D179)),0) ->  | R180: =Q180*1.36/1000 ->  | S180: =AVERAGE(R179:R180) ->  | T180: =AVERAGE(P179:P180) ->  | V180: =AVERAGE(G179:G180) ->  | X180: 0 | AF180: 0 | AO180: 0
A181: 131 | U181: =AVERAGE(L180:L181) ->  | X181: 0 | AF181: 0 | AO181: 0
A182: 132 | X182: 0 | AF182: 0 | AO182: 0
A183: 133 | X183: 0 | AF183: 0 | AO183: 0
A184: 134 | X184: 0 | AF184: 0 | AO184: 0
A185: 135 | X185: 0 | AF185: 0 | AO185: 0
A186: 136 | X186: 0 | AF186: 0 | AO186: 0
A187: 137 | X187: 0 | AF187: 0 | AO187: 0
A188: 138 | X188: 0 | AF188: 0 | AO188: 0
A189: 139 | X189: 0 | AF189: 0 | AO189: 0
A190: 140 | X190: 0 | AF190: 0 | AO190: 0
A191: 141 | X191: 0 | AF191: 0 | AO191: 0
A192: 142 | X192: 0 | AF192: 0 | AO192: 0
A193: 143 | X193: 0 | AF193: 0 | AO193: 0
A194: 144 | X194: 0 | AF194: 0 | AO194: 0
A195: 145 | X195: 0 | AF195: 0 | AO195: 0
A196: 146 | X196: 0 | AF196: 0 | AO196: 0
A197: 147 | X197: 0 | AF197: 0 | AO197: 0
A198: 148 | X198: 0 | AF198: 0 | AO198: 0
A199: 149 | X199: 0 | AF199: 0 | AO199: 0
A200: 150 | X200: 0 | AF200: 0 | AO200: 0
A201: 151 | X201: 0 | AF201: 0 | AO201: 0
A202: 152 | X202: 0 | AF202: 0 | AO202: 0
A203: 153 | X203: 0 | AF203: 0 | AO203: 0
A204: 154 | X204: 0 | AF204: 0 | AO204: 0
A205: 155 | X205: 0 | AF205: 0 | AO205: 0
A206: 156 | X206: 0 | AF206: 0 | AO206: 0
A207: 157 | X207: 0 | AF207: 0 | AO207: 0
A208: 158 | X208: 0 | AF208: 0 | AO208: 0
A209: 159 | X209: 0 | AF209: 0 | AO209: 0
A210: 160 | X210: 0 | AF210: 0 | AO210: 0
A211: 161 | X211: 0 | AF211: 0 | AO211: 0
A212: 162 | X212: 0 | AF212: 0 | AO212: 0
A213: 163 | X213: 0 | AF213: 0 | AO213: 0
A214: 164 | X214: 0 | AF214: 0 | AO214: 0
A215: 165 | X215: 0 | AF215: 0 | AO215: 0
A216: 166 | X216: 0 | AF216: 0 | AO216: 0
A217: 167 | X217: 0 | AF217: 0 | AO217: 0
A218: 168 | X218: 0 | AF218: 0 | AO218: 0
A219: 169 | X219: 0 | AF219: 0 | AO219: 0
A220: 170 | X220: 0 | AF220: 0 | AO220: 0
A221: 171 | X221: 0 | AF221: 0 | AO221: 0
A222: 172 | X222: 0 | AF222: 0 | AO222: 0
A223: 173 | X223: 0 | AF223: 0 | AO223: 0
A224: 174 | X224: 0 | AF224: 0 | AO224: 0
A225: 175 | X225: 0 | AF225: 0 | AO225: 0
A226: 176 | X226: 0 | AF226: 0 | AO226: 0
A227: 177 | X227: 0 | AF227: 0 | AO227: 0
A228: 178 | X228: 0 | AF228: 0 | AO228: 0
... 822 more rows

Sheet Aufzeichnung 2 (hidden)
B2: Nummer:
D8: TRUE
B25: Ergebnis
B26: Leistung | C26: =IF(ISERROR(MAX(R51:R1050)),0,MAX(R51:R1050)) -> 0 | D26: Drehmoment | E26: =IF(ISERROR(MAX(P51:P1050)),0,MAX(P51:P1050)) -> 0 | F26: maxDrehzahl | G26: =IF(ISERROR(MAX(L51:L1050)),0,MAX(L51:L1050)) -> 0 | H26: max x-Achse | J26: Software: v5.191227
B27: Drehzahl | C27: =IF(ISERROR(INDEX(L51:L1050,MATCH(C26,R51:R1050,0))),0,INDEX(L51:L1050,MATCH(C26,R51:R1050,0))) -> 0 | D27: Drehzahl | E27: =IF(ISERROR(INDEX(U51:U1050,MATCH(E26,P51:P1050,0))),0,INDEX(U51:U1050,MATCH(E26,P51:P1050,0))) -> 0 | F27: Vmax | G27: =IF(ISERROR(MAX(G51:G1050)),0,MAX(G51:G1050)) -> 0 | H27: min x-Achse
B28: Übersetzung | C28: =IF(ISERROR(ROUND(IF(Aufzeichnung_Messen="JA",Aufzeichnung_Übersetzung_gemessen,Aufzeichnung_Übersetzung_berechnet),2)),1,ROUND(IF(Aufzeichnung_Messen="JA",Aufzeichnung_Übersetzung_gemessen,Aufzeichnung_Übersetzung_berechnet),2)) -> 1 | D28: Luftdruck | F28: Temperatur | H28: Luftfeuchte
B30: Getriebe | D30: =IF(#REF!,#REF!,IF(OR(#REF!,Aufzeichnung_Rechenbare_Punkte=0),#REF!,#REF!)) -> 
B31: freie Eingabe | D31: Übersetzung messen | F31: Exhaust | K31: Details
B32: Gang Z1 | D32: Zündungstype | F32: camshaft | H32: Name
B33: Z2 | D33: engine type | F33: Times | H33: Kommentar
B34: Gang Z2 | D34: Charging | F34: Dimensions
B35: Z2 | D35: C-Head | F35: Intake system
B36: Reifenumfang | D36: Data | F36: Air System
B37: Reifenschlupf | C37: 0 | D37: Program
B42: Prüfstand | F42: Messzyklus | H42: Gemessene Übersetzung | J42: {EGT Standard} | L42: {EGT Auflösung vertikal} | N42: Lambda Standard | P42: Lambda Auflösung | R42: CRC Daten | U42: drar | W42: LiveUmin Standard | Z42: LiveUmin Auflösung | AB42: LiveNM Aktiv | AD42: FALSE | AE42: Analog1 Standard | AG42: Analog1 Auflösung | AI42: Analog2 Standard | AK42: Analog2 Auflösung
A43: Rollenumfang | D43: Verluste Rolle nur Pnorm | F43: Zündung (nur bei Messverfahren) | H43: Berechnete Übersetzung | I43: =IF(Aufzeichnung_Übersetzung_Manuelle_Eingabe<>"",Aufzeichnung_Übersetzung_Manuelle_Eingabe,IF(ISERROR((Aufzeichnung_Primär_Z2/Aufzeichnung_Primär_Z1)*(Aufzeichnung_Getriebe_Z2/Aufzeichnung_Getriebe_Z1)*Aufzeichnung_Reifenübersetzung),1,(Aufzeichnung_Primär_Z2/Aufzeichnung_Primär_Z1)*(Aufzeichnung_Getriebe_Z2/Aufzeichnung_Getriebe_Z1)*Aufzeichnung_Reifenübersetzung)) -> 1 | J43: {EGT Korr} | N43: Lambda Korrektur | P43: AFR | Q43: 1 | R43: CRC Werte | W43: LiveUmin Korrektur | AB43: LiveNM Faktor | AE43: Analog1 Korrektur | AG43: Analog1 Faktor | AI43: Analog2 Korrektur | AK43: Analog2 Faktor
A44: Trägheitsmoment | D44: Verluste Rolle[NM] | E44: 0 | F44: Rechenbare Punke | H44: Reifen/Rollenübersetzung+ Schlupf | I44: =IF(ISERROR(Aufzeichnung_Rollenumfang/(Aufzeichnung_Reifen*(1+Aufzeichnung_Reifenschlupf))),1,Aufzeichnung_Rollenumfang/(Aufzeichnung_Reifen*(1+Aufzeichnung_Reifenschlupf))) -> 1 | J44: {EGT NM} | N44: Lambda NM | R44: CRC Daten lokal | W44: LiveUmin NM | AB44: Langzeitmessung | AD44: Falsch | AE44: Analog1 NM | AI44: Analog2 NM
B45: Impulse | D45: Verlust NM | E45: 0 | F45: Verluste [NM] | G45: 0 | H45: Prüfstandfaktor | J45: {EGT U/Min} | N45: Lambda U/Min | R45: CRC Werte lokal | W45: LiveUmin U/Min | AE45: Analog1 U/Min | AI45: Analog2 U/Min
A46: FahrzeugID | E46: DIN PS Faktor | F46: JA | G46: =IF(ISERROR((1013/(Aufzeichnung_Luftdruck-Aufzeichnung_Faktor_Feuchte))*((273+Aufzeichnung_Temperatur)/293)),1,(1013/(Aufzeichnung_Luftdruck-Aufzeichnung_Faktor_Feuchte))*((273+Aufzeichnung_Temperatur)/293)) -> 1 | H46: Aktueller NMFaktor | I46: =IF(1=1,drar(),Aufzeichnung_DINPS_Faktor&Aufzeichnung_DIN_PS_Faktor_Aktiv) -> 0 | J46: {EGT Anzahl} | N46: Lambda Anzahl | R46: Version | W46: LiveUmin Anzahl | AE46: Analog1 Anzahl | AI46: Analog2 Anzahl
B47: Detailstype | D47: Gesamtpunkte | F47: Feuchtekorrektur | G47: =(Aufzeichnung_Feuchte*(2.408*10^11*(300/(Aufzeichnung_Temperatur+273.15))^5 *EXP(-22.644*(300/(Aufzeichnung_Temperatur+273.15))))/100) -> 0
A49: lfd Nr. | B49: Impulse | C49: Drehzahl Rolle | H49: Drehzahl Reifen | I49: Drehzahl KW berechnet | J49: Drehzahl KW gemessen | L49: Drehzahl | M49: Winkelgeschwindigkeit | N49: Winkelbeschleunigung | O49: Drehmoment | Q49: Leistung | S49: Anzeige PS | T49: Anzeige NM | U49: Anzeige Drehzahl | V49: Anzeige kmh | W49: EGT | AE49: Lambda | AM49: Livedrehzahl | AV49: LiveNM | AX49: Zeit | AZ49: Analog1 | BH49: Analog2 | BP49: Allgemein Optionen
A50: lfdNr | B50: Werte | C50: Messwerte Berechnet | D50: Intervall | E50: U/min | F50: m/s | G50: km/h | H50: U/min | I50: U/min | J50: Werte | K50: U/min | L50: U/min | M50: rad/sec | N50: rad/sec² | O50: am Rad Trägheit | P50: mit Übersetzung | Q50: W | R50: PS | S50: PS | T50: NM | U50: Umin | W50: Messwerte EGT | X50: Werte aufb. | Y50: auf NM | Z50: Horizontal1 | AA50: Horizonal2 | AB50: Vertikal1 | AC50: Vertikal1 NM | AD50: Vertikal2 | AE50: Messwerte Lambda | AF50: Werte aufb. | AG50: auf NM | AH50: Horizontal1 | AI50: Horizonal2 | AJ50: Vertikal1 | AK50: Vertikal1 NM | AL50: Vertikal2 | AM50: LiveDrezahl mit Funkenaufteilung | AN50: Live Umin berechnet | AO50: Werte aufb | AP50: auf NM | AQ50: Horizontal1 | AR50: Horizontal2 | AS50: Vertikal1 | AT50: Vertikal1NM | AU50: Vertikal2 | AV50: Messwerte LiveNM | AW50: Messwerte_LiveNM_berechnet | AX50: sekunden | AY50: Anzeige | AZ50: Messwerte_Analog1 | BA50: Werte aufb. | BB50: auf NM | BC50: Horizontal1 | BD50: Horizonal2 | BE50: Vertikal1 | BF50: Vertikal1 NM | BG50: Vertikal2 | BH50: Messwerte_Analog2 | BI50: Werte aufb. | BJ50: auf NM | BK50: Horizontal1 | BL50: Horizonal2 | BM50: Vertikal1 | BN50: Vertikal1 NM | BO50: Vertikal2 | BP50: Drehzahl | BQ50: KMH
A51: 1 | E51: =C51*60*1000/Aufzeichnung_Impulse/D51 ->  | F51: =E51*Aufzeichnung_Rollenumfang/60/1000 ->  | G51: =F51*3.6 ->  | H51: =E51*Aufzeichnung_Reifenübersetzung ->  | I51: =Aufzeichnung_Übersetzung_berechnet*E51 ->  | K51: =Aufzeichnung_Übersetzung_gemessen*E51 ->  | L51: =IF(Aufzeichnung_Messen="JA",K51,I51) ->  | M51: =2*PI()*E51/60 ->  | N51: 0 | O51: =IF(Aufzeichnung_LiveNM_Aktiv,IF(OR(AW51<=0,N51=0),0,Aufzeichnung_NM_Faktor*N51+Aufzeichnung_Verluste+AW51),IF(N51>0,Aufzeichnung_NM_Faktor*N51+Aufzeichnung_Verluste,IF(N51<0,Aufzeichnung_NM_Faktor*N51+Aufzeichnung_Verluste_Rolle,0))) -> 0 | P51: =O51/Aufzeichnung_Übersetzung -> 0 | Q51: =IF(Aufzeichnung_Messen="JA",2*PI()*K51/60*P51,2*PI()*I51/60*P51) ->  | R51: =Q51*1.36/1000 ->  | S51: =AVERAGE(R50:R51) ->  | T51: =AVERAGE(P50:P51) -> 0 | U51: =AVERAGE(L50:L51) ->  | V51: =AVERAGE(G50:G51) ->  | X51: =W51*Aufzeichnung_EGT_Korrekturfaktor -> 0 | Y51: =Aufzeichnung_EGT_NM+(X51-Aufzeichnung_EGT_Standard)/Aufzeichnung_EGT_Auflösung_vertikal*($AC$52-$AC$51) ->  | Z51: =Aufzeichnung_EGT_NM -> 0 | AA51: 0 | AD51: =Aufzeichnung_EGT_Umin -> 0 | AF51: =AE51*Aufzeichnung_Lambda_Korrekturfaktor*Aufzeichnung_Als_AFR -> 0 | AG51: =Aufzeichnung_Lambda_NM+(AF51-Aufzeichnung_Lambda_Standard)/Aufzeichnung_Lambda_Auflösung_vertikal*($AK$52-$AK$51) ->  | AH51: =Aufzeichnung_Lambda_NM -> 0 | AI51: 0 | AL51: =Aufzeichnung_Lambda_Umin -> 0 | AO51: =IF(Aufzeichnung_LiveUmin_Auswahl_Vario="",IF(BP51<>"",AM51/BP51*100-100,0),AM51) -> 0 | AP51: =Aufzeichnung_LiveUmin_NM+(AO51-Aufzeichnung_LiveUmin_Standard)/Aufzeichnung_LiveUmin_Auflösung_vertikal*($AT$51-$AT$52) ->  | AQ51: =Aufzeichnung_LiveUmin_NM -> 0 | AR51: 0 | AU51: =Aufzeichnung_LiveUmin_Umin -> 0 | BB51: =Aufzeichnung_Analog1_NM+(BA51-Aufzeichnung_Analog1_Standard)/Aufzeichnung_Analog1_Auflösung_vertikal*($BF$52-$BF$51) ->  | BC51: =Aufzeichnung_Analog1_NM -> 0 | BD51: 0 | BG51: =Aufzeichnung_Analog1_Umin -> 0 | BJ51: =Aufzeichnung_Analog2_NM+(BI51-Aufzeichnung_Analog2_Standard)/Aufzeichnung_Analog2_Auflösung_vertikal*($BN$52-$BN$51) ->  | BK51: =Aufzeichnung_Analog2_NM -> 0 | BL51: 0 | BO51: =Aufzeichnung_Analog2_Umin -> 0 | BQ51: =B51/Aufzeichnung_Impulse/Aufzeichnung_Messzyklus*Aufzeichnung_Rollenumfang*3.6 -> 
A52: 2 | F52: =E52*Aufzeichnung_Rollenumfang/60/1000 ->  | G52: =F52*3.6 ->  | M52: =2*PI()*E52/60 ->  | N52: =IF(D52<>1,(M52-M51)/(D52/1000)*SQRT((D52/D51)),0) ->  | R52: =Q52*1.36/1000 ->  | S52: =AVERAGE(R51:R52) ->  | T52: =AVERAGE(P51:P52) ->  | U52: =AVERAGE(L51:L52) ->  | V52: =AVERAGE(G51:G52) ->  | X52: 0 | Y52: =Aufzeichnung_EGT_NM+(X52-Aufzeichnung_EGT_Standard)/Aufzeichnung_EGT_Auflösung_vertikal*($AC$52-$AC$51) ->  | Z52: =Aufzeichnung_EGT_NM -> 0 | AA52: 30000 | AD52: 0 | AF52: 0 | AH52: =Aufzeichnung_Lambda_NM -> 0 | AI52: 30000 | AL52: 0 | AO52: 0 | AQ52: =Aufzeichnung_LiveUmin_NM -> 0 | AR52: 30000 | AU52: 0 | BC52: =Aufzeichnung_Analog1_NM -> 0 | BD52: 300 | BG52: 0 | BJ52: =Aufzeichnung_Analog2_NM+(BI52-Aufzeichnung_Analog2_Standard)/Aufzeichnung_Analog2_Auflösung_vertikal*($BN$52-$BN$51) ->  | BK52: =Aufzeichnung_Analog2_NM -> 0 | BL52: 300 | BO52: 0
A53: 3 | F53: =E53*Aufzeichnung_Rollenumfang/60/1000 ->  | H53: =E53*Aufzeichnung_Reifenübersetzung ->  | I53: =Aufzeichnung_Übersetzung_berechnet*E53 ->  | K53: =Aufzeichnung_Übersetzung_gemessen*E53 ->  | L53: =IF(Aufzeichnung_Messen="JA",K53,I53) ->  | U53: =AVERAGE(L52:L53) ->  | X53: 0 | AD53: 0 | AF53: 0 | AL53: 0 | AO53: 0 | AU53: 0 | BG53: 0 | BO53: 0
A54: 4 | X54: 0 | AD54: 0 | AF54: 0 | AL54: 0 | AO54: 0 | AU54: 0 | BG54: 0 | BO54: 0
A55: 5 | X55: 0 | AD55: 0 | AF55: 0 | AL55: 0 | AO55: 0 | AU55: 0 | BG55: 0 | BO55: 0
A56: 6 | X56: 0 | AD56: 0 | AF56: 0 | AL56: 0 | AO56: 0 | AU56: 0 | BG56: 0 | BO56: 0
A57: 7 | X57: 0 | AD57: 0 | AF57: 0 | AL57: 0 | AO57: 0 | AU57: 0 | BG57: 0 | BO57: 0
A58: 8 | X58: 0 | AD58: 0 | AF58: 0 | AL58: 0 | AO58: 0 | AU58: 0 | BG58: 0 | BO58: 0
A59: 9 | Q59: =IF(Aufzeichnung_Messen="JA",2*PI()*K59/60*P59,2*PI()*I59/60*P59) ->  | X59: 0 | AD59: 0 | AF59: 0 | AL59: 0 | AO59: 0 | AU59: 0 | BG59: 0 | BO59: 0
A60: 10 | X60: 0 | AD60: 0 | AF60: 0 | AL60: 0 | AO60: 0 | AU60: 0 | BG60: 0 | BO60: 0
A61: 11 | X61: 0 | AD61: 0 | AF61: 0 | AL61: 0 | AO61: 0 | AU61: 0 | BG61: 0 | BO61: 0
A62: 12 | X62: 0 | AD62: 0 | AF62: 0 | AL62: 0 | AO62: 0 | AU62: 0 | BG62: 0 | BO62: 0
A63: 13 | X63: 0 | AD63: 0 | AF63: 0 | AL63: 0 | AO63: 0 | AU63: 0 | BG63: 0 | BO63: 0
A64: 14 | X64: 0 | AF64: 0 | AO64: 0
A65: 15 | X65: 0 | AF65: 0 | AO65: 0
A66: 16 | X66: 0 | AF66: 0 | AO66: 0
A67: 17 | X67: 0 | AF67: 0 | AO67: 0
A68: 18 | X68: 0 | AF68: 0 | AO68: 0
A69: 19 | X69: 0 | AF69: 0 | AO69: 0
A70: 20 | X70: 0 | AF70: 0 | AO70: 0
A71: 21 | X71: 0 | AF71: 0 | AO71: 0
A72: 22 | N72: =IF(D72<>1,(M72-M71)/(D72/1000)*SQRT((D72/D71)),0) ->  | X72: 0 | AF72: 0 | AO72: 0
A73: 23 | X73: 0 | AF73: 0 | AO73: 0
A74: 24 | X74: 0 | AF74: 0 | AO74: 0
A75: 25 | X75: 0 | AF75: 0 | AO75: 0
A76: 26 | X76: 0 | AF76: 0 | AO76: 0
A77: 27 | X77: 0 | AF77: 0 | AO77: 0
A78: 28 | X78: 0 | AF78: 0 | AO78: 0
A79: 29 | X79: 0 | AF79: 0 | AO79: 0
A80: 30 | X80: 0 | AF80: 0 | AO80: 0
A81: 31 | X81: 0 | AF81: 0 | AO81: 0
A82: 32 | F82: =E82*Aufzeichnung_Rollenumfang/60/1000 ->  | X82: 0 | AF82: 0 | AO82: 0
A83: 33 | F83: =E83*Aufzeichnung_Rollenumfang/60/1000 ->  | X83: 0 | AF83: 0 | AO83: 0
A84: 34 | X84: 0 | AF84: 0 | AO84: 0
A85: 35 | X85: 0 | AF85: 0 | AO85: 0
A86: 36 | X86: 0 | AF86: 0 | AO86: 0
A87: 37 | X87: 0 | AF87: 0 | AO87: 0
A88: 38 | X88: 0 | AF88: 0 | AO88: 0
A89: 39 | X89: 0 | AF89: 0 | AO89: 0
A90: 40 | X90: 0 | AF90: 0 | AO90: 0
A91: 41 | X91: 0 | AF91: 0 | AO91: 0
A92: 42 | X92: 0 | AF92: 0 | AO92: 0
A93: 43 | X93: 0 | AF93: 0 | AO93: 0
A94: 44 | X94: 0 | AF94: 0 | AO94: 0
A95: 45 | X95: 0 | AF95: 0 | AO95: 0
A96: 46 | X96: 0 | AF96: 0 | AO96: 0
A97: 47 | X97: 0 | AF97: 0 | AO97: 0
A98: 48 | X98: 0 | AF98: 0 | AO98: 0
A99: 49 | X99: 0 | AF99: 0 | AO99: 0
A100: 50 | X100: 0 | AF100: 0 | AO100: 0
A101: 51 | X101: 0 | AF101: 0 | AO101: 0
A102: 52 | X102: 0 | AF102: 0 | AO102: 0
A103: 53 | X103: 0 | AF103: 0 | AO103: 0
A104: 54 | X104: 0 | AF104: 0 | AO104: 0
A105: 55 | X105: 0 | AF105: 0 | AO105: 0
A106: 56 | X106: 0 | AF106: 0 | AO106: 0
A107: 57 | X107: 0 | AF107: 0 | AO107: 0
A108: 58 | X108: 0 | AF108: 0 | AO108: 0
A109: 59 | X109: 0 | AF109: 0 | AO109: 0
A110: 60 | X110: 0 | AF110: 0 | AO110: 0
A111: 61 | X111: 0 | AF111: 0 | AO111: 0
A112: 62 | X112: 0 | AF112: 0 | AO112: 0
A113: 63 | X113: 0 | AF113: 0 | AO113: 0
A114: 64 | X114: 0 | AF114: 0 | AO114: 0
A115: 65 | E115: =C115*60*1000/Aufzeichnung_Impulse/D115 ->  | F115: =E115*Aufzeichnung_Rollenumfang/60/1000 ->  | H115: =E115*Aufzeichnung_Reifenübersetzung ->  | I115: =Aufzeichnung_Übersetzung_berechnet*E115 ->  | K115: =Aufzeichnung_Übersetzung_gemessen*E115 ->  | L115: =IF(Aufzeichnung_Messen="JA",K115,I115) ->  | O115: =IF(Aufzeichnung_LiveNM_Aktiv,IF(OR(AW115<=0,N115=0),0,Aufzeichnung_NM_Faktor*N115+Aufzeichnung_Verluste+AW115),IF(N115>0,Aufzeichnung_NM_Faktor*N115+Aufzeichnung_Verluste,IF(N115<0,Aufzeichnung_NM_Faktor*N115+Aufzeichnung_Verluste_Rolle,0))) ->  | P115: =O115/Aufzeichnung_Übersetzung ->  | Q115: =IF(Aufzeichnung_Messen="JA",2*PI()*K115/60*P115,2*PI()*I115/60*P115) ->  | X115: =W115*Aufzeichnung_EGT_Korrekturfaktor -> 0 | Y115: =Aufzeichnung_EGT_NM+(X115-Aufzeichnung_EGT_Standard)/Aufzeichnung_EGT_Auflösung_vertikal*($AC$52-$AC$51) ->  | AF115: =AE115*Aufzeichnung_Lambda_Korrekturfaktor*Aufzeichnung_Als_AFR -> 0 | AG115: =Aufzeichnung_Lambda_NM+(AF115-Aufzeichnung_Lambda_Standard)/Aufzeichnung_Lambda_Auflösung_vertikal*($AK$52-$AK$51) ->  | AO115: =IF(Aufzeichnung_LiveUmin_Auswahl_Vario="",IF(BP115<>"",AM115/BP115*100-100,0),AM115) -> 0 | AP115: =Aufzeichnung_LiveUmin_NM+(AO115-Aufzeichnung_LiveUmin_Standard)/Aufzeichnung_LiveUmin_Auflösung_vertikal*($AT$51-$AT$52) ->  | BB115: =Aufzeichnung_Analog1_NM+(BA115-Aufzeichnung_Analog1_Standard)/Aufzeichnung_Analog1_Auflösung_vertikal*($BF$52-$BF$51) ->  | BJ115: =Aufzeichnung_Analog2_NM+(BI115-Aufzeichnung_Analog2_Standard)/Aufzeichnung_Analog2_Auflösung_vertikal*($BN$52-$BN$51) ->  | BQ115: =B115/Aufzeichnung_Impulse/Aufzeichnung_Messzyklus*Aufzeichnung_Rollenumfang*3.6 -> 
A116: 66 | G116: =F116*3.6 ->  | M116: =2*PI()*E116/60 ->  | N116: =IF(D116<>1,(M116-M115)/(D116/1000)*SQRT((D116/D115)),0) ->  | R116: =Q116*1.36/1000 ->  | S116: =AVERAGE(R115:R116) ->  | T116: =AVERAGE(P115:P116) ->  | V116: =AVERAGE(G115:G116) ->  | X116: 0 | AF116: 0 | AO116: 0
A117: 67 | U117: =AVERAGE(L116:L117) ->  | X117: 0 | AF117: 0 | AO117: 0
A118: 68 | X118: 0 | AF118: 0 | AO118: 0
A119: 69 | X119: 0 | AF119: 0 | AO119: 0
A120: 70 | X120: 0 | AF120: 0 | AO120: 0
A121: 71 | X121: 0 | AF121: 0 | AO121: 0
A122: 72 | X122: 0 | AF122: 0 | AO122: 0
A123: 73 | X123: 0 | AF123: 0 | AO123: 0
A124: 74 | X124: 0 | AF124: 0 | AO124: 0
A125: 75 | X125: 0 | AF125: 0 | AO125: 0
A126: 76 | X126: 0 | AF126: 0 | AO126: 0
A127: 77 | X127: 0 | AF127: 0 | AO127: 0
A128: 78 | X128: 0 | AF128: 0 | AO128: 0
A129: 79 | X129: 0 | AF129: 0 | AO129: 0
A130: 80 | X130: 0 | AF130: 0 | AO130: 0
A131: 81 | X131: 0 | AF131: 0 | AO131: 0
A132: 82 | X132: 0 | AF132: 0 | AO132: 0
A133: 83 | X133: 0 | AF133: 0 | AO133: 0
A134: 84 | X134: 0 | AF134: 0 | AO134: 0
A135: 85 | X135: 0 | AF135: 0 | AO135: 0
A136: 86 | X136: 0 | AF136: 0 | AO136: 0
A137: 87 | X137: 0 | AF137: 0 | AO137: 0
A138: 88 | X138: 0 | AF138: 0 | AO138: 0
A139: 89 | X139: 0 | AF139: 0 | AO139: 0
A140: 90 | F140: =E140*Aufzeichnung_Rollenumfang/60/1000 ->  | X140: 0 | AF140: 0 | AO140: 0
A141: 91 | X141: 0 | AF141: 0 | AO141: 0
A142: 92 | X142: 0 | AF142: 0 | AO142: 0
A143: 93 | X143: 0 | AF143: 0 | AO143: 0
A144: 94 | X144: 0 | AF144: 0 | AO144: 0
A145: 95 | X145: 0 | AF145: 0 | AO145: 0
A146: 96 | X146: 0 | AF146: 0 | AO146: 0
A147: 97 | X147: 0 | AF147: 0 | AO147: 0
A148: 98 | X148: 0 | AF148: 0 | AO148: 0
A149: 99 | X149: 0 | AF149: 0 | AO149: 0
A150: 100 | X150: 0 | AF150: 0 | AO150: 0
A151: 101 | X151: 0 | AF151: 0 | AO151: 0
A152: 102 | X152: 0 | AF152: 0 | AO152: 0
A153: 103 | X153: 0 | AF153: 0 | AO153: 0
A154: 104 | X154: 0 | AF154: 0 | AO154: 0
A155: 105 | X155: 0 | AF155: 0 | AO155: 0
A156: 106 | X156: 0 | AF156: 0 | AO156: 0
A157: 107 | X157: 0 | AF157: 0 | AO157: 0
A158: 108 | X158: 0 | AF158: 0 | AO158: 0
A159: 109 | X159: 0 | AF159: 0 | AO159: 0
A160: 110 | X160: 0 | AF160: 0 | AO160: 0
A161: 111 | X161: 0 | AF161: 0 | AO161: 0
A162: 112 | X162: 0 | AF162: 0 | AO162: 0
A163: 113 | X163: 0 | AF163: 0 | AO163: 0
A164: 114 | X164: 0 | AF164: 0 | AO164: 0
A165: 115 | X165: 0 | AF165: 0 | AO165: 0
A166: 116 | X166: 0 | AF166: 0 | AO166: 0
A167: 117 | X167: 0 | AF167: 0 | AO167: 0
A168: 118 | F168: =E168*Aufzeichnung_Rollenumfang/60/1000 ->  | X168: 0 | AF168: 0 | AO168: 0
A169: 119 | X169: 0 | AF169: 0 | AO169: 0
A170: 120 | X170: 0 | AF170: 0 | AO170: 0
A171: 121 | X171: 0 | AF171: 0 | AO171: 0
A172: 122 | X172: 0 | AF172: 0 | AO172: 0
A173: 123 | X173: 0 | AF173: 0 | AO173: 0
A174: 124 | X174: 0 | AF174: 0 | AO174: 0
A175: 125 | X175: 0 | AF175: 0 | AO175: 0
A176: 126 | X176: 0 | AF176: 0 | AO176: 0
A177: 127 | X177: 0 | AF177: 0 | AO177: 0
A178: 128 | X178: 0 | AF178: 0 | AO178: 0
A179: 129 | E179: =C179*60*1000/Aufzeichnung_Impulse/D179 ->  | H179: =E179*Aufzeichnung_Reifenübersetzung ->  | I179: =Aufzeichnung_Übersetzung_berechnet*E179 ->  | K179: =Aufzeichnung_Übersetzung_gemessen*E179 ->  | L179: =IF(Aufzeichnung_Messen="JA",K179,I179) ->  | O179: =IF(Aufzeichnung_LiveNM_Aktiv,IF(OR(AW179<=0,N179=0),0,Aufzeichnung_NM_Faktor*N179+Aufzeichnung_Verluste+AW179),IF(N179>0,Aufzeichnung_NM_Faktor*N179+Aufzeichnung_Verluste,IF(N179<0,Aufzeichnung_NM_Faktor*N179+Aufzeichnung_Verluste_Rolle,0))) ->  | P179: =O179/Aufzeichnung_Übersetzung ->  | Q179: =IF(Aufzeichnung_Messen="JA",2*PI()*K179/60*P179,2*PI()*I179/60*P179) ->  | X179: =W179*Aufzeichnung_EGT_Korrekturfaktor -> 0 | Y179: =Aufzeichnung_EGT_NM+(X179-Aufzeichnung_EGT_Standard)/Aufzeichnung_EGT_Auflösung_vertikal*($AC$52-$AC$51) ->  | AF179: =AE179*Aufzeichnung_Lambda_Korrekturfaktor*Aufzeichnung_Als_AFR -> 0 | AG179: =Aufzeichnung_Lambda_NM+(AF179-Aufzeichnung_Lambda_Standard)/Aufzeichnung_Lambda_Auflösung_vertikal*($AK$52-$AK$51) ->  | AO179: =IF(Aufzeichnung_LiveUmin_Auswahl_Vario="",IF(BP179<>"",AM179/BP179*100-100,0),AM179) -> 0 | AP179: =Aufzeichnung_LiveUmin_NM+(AO179-Aufzeichnung_LiveUmin_Standard)/Aufzeichnung_LiveUmin_Auflösung_vertikal*($AT$51-$AT$52) ->  | BB179: =Aufzeichnung_Analog1_NM+(BA179-Aufzeichnung_Analog1_Standard)/Aufzeichnung_Analog1_Auflösung_vertikal*($BF$52-$BF$51) ->  | BJ179: =Aufzeichnung_Analog2_NM+(BI179-Aufzeichnung_Analog2_Standard)/Aufzeichnung_Analog2_Auflösung_vertikal*($BN$52-$BN$51) ->  | BQ179: =B179/Aufzeichnung_Impulse/Aufzeichnung_Messzyklus*Aufzeichnung_Rollenumfang*3.6 -> 
A180: 130 | G180: =F180*3.6 ->  | M180: =2*PI()*E180/60 ->  | N180: =IF(D180<>1,(M180-M179)/(D180/1000)*SQRT((D180/D179)),0) ->  | R180: =Q180*1.36/1000 ->  | S180: =AVERAGE(R179:R180) ->  | T180: =AVERAGE(P179:P180) ->  | V180: =AVERAGE(G179:G180) ->  | X180: 0 | AF180: 0 | AO180: 0
A181: 131 | U181: =AVERAGE(L180:L181) ->  | X181: 0 | AF181: 0 | AO181: 0
A182: 132 | X182: 0 | AF182: 0 | AO182: 0
A183: 133 | X183: 0 | AF183: 0 | AO183: 0
A184: 134 | X184: 0 | AF184: 0 | AO184: 0
A185: 135 | X185: 0 | AF185: 0 | AO185: 0
A186: 136 | X186: 0 | AF186: 0 | AO186: 0
A187: 137 | X187: 0 | AF187: 0 | AO187: 0
A188: 138 | X188: 0 | AF188: 0 | AO188: 0
A189: 139 | X189: 0 | AF189: 0 | AO189: 0
A190: 140 | X190: 0 | AF190: 0 | AO190: 0
A191: 141 | X191: 0 | AF191: 0 | AO191: 0
A192: 142 | X192: 0 | AF192: 0 | AO192: 0
A193: 143 | X193: 0 | AF193: 0 | AO193: 0
A194: 144 | X194: 0 | AF194: 0 | AO194: 0
A195: 145 | X195: 0 | AF195: 0 | AO195: 0
A196: 146 | X196: 0 | AF196: 0 | AO196: 0
A197: 147 | X197: 0 | AF197: 0 | AO197: 0
A198: 148 | X198: 0 | AF198: 0 | AO198: 0
A199: 149 | X199: 0 | AF199: 0 | AO199: 0
A200: 150 | X200: 0 | AF200: 0 | AO200: 0
A201: 151 | X201: 0 | AF201: 0 | AO201: 0
A202: 152 | X202: 0 | AF202: 0 | AO202: 0
A203: 153 | X203: 0 | AF203: 0 | AO203: 0
A204: 154 | X204: 0 | AF204: 0 | AO204: 0
A205: 155 | X205: 0 | AF205: 0 | AO205: 0
A206: 156 | X206: 0 | AF206: 0 | AO206: 0
A207: 157 | X207: 0 | AF207: 0 | AO207: 0
A208: 158 | X208: 0 | AF208: 0 | AO208: 0
A209: 159 | X209: 0 | AF209: 0 | AO209: 0
A210: 160 | X210: 0 | AF210: 0 | AO210: 0
A211: 161 | X211: 0 | AF211: 0 | AO211: 0
A212: 162 | X212: 0 | AF212: 0 | AO212: 0
A213: 163 | X213: 0 | AF213: 0 | AO213: 0
A214: 164 | X214: 0 | AF214: 0 | AO214: 0
A215: 165 | X215: 0 | AF215: 0 | AO215: 0
A216: 166 | X216: 0 | AF216: 0 | AO216: 0
A217: 167 | X217: 0 | AF217: 0 | AO217: 0
A218: 168 | X218: 0 | AF218: 0 | AO218: 0
A219: 169 | X219: 0 | AF219: 0 | AO219: 0
A220: 170 | X220: 0 | AF220: 0 | AO220: 0
A221: 171 | X221: 0 | AF221: 0 | AO221: 0
A222: 172 | X222: 0 | AF222: 0 | AO222: 0
A223: 173 | X223: 0 | AF223: 0 | AO223: 0
A224: 174 | X224: 0 | AF224: 0 | AO224: 0
A225: 175 | X225: 0 | AF225: 0 | AO225: 0
A226: 176 | X226: 0 | AF226: 0 | AO226: 0
A227: 177 | X227: 0 | AF227: 0 | AO227: 0
A228: 178 | X228: 0 | AF228: 0 | AO228: 0
... 822 more rows

Sheet Aufzeichnung 3 (hidden)
B2: Nummer:
D8: TRUE
B25: Ergebnis
B26: Leistung | C26: =IF(ISERROR(MAX(R51:R1050)),0,MAX(R51:R1050)) -> 0 | D26: Drehmoment | E26: =IF(ISERROR(MAX(P51:P1050)),0,MAX(P51:P1050)) -> 0 | F26: maxDrehzahl | G26: =IF(ISERROR(MAX(L51:L1050)),0,MAX(L51:L1050)) -> 0 | H26: max x-Achse | J26: Software: v5.191227
B27: Drehzahl | C27: =IF(ISERROR(INDEX(L51:L1050,MATCH(C26,R51:R1050,0))),0,INDEX(L51:L1050,MATCH(C26,R51:R1050,0))) -> 0 | D27: Drehzahl | E27: =IF(ISERROR(INDEX(U51:U1050,MATCH(E26,P51:P1050,0))),0,INDEX(U51:U1050,MATCH(E26,P51:P1050,0))) -> 0 | F27: Vmax | G27: =IF(ISERROR(MAX(G51:G1050)),0,MAX(G51:G1050)) -> 0 | H27: min x-Achse
B28: Übersetzung | C28: =IF(ISERROR(ROUND(IF(Aufzeichnung_Messen="JA",Aufzeichnung_Übersetzung_gemessen,Aufzeichnung_Übersetzung_berechnet),2)),1,ROUND(IF(Aufzeichnung_Messen="JA",Aufzeichnung_Übersetzung_gemessen,Aufzeichnung_Übersetzung_berechnet),2)) -> 1 | D28: Luftdruck | F28: Temperatur | H28: Luftfeuchte
B30: Getriebe | D30: =IF(#REF!,#REF!,IF(OR(#REF!,Aufzeichnung_Rechenbare_Punkte=0),#REF!,#REF!)) -> 
B31: freie Eingabe | D31: Übersetzung messen | F31: Auspuff | K31: Details
B32: Gang Z1 | D32: Zündungstype | F32: Nockenwelle | H32: Name
B33: Z2 | D33: Motortyp | F33: Zeiten | H33: Kommentar
B34: Gang Z2 | D34: Luftsystem | F34: Maße
B35: Z2 | D35: Z-Kopf | F35: Einlasssystem
B36: Reifenumfang | D36: Daten | F36: Aufladung
B37: Reifenschlupf | C37: 0 | D37: Programm
B42: Prüfstand | F42: Messzyklus | H42: Gemessene Übersetzung | J42: {EGT Standard} | L42: {EGT Auflösung vertikal} | N42: Lambda Standard | P42: Lambda Auflösung | R42: CRC Daten | U42: drar | W42: LiveUmin Standard | Z42: LiveUmin Auflösung | AB42: LiveNM Aktiv | AD42: FALSE | AE42: Analog1 Standard | AG42: Analog1 Auflösung | AI42: Analog2 Standard | AK42: Analog2 Auflösung
A43: Rollenumfang | D43: Verluste Rolle nur Pnorm | F43: Zündung (nur bei Messverfahren) | H43: Berechnete Übersetzung | I43: =IF(Aufzeichnung_Übersetzung_Manuelle_Eingabe<>"",Aufzeichnung_Übersetzung_Manuelle_Eingabe,IF(ISERROR((Aufzeichnung_Primär_Z2/Aufzeichnung_Primär_Z1)*(Aufzeichnung_Getriebe_Z2/Aufzeichnung_Getriebe_Z1)*Aufzeichnung_Reifenübersetzung),1,(Aufzeichnung_Primär_Z2/Aufzeichnung_Primär_Z1)*(Aufzeichnung_Getriebe_Z2/Aufzeichnung_Getriebe_Z1)*Aufzeichnung_Reifenübersetzung)) -> 1 | J43: {EGT Korr} | N43: Lambda Korrektur | P43: AFR | Q43: 1 | R43: CRC Werte | W43: LiveUmin Korrektur | AB43: LiveNM Faktor | AE43: Analog1 Korrektur | AG43: Analog1 Faktor | AI43: Analog2 Korrektur | AK43: Analog2 Faktor
A44: Trägheitsmoment | D44: Verluste Rolle[NM] | E44: 0 | F44: Rechenbare Punke | H44: Reifen/Rollenübersetzung+ Schlupf | I44: =IF(ISERROR(Aufzeichnung_Rollenumfang/(Aufzeichnung_Reifen*(1+Aufzeichnung_Reifenschlupf))),1,Aufzeichnung_Rollenumfang/(Aufzeichnung_Reifen*(1+Aufzeichnung_Reifenschlupf))) -> 1 | J44: {EGT NM} | N44: Lambda NM | R44: CRC Daten lokal | W44: LiveUmin NM | AB44: Langzeitmessung | AD44: Falsch | AE44: Analog1 NM | AI44: Analog2 NM
B45: Impulse | D45: Verlust NM | E45: 0 | F45: Verluste [NM] | G45: 0 | H45: Prüfstandfaktor | J45: {EGT U/Min} | N45: Lambda U/Min | R45: CRC Werte lokal | W45: LiveUmin U/Min | AE45: Analog1 U/Min | AI45: Analog2 U/Min
A46: FahrzeugID | E46: DIN PS Faktor | F46: JA | G46: =IF(ISERROR((1013/(Aufzeichnung_Luftdruck-Aufzeichnung_Faktor_Feuchte))*((273+Aufzeichnung_Temperatur)/293)),1,(1013/(Aufzeichnung_Luftdruck-Aufzeichnung_Faktor_Feuchte))*((273+Aufzeichnung_Temperatur)/293)) -> 1 | H46: Aktueller NMFaktor | I46: =IF(1=1,drar(),Aufzeichnung_DINPS_Faktor&Aufzeichnung_DIN_PS_Faktor_Aktiv) -> 0 | J46: {EGT Anzahl} | N46: Lambda Anzahl | R46: Version | W46: LiveUmin Anzahl | AE46: Analog1 Anzahl | AI46: Analog2 Anzahl
B47: Detailstype | D47: Gesamtpunkte | F47: Feuchtekorrektur | G47: =(Aufzeichnung_Feuchte*(2.408*10^11*(300/(Aufzeichnung_Temperatur+273.15))^5 *EXP(-22.644*(300/(Aufzeichnung_Temperatur+273.15))))/100) -> 0
A49: lfd Nr. | B49: Impulse | C49: Drehzahl Rolle | H49: Drehzahl Reifen | I49: Drehzahl KW berechnet | J49: Drehzahl KW gemessen | L49: Drehzahl | M49: Winkelgeschwindigkeit | N49: Winkelbeschleunigung | O49: Drehmoment | Q49: Leistung | S49: Anzeige PS | T49: Anzeige NM | U49: Anzeige Drehzahl | V49: Anzeige kmh | W49: EGT | AE49: Lambda | AM49: Livedrehzahl | AV49: LiveNM | AX49: Zeit | AZ49: Analog1 | BH49: Analog2 | BP49: Allgemein Optionen
A50: lfdNr | B50: Werte | C50: Messwerte Berechnet | D50: Intervall | E50: U/min | F50: m/s | G50: km/h | H50: U/min | I50: U/min | J50: Werte | K50: U/min | L50: U/min | M50: rad/sec | N50: rad/sec² | O50: am Rad Trägheit | P50: mit Übersetzung | Q50: W | R50: PS | S50: PS | T50: NM | U50: Umin | W50: Messwerte EGT | X50: Werte aufb. | Y50: auf NM | Z50: Horizontal1 | AA50: Horizonal2 | AB50: Vertikal1 | AC50: Vertikal1 NM | AD50: Vertikal2 | AE50: Messwerte Lambda | AF50: Werte aufb. | AG50: auf NM | AH50: Horizontal1 | AI50: Horizonal2 | AJ50: Vertikal1 | AK50: Vertikal1 NM | AL50: Vertikal2 | AM50: LiveDrezahl mit Funkenaufteilung | AN50: LiveDrehzahl berechnet | AO50: Werte aufb | AP50: auf NM | AQ50: Horizontal1 | AR50: Horizontal2 | AS50: Vertikal1 | AT50: Vertikal1NM | AU50: Vertikal2 | AV50: Messwerte LiveNM | AW50: LiveNM berechnet | AX50: sekunden | AY50: Anzeige | AZ50: Messwerte_Analog1 | BA50: Werte aufb. | BB50: auf NM | BC50: Horizontal1 | BD50: Horizonal2 | BE50: Vertikal1 | BF50: Vertikal1 NM | BG50: Vertikal2 | BH50: Messwerte_Analog2 | BI50: Werte aufb. | BJ50: auf NM | BK50: Horizontal1 | BL50: Horizonal2 | BM50: Vertikal1 | BN50: Vertikal1 NM | BO50: Vertikal2 | BP50: Drehzahl | BQ50: KMH
A51: 1 | E51: =C51*60*1000/Aufzeichnung_Impulse/D51 ->  | F51: =E51*Aufzeichnung_Rollenumfang/60/1000 ->  | G51: =F51*3.6 ->  | H51: =E51*Aufzeichnung_Reifenübersetzung ->  | I51: =Aufzeichnung_Übersetzung_berechnet*E51 ->  | K51: =Aufzeichnung_Übersetzung_gemessen*E51 ->  | L51: =IF(Aufzeichnung_Messen="JA",K51,I51) ->  | M51: =2*PI()*E51/60 ->  | N51: 0 | O51: =IF(Aufzeichnung_LiveNM_Aktiv,IF(OR(AW51<=0,N51=0),0,Aufzeichnung_NM_Faktor*N51+Aufzeichnung_Verluste+AW51),IF(N51>0,Aufzeichnung_NM_Faktor*N51+Aufzeichnung_Verluste,IF(N51<0,Aufzeichnung_NM_Faktor*N51+Aufzeichnung_Verluste_Rolle,0))) -> 0 | P51: =O51/Aufzeichnung_Übersetzung -> 0 | Q51: =IF(Aufzeichnung_Messen="JA",2*PI()*K51/60*P51,2*PI()*I51/60*P51) ->  | R51: =Q51*1.36/1000 ->  | S51: =AVERAGE(R50:R51) ->  | T51: =AVERAGE(P50:P51) -> 0 | U51: =AVERAGE(L50:L51) ->  | V51: =AVERAGE(G50:G51) ->  | X51: =W51*Aufzeichnung_EGT_Korrekturfaktor -> 0 | Y51: =Aufzeichnung_EGT_NM+(X51-Aufzeichnung_EGT_Standard)/Aufzeichnung_EGT_Auflösung_vertikal*($AC$52-$AC$51) ->  | Z51: =Aufzeichnung_EGT_NM -> 0 | AA51: 0 | AD51: =Aufzeichnung_EGT_Umin -> 0 | AF51: =AE51*Aufzeichnung_Lambda_Korrekturfaktor*Aufzeichnung_Als_AFR -> 0 | AG51: =Aufzeichnung_Lambda_NM+(AF51-Aufzeichnung_Lambda_Standard)/Aufzeichnung_Lambda_Auflösung_vertikal*($AK$52-$AK$51) ->  | AH51: =Aufzeichnung_Lambda_NM -> 0 | AI51: 0 | AL51: =Aufzeichnung_Lambda_Umin -> 0 | AO51: =IF(Aufzeichnung_LiveUmin_Auswahl_Vario="",IF(BP51<>"",AM51/BP51*100-100,0),AM51) -> 0 | AP51: =Aufzeichnung_LiveUmin_NM+(AO51-Aufzeichnung_LiveUmin_Standard)/Aufzeichnung_LiveUmin_Auflösung_vertikal*($AT$51-$AT$52) ->  | AQ51: =Aufzeichnung_LiveUmin_NM -> 0 | AR51: 0 | AU51: =Aufzeichnung_LiveUmin_Umin -> 0 | BB51: =Aufzeichnung_Analog1_NM+(BA51-Aufzeichnung_Analog1_Standard)/Aufzeichnung_Analog1_Auflösung_vertikal*($BF$52-$BF$51) ->  | BC51: =Aufzeichnung_Analog1_NM -> 0 | BD51: 0 | BG51: =Aufzeichnung_Analog1_Umin -> 0 | BJ51: =Aufzeichnung_Analog2_NM+(BI51-Aufzeichnung_Analog2_Standard)/Aufzeichnung_Analog2_Auflösung_vertikal*($BN$52-$BN$51) ->  | BK51: =Aufzeichnung_Analog2_NM -> 0 | BL51: 0 | BO51: =Aufzeichnung_Analog2_Umin -> 0 | BQ51: =B51/Aufzeichnung_Impulse/Aufzeichnung_Messzyklus*Aufzeichnung_Rollenumfang*3.6 -> 
A52: 2 | F52: =E52*Aufzeichnung_Rollenumfang/60/1000 ->  | G52: =F52*3.6 ->  | M52: =2*PI()*E52/60 ->  | N52: =IF(D52<>1,(M52-M51)/(D52/1000)*SQRT((D52/D51)),0) ->  | R52: =Q52*1.36/1000 ->  | S52: =AVERAGE(R51:R52) ->  | T52: =AVERAGE(P51:P52) ->  | U52: =AVERAGE(L51:L52) ->  | V52: =AVERAGE(G51:G52) ->  | X52: 0 | Y52: =Aufzeichnung_EGT_NM+(X52-Aufzeichnung_EGT_Standard)/Aufzeichnung_EGT_Auflösung_vertikal*($AC$52-$AC$51) ->  | Z52: =Aufzeichnung_EGT_NM -> 0 | AA52: 30000 | AD52: 0 | AF52: 0 | AH52: =Aufzeichnung_Lambda_NM -> 0 | AI52: 30000 | AL52: 0 | AO52: 0 | AQ52: =Aufzeichnung_LiveUmin_NM -> 0 | AR52: 30000 | AU52: 0 | BC52: =Aufzeichnung_Analog1_NM -> 0 | BD52: 300 | BG52: 0 | BJ52: =Aufzeichnung_Analog2_NM+(BI52-Aufzeichnung_Analog2_Standard)/Aufzeichnung_Analog2_Auflösung_vertikal*($BN$52-$BN$51) ->  | BK52: =Aufzeichnung_Analog2_NM -> 0 | BL52: 300 | BO52: 0
A53: 3 | F53: =E53*Aufzeichnung_Rollenumfang/60/1000 ->  | H53: =E53*Aufzeichnung_Reifenübersetzung ->  | I53: =Aufzeichnung_Übersetzung_berechnet*E53 ->  | K53: =Aufzeichnung_Übersetzung_gemessen*E53 ->  | L53: =IF(Aufzeichnung_Messen="JA",K53,I53) ->  | U53: =AVERAGE(L52:L53) ->  | X53: 0 | AD53: 0 | AF53: 0 | AL53: 0 | AO53: 0 | AU53: 0 | BG53: 0 | BO53: 0
A54: 4 | X54: 0 | AD54: 0 | AF54: 0 | AL54: 0 | AO54: 0 | AU54: 0 | BG54: 0 | BO54: 0
A55: 5 | X55: 0 | AD55: 0 | AF55: 0 | AL55: 0 | AO55: 0 | AU55: 0 | BG55: 0 | BO55: 0
A56: 6 | X56: 0 | AD56: 0 | AF56: 0 | AL56: 0 | AO56: 0 | AU56: 0 | BG56: 0 | BO56: 0
A57: 7 | X57: 0 | AD57: 0 | AF57: 0 | AL57: 0 | AO57: 0 | AU57: 0 | BG57: 0 | BO57: 0
A58: 8 | X58: 0 | AD58: 0 | AF58: 0 | AL58: 0 | AO58: 0 | AU58: 0 | BG58: 0 | BO58: 0
A59: 9 | Q59: =IF(Aufzeichnung_Messen="JA",2*PI()*K59/60*P59,2*PI()*I59/60*P59) ->  | X59: 0 | AD59: 0 | AF59: 0 | AL59: 0 | AO59: 0 | AU59: 0 | BG59: 0 | BO59: 0
A60: 10 | X60: 0 | AD60: 0 | AF60: 0 | AL60: 0 | AO60: 0 | AU60: 0 | BG60: 0 | BO60: 0
A61: 11 | X61: 0 | AD61: 0 | AF61: 0 | AL61: 0 | AO61: 0 | AU61: 0 | BG61: 0 | BO61: 0
A62: 12 | X62: 0 | AD62: 0 | AF62: 0 | AL62: 0 | AO62: 0 | AU62: 0 | BG62: 0 | BO62: 0
A63: 13 | X63: 0 | AD63: 0 | AF63: 0 | AL63: 0 | AO63: 0 | AU63: 0 | BG63: 0 | BO63: 0
A64: 14 | X64: 0 | AF64: 0 | AO64: 0
A65: 15 | X65: 0 | AF65: 0 | AO65: 0
A66: 16 | X66: 0 | AF66: 0 | AO66: 0
A67: 17 | X67: 0 | AF67: 0 | AO67: 0
A68: 18 | X68: 0 | AF68: 0 | AO68: 0
A69: 19 | X69: 0 | AF69: 0 | AO69: 0
A70: 20 | X70: 0 | AF70: 0 | AO70: 0
A71: 21 | X71: 0 | AF71: 0 | AO71: 0
A72: 22 | N72: =IF(D72<>1,(M72-M71)/(D72/1000)*SQRT((D72/D71)),0) ->  | X72: 0 | AF72: 0 | AO72: 0
A73: 23 | X73: 0 | AF73: 0 | AO73: 0
A74: 24 | X74: 0 | AF74: 0 | AO74: 0
A75: 25 | X75: 0 | AF75: 0 | AO75: 0
A76: 26 | X76: 0 | AF76: 0 | AO76: 0
A77: 27 | X77: 0 | AF77: 0 | AO77: 0
A78: 28 | X78: 0 | AF78: 0 | AO78: 0
A79: 29 | X79: 0 | AF79: 0 | AO79: 0
A80: 30 | X80: 0 | AF80: 0 | AO80: 0
A81: 31 | X81: 0 | AF81: 0 | AO81: 0
A82: 32 | F82: =E82*Aufzeichnung_Rollenumfang/60/1000 ->  | X82: 0 | AF82: 0 | AO82: 0
A83: 33 | F83: =E83*Aufzeichnung_Rollenumfang/60/1000 ->  | X83: 0 | AF83: 0 | AO83: 0
A84: 34 | X84: 0 | AF84: 0 | AO84: 0
A85: 35 | X85: 0 | AF85: 0 | AO85: 0
A86: 36 | X86: 0 | AF86: 0 | AO86: 0
A87: 37 | X87: 0 | AF87: 0 | AO87: 0
A88: 38 | X88: 0 | AF88: 0 | AO88: 0
A89: 39 | X89: 0 | AF89: 0 | AO89: 0
A90: 40 | X90: 0 | AF90: 0 | AO90: 0
A91: 41 | X91: 0 | AF91: 0 | AO91: 0
A92: 42 | X92: 0 | AF92: 0 | AO92: 0
A93: 43 | X93: 0 | AF93: 0 | AO93: 0
A94: 44 | X94: 0 | AF94: 0 | AO94: 0
A95: 45 | X95: 0 | AF95: 0 | AO95: 0
A96: 46 | X96: 0 | AF96: 0 | AO96: 0
A97: 47 | X97: 0 | AF97: 0 | AO97: 0
A98: 48 | X98: 0 | AF98: 0 | AO98: 0
A99: 49 | X99: 0 | AF99: 0 | AO99: 0
A100: 50 | X100: 0 | AF100: 0 | AO100: 0
A101: 51 | X101: 0 | AF101: 0 | AO101: 0
A102: 52 | X102: 0 | AF102: 0 | AO102: 0
A103: 53 | X103: 0 | AF103: 0 | AO103: 0
A104: 54 | X104: 0 | AF104: 0 | AO104: 0
A105: 55 | X105: 0 | AF105: 0 | AO105: 0
A106: 56 | X106: 0 | AF106: 0 | AO106: 0
A107: 57 | X107: 0 | AF107: 0 | AO107: 0
A108: 58 | X108: 0 | AF108: 0 | AO108: 0
A109: 59 | X109: 0 | AF109: 0 | AO109: 0
A110: 60 | X110: 0 | AF110: 0 | AO110: 0
A111: 61 | X111: 0 | AF111: 0 | AO111: 0
A112: 62 | X112: 0 | AF112: 0 | AO112: 0
A113: 63 | X113: 0 | AF113: 0 | AO113: 0
A114: 64 | X114: 0 | AF114: 0 | AO114: 0
A115: 65 | E115: =C115*60*1000/Aufzeichnung_Impulse/D115 ->  | F115: =E115*Aufzeichnung_Rollenumfang/60/1000 ->  | H115: =E115*Aufzeichnung_Reifenübersetzung ->  | I115: =Aufzeichnung_Übersetzung_berechnet*E115 ->  | K115: =Aufzeichnung_Übersetzung_gemessen*E115 ->  | L115: =IF(Aufzeichnung_Messen="JA",K115,I115) ->  | O115: =IF(Aufzeichnung_LiveNM_Aktiv,IF(OR(AW115<=0,N115=0),0,Aufzeichnung_NM_Faktor*N115+Aufzeichnung_Verluste+AW115),IF(N115>0,Aufzeichnung_NM_Faktor*N115+Aufzeichnung_Verluste,IF(N115<0,Aufzeichnung_NM_Faktor*N115+Aufzeichnung_Verluste_Rolle,0))) ->  | P115: =O115/Aufzeichnung_Übersetzung ->  | Q115: =IF(Aufzeichnung_Messen="JA",2*PI()*K115/60*P115,2*PI()*I115/60*P115) ->  | X115: =W115*Aufzeichnung_EGT_Korrekturfaktor -> 0 | Y115: =Aufzeichnung_EGT_NM+(X115-Aufzeichnung_EGT_Standard)/Aufzeichnung_EGT_Auflösung_vertikal*($AC$52-$AC$51) ->  | AF115: =AE115*Aufzeichnung_Lambda_Korrekturfaktor*Aufzeichnung_Als_AFR -> 0 | AG115: =Aufzeichnung_Lambda_NM+(AF115-Aufzeichnung_Lambda_Standard)/Aufzeichnung_Lambda_Auflösung_vertikal*($AK$52-$AK$51) ->  | AO115: =IF(Aufzeichnung_LiveUmin_Auswahl_Vario="",IF(BP115<>"",AM115/BP115*100-100,0),AM115) -> 0 | AP115: =Aufzeichnung_LiveUmin_NM+(AO115-Aufzeichnung_LiveUmin_Standard)/Aufzeichnung_LiveUmin_Auflösung_vertikal*($AT$51-$AT$52) ->  | BB115: =Aufzeichnung_Analog1_NM+(BA115-Aufzeichnung_Analog1_Standard)/Aufzeichnung_Analog1_Auflösung_vertikal*($BF$52-$BF$51) ->  | BJ115: =Aufzeichnung_Analog2_NM+(BI115-Aufzeichnung_Analog2_Standard)/Aufzeichnung_Analog2_Auflösung_vertikal*($BN$52-$BN$51) ->  | BQ115: =B115/Aufzeichnung_Impulse/Aufzeichnung_Messzyklus*Aufzeichnung_Rollenumfang*3.6 -> 
A116: 66 | G116: =F116*3.6 ->  | M116: =2*PI()*E116/60 ->  | N116: =IF(D116<>1,(M116-M115)/(D116/1000)*SQRT((D116/D115)),0) ->  | R116: =Q116*1.36/1000 ->  | S116: =AVERAGE(R115:R116) ->  | T116: =AVERAGE(P115:P116) ->  | V116: =AVERAGE(G115:G116) ->  | X116: 0 | AF116: 0 | AO116: 0
A117: 67 | U117: =AVERAGE(L116:L117) ->  | X117: 0 | AF117: 0 | AO117: 0
A118: 68 | X118: 0 | AF118: 0 | AO118: 0
A119: 69 | X119: 0 | AF119: 0 | AO119: 0
A120: 70 | X120: 0 | AF120: 0 | AO120: 0
A121: 71 | X121: 0 | AF121: 0 | AO121: 0
A122: 72 | X122: 0 | AF122: 0 | AO122: 0
A123: 73 | X123: 0 | AF123: 0 | AO123: 0
A124: 74 | X124: 0 | AF124: 0 | AO124: 0
A125: 75 | X125: 0 | AF125: 0 | AO125: 0
A126: 76 | X126: 0 | AF126: 0 | AO126: 0
A127: 77 | X127: 0 | AF127: 0 | AO127: 0
A128: 78 | X128: 0 | AF128: 0 | AO128: 0
A129: 79 | X129: 0 | AF129: 0 | AO129: 0
A130: 80 | X130: 0 | AF130: 0 | AO130: 0
A131: 81 | X131: 0 | AF131: 0 | AO131: 0
A132: 82 | X132: 0 | AF132: 0 | AO132: 0
A133: 83 | X133: 0 | AF133: 0 | AO133: 0
A134: 84 | X134: 0 | AF134: 0 | AO134: 0
A135: 85 | X135: 0 | AF135: 0 | AO135: 0
A136: 86 | X136: 0 | AF136: 0 | AO136: 0
A137: 87 | X137: 0 | AF137: 0 | AO137: 0
A138: 88 | X138: 0 | AF138: 0 | AO138: 0
A139: 89 | X139: 0 | AF139: 0 | AO139: 0
A140: 90 | F140: =E140*Aufzeichnung_Rollenumfang/60/1000 ->  | X140: 0 | AF140: 0 | AO140: 0
A141: 91 | X141: 0 | AF141: 0 | AO141: 0
A142: 92 | X142: 0 | AF142: 0 | AO142: 0
A143: 93 | X143: 0 | AF143: 0 | AO143: 0
A144: 94 | X144: 0 | AF144: 0 | AO144: 0
A145: 95 | X145: 0 | AF145: 0 | AO145: 0
A146: 96 | X146: 0 | AF146: 0 | AO146: 0
A147: 97 | X147: 0 | AF147: 0 | AO147: 0
A148: 98 | X148: 0 | AF148: 0 | AO148: 0
A149: 99 | X149: 0 | AF149: 0 | AO149: 0
A150: 100 | X150: 0 | AF150: 0 | AO150: 0
A151: 101 | X151: 0 | AF151: 0 | AO151: 0
A152: 102 | X152: 0 | AF152: 0 | AO152: 0
A153: 103 | X153: 0 | AF153: 0 | AO153: 0
A154: 104 | X154: 0 | AF154: 0 | AO154: 0
A155: 105 | X155: 0 | AF155: 0 | AO155: 0
A156: 106 | X156: 0 | AF156: 0 | AO156: 0
A157: 107 | X157: 0 | AF157: 0 | AO157: 0
A158: 108 | X158: 0 | AF158: 0 | AO158: 0
A159: 109 | X159: 0 | AF159: 0 | AO159: 0
A160: 110 | X160: 0 | AF160: 0 | AO160: 0
A161: 111 | X161: 0 | AF161: 0 | AO161: 0
A162: 112 | X162: 0 | AF162: 0 | AO162: 0
A163: 113 | X163: 0 | AF163: 0 | AO163: 0
A164: 114 | X164: 0 | AF164: 0 | AO164: 0
A165: 115 | X165: 0 | AF165: 0 | AO165: 0
A166: 116 | X166: 0 | AF166: 0 | AO166: 0
A167: 117 | X167: 0 | AF167: 0 | AO167: 0
A168: 118 | F168: =E168*Aufzeichnung_Rollenumfang/60/1000 ->  | X168: 0 | AF168: 0 | AO168: 0
A169: 119 | X169: 0 | AF169: 0 | AO169: 0
A170: 120 | X170: 0 | AF170: 0 | AO170: 0
A171: 121 | X171: 0 | AF171: 0 | AO171: 0
A172: 122 | X172: 0 | AF172: 0 | AO172: 0
A173: 123 | X173: 0 | AF173: 0 | AO173: 0
A174: 124 | X174: 0 | AF174: 0 | AO174: 0
A175: 125 | X175: 0 | AF175: 0 | AO175: 0
A176: 126 | X176: 0 | AF176: 0 | AO176: 0
A177: 127 | X177: 0 | AF177: 0 | AO177: 0
A178: 128 | X178: 0 | AF178: 0 | AO178: 0
A179: 129 | E179: =C179*60*1000/Aufzeichnung_Impulse/D179 ->  | H179: =E179*Aufzeichnung_Reifenübersetzung ->  | I179: =Aufzeichnung_Übersetzung_berechnet*E179 ->  | K179: =Aufzeichnung_Übersetzung_gemessen*E179 ->  | L179: =IF(Aufzeichnung_Messen="JA",K179,I179) ->  | O179: =IF(Aufzeichnung_LiveNM_Aktiv,IF(OR(AW179<=0,N179=0),0,Aufzeichnung_NM_Faktor*N179+Aufzeichnung_Verluste+AW179),IF(N179>0,Aufzeichnung_NM_Faktor*N179+Aufzeichnung_Verluste,IF(N179<0,Aufzeichnung_NM_Faktor*N179+Aufzeichnung_Verluste_Rolle,0))) ->  | P179: =O179/Aufzeichnung_Übersetzung ->  | Q179: =IF(Aufzeichnung_Messen="JA",2*PI()*K179/60*P179,2*PI()*I179/60*P179) ->  | X179: =W179*Aufzeichnung_EGT_Korrekturfaktor -> 0 | Y179: =Aufzeichnung_EGT_NM+(X179-Aufzeichnung_EGT_Standard)/Aufzeichnung_EGT_Auflösung_vertikal*($AC$52-$AC$51) ->  | AF179: =AE179*Aufzeichnung_Lambda_Korrekturfaktor*Aufzeichnung_Als_AFR -> 0 | AG179: =Aufzeichnung_Lambda_NM+(AF179-Aufzeichnung_Lambda_Standard)/Aufzeichnung_Lambda_Auflösung_vertikal*($AK$52-$AK$51) ->  | AO179: =IF(Aufzeichnung_LiveUmin_Auswahl_Vario="",IF(BP179<>"",AM179/BP179*100-100,0),AM179) -> 0 | AP179: =Aufzeichnung_LiveUmin_NM+(AO179-Aufzeichnung_LiveUmin_Standard)/Aufzeichnung_LiveUmin_Auflösung_vertikal*($AT$51-$AT$52) ->  | BB179: =Aufzeichnung_Analog1_NM+(BA179-Aufzeichnung_Analog1_Standard)/Aufzeichnung_Analog1_Auflösung_vertikal*($BF$52-$BF$51) ->  | BJ179: =Aufzeichnung_Analog2_NM+(BI179-Aufzeichnung_Analog2_Standard)/Aufzeichnung_Analog2_Auflösung_vertikal*($BN$52-$BN$51) ->  | BQ179: =B179/Aufzeichnung_Impulse/Aufzeichnung_Messzyklus*Aufzeichnung_Rollenumfang*3.6 -> 
A180: 130 | G180: =F180*3.6 ->  | M180: =2*PI()*E180/60 ->  | N180: =IF(D180<>1,(M180-M179)/(D180/1000)*SQRT((D180/D179)),0) ->  | R180: =Q180*1.36/1000 ->  | S180: =AVERAGE(R179:R180) ->  | T180: =AVERAGE(P179:P180) ->  | V180: =AVERAGE(G179:G180) ->  | X180: 0 | AF180: 0 | AO180: 0
A181: 131 | U181: =AVERAGE(L180:L181) ->  | X181: 0 | AF181: 0 | AO181: 0
A182: 132 | X182: 0 | AF182: 0 | AO182: 0
A183: 133 | X183: 0 | AF183: 0 | AO183: 0
A184: 134 | X184: 0 | AF184: 0 | AO184: 0
A185: 135 | X185: 0 | AF185: 0 | AO185: 0
A186: 136 | X186: 0 | AF186: 0 | AO186: 0
A187: 137 | X187: 0 | AF187: 0 | AO187: 0
A188: 138 | X188: 0 | AF188: 0 | AO188: 0
A189: 139 | X189: 0 | AF189: 0 | AO189: 0
A190: 140 | X190: 0 | AF190: 0 | AO190: 0
A191: 141 | X191: 0 | AF191: 0 | AO191: 0
A192: 142 | X192: 0 | AF192: 0 | AO192: 0
A193: 143 | X193: 0 | AF193: 0 | AO193: 0
A194: 144 | X194: 0 | AF194: 0 | AO194: 0
A195: 145 | X195: 0 | AF195: 0 | AO195: 0
A196: 146 | X196: 0 | AF196: 0 | AO196: 0
A197: 147 | X197: 0 | AF197: 0 | AO197: 0
A198: 148 | X198: 0 | AF198: 0 | AO198: 0
A199: 149 | X199: 0 | AF199: 0 | AO199: 0
A200: 150 | X200: 0 | AF200: 0 | AO200: 0
A201: 151 | X201: 0 | AF201: 0 | AO201: 0
A202: 152 | X202: 0 | AF202: 0 | AO202: 0
A203: 153 | X203: 0 | AF203: 0 | AO203: 0
A204: 154 | X204: 0 | AF204: 0 | AO204: 0
A205: 155 | X205: 0 | AF205: 0 | AO205: 0
A206: 156 | X206: 0 | AF206: 0 | AO206: 0
A207: 157 | X207: 0 | AF207: 0 | AO207: 0
A208: 158 | X208: 0 | AF208: 0 | AO208: 0
A209: 159 | X209: 0 | AF209: 0 | AO209: 0
A210: 160 | X210: 0 | AF210: 0 | AO210: 0
A211: 161 | X211: 0 | AF211: 0 | AO211: 0
A212: 162 | X212: 0 | AF212: 0 | AO212: 0
A213: 163 | X213: 0 | AF213: 0 | AO213: 0
A214: 164 | X214: 0 | AF214: 0 | AO214: 0
A215: 165 | X215: 0 | AF215: 0 | AO215: 0
A216: 166 | X216: 0 | AF216: 0 | AO216: 0
A217: 167 | X217: 0 | AF217: 0 | AO217: 0
A218: 168 | X218: 0 | AF218: 0 | AO218: 0
A219: 169 | X219: 0 | AF219: 0 | AO219: 0
A220: 170 | X220: 0 | AF220: 0 | AO220: 0
A221: 171 | X221: 0 | AF221: 0 | AO221: 0
A222: 172 | X222: 0 | AF222: 0 | AO222: 0
A223: 173 | X223: 0 | AF223: 0 | AO223: 0
A224: 174 | X224: 0 | AF224: 0 | AO224: 0
A225: 175 | X225: 0 | AF225: 0 | AO225: 0
A226: 176 | X226: 0 | AF226: 0 | AO226: 0
A227: 177 | X227: 0 | AF227: 0 | AO227: 0
A228: 178 | X228: 0 | AF228: 0 | AO228: 0
... 822 more rows

Sheet Aufzeichnung 4 (hidden)
B2: Nummer:
D8: TRUE
B25: Ergebnis
B26: Leistung | C26: =IF(ISERROR(MAX(R51:R1050)),0,MAX(R51:R1050)) -> 0 | D26: Drehmoment | E26: =IF(ISERROR(MAX(P51:P1050)),0,MAX(P51:P1050)) -> 0 | F26: maxDrehzahl | G26: =IF(ISERROR(MAX(L51:L1050)),0,MAX(L51:L1050)) -> 0 | H26: max x-Achse | J26: Software: v5.191227
B27: Drehzahl | C27: =IF(ISERROR(INDEX(L51:L1050,MATCH(C26,R51:R1050,0))),0,INDEX(L51:L1050,MATCH(C26,R51:R1050,0))) -> 0 | D27: Drehzahl | E27: =IF(ISERROR(INDEX(U51:U1050,MATCH(E26,P51:P1050,0))),0,INDEX(U51:U1050,MATCH(E26,P51:P1050,0))) -> 0 | F27: Vmax | G27: =IF(ISERROR(MAX(G51:G1050)),0,MAX(G51:G1050)) -> 0 | H27: min x-Achse
B28: Übersetzung | C28: =IF(ISERROR(ROUND(IF(Aufzeichnung_Messen="JA",Aufzeichnung_Übersetzung_gemessen,Aufzeichnung_Übersetzung_berechnet),2)),1,ROUND(IF(Aufzeichnung_Messen="JA",Aufzeichnung_Übersetzung_gemessen,Aufzeichnung_Übersetzung_berechnet),2)) -> 1 | D28: Luftdruck | F28: Temperatur | H28: Luftfeuchte
B30: Getriebe | D30: =IF(#REF!,#REF!,IF(OR(#REF!,Aufzeichnung_Rechenbare_Punkte=0),#REF!,#REF!)) -> 
B31: freie Eingabe | D31: Übersetzung messen | F31: Auspuff | K31: Details
B32: Gang Z1 | D32: Zündungstype | F32: Kurbelwelle | H32: Name
B33: Z2 | D33: Zylinder | F33: Maße | H33: Kommentar
B34: Gang Z2 | D34: Vergaser | F34: Zeiten
B35: Z2 | D35: Zündung | F35: Ansaugsystem
B36: Reifenumfang | D36: Zündeinstellung | F36: Bedüsung
B37: Reifenschlupf | C37: 0 | D37: Schwungrad
B42: Prüfstand | F42: Messzyklus | H42: Gemessene Übersetzung | J42: {EGT Standard} | L42: {EGT Auflösung vertikal} | N42: Lambda Standard | P42: Lambda Auflösung | R42: CRC Daten | U42: drar | W42: LiveUmin Standard | Z42: LiveUmin Auflösung | AB42: LiveNM Aktiv | AD42: FALSE | AE42: Analog1 Standard | AG42: Analog1 Auflösung | AI42: Analog2 Standard | AK42: Analog2 Auflösung
A43: Rollenumfang | D43: Verluste Rolle nur Pnorm | F43: Zündung (nur bei Messverfahren) | H43: Berechnete Übersetzung | I43: =IF(Aufzeichnung_Übersetzung_Manuelle_Eingabe<>"",Aufzeichnung_Übersetzung_Manuelle_Eingabe,IF(ISERROR((Aufzeichnung_Primär_Z2/Aufzeichnung_Primär_Z1)*(Aufzeichnung_Getriebe_Z2/Aufzeichnung_Getriebe_Z1)*Aufzeichnung_Reifenübersetzung),1,(Aufzeichnung_Primär_Z2/Aufzeichnung_Primär_Z1)*(Aufzeichnung_Getriebe_Z2/Aufzeichnung_Getriebe_Z1)*Aufzeichnung_Reifenübersetzung)) -> 1 | J43: {EGT Korr} | N43: Lambda Korrektur | P43: AFR | Q43: 1 | R43: CRC Werte | W43: LiveUmin Korrektur | AB43: LiveNM Faktor | AE43: Analog1 Korrektur | AG43: Analog1 Faktor | AI43: Analog2 Korrektur | AK43: Analog2 Faktor
A44: Trägheitsmoment | D44: Verluste Rolle[NM] | E44: 0 | F44: Rechenbare Punke | H44: Reifen/Rollenübersetzung+ Schlupf | I44: =IF(ISERROR(Aufzeichnung_Rollenumfang/(Aufzeichnung_Reifen*(1+Aufzeichnung_Reifenschlupf))),1,Aufzeichnung_Rollenumfang/(Aufzeichnung_Reifen*(1+Aufzeichnung_Reifenschlupf))) -> 1 | J44: {EGT NM} | N44: Lambda NM | R44: CRC Daten lokal | W44: LiveUmin NM | AB44: Langzeitmessung | AD44: FALSE | AE44: Analog1 NM | AI44: Analog2 NM
B45: Impulse | D45: Verlust NM | E45: 0 | F45: Verluste [NM] | G45: 0 | H45: Prüfstandfaktor | J45: {EGT U/Min} | N45: Lambda U/Min | R45: CRC Werte lokal | W45: LiveUmin U/Min | AE45: Analog1 U/Min | AI45: Analog2 U/Min
A46: FahrzeugID | E46: DIN PS Faktor | F46: JA | G46: =IF(ISERROR((1013/(Aufzeichnung_Luftdruck-Aufzeichnung_Faktor_Feuchte))*((273+Aufzeichnung_Temperatur)/293)),1,(1013/(Aufzeichnung_Luftdruck-Aufzeichnung_Faktor_Feuchte))*((273+Aufzeichnung_Temperatur)/293)) -> 1 | H46: Aktueller NMFaktor | I46: =IF(1=1,drar(),Aufzeichnung_DINPS_Faktor&Aufzeichnung_DIN_PS_Faktor_Aktiv) -> 0 | J46: {EGT Anzahl} | N46: Lambda Anzahl | R46: Version | W46: LiveUmin Anzahl | AE46: Analog1 Anzahl | AI46: Analog2 Anzahl
B47: Detailstype | D47: Gesamtpunkte | F47: Feuchtekorrektur | G47: =(Aufzeichnung_Feuchte*(2.408*10^11*(300/(Aufzeichnung_Temperatur+273.15))^5 *EXP(-22.644*(300/(Aufzeichnung_Temperatur+273.15))))/100) -> 0
A49: lfd Nr. | B49: Impulse | C49: Drehzahl Rolle | H49: Drehzahl Reifen | I49: Drehzahl KW berechnet | J49: Drehzahl KW gemessen | L49: Drehzahl | M49: Winkelgeschwindigkeit | N49: Winkelbeschleunigung | O49: Drehmoment | Q49: Leistung | S49: Anzeige PS | T49: Anzeige NM | U49: Anzeige Drehzahl | V49: Anzeige kmh | W49: EGT | AE49: Lambda | AM49: Livedrehzahl | AV49: LiveNM | AX49: Zeit | AZ49: Analog1 | BH49: Analog2 | BP49: Allgemein Optionen
A50: lfdNr | B50: Werte | C50: Messwerte Berechnet | D50: Zyklus berechnet | E50: U/min | F50: m/s | G50: km/h | H50: U/min | I50: U/min | J50: Werte | K50: U/min | L50: U/min | M50: rad/sec | N50: rad/sec² | O50: am Rad Trägheit | P50: mit Übersetzung | Q50: W | R50: PS | S50: PS | T50: NM | U50: Umin | W50: Messwerte EGT | X50: Werte aufb. | Y50: auf NM | Z50: Horizontal1 | AA50: Horizonal2 | AB50: Vertikal1 | AC50: Vertikal1 NM | AD50: Vertikal2 | AE50: Messwerte Lambda | AF50: Werte aufb. | AG50: auf NM | AH50: Horizontal1 | AI50: Horizonal2 | AJ50: Vertikal1 | AK50: Vertikal1 NM | AL50: Vertikal2 | AM50: LiveDrezahl mit Funkenaufteilung | AN50: Live Umin berechnet | AO50: Werte aufb | AP50: auf NM | AQ50: Horizontal1 | AR50: Horizontal2 | AS50: Vertikal1 | AT50: Vertikal1NM | AU50: Vertikal2 | AV50: Messwerte LiveNM | AW50: Messwerte_LiveNM_berechnet | AX50: sekunden | AY50: Anzeige | AZ50: 0 | BA50: Werte aufb. | BB50: auf NM | BC50: Horizontal1 | BD50: Horizonal2 | BE50: Vertikal1 | BF50: Vertikal1 NM | BG50: Vertikal2 | BH50: 0 | BI50: Werte aufb. | BJ50: auf NM | BK50: Horizontal1 | BL50: Horizonal2 | BM50: Vertikal1 | BN50: Vertikal1 NM | BO50: Vertikal2 | BP50: Drehzahl | BQ50: KMH
A51: 1 | E51: =C51*60*1000/Aufzeichnung_Impulse/D51 ->  | F51: =E51*Aufzeichnung_Rollenumfang/60/1000 ->  | G51: =F51*3.6 ->  | H51: =E51*Aufzeichnung_Reifenübersetzung ->  | I51: =Aufzeichnung_Übersetzung_berechnet*E51 ->  | K51: =Aufzeichnung_Übersetzung_gemessen*E51 ->  | L51: =IF(Aufzeichnung_Messen="JA",K51,I51) ->  | M51: =2*PI()*E51/60 ->  | N51: 0 | O51: =IF(Aufzeichnung_LiveNM_Aktiv,IF(OR(AW51<=0,N51=0),0,Aufzeichnung_NM_Faktor*N51+Aufzeichnung_Verluste+AW51),IF(N51>0,Aufzeichnung_NM_Faktor*N51+Aufzeichnung_Verluste,IF(N51<0,Aufzeichnung_NM_Faktor*N51+Aufzeichnung_Verluste_Rolle,0))) -> 0 | P51: =O51/Aufzeichnung_Übersetzung -> 0 | Q51: =IF(Aufzeichnung_Messen="JA",2*PI()*K51/60*P51,2*PI()*I51/60*P51) ->  | R51: =Q51*1.36/1000 ->  | S51: =AVERAGE(R50:R51) ->  | T51: =AVERAGE(P50:P51) -> 0 | U51: =AVERAGE(L50:L51) ->  | V51: =AVERAGE(G50:G51) ->  | X51: =W51*Aufzeichnung_EGT_Korrekturfaktor -> 0 | Y51: =Aufzeichnung_EGT_NM+(X51-Aufzeichnung_EGT_Standard)/Aufzeichnung_EGT_Auflösung_vertikal*($AC$52-$AC$51) ->  | Z51: =Aufzeichnung_EGT_NM -> 0 | AA51: 0 | AD51: =Aufzeichnung_EGT_Umin -> 0 | AF51: =AE51*Aufzeichnung_Lambda_Korrekturfaktor*Aufzeichnung_Als_AFR -> 0 | AG51: =Aufzeichnung_Lambda_NM+(AF51-Aufzeichnung_Lambda_Standard)/Aufzeichnung_Lambda_Auflösung_vertikal*($AK$52-$AK$51) ->  | AH51: =Aufzeichnung_Lambda_NM -> 0 | AI51: 0 | AL51: =Aufzeichnung_Lambda_Umin -> 0 | AO51: =IF(Aufzeichnung_LiveUmin_Auswahl_Vario="",IF(BP51<>"",AM51/BP51*100-100,0),AM51) -> 0 | AP51: =Aufzeichnung_LiveUmin_NM+(AO51-Aufzeichnung_LiveUmin_Standard)/Aufzeichnung_LiveUmin_Auflösung_vertikal*($AT$51-$AT$52) ->  | AQ51: =Aufzeichnung_LiveUmin_NM -> 0 | AR51: 0 | AU51: =Aufzeichnung_LiveUmin_Umin -> 0 | BB51: =Aufzeichnung_Analog1_NM+(BA51-Aufzeichnung_Analog1_Standard)/Aufzeichnung_Analog1_Auflösung_vertikal*($BF$52-$BF$51) ->  | BC51: =Aufzeichnung_Analog1_NM -> 0 | BD51: 0 | BG51: =Aufzeichnung_Analog1_Umin -> 0 | BJ51: =Aufzeichnung_Analog2_NM+(BI51-Aufzeichnung_Analog2_Standard)/Aufzeichnung_Analog2_Auflösung_vertikal*($BN$52-$BN$51) ->  | BK51: =Aufzeichnung_Analog2_NM -> 0 | BL51: 0 | BO51: =Aufzeichnung_Analog2_Umin -> 0 | BQ51: =B51/Aufzeichnung_Impulse/Aufzeichnung_Messzyklus*Aufzeichnung_Rollenumfang*3.6 -> 
A52: 2 | F52: =E52*Aufzeichnung_Rollenumfang/60/1000 ->  | G52: =F52*3.6 ->  | M52: =2*PI()*E52/60 ->  | N52: =IF(D52<>1,(M52-M51)/(D52/1000)*SQRT((D52/D51)),0) ->  | R52: =Q52*1.36/1000 ->  | S52: =AVERAGE(R51:R52) ->  | T52: =AVERAGE(P51:P52) ->  | U52: =AVERAGE(L51:L52) ->  | V52: =AVERAGE(G51:G52) ->  | X52: 0 | Y52: =Aufzeichnung_EGT_NM+(X52-Aufzeichnung_EGT_Standard)/Aufzeichnung_EGT_Auflösung_vertikal*($AC$52-$AC$51) ->  | Z52: =Aufzeichnung_EGT_NM -> 0 | AA52: 30000 | AD52: 0 | AF52: 0 | AH52: =Aufzeichnung_Lambda_NM -> 0 | AI52: 30000 | AL52: 0 | AO52: 0 | AQ52: =Aufzeichnung_LiveUmin_NM -> 0 | AR52: 30000 | AU52: 0 | BC52: =Aufzeichnung_Analog1_NM -> 0 | BD52: 300 | BG52: 0 | BJ52: =Aufzeichnung_Analog2_NM+(BI52-Aufzeichnung_Analog2_Standard)/Aufzeichnung_Analog2_Auflösung_vertikal*($BN$52-$BN$51) ->  | BK52: =Aufzeichnung_Analog2_NM -> 0 | BL52: 300 | BO52: 0
A53: 3 | F53: =E53*Aufzeichnung_Rollenumfang/60/1000 ->  | H53: =E53*Aufzeichnung_Reifenübersetzung ->  | I53: =Aufzeichnung_Übersetzung_berechnet*E53 ->  | K53: =Aufzeichnung_Übersetzung_gemessen*E53 ->  | L53: =IF(Aufzeichnung_Messen="JA",K53,I53) ->  | U53: =AVERAGE(L52:L53) ->  | X53: 0 | AD53: 0 | AF53: 0 | AL53: 0 | AO53: 0 | AU53: 0 | BG53: 0 | BO53: 0
A54: 4 | X54: 0 | AD54: 0 | AF54: 0 | AL54: 0 | AO54: 0 | AU54: 0 | BG54: 0 | BO54: 0
A55: 5 | X55: 0 | AD55: 0 | AF55: 0 | AL55: 0 | AO55: 0 | AU55: 0 | BG55: 0 | BO55: 0
A56: 6 | X56: 0 | AD56: 0 | AF56: 0 | AL56: 0 | AO56: 0 | AU56: 0 | BG56: 0 | BO56: 0
A57: 7 | X57: 0 | AD57: 0 | AF57: 0 | AL57: 0 | AO57: 0 | AU57: 0 | BG57: 0 | BO57: 0
A58: 8 | X58: 0 | AD58: 0 | AF58: 0 | AL58: 0 | AO58: 0 | AU58: 0 | BG58: 0 | BO58: 0
A59: 9 | Q59: =IF(Aufzeichnung_Messen="JA",2*PI()*K59/60*P59,2*PI()*I59/60*P59) ->  | X59: 0 | AD59: 0 | AF59: 0 | AL59: 0 | AO59: 0 | AU59: 0 | BG59: 0 | BO59: 0
A60: 10 | X60: 0 | AD60: 0 | AF60: 0 | AL60: 0 | AO60: 0 | AU60: 0 | BG60: 0 | BO60: 0
A61: 11 | X61: 0 | AD61: 0 | AF61: 0 | AL61: 0 | AO61: 0 | AU61: 0 | BG61: 0 | BO61: 0
A62: 12 | X62: 0 | AD62: 0 | AF62: 0 | AL62: 0 | AO62: 0 | AU62: 0 | BG62: 0 | BO62: 0
A63: 13 | X63: 0 | AD63: 0 | AF63: 0 | AL63: 0 | AO63: 0 | AU63: 0 | BG63: 0 | BO63: 0
A64: 14 | X64: 0 | AF64: 0 | AO64: 0
A65: 15 | X65: 0 | AF65: 0 | AO65: 0
A66: 16 | X66: 0 | AF66: 0 | AO66: 0
A67: 17 | X67: 0 | AF67: 0 | AO67: 0
A68: 18 | X68: 0 | AF68: 0 | AO68: 0
A69: 19 | X69: 0 | AF69: 0 | AO69: 0
A70: 20 | X70: 0 | AF70: 0 | AO70: 0
A71: 21 | X71: 0 | AF71: 0 | AO71: 0
A72: 22 | N72: =IF(D72<>1,(M72-M71)/(D72/1000)*SQRT((D72/D71)),0) ->  | X72: 0 | AF72: 0 | AO72: 0
A73: 23 | X73: 0 | AF73: 0 | AO73: 0
A74: 24 | X74: 0 | AF74: 0 | AO74: 0
A75: 25 | X75: 0 | AF75: 0 | AO75: 0
A76: 26 | X76: 0 | AF76: 0 | AO76: 0
A77: 27 | X77: 0 | AF77: 0 | AO77: 0
A78: 28 | X78: 0 | AF78: 0 | AO78: 0
A79: 29 | X79: 0 | AF79: 0 | AO79: 0
A80: 30 | X80: 0 | AF80: 0 | AO80: 0
A81: 31 | X81: 0 | AF81: 0 | AO81: 0
A82: 32 | F82: =E82*Aufzeichnung_Rollenumfang/60/1000 ->  | X82: 0 | AF82: 0 | AO82: 0
A83: 33 | F83: =E83*Aufzeichnung_Rollenumfang/60/1000 ->  | X83: 0 | AF83: 0 | AO83: 0
A84: 34 | X84: 0 | AF84: 0 | AO84: 0
A85: 35 | X85: 0 | AF85: 0 | AO85: 0
A86: 36 | X86: 0 | AF86: 0 | AO86: 0
A87: 37 | X87: 0 | AF87: 0 | AO87: 0
A88: 38 | X88: 0 | AF88: 0 | AO88: 0
A89: 39 | X89: 0 | AF89: 0 | AO89: 0
A90: 40 | X90: 0 | AF90: 0 | AO90: 0
A91: 41 | X91: 0 | AF91: 0 | AO91: 0
A92: 42 | X92: 0 | AF92: 0 | AO92: 0
A93: 43 | X93: 0 | AF93: 0 | AO93: 0
A94: 44 | X94: 0 | AF94: 0 | AO94: 0
A95: 45 | X95: 0 | AF95: 0 | AO95: 0
A96: 46 | X96: 0 | AF96: 0 | AO96: 0
A97: 47 | X97: 0 | AF97: 0 | AO97: 0
A98: 48 | X98: 0 | AF98: 0 | AO98: 0
A99: 49 | X99: 0 | AF99: 0 | AO99: 0
A100: 50 | X100: 0 | AF100: 0 | AO100: 0
A101: 51 | X101: 0 | AF101: 0 | AO101: 0
A102: 52 | X102: 0 | AF102: 0 | AO102: 0
A103: 53 | X103: 0 | AF103: 0 | AO103: 0
A104: 54 | X104: 0 | AF104: 0 | AO104: 0
A105: 55 | X105: 0 | AF105: 0 | AO105: 0
A106: 56 | X106: 0 | AF106: 0 | AO106: 0
A107: 57 | X107: 0 | AF107: 0 | AO107: 0
A108: 58 | X108: 0 | AF108: 0 | AO108: 0
A109: 59 | X109: 0 | AF109: 0 | AO109: 0
A110: 60 | X110: 0 | AF110: 0 | AO110: 0
A111: 61 | X111: 0 | AF111: 0 | AO111: 0
A112: 62 | X112: 0 | AF112: 0 | AO112: 0
A113: 63 | X113: 0 | AF113: 0 | AO113: 0
A114: 64 | X114: 0 | AF114: 0 | AO114: 0
A115: 65 | E115: =C115*60*1000/Aufzeichnung_Impulse/D115 ->  | F115: =E115*Aufzeichnung_Rollenumfang/60/1000 ->  | H115: =E115*Aufzeichnung_Reifenübersetzung ->  | I115: =Aufzeichnung_Übersetzung_berechnet*E115 ->  | K115: =Aufzeichnung_Übersetzung_gemessen*E115 ->  | L115: =IF(Aufzeichnung_Messen="JA",K115,I115) ->  | O115: =IF(Aufzeichnung_LiveNM_Aktiv,IF(OR(AW115<=0,N115=0),0,Aufzeichnung_NM_Faktor*N115+Aufzeichnung_Verluste+AW115),IF(N115>0,Aufzeichnung_NM_Faktor*N115+Aufzeichnung_Verluste,IF(N115<0,Aufzeichnung_NM_Faktor*N115+Aufzeichnung_Verluste_Rolle,0))) ->  | P115: =O115/Aufzeichnung_Übersetzung ->  | Q115: =IF(Aufzeichnung_Messen="JA",2*PI()*K115/60*P115,2*PI()*I115/60*P115) ->  | X115: =W115*Aufzeichnung_EGT_Korrekturfaktor -> 0 | Y115: =Aufzeichnung_EGT_NM+(X115-Aufzeichnung_EGT_Standard)/Aufzeichnung_EGT_Auflösung_vertikal*($AC$52-$AC$51) ->  | AF115: =AE115*Aufzeichnung_Lambda_Korrekturfaktor*Aufzeichnung_Als_AFR -> 0 | AG115: =Aufzeichnung_Lambda_NM+(AF115-Aufzeichnung_Lambda_Standard)/Aufzeichnung_Lambda_Auflösung_vertikal*($AK$52-$AK$51) ->  | AO115: =IF(Aufzeichnung_LiveUmin_Auswahl_Vario="",IF(BP115<>"",AM115/BP115*100-100,0),AM115) -> 0 | AP115: =Aufzeichnung_LiveUmin_NM+(AO115-Aufzeichnung_LiveUmin_Standard)/Aufzeichnung_LiveUmin_Auflösung_vertikal*($AT$51-$AT$52) ->  | BB115: =Aufzeichnung_Analog1_NM+(BA115-Aufzeichnung_Analog1_Standard)/Aufzeichnung_Analog1_Auflösung_vertikal*($BF$52-$BF$51) ->  | BJ115: =Aufzeichnung_Analog2_NM+(BI115-Aufzeichnung_Analog2_Standard)/Aufzeichnung_Analog2_Auflösung_vertikal*($BN$52-$BN$51) ->  | BQ115: =B115/Aufzeichnung_Impulse/Aufzeichnung_Messzyklus*Aufzeichnung_Rollenumfang*3.6 -> 
A116: 66 | G116: =F116*3.6 ->  | M116: =2*PI()*E116/60 ->  | N116: =IF(D116<>1,(M116-M115)/(D116/1000)*SQRT((D116/D115)),0) ->  | R116: =Q116*1.36/1000 ->  | S116: =AVERAGE(R115:R116) ->  | T116: =AVERAGE(P115:P116) ->  | V116: =AVERAGE(G115:G116) ->  | X116: 0 | AF116: 0 | AO116: 0
A117: 67 | U117: =AVERAGE(L116:L117) ->  | X117: 0 | AF117: 0 | AO117: 0
A118: 68 | X118: 0 | AF118: 0 | AO118: 0
A119: 69 | X119: 0 | AF119: 0 | AO119: 0
A120: 70 | X120: 0 | AF120: 0 | AO120: 0
A121: 71 | X121: 0 | AF121: 0 | AO121: 0
A122: 72 | X122: 0 | AF122: 0 | AO122: 0
A123: 73 | X123: 0 | AF123: 0 | AO123: 0
A124: 74 | X124: 0 | AF124: 0 | AO124: 0
A125: 75 | X125: 0 | AF125: 0 | AO125: 0
A126: 76 | X126: 0 | AF126: 0 | AO126: 0
A127: 77 | X127: 0 | AF127: 0 | AO127: 0
A128: 78 | X128: 0 | AF128: 0 | AO128: 0
A129: 79 | X129: 0 | AF129: 0 | AO129: 0
A130: 80 | X130: 0 | AF130: 0 | AO130: 0
A131: 81 | X131: 0 | AF131: 0 | AO131: 0
A132: 82 | X132: 0 | AF132: 0 | AO132: 0
A133: 83 | X133: 0 | AF133: 0 | AO133: 0
A134: 84 | X134: 0 | AF134: 0 | AO134: 0
A135: 85 | X135: 0 | AF135: 0 | AO135: 0
A136: 86 | X136: 0 | AF136: 0 | AO136: 0
A137: 87 | X137: 0 | AF137: 0 | AO137: 0
A138: 88 | X138: 0 | AF138: 0 | AO138: 0
A139: 89 | X139: 0 | AF139: 0 | AO139: 0
A140: 90 | F140: =E140*Aufzeichnung_Rollenumfang/60/1000 ->  | X140: 0 | AF140: 0 | AO140: 0
A141: 91 | X141: 0 | AF141: 0 | AO141: 0
A142: 92 | X142: 0 | AF142: 0 | AO142: 0
A143: 93 | X143: 0 | AF143: 0 | AO143: 0
A144: 94 | X144: 0 | AF144: 0 | AO144: 0
A145: 95 | X145: 0 | AF145: 0 | AO145: 0
A146: 96 | X146: 0 | AF146: 0 | AO146: 0
A147: 97 | X147: 0 | AF147: 0 | AO147: 0
A148: 98 | X148: 0 | AF148: 0 | AO148: 0
A149: 99 | X149: 0 | AF149: 0 | AO149: 0
A150: 100 | X150: 0 | AF150: 0 | AO150: 0
A151: 101 | X151: 0 | AF151: 0 | AO151: 0
A152: 102 | X152: 0 | AF152: 0 | AO152: 0
A153: 103 | X153: 0 | AF153: 0 | AO153: 0
A154: 104 | X154: 0 | AF154: 0 | AO154: 0
A155: 105 | X155: 0 | AF155: 0 | AO155: 0
A156: 106 | X156: 0 | AF156: 0 | AO156: 0
A157: 107 | X157: 0 | AF157: 0 | AO157: 0
A158: 108 | X158: 0 | AF158: 0 | AO158: 0
A159: 109 | X159: 0 | AF159: 0 | AO159: 0
A160: 110 | X160: 0 | AF160: 0 | AO160: 0
A161: 111 | X161: 0 | AF161: 0 | AO161: 0
A162: 112 | X162: 0 | AF162: 0 | AO162: 0
A163: 113 | X163: 0 | AF163: 0 | AO163: 0
A164: 114 | X164: 0 | AF164: 0 | AO164: 0
A165: 115 | X165: 0 | AF165: 0 | AO165: 0
A166: 116 | X166: 0 | AF166: 0 | AO166: 0
A167: 117 | X167: 0 | AF167: 0 | AO167: 0
A168: 118 | F168: =E168*Aufzeichnung_Rollenumfang/60/1000 ->  | X168: 0 | AF168: 0 | AO168: 0
A169: 119 | X169: 0 | AF169: 0 | AO169: 0
A170: 120 | X170: 0 | AF170: 0 | AO170: 0
A171: 121 | X171: 0 | AF171: 0 | AO171: 0
A172: 122 | X172: 0 | AF172: 0 | AO172: 0
A173: 123 | X173: 0 | AF173: 0 | AO173: 0
A174: 124 | X174: 0 | AF174: 0 | AO174: 0
A175: 125 | X175: 0 | AF175: 0 | AO175: 0
A176: 126 | X176: 0 | AF176: 0 | AO176: 0
A177: 127 | X177: 0 | AF177: 0 | AO177: 0
A178: 128 | X178: 0 | AF178: 0 | AO178: 0
A179: 129 | E179: =C179*60*1000/Aufzeichnung_Impulse/D179 ->  | H179: =E179*Aufzeichnung_Reifenübersetzung ->  | I179: =Aufzeichnung_Übersetzung_berechnet*E179 ->  | K179: =Aufzeichnung_Übersetzung_gemessen*E179 ->  | L179: =IF(Aufzeichnung_Messen="JA",K179,I179) ->  | O179: =IF(Aufzeichnung_LiveNM_Aktiv,IF(OR(AW179<=0,N179=0),0,Aufzeichnung_NM_Faktor*N179+Aufzeichnung_Verluste+AW179),IF(N179>0,Aufzeichnung_NM_Faktor*N179+Aufzeichnung_Verluste,IF(N179<0,Aufzeichnung_NM_Faktor*N179+Aufzeichnung_Verluste_Rolle,0))) ->  | P179: =O179/Aufzeichnung_Übersetzung ->  | Q179: =IF(Aufzeichnung_Messen="JA",2*PI()*K179/60*P179,2*PI()*I179/60*P179) ->  | X179: =W179*Aufzeichnung_EGT_Korrekturfaktor -> 0 | Y179: =Aufzeichnung_EGT_NM+(X179-Aufzeichnung_EGT_Standard)/Aufzeichnung_EGT_Auflösung_vertikal*($AC$52-$AC$51) ->  | AF179: =AE179*Aufzeichnung_Lambda_Korrekturfaktor*Aufzeichnung_Als_AFR -> 0 | AG179: =Aufzeichnung_Lambda_NM+(AF179-Aufzeichnung_Lambda_Standard)/Aufzeichnung_Lambda_Auflösung_vertikal*($AK$52-$AK$51) ->  | AO179: =IF(Aufzeichnung_LiveUmin_Auswahl_Vario="",IF(BP179<>"",AM179/BP179*100-100,0),AM179) -> 0 | AP179: =Aufzeichnung_LiveUmin_NM+(AO179-Aufzeichnung_LiveUmin_Standard)/Aufzeichnung_LiveUmin_Auflösung_vertikal*($AT$51-$AT$52) ->  | BB179: =Aufzeichnung_Analog1_NM+(BA179-Aufzeichnung_Analog1_Standard)/Aufzeichnung_Analog1_Auflösung_vertikal*($BF$52-$BF$51) ->  | BJ179: =Aufzeichnung_Analog2_NM+(BI179-Aufzeichnung_Analog2_Standard)/Aufzeichnung_Analog2_Auflösung_vertikal*($BN$52-$BN$51) ->  | BQ179: =B179/Aufzeichnung_Impulse/Aufzeichnung_Messzyklus*Aufzeichnung_Rollenumfang*3.6 -> 
A180: 130 | G180: =F180*3.6 ->  | M180: =2*PI()*E180/60 ->  | N180: =IF(D180<>1,(M180-M179)/(D180/1000)*SQRT((D180/D179)),0) ->  | R180: =Q180*1.36/1000 ->  | S180: =AVERAGE(R179:R180) ->  | T180: =AVERAGE(P179:P180) ->  | V180: =AVERAGE(G179:G180) ->  | X180: 0 | AF180: 0 | AO180: 0
A181: 131 | U181: =AVERAGE(L180:L181) ->  | X181: 0 | AF181: 0 | AO181: 0
A182: 132 | X182: 0 | AF182: 0 | AO182: 0
A183: 133 | X183: 0 | AF183: 0 | AO183: 0
A184: 134 | X184: 0 | AF184: 0 | AO184: 0
A185: 135 | X185: 0 | AF185: 0 | AO185: 0
A186: 136 | X186: 0 | AF186: 0 | AO186: 0
A187: 137 | X187: 0 | AF187: 0 | AO187: 0
A188: 138 | X188: 0 | AF188: 0 | AO188: 0
A189: 139 | X189: 0 | AF189: 0 | AO189: 0
A190: 140 | X190: 0 | AF190: 0 | AO190: 0
A191: 141 | X191: 0 | AF191: 0 | AO191: 0
A192: 142 | X192: 0 | AF192: 0 | AO192: 0
A193: 143 | X193: 0 | AF193: 0 | AO193: 0
A194: 144 | X194: 0 | AF194: 0 | AO194: 0
A195: 145 | X195: 0 | AF195: 0 | AO195: 0
A196: 146 | X196: 0 | AF196: 0 | AO196: 0
A197: 147 | X197: 0 | AF197: 0 | AO197: 0
A198: 148 | X198: 0 | AF198: 0 | AO198: 0
A199: 149 | X199: 0 | AF199: 0 | AO199: 0
A200: 150 | X200: 0 | AF200: 0 | AO200: 0
A201: 151 | X201: 0 | AF201: 0 | AO201: 0
A202: 152 | X202: 0 | AF202: 0 | AO202: 0
A203: 153 | X203: 0 | AF203: 0 | AO203: 0
A204: 154 | X204: 0 | AF204: 0 | AO204: 0
A205: 155 | X205: 0 | AF205: 0 | AO205: 0
A206: 156 | X206: 0 | AF206: 0 | AO206: 0
A207: 157 | X207: 0 | AF207: 0 | AO207: 0
A208: 158 | X208: 0 | AF208: 0 | AO208: 0
A209: 159 | X209: 0 | AF209: 0 | AO209: 0
A210: 160 | X210: 0 | AF210: 0 | AO210: 0
A211: 161 | X211: 0 | AF211: 0 | AO211: 0
A212: 162 | X212: 0 | AF212: 0 | AO212: 0
A213: 163 | X213: 0 | AF213: 0 | AO213: 0
A214: 164 | X214: 0 | AF214: 0 | AO214: 0
A215: 165 | X215: 0 | AF215: 0 | AO215: 0
A216: 166 | X216: 0 | AF216: 0 | AO216: 0
A217: 167 | X217: 0 | AF217: 0 | AO217: 0
A218: 168 | X218: 0 | AF218: 0 | AO218: 0
A219: 169 | X219: 0 | AF219: 0 | AO219: 0
A220: 170 | X220: 0 | AF220: 0 | AO220: 0
A221: 171 | X221: 0 | AF221: 0 | AO221: 0
A222: 172 | X222: 0 | AF222: 0 | AO222: 0
A223: 173 | X223: 0 | AF223: 0 | AO223: 0
A224: 174 | X224: 0 | AF224: 0 | AO224: 0
A225: 175 | X225: 0 | AF225: 0 | AO225: 0
A226: 176 | X226: 0 | AF226: 0 | AO226: 0
A227: 177 | X227: 0 | AF227: 0 | AO227: 0
A228: 178 | X228: 0 | AF228: 0 | AO228: 0
... 822 more rows

Sheet Aufzeichnung 5 (hidden)
B2: Nummer:
D8: TRUE
B25: Ergebnis
B26: Leistung | C26: =IF(ISERROR(MAX(R51:R1050)),0,MAX(R51:R1050)) -> 0 | D26: Drehmoment | E26: =IF(ISERROR(MAX(P51:P1050)),0,MAX(P51:P1050)) -> 0 | F26: maxDrehzahl | G26: =IF(ISERROR(MAX(L51:L1050)),0,MAX(L51:L1050)) -> 0 | H26: max x-Achse | J26: Software: v5.191227
B27: Drehzahl | C27: =IF(ISERROR(INDEX(L51:L1050,MATCH(C26,R51:R1050,0))),0,INDEX(L51:L1050,MATCH(C26,R51:R1050,0))) -> 0 | D27: Drehzahl | E27: =IF(ISERROR(INDEX(U51:U1050,MATCH(E26,P51:P1050,0))),0,INDEX(U51:U1050,MATCH(E26,P51:P1050,0))) -> 0 | F27: Vmax | G27: =IF(ISERROR(MAX(G51:G1050)),0,MAX(G51:G1050)) -> 0 | H27: min x-Achse
B28: Übersetzung | C28: =IF(ISERROR(ROUND(IF(Aufzeichnung_Messen="JA",Aufzeichnung_Übersetzung_gemessen,Aufzeichnung_Übersetzung_berechnet),2)),1,ROUND(IF(Aufzeichnung_Messen="JA",Aufzeichnung_Übersetzung_gemessen,Aufzeichnung_Übersetzung_berechnet),2)) -> 1 | D28: Luftdruck | F28: Temperatur | H28: Luftfeuchte
B30: Getriebe | D30: =IF(#REF!,#REF!,IF(OR(#REF!,Aufzeichnung_Rechenbare_Punkte=0),#REF!,#REF!)) -> 
B31: freie Eingabe | D31: Übersetzung messen | F31: Auspuff | K31: Details
B32: Gang Z1 | D32: Zündungstype | F32: Kurbelwelle | H32: Name
B33: Z2 | D33: Zylinder | F33: Maße | H33: Kommentar
B34: Gang Z2 | D34: Vergaser | F34: Zeiten
B35: Z2 | D35: Zündung | F35: Ansaugsystem
B36: Reifenumfang | D36: Zündeinstellung | F36: Bedüsung
B37: Reifenschlupf | C37: 0 | D37: Schwungrad
B42: Prüfstand | F42: Messzyklus | H42: Gemessene Übersetzung | J42: {EGT Standard} | L42: {EGT Auflösung vertikal} | N42: Lambda Standard | P42: Lambda Auflösung | R42: CRC Daten | U42: drar | W42: LiveUmin Standard | Z42: LiveUmin Auflösung | AB42: LiveNM Aktiv | AD42: FALSE | AE42: Analog1 Standard | AG42: Analog1 Auflösung | AI42: Analog2 Standard | AK42: Analog2 Auflösung
A43: Rollenumfang | D43: Verluste Rolle nur Pnorm | F43: Zündung (nur bei Messverfahren) | H43: Berechnete Übersetzung | I43: =IF(Aufzeichnung_Übersetzung_Manuelle_Eingabe<>"",Aufzeichnung_Übersetzung_Manuelle_Eingabe,IF(ISERROR((Aufzeichnung_Primär_Z2/Aufzeichnung_Primär_Z1)*(Aufzeichnung_Getriebe_Z2/Aufzeichnung_Getriebe_Z1)*Aufzeichnung_Reifenübersetzung),1,(Aufzeichnung_Primär_Z2/Aufzeichnung_Primär_Z1)*(Aufzeichnung_Getriebe_Z2/Aufzeichnung_Getriebe_Z1)*Aufzeichnung_Reifenübersetzung)) -> 1 | J43: {EGT Korr} | N43: Lambda Korrektur | P43: AFR | Q43: 1 | R43: CRC Werte | W43: LiveUmin Korrektur | AB43: LiveNM Faktor | AE43: Analog1 Korrektur | AG43: Analog1 Faktor | AI43: Analog2 Korrektur | AK43: Analog2 Faktor
A44: Trägheitsmoment | D44: Verluste Rolle[NM] | E44: 0 | F44: Rechenbare Punke | H44: Reifen/Rollenübersetzung+ Schlupf | I44: =IF(ISERROR(Aufzeichnung_Rollenumfang/(Aufzeichnung_Reifen*(1+Aufzeichnung_Reifenschlupf))),1,Aufzeichnung_Rollenumfang/(Aufzeichnung_Reifen*(1+Aufzeichnung_Reifenschlupf))) -> 1 | J44: {EGT NM} | N44: Lambda NM | R44: CRC Daten lokal | W44: LiveUmin NM | AB44: Langzeitmessung | AD44: Falsch | AE44: Analog1 NM | AI44: Analog2 NM
B45: Impulse | D45: Verlust NM | E45: 0 | F45: Verluste [NM] | G45: 0 | H45: Prüfstandfaktor | J45: {EGT U/Min} | N45: Lambda U/Min | R45: CRC Werte lokal | W45: LiveUmin U/Min | AE45: Analog1 U/Min | AI45: Analog2 U/Min
A46: FahrzeugID | E46: DIN PS Faktor | F46: JA | G46: =IF(ISERROR((1013/(Aufzeichnung_Luftdruck-Aufzeichnung_Faktor_Feuchte))*((273+Aufzeichnung_Temperatur)/293)),1,(1013/(Aufzeichnung_Luftdruck-Aufzeichnung_Faktor_Feuchte))*((273+Aufzeichnung_Temperatur)/293)) -> 1 | H46: Aktueller NMFaktor | I46: =IF(1=1,drar(),Aufzeichnung_DINPS_Faktor&Aufzeichnung_DIN_PS_Faktor_Aktiv) -> 0 | J46: {EGT Anzahl} | N46: Lambda Anzahl | R46: Version | W46: LiveUmin Anzahl | AE46: Analog1 Anzahl | AI46: Analog2 Anzahl
B47: Detailstype | D47: Gesamtpunkte | F47: Feuchtekorrektur | G47: =(Aufzeichnung_Feuchte*(2.408*10^11*(300/(Aufzeichnung_Temperatur+273.15))^5 *EXP(-22.644*(300/(Aufzeichnung_Temperatur+273.15))))/100) -> 0
A49: lfd Nr. | B49: Impulse | C49: Drehzahl Rolle | H49: Drehzahl Reifen | I49: Drehzahl KW berechnet | J49: Drehzahl KW gemessen | L49: Drehzahl | M49: Winkelgeschwindigkeit | N49: Winkelbeschleunigung | O49: Drehmoment | Q49: Leistung | S49: Anzeige PS | T49: Anzeige NM | U49: Anzeige Drehzahl | V49: Anzeige kmh | W49: EGT | AE49: Lambda | AM49: Livedrehzahl | AV49: LiveNM | AX49: Zeit | AZ49: Analog1 | BH49: Analog2 | BP49: Allgemein Optionen
A50: lfdNr | B50: Werte | C50: Messwerte Berechnet | D50: Intervall | E50: U/min | F50: m/s | G50: km/h | H50: U/min | I50: U/min | J50: Werte | K50: U/min | L50: U/min | M50: rad/sec | N50: rad/sec² | O50: am Rad Trägheit | P50: mit Übersetzung | Q50: W | R50: PS | S50: PS | T50: NM | U50: Umin | W50: Messwerte EGT | X50: Werte aufb. | Y50: auf NM | Z50: Horizontal1 | AA50: Horizonal2 | AB50: Vertikal1 | AC50: Vertikal1 NM | AD50: Vertikal2 | AE50: Messwerte Lambda | AF50: Werte aufb. | AG50: auf NM | AH50: Horizontal1 | AI50: Horizonal2 | AJ50: Vertikal1 | AK50: Vertikal1 NM | AL50: Vertikal2 | AM50: LiveDrezahl mit Funkenaufteilung | AN50: Live Umin berechnet | AO50: Werte aufb | AP50: auf NM | AQ50: Horizontal1 | AR50: Horizontal2 | AS50: Vertikal1 | AT50: Vertikal1NM | AU50: Vertikal2 | AV50: Messwerte LiveNM | AW50: Messwerte_LiveNM_berechnet | AX50: sekunden | AY50: Anzeige | AZ50: Messwerte_Analog1 | BA50: Werte aufb. | BB50: auf NM | BC50: Horizontal1 | BD50: Horizonal2 | BE50: Vertikal1 | BF50: Vertikal1 NM | BG50: Vertikal2 | BH50: Messwerte_Analog2 | BI50: Werte aufb. | BJ50: auf NM | BK50: Horizontal1 | BL50: Horizonal2 | BM50: Vertikal1 | BN50: Vertikal1 NM | BO50: Vertikal2 | BP50: Drehzahl | BQ50: KMH
A51: 1 | E51: =C51*60*1000/Aufzeichnung_Impulse/D51 ->  | F51: =E51*Aufzeichnung_Rollenumfang/60/1000 ->  | G51: =F51*3.6 ->  | H51: =E51*Aufzeichnung_Reifenübersetzung ->  | I51: =Aufzeichnung_Übersetzung_berechnet*E51 ->  | K51: =Aufzeichnung_Übersetzung_gemessen*E51 ->  | L51: =IF(Aufzeichnung_Messen="JA",K51,I51) ->  | M51: =2*PI()*E51/60 ->  | N51: 0 | O51: =IF(Aufzeichnung_LiveNM_Aktiv,IF(OR(AW51<=0,N51=0),0,Aufzeichnung_NM_Faktor*N51+Aufzeichnung_Verluste+AW51),IF(N51>0,Aufzeichnung_NM_Faktor*N51+Aufzeichnung_Verluste,IF(N51<0,Aufzeichnung_NM_Faktor*N51+Aufzeichnung_Verluste_Rolle,0))) -> 0 | P51: =O51/Aufzeichnung_Übersetzung -> 0 | Q51: =IF(Aufzeichnung_Messen="JA",2*PI()*K51/60*P51,2*PI()*I51/60*P51) ->  | R51: =Q51*1.36/1000 ->  | S51: =AVERAGE(R50:R51) ->  | T51: =AVERAGE(P50:P51) -> 0 | U51: =AVERAGE(L50:L51) ->  | V51: =AVERAGE(G50:G51) ->  | X51: =W51*Aufzeichnung_EGT_Korrekturfaktor -> 0 | Y51: =Aufzeichnung_EGT_NM+(X51-Aufzeichnung_EGT_Standard)/Aufzeichnung_EGT_Auflösung_vertikal*($AC$52-$AC$51) ->  | Z51: =Aufzeichnung_EGT_NM -> 0 | AA51: 0 | AD51: =Aufzeichnung_EGT_Umin -> 0 | AF51: =AE51*Aufzeichnung_Lambda_Korrekturfaktor*Aufzeichnung_Als_AFR -> 0 | AG51: =Aufzeichnung_Lambda_NM+(AF51-Aufzeichnung_Lambda_Standard)/Aufzeichnung_Lambda_Auflösung_vertikal*($AK$52-$AK$51) ->  | AH51: =Aufzeichnung_Lambda_NM -> 0 | AI51: 0 | AL51: =Aufzeichnung_Lambda_Umin -> 0 | AO51: =IF(Aufzeichnung_LiveUmin_Auswahl_Vario="",IF(BP51<>"",AM51/BP51*100-100,0),AM51) -> 0 | AP51: =Aufzeichnung_LiveUmin_NM+(AO51-Aufzeichnung_LiveUmin_Standard)/Aufzeichnung_LiveUmin_Auflösung_vertikal*($AT$51-$AT$52) ->  | AQ51: =Aufzeichnung_LiveUmin_NM -> 0 | AR51: 0 | AU51: =Aufzeichnung_LiveUmin_Umin -> 0 | BB51: =Aufzeichnung_Analog1_NM+(BA51-Aufzeichnung_Analog1_Standard)/Aufzeichnung_Analog1_Auflösung_vertikal*($BF$52-$BF$51) ->  | BC51: =Aufzeichnung_Analog1_NM -> 0 | BD51: 0 | BG51: =Aufzeichnung_Analog1_Umin -> 0 | BJ51: =Aufzeichnung_Analog2_NM+(BI51-Aufzeichnung_Analog2_Standard)/Aufzeichnung_Analog2_Auflösung_vertikal*($BN$52-$BN$51) ->  | BK51: =Aufzeichnung_Analog2_NM -> 0 | BL51: 0 | BO51: =Aufzeichnung_Analog2_Umin -> 0 | BQ51: =B51/Aufzeichnung_Impulse/Aufzeichnung_Messzyklus*Aufzeichnung_Rollenumfang*3.6 -> 
A52: 2 | F52: =E52*Aufzeichnung_Rollenumfang/60/1000 ->  | G52: =F52*3.6 ->  | M52: =2*PI()*E52/60 ->  | N52: =IF(D52<>1,(M52-M51)/(D52/1000)*SQRT((D52/D51)),0) ->  | R52: =Q52*1.36/1000 ->  | S52: =AVERAGE(R51:R52) ->  | T52: =AVERAGE(P51:P52) ->  | U52: =AVERAGE(L51:L52) ->  | V52: =AVERAGE(G51:G52) ->  | X52: 0 | Y52: =Aufzeichnung_EGT_NM+(X52-Aufzeichnung_EGT_Standard)/Aufzeichnung_EGT_Auflösung_vertikal*($AC$52-$AC$51) ->  | Z52: =Aufzeichnung_EGT_NM -> 0 | AA52: 30000 | AD52: 0 | AF52: 0 | AH52: =Aufzeichnung_Lambda_NM -> 0 | AI52: 30000 | AL52: 0 | AO52: 0 | AQ52: =Aufzeichnung_LiveUmin_NM -> 0 | AR52: 30000 | AU52: 0 | BC52: =Aufzeichnung_Analog1_NM -> 0 | BD52: 300 | BG52: 0 | BJ52: =Aufzeichnung_Analog2_NM+(BI52-Aufzeichnung_Analog2_Standard)/Aufzeichnung_Analog2_Auflösung_vertikal*($BN$52-$BN$51) ->  | BK52: =Aufzeichnung_Analog2_NM -> 0 | BL52: 300 | BO52: 0
A53: 3 | F53: =E53*Aufzeichnung_Rollenumfang/60/1000 ->  | H53: =E53*Aufzeichnung_Reifenübersetzung ->  | I53: =Aufzeichnung_Übersetzung_berechnet*E53 ->  | K53: =Aufzeichnung_Übersetzung_gemessen*E53 ->  | L53: =IF(Aufzeichnung_Messen="JA",K53,I53) ->  | U53: =AVERAGE(L52:L53) ->  | X53: 0 | AD53: 0 | AF53: 0 | AL53: 0 | AO53: 0 | AU53: 0 | BG53: 0 | BO53: 0
A54: 4 | X54: 0 | AD54: 0 | AF54: 0 | AL54: 0 | AO54: 0 | AU54: 0 | BG54: 0 | BO54: 0
A55: 5 | X55: 0 | AD55: 0 | AF55: 0 | AL55: 0 | AO55: 0 | AU55: 0 | BG55: 0 | BO55: 0
A56: 6 | X56: 0 | AD56: 0 | AF56: 0 | AL56: 0 | AO56: 0 | AU56: 0 | BG56: 0 | BO56: 0
A57: 7 | X57: 0 | AD57: 0 | AF57: 0 | AL57: 0 | AO57: 0 | AU57: 0 | BG57: 0 | BO57: 0
A58: 8 | X58: 0 | AD58: 0 | AF58: 0 | AL58: 0 | AO58: 0 | AU58: 0 | BG58: 0 | BO58: 0
A59: 9 | Q59: =IF(Aufzeichnung_Messen="JA",2*PI()*K59/60*P59,2*PI()*I59/60*P59) ->  | X59: 0 | AD59: 0 | AF59: 0 | AL59: 0 | AO59: 0 | AU59: 0 | BG59: 0 | BO59: 0
A60: 10 | X60: 0 | AD60: 0 | AF60: 0 | AL60: 0 | AO60: 0 | AU60: 0 | BG60: 0 | BO60: 0
A61: 11 | X61: 0 | AD61: 0 | AF61: 0 | AL61: 0 | AO61: 0 | AU61: 0 | BG61: 0 | BO61: 0
A62: 12 | X62: 0 | AD62: 0 | AF62: 0 | AL62: 0 | AO62: 0 | AU62: 0 | BG62: 0 | BO62: 0
A63: 13 | X63: 0 | AD63: 0 | AF63: 0 | AL63: 0 | AO63: 0 | AU63: 0 | BG63: 0 | BO63: 0
A64: 14 | X64: 0 | AF64: 0 | AO64: 0
A65: 15 | X65: 0 | AF65: 0 | AO65: 0
A66: 16 | X66: 0 | AF66: 0 | AO66: 0
A67: 17 | X67: 0 | AF67: 0 | AO67: 0
A68: 18 | X68: 0 | AF68: 0 | AO68: 0
A69: 19 | X69: 0 | AF69: 0 | AO69: 0
A70: 20 | X70: 0 | AF70: 0 | AO70: 0
A71: 21 | X71: 0 | AF71: 0 | AO71: 0
A72: 22 | N72: =IF(D72<>1,(M72-M71)/(D72/1000)*SQRT((D72/D71)),0) ->  | X72: 0 | AF72: 0 | AO72: 0
A73: 23 | X73: 0 | AF73: 0 | AO73: 0
A74: 24 | X74: 0 | AF74: 0 | AO74: 0
A75: 25 | X75: 0 | AF75: 0 | AO75: 0
A76: 26 | X76: 0 | AF76: 0 | AO76: 0
A77: 27 | X77: 0 | AF77: 0 | AO77: 0
A78: 28 | X78: 0 | AF78: 0 | AO78: 0
A79: 29 | X79: 0 | AF79: 0 | AO79: 0
A80: 30 | X80: 0 | AF80: 0 | AO80: 0
A81: 31 | X81: 0 | AF81: 0 | AO81: 0
A82: 32 | F82: =E82*Aufzeichnung_Rollenumfang/60/1000 ->  | X82: 0 | AF82: 0 | AO82: 0
A83: 33 | F83: =E83*Aufzeichnung_Rollenumfang/60/1000 ->  | X83: 0 | AF83: 0 | AO83: 0
A84: 34 | X84: 0 | AF84: 0 | AO84: 0
A85: 35 | X85: 0 | AF85: 0 | AO85: 0
A86: 36 | X86: 0 | AF86: 0 | AO86: 0
A87: 37 | X87: 0 | AF87: 0 | AO87: 0
A88: 38 | X88: 0 | AF88: 0 | AO88: 0
A89: 39 | X89: 0 | AF89: 0 | AO89: 0
A90: 40 | X90: 0 | AF90: 0 | AO90: 0
A91: 41 | X91: 0 | AF91: 0 | AO91: 0
A92: 42 | X92: 0 | AF92: 0 | AO92: 0
A93: 43 | X93: 0 | AF93: 0 | AO93: 0
A94: 44 | X94: 0 | AF94: 0 | AO94: 0
A95: 45 | X95: 0 | AF95: 0 | AO95: 0
A96: 46 | X96: 0 | AF96: 0 | AO96: 0
A97: 47 | X97: 0 | AF97: 0 | AO97: 0
A98: 48 | X98: 0 | AF98: 0 | AO98: 0
A99: 49 | X99: 0 | AF99: 0 | AO99: 0
A100: 50 | X100: 0 | AF100: 0 | AO100: 0
A101: 51 | X101: 0 | AF101: 0 | AO101: 0
A102: 52 | X102: 0 | AF102: 0 | AO102: 0
A103: 53 | X103: 0 | AF103: 0 | AO103: 0
A104: 54 | X104: 0 | AF104: 0 | AO104: 0
A105: 55 | X105: 0 | AF105: 0 | AO105: 0
A106: 56 | X106: 0 | AF106: 0 | AO106: 0
A107: 57 | X107: 0 | AF107: 0 | AO107: 0
A108: 58 | X108: 0 | AF108: 0 | AO108: 0
A109: 59 | X109: 0 | AF109: 0 | AO109: 0
A110: 60 | X110: 0 | AF110: 0 | AO110: 0
A111: 61 | X111: 0 | AF111: 0 | AO111: 0
A112: 62 | X112: 0 | AF112: 0 | AO112: 0
A113: 63 | X113: 0 | AF113: 0 | AO113: 0
A114: 64 | X114: 0 | AF114: 0 | AO114: 0
A115: 65 | E115: =C115*60*1000/Aufzeichnung_Impulse/D115 ->  | F115: =E115*Aufzeichnung_Rollenumfang/60/1000 ->  | H115: =E115*Aufzeichnung_Reifenübersetzung ->  | I115: =Aufzeichnung_Übersetzung_berechnet*E115 ->  | K115: =Aufzeichnung_Übersetzung_gemessen*E115 ->  | L115: =IF(Aufzeichnung_Messen="JA",K115,I115) ->  | O115: =IF(Aufzeichnung_LiveNM_Aktiv,IF(OR(AW115<=0,N115=0),0,Aufzeichnung_NM_Faktor*N115+Aufzeichnung_Verluste+AW115),IF(N115>0,Aufzeichnung_NM_Faktor*N115+Aufzeichnung_Verluste,IF(N115<0,Aufzeichnung_NM_Faktor*N115+Aufzeichnung_Verluste_Rolle,0))) ->  | P115: =O115/Aufzeichnung_Übersetzung ->  | Q115: =IF(Aufzeichnung_Messen="JA",2*PI()*K115/60*P115,2*PI()*I115/60*P115) ->  | X115: =W115*Aufzeichnung_EGT_Korrekturfaktor -> 0 | Y115: =Aufzeichnung_EGT_NM+(X115-Aufzeichnung_EGT_Standard)/Aufzeichnung_EGT_Auflösung_vertikal*($AC$52-$AC$51) ->  | AF115: =AE115*Aufzeichnung_Lambda_Korrekturfaktor*Aufzeichnung_Als_AFR -> 0 | AG115: =Aufzeichnung_Lambda_NM+(AF115-Aufzeichnung_Lambda_Standard)/Aufzeichnung_Lambda_Auflösung_vertikal*($AK$52-$AK$51) ->  | AO115: =IF(Aufzeichnung_LiveUmin_Auswahl_Vario="",IF(BP115<>"",AM115/BP115*100-100,0),AM115) -> 0 | AP115: =Aufzeichnung_LiveUmin_NM+(AO115-Aufzeichnung_LiveUmin_Standard)/Aufzeichnung_LiveUmin_Auflösung_vertikal*($AT$51-$AT$52) ->  | BB115: =Aufzeichnung_Analog1_NM+(BA115-Aufzeichnung_Analog1_Standard)/Aufzeichnung_Analog1_Auflösung_vertikal*($BF$52-$BF$51) ->  | BJ115: =Aufzeichnung_Analog2_NM+(BI115-Aufzeichnung_Analog2_Standard)/Aufzeichnung_Analog2_Auflösung_vertikal*($BN$52-$BN$51) ->  | BQ115: =B115/Aufzeichnung_Impulse/Aufzeichnung_Messzyklus*Aufzeichnung_Rollenumfang*3.6 -> 
A116: 66 | G116: =F116*3.6 ->  | M116: =2*PI()*E116/60 ->  | N116: =IF(D116<>1,(M116-M115)/(D116/1000)*SQRT((D116/D115)),0) ->  | R116: =Q116*1.36/1000 ->  | S116: =AVERAGE(R115:R116) ->  | T116: =AVERAGE(P115:P116) ->  | V116: =AVERAGE(G115:G116) ->  | X116: 0 | AF116: 0 | AO116: 0
A117: 67 | U117: =AVERAGE(L116:L117) ->  | X117: 0 | AF117: 0 | AO117: 0
A118: 68 | X118: 0 | AF118: 0 | AO118: 0
A119: 69 | X119: 0 | AF119: 0 | AO119: 0
A120: 70 | X120: 0 | AF120: 0 | AO120: 0
A121: 71 | X121: 0 | AF121: 0 | AO121: 0
A122: 72 | X122: 0 | AF122: 0 | AO122: 0
A123: 73 | X123: 0 | AF123: 0 | AO123: 0
A124: 74 | X124: 0 | AF124: 0 | AO124: 0
A125: 75 | X125: 0 | AF125: 0 | AO125: 0
A126: 76 | X126: 0 | AF126: 0 | AO126: 0
A127: 77 | X127: 0 | AF127: 0 | AO127: 0
A128: 78 | X128: 0 | AF128: 0 | AO128: 0
A129: 79 | X129: 0 | AF129: 0 | AO129: 0
A130: 80 | X130: 0 | AF130: 0 | AO130: 0
A131: 81 | X131: 0 | AF131: 0 | AO131: 0
A132: 82 | X132: 0 | AF132: 0 | AO132: 0
A133: 83 | X133: 0 | AF133: 0 | AO133: 0
A134: 84 | X134: 0 | AF134: 0 | AO134: 0
A135: 85 | X135: 0 | AF135: 0 | AO135: 0
A136: 86 | X136: 0 | AF136: 0 | AO136: 0
A137: 87 | X137: 0 | AF137: 0 | AO137: 0
A138: 88 | X138: 0 | AF138: 0 | AO138: 0
A139: 89 | X139: 0 | AF139: 0 | AO139: 0
A140: 90 | F140: =E140*Aufzeichnung_Rollenumfang/60/1000 ->  | X140: 0 | AF140: 0 | AO140: 0
A141: 91 | X141: 0 | AF141: 0 | AO141: 0
A142: 92 | X142: 0 | AF142: 0 | AO142: 0
A143: 93 | X143: 0 | AF143: 0 | AO143: 0
A144: 94 | X144: 0 | AF144: 0 | AO144: 0
A145: 95 | X145: 0 | AF145: 0 | AO145: 0
A146: 96 | X146: 0 | AF146: 0 | AO146: 0
A147: 97 | X147: 0 | AF147: 0 | AO147: 0
A148: 98 | X148: 0 | AF148: 0 | AO148: 0
A149: 99 | X149: 0 | AF149: 0 | AO149: 0
A150: 100 | X150: 0 | AF150: 0 | AO150: 0
A151: 101 | X151: 0 | AF151: 0 | AO151: 0
A152: 102 | X152: 0 | AF152: 0 | AO152: 0
A153: 103 | X153: 0 | AF153: 0 | AO153: 0
A154: 104 | X154: 0 | AF154: 0 | AO154: 0
A155: 105 | X155: 0 | AF155: 0 | AO155: 0
A156: 106 | X156: 0 | AF156: 0 | AO156: 0
A157: 107 | X157: 0 | AF157: 0 | AO157: 0
A158: 108 | X158: 0 | AF158: 0 | AO158: 0
A159: 109 | X159: 0 | AF159: 0 | AO159: 0
A160: 110 | X160: 0 | AF160: 0 | AO160: 0
A161: 111 | X161: 0 | AF161: 0 | AO161: 0
A162: 112 | X162: 0 | AF162: 0 | AO162: 0
A163: 113 | X163: 0 | AF163: 0 | AO163: 0
A164: 114 | X164: 0 | AF164: 0 | AO164: 0
A165: 115 | X165: 0 | AF165: 0 | AO165: 0
A166: 116 | X166: 0 | AF166: 0 | AO166: 0
A167: 117 | X167: 0 | AF167: 0 | AO167: 0
A168: 118 | F168: =E168*Aufzeichnung_Rollenumfang/60/1000 ->  | X168: 0 | AF168: 0 | AO168: 0
A169: 119 | X169: 0 | AF169: 0 | AO169: 0
A170: 120 | X170: 0 | AF170: 0 | AO170: 0
A171: 121 | X171: 0 | AF171: 0 | AO171: 0
A172: 122 | X172: 0 | AF172: 0 | AO172: 0
A173: 123 | X173: 0 | AF173: 0 | AO173: 0
A174: 124 | X174: 0 | AF174: 0 | AO174: 0
A175: 125 | X175: 0 | AF175: 0 | AO175: 0
A176: 126 | X176: 0 | AF176: 0 | AO176: 0
A177: 127 | X177: 0 | AF177: 0 | AO177: 0
A178: 128 | X178: 0 | AF178: 0 | AO178: 0
A179: 129 | E179: =C179*60*1000/Aufzeichnung_Impulse/D179 ->  | H179: =E179*Aufzeichnung_Reifenübersetzung ->  | I179: =Aufzeichnung_Übersetzung_berechnet*E179 ->  | K179: =Aufzeichnung_Übersetzung_gemessen*E179 ->  | L179: =IF(Aufzeichnung_Messen="JA",K179,I179) ->  | O179: =IF(Aufzeichnung_LiveNM_Aktiv,IF(OR(AW179<=0,N179=0),0,Aufzeichnung_NM_Faktor*N179+Aufzeichnung_Verluste+AW179),IF(N179>0,Aufzeichnung_NM_Faktor*N179+Aufzeichnung_Verluste,IF(N179<0,Aufzeichnung_NM_Faktor*N179+Aufzeichnung_Verluste_Rolle,0))) ->  | P179: =O179/Aufzeichnung_Übersetzung ->  | Q179: =IF(Aufzeichnung_Messen="JA",2*PI()*K179/60*P179,2*PI()*I179/60*P179) ->  | X179: =W179*Aufzeichnung_EGT_Korrekturfaktor -> 0 | Y179: =Aufzeichnung_EGT_NM+(X179-Aufzeichnung_EGT_Standard)/Aufzeichnung_EGT_Auflösung_vertikal*($AC$52-$AC$51) ->  | AF179: =AE179*Aufzeichnung_Lambda_Korrekturfaktor*Aufzeichnung_Als_AFR -> 0 | AG179: =Aufzeichnung_Lambda_NM+(AF179-Aufzeichnung_Lambda_Standard)/Aufzeichnung_Lambda_Auflösung_vertikal*($AK$52-$AK$51) ->  | AO179: =IF(Aufzeichnung_LiveUmin_Auswahl_Vario="",IF(BP179<>"",AM179/BP179*100-100,0),AM179) -> 0 | AP179: =Aufzeichnung_LiveUmin_NM+(AO179-Aufzeichnung_LiveUmin_Standard)/Aufzeichnung_LiveUmin_Auflösung_vertikal*($AT$51-$AT$52) ->  | BB179: =Aufzeichnung_Analog1_NM+(BA179-Aufzeichnung_Analog1_Standard)/Aufzeichnung_Analog1_Auflösung_vertikal*($BF$52-$BF$51) ->  | BJ179: =Aufzeichnung_Analog2_NM+(BI179-Aufzeichnung_Analog2_Standard)/Aufzeichnung_Analog2_Auflösung_vertikal*($BN$52-$BN$51) ->  | BQ179: =B179/Aufzeichnung_Impulse/Aufzeichnung_Messzyklus*Aufzeichnung_Rollenumfang*3.6 -> 
A180: 130 | G180: =F180*3.6 ->  | M180: =2*PI()*E180/60 ->  | N180: =IF(D180<>1,(M180-M179)/(D180/1000)*SQRT((D180/D179)),0) ->  | R180: =Q180*1.36/1000 ->  | S180: =AVERAGE(R179:R180) ->  | T180: =AVERAGE(P179:P180) ->  | V180: =AVERAGE(G179:G180) ->  | X180: 0 | AF180: 0 | AO180: 0
A181: 131 | U181: =AVERAGE(L180:L181) ->  | X181: 0 | AF181: 0 | AO181: 0
A182: 132 | X182: 0 | AF182: 0 | AO182: 0
A183: 133 | X183: 0 | AF183: 0 | AO183: 0
A184: 134 | X184: 0 | AF184: 0 | AO184: 0
A185: 135 | X185: 0 | AF185: 0 | AO185: 0
A186: 136 | X186: 0 | AF186: 0 | AO186: 0
A187: 137 | X187: 0 | AF187: 0 | AO187: 0
A188: 138 | X188: 0 | AF188: 0 | AO188: 0
A189: 139 | X189: 0 | AF189: 0 | AO189: 0
A190: 140 | X190: 0 | AF190: 0 | AO190: 0
A191: 141 | X191: 0 | AF191: 0 | AO191: 0
A192: 142 | X192: 0 | AF192: 0 | AO192: 0
A193: 143 | X193: 0 | AF193: 0 | AO193: 0
A194: 144 | X194: 0 | AF194: 0 | AO194: 0
A195: 145 | X195: 0 | AF195: 0 | AO195: 0
A196: 146 | X196: 0 | AF196: 0 | AO196: 0
A197: 147 | X197: 0 | AF197: 0 | AO197: 0
A198: 148 | X198: 0 | AF198: 0 | AO198: 0
A199: 149 | X199: 0 | AF199: 0 | AO199: 0
A200: 150 | X200: 0 | AF200: 0 | AO200: 0
A201: 151 | X201: 0 | AF201: 0 | AO201: 0
A202: 152 | X202: 0 | AF202: 0 | AO202: 0
A203: 153 | X203: 0 | AF203: 0 | AO203: 0
A204: 154 | X204: 0 | AF204: 0 | AO204: 0
A205: 155 | X205: 0 | AF205: 0 | AO205: 0
A206: 156 | X206: 0 | AF206: 0 | AO206: 0
A207: 157 | X207: 0 | AF207: 0 | AO207: 0
A208: 158 | X208: 0 | AF208: 0 | AO208: 0
A209: 159 | X209: 0 | AF209: 0 | AO209: 0
A210: 160 | X210: 0 | AF210: 0 | AO210: 0
A211: 161 | X211: 0 | AF211: 0 | AO211: 0
A212: 162 | X212: 0 | AF212: 0 | AO212: 0
A213: 163 | X213: 0 | AF213: 0 | AO213: 0
A214: 164 | X214: 0 | AF214: 0 | AO214: 0
A215: 165 | X215: 0 | AF215: 0 | AO215: 0
A216: 166 | X216: 0 | AF216: 0 | AO216: 0
A217: 167 | X217: 0 | AF217: 0 | AO217: 0
A218: 168 | X218: 0 | AF218: 0 | AO218: 0
A219: 169 | X219: 0 | AF219: 0 | AO219: 0
A220: 170 | X220: 0 | AF220: 0 | AO220: 0
A221: 171 | X221: 0 | AF221: 0 | AO221: 0
A222: 172 | X222: 0 | AF222: 0 | AO222: 0
A223: 173 | X223: 0 | AF223: 0 | AO223: 0
A224: 174 | X224: 0 | AF224: 0 | AO224: 0
A225: 175 | X225: 0 | AF225: 0 | AO225: 0
A226: 176 | X226: 0 | AF226: 0 | AO226: 0
A227: 177 | X227: 0 | AF227: 0 | AO227: 0
A228: 178 | X228: 0 | AF228: 0 | AO228: 0
... 822 more rows

Sheet Aufzeichnung 6 (hidden)
B2: Nummer:
D8: TRUE
B25: Ergebnis
B26: Leistung | C26: =IF(ISERROR(MAX(R51:R1050)),0,MAX(R51:R1050)) -> 0 | D26: Drehmoment | E26: =IF(ISERROR(MAX(P51:P1050)),0,MAX(P51:P1050)) -> 0 | F26: maxDrehzahl | G26: =IF(ISERROR(MAX(L51:L1050)),0,MAX(L51:L1050)) -> 0 | H26: max x-Achse | J26: Software: v5.191227
B27: Drehzahl | C27: =IF(ISERROR(INDEX(L51:L1050,MATCH(C26,R51:R1050,0))),0,INDEX(L51:L1050,MATCH(C26,R51:R1050,0))) -> 0 | D27: Drehzahl | E27: =IF(ISERROR(INDEX(U51:U1050,MATCH(E26,P51:P1050,0))),0,INDEX(U51:U1050,MATCH(E26,P51:P1050,0))) -> 0 | F27: Vmax | G27: =IF(ISERROR(MAX(G51:G1050)),0,MAX(G51:G1050)) -> 0 | H27: min x-Achse
B28: Übersetzung | C28: =IF(ISERROR(ROUND(IF(Aufzeichnung_Messen="JA",Aufzeichnung_Übersetzung_gemessen,Aufzeichnung_Übersetzung_berechnet),2)),1,ROUND(IF(Aufzeichnung_Messen="JA",Aufzeichnung_Übersetzung_gemessen,Aufzeichnung_Übersetzung_berechnet),2)) -> 1 | D28: Luftdruck | F28: Temperatur | H28: Luftfeuchte
B30: Getriebe | D30: =IF(#REF!,#REF!,IF(OR(#REF!,Aufzeichnung_Rechenbare_Punkte=0),#REF!,#REF!)) -> 
B31: freie Eingabe | D31: Übersetzung messen | F31: Auspuff | K31: Details
B32: Gang Z1 | D32: Zündungstype | F32: Kurbelwelle | H32: Name
B33: Z2 | D33: Zylinder | F33: Maße | H33: Kommentar
B34: Gang Z2 | D34: Vergaser | F34: Zeiten
B35: Z2 | D35: Zündung | F35: Ansaugsystem
B36: Reifenumfang | D36: Zündeinstellung | F36: Bedüsung
B37: Reifenschlupf | C37: 0 | D37: Schwungrad
B42: Prüfstand | F42: Messzyklus | H42: Gemessene Übersetzung | J42: {EGT Standard} | L42: {EGT Auflösung vertikal} | N42: Lambda Standard | P42: Lambda Auflösung | R42: CRC Daten | U42: drar | W42: LiveUmin Standard | Z42: LiveUmin Auflösung | AB42: LiveNM Aktiv | AD42: FALSE | AE42: Analog1 Standard | AG42: Analog1 Auflösung | AI42: Analog2 Standard | AK42: Analog2 Auflösung
A43: Rollenumfang | D43: Verluste Rolle nur Pnorm | F43: Zündung (nur bei Messverfahren) | H43: Berechnete Übersetzung | I43: =IF(Aufzeichnung_Übersetzung_Manuelle_Eingabe<>"",Aufzeichnung_Übersetzung_Manuelle_Eingabe,IF(ISERROR((Aufzeichnung_Primär_Z2/Aufzeichnung_Primär_Z1)*(Aufzeichnung_Getriebe_Z2/Aufzeichnung_Getriebe_Z1)*Aufzeichnung_Reifenübersetzung),1,(Aufzeichnung_Primär_Z2/Aufzeichnung_Primär_Z1)*(Aufzeichnung_Getriebe_Z2/Aufzeichnung_Getriebe_Z1)*Aufzeichnung_Reifenübersetzung)) -> 1 | J43: {EGT Korr} | N43: Lambda Korrektur | P43: AFR | Q43: 1 | R43: CRC Werte | W43: LiveUmin Korrektur | AB43: LiveNM Faktor | AE43: Analog1 Korrektur | AG43: Analog1 Faktor | AI43: Analog2 Korrektur | AK43: Analog2 Faktor
A44: Trägheitsmoment | D44: Verluste Rolle[NM] | E44: 0 | F44: Rechenbare Punke | H44: Reifen/Rollenübersetzung+ Schlupf | I44: =IF(ISERROR(Aufzeichnung_Rollenumfang/(Aufzeichnung_Reifen*(1+Aufzeichnung_Reifenschlupf))),1,Aufzeichnung_Rollenumfang/(Aufzeichnung_Reifen*(1+Aufzeichnung_Reifenschlupf))) -> 1 | J44: {EGT NM} | N44: Lambda NM | R44: CRC Daten lokal | W44: LiveUmin NM | AB44: Langzeitmessung | AD44: Falsch | AE44: Analog1 NM | AI44: Analog2 NM
B45: Impulse | D45: Verlust NM | E45: 0 | F45: Verluste [NM] | G45: 0 | H45: Prüfstandfaktor | J45: {EGT U/Min} | N45: Lambda U/Min | R45: CRC Werte lokal | W45: LiveUmin U/Min | AE45: Analog1 U/Min | AI45: Analog2 U/Min
A46: FahrzeugID | E46: DIN PS Faktor | F46: JA | G46: =IF(ISERROR((1013/(Aufzeichnung_Luftdruck-Aufzeichnung_Faktor_Feuchte))*((273+Aufzeichnung_Temperatur)/293)),1,(1013/(Aufzeichnung_Luftdruck-Aufzeichnung_Faktor_Feuchte))*((273+Aufzeichnung_Temperatur)/293)) -> 1 | H46: Aktueller NMFaktor | I46: =IF(1=1,drar(),Aufzeichnung_DINPS_Faktor&Aufzeichnung_DIN_PS_Faktor_Aktiv) -> 0 | J46: {EGT Anzahl} | N46: Lambda Anzahl | R46: Version | W46: LiveUmin Anzahl | AE46: Analog1 Anzahl | AI46: Analog2 Anzahl
B47: Detailstype | D47: Gesamtpunkte | F47: Feuchtekorrektur | G47: =(Aufzeichnung_Feuchte*(2.408*10^11*(300/(Aufzeichnung_Temperatur+273.15))^5 *EXP(-22.644*(300/(Aufzeichnung_Temperatur+273.15))))/100) -> 0
A49: lfd Nr. | B49: Impulse | C49: Drehzahl Rolle | H49: Drehzahl Reifen | I49: Drehzahl KW berechnet | J49: Drehzahl KW gemessen | L49: Drehzahl | M49: Winkelgeschwindigkeit | N49: Winkelbeschleunigung | O49: Drehmoment | Q49: Leistung | S49: Anzeige PS | T49: Anzeige NM | U49: Anzeige Drehzahl | V49: Anzeige kmh | W49: EGT | AE49: Lambda | AM49: Livedrehzahl | AV49: LiveNM | AX49: Zeit | AZ49: Analog1 | BH49: Analog2 | BP49: Allgemein Optionen
A50: lfdNr | B50: Werte | C50: Messwerte Berechnet | D50: Zyklus berechnet | E50: U/min | F50: m/s | G50: km/h | H50: U/min | I50: U/min | J50: Werte | K50: U/min | L50: U/min | M50: rad/sec | N50: rad/sec² | O50: am Rad Trägheit | P50: mit Übersetzung | Q50: W | R50: PS | S50: PS | T50: NM | U50: Umin | W50: Messwerte EGT | X50: Werte aufb. | Y50: auf NM | Z50: Horizontal1 | AA50: Horizonal2 | AB50: Vertikal1 | AC50: Vertikal1 NM | AD50: Vertikal2 | AE50: Messwerte Lambda | AF50: Werte aufb. | AG50: auf NM | AH50: Horizontal1 | AI50: Horizonal2 | AJ50: Vertikal1 | AK50: Vertikal1 NM | AL50: Vertikal2 | AM50: LiveDrezahl mit Funkenaufteilung | AN50: Live Umin berechnet | AO50: Werte aufb | AP50: auf NM | AQ50: Horizontal1 | AR50: Horizontal2 | AS50: Vertikal1 | AT50: Vertikal1NM | AU50: Vertikal2 | AV50: Messwerte LiveNM | AW50: Messwerte_LiveNM_berechnet | AX50: sekunden | AY50: Anzeige | AZ50: Messwerte_Analog1 | BA50: Werte aufb. | BB50: auf NM | BC50: Horizontal1 | BD50: Horizonal2 | BE50: Vertikal1 | BF50: Vertikal1 NM | BG50: Vertikal2 | BH50: Messwerte_Analog2 | BI50: Werte aufb. | BJ50: auf NM | BK50: Horizontal1 | BL50: Horizonal2 | BM50: Vertikal1 | BN50: Vertikal1 NM | BO50: Vertikal2 | BP50: Drehzahl | BQ50: KMH
A51: 1 | E51: =C51*60*1000/Aufzeichnung_Impulse/D51 ->  | F51: =E51*Aufzeichnung_Rollenumfang/60/1000 ->  | G51: =F51*3.6 ->  | H51: =E51*Aufzeichnung_Reifenübersetzung ->  | I51: =Aufzeichnung_Übersetzung_berechnet*E51 ->  | K51: =Aufzeichnung_Übersetzung_gemessen*E51 ->  | L51: =IF(Aufzeichnung_Messen="JA",K51,I51) ->  | M51: =2*PI()*E51/60 ->  | N51: 0 | O51: =IF(Aufzeichnung_LiveNM_Aktiv,IF(OR(AW51<=0,N51=0),0,Aufzeichnung_NM_Faktor*N51+Aufzeichnung_Verluste+AW51),IF(N51>0,Aufzeichnung_NM_Faktor*N51+Aufzeichnung_Verluste,IF(N51<0,Aufzeichnung_NM_Faktor*N51+Aufzeichnung_Verluste_Rolle,0))) -> 0 | P51: =O51/Aufzeichnung_Übersetzung -> 0 | Q51: =IF(Aufzeichnung_Messen="JA",2*PI()*K51/60*P51,2*PI()*I51/60*P51) ->  | R51: =Q51*1.36/1000 ->  | S51: =AVERAGE(R50:R51) ->  | T51: =AVERAGE(P50:P51) -> 0 | U51: =AVERAGE(L50:L51) ->  | V51: =AVERAGE(G50:G51) ->  | X51: =W51*Aufzeichnung_EGT_Korrekturfaktor -> 0 | Y51: =Aufzeichnung_EGT_NM+(X51-Aufzeichnung_EGT_Standard)/Aufzeichnung_EGT_Auflösung_vertikal*($AC$52-$AC$51) ->  | Z51: =Aufzeichnung_EGT_NM -> 0 | AA51: 0 | AD51: =Aufzeichnung_EGT_Umin -> 0 | AF51: =AE51*Aufzeichnung_Lambda_Korrekturfaktor*Aufzeichnung_Als_AFR -> 0 | AG51: =Aufzeichnung_Lambda_NM+(AF51-Aufzeichnung_Lambda_Standard)/Aufzeichnung_Lambda_Auflösung_vertikal*($AK$52-$AK$51) ->  | AH51: =Aufzeichnung_Lambda_NM -> 0 | AI51: 0 | AL51: =Aufzeichnung_Lambda_Umin -> 0 | AO51: =IF(Aufzeichnung_LiveUmin_Auswahl_Vario="",IF(BP51<>"",AM51/BP51*100-100,0),AM51) -> 0 | AP51: =Aufzeichnung_LiveUmin_NM+(AO51-Aufzeichnung_LiveUmin_Standard)/Aufzeichnung_LiveUmin_Auflösung_vertikal*($AT$51-$AT$52) ->  | AQ51: =Aufzeichnung_LiveUmin_NM -> 0 | AR51: 0 | AU51: =Aufzeichnung_LiveUmin_Umin -> 0 | BB51: =Aufzeichnung_Analog1_NM+(BA51-Aufzeichnung_Analog1_Standard)/Aufzeichnung_Analog1_Auflösung_vertikal*($BF$52-$BF$51) ->  | BC51: =Aufzeichnung_Analog1_NM -> 0 | BD51: 0 | BG51: =Aufzeichnung_Analog1_Umin -> 0 | BJ51: =Aufzeichnung_Analog2_NM+(BI51-Aufzeichnung_Analog2_Standard)/Aufzeichnung_Analog2_Auflösung_vertikal*($BN$52-$BN$51) ->  | BK51: =Aufzeichnung_Analog2_NM -> 0 | BL51: 0 | BO51: =Aufzeichnung_Analog2_Umin -> 0 | BQ51: =B51/Aufzeichnung_Impulse/Aufzeichnung_Messzyklus*Aufzeichnung_Rollenumfang*3.6 -> 
A52: 2 | F52: =E52*Aufzeichnung_Rollenumfang/60/1000 ->  | G52: =F52*3.6 ->  | M52: =2*PI()*E52/60 ->  | N52: =IF(D52<>1,(M52-M51)/(D52/1000)*SQRT((D52/D51)),0) ->  | R52: =Q52*1.36/1000 ->  | S52: =AVERAGE(R51:R52) ->  | T52: =AVERAGE(P51:P52) ->  | U52: =AVERAGE(L51:L52) ->  | V52: =AVERAGE(G51:G52) ->  | X52: 0 | Y52: =Aufzeichnung_EGT_NM+(X52-Aufzeichnung_EGT_Standard)/Aufzeichnung_EGT_Auflösung_vertikal*($AC$52-$AC$51) ->  | Z52: =Aufzeichnung_EGT_NM -> 0 | AA52: 30000 | AD52: 0 | AF52: 0 | AH52: =Aufzeichnung_Lambda_NM -> 0 | AI52: 30000 | AL52: 0 | AO52: 0 | AQ52: =Aufzeichnung_LiveUmin_NM -> 0 | AR52: 30000 | AU52: 0 | BC52: =Aufzeichnung_Analog1_NM -> 0 | BD52: 300 | BG52: 0 | BJ52: =Aufzeichnung_Analog2_NM+(BI52-Aufzeichnung_Analog2_Standard)/Aufzeichnung_Analog2_Auflösung_vertikal*($BN$52-$BN$51) ->  | BK52: =Aufzeichnung_Analog2_NM -> 0 | BL52: 300 | BO52: 0
A53: 3 | F53: =E53*Aufzeichnung_Rollenumfang/60/1000 ->  | H53: =E53*Aufzeichnung_Reifenübersetzung ->  | I53: =Aufzeichnung_Übersetzung_berechnet*E53 ->  | K53: =Aufzeichnung_Übersetzung_gemessen*E53 ->  | L53: =IF(Aufzeichnung_Messen="JA",K53,I53) ->  | U53: =AVERAGE(L52:L53) ->  | X53: 0 | AD53: 0 | AF53: 0 | AL53: 0 | AO53: 0 | AU53: 0 | BG53: 0 | BO53: 0
A54: 4 | X54: 0 | AD54: 0 | AF54: 0 | AL54: 0 | AO54: 0 | AU54: 0 | BG54: 0 | BO54: 0
A55: 5 | X55: 0 | AD55: 0 | AF55: 0 | AL55: 0 | AO55: 0 | AU55: 0 | BG55: 0 | BO55: 0
A56: 6 | X56: 0 | AD56: 0 | AF56: 0 | AL56: 0 | AO56: 0 | AU56: 0 | BG56: 0 | BO56: 0
A57: 7 | X57: 0 | AD57: 0 | AF57: 0 | AL57: 0 | AO57: 0 | AU57: 0 | BG57: 0 | BO57: 0
A58: 8 | X58: 0 | AD58: 0 | AF58: 0 | AL58: 0 | AO58: 0 | AU58: 0 | BG58: 0 | BO58: 0
A59: 9 | Q59: =IF(Aufzeichnung_Messen="JA",2*PI()*K59/60*P59,2*PI()*I59/60*P59) ->  | X59: 0 | AD59: 0 | AF59: 0 | AL59: 0 | AO59: 0 | AU59: 0 | BG59: 0 | BO59: 0
A60: 10 | X60: 0 | AD60: 0 | AF60: 0 | AL60: 0 | AO60: 0 | AU60: 0 | BG60: 0 | BO60: 0
A61: 11 | X61: 0 | AD61: 0 | AF61: 0 | AL61: 0 | AO61: 0 | AU61: 0 | BG61: 0 | BO61: 0
A62: 12 | X62: 0 | AD62: 0 | AF62: 0 | AL62: 0 | AO62: 0 | AU62: 0 | BG62: 0 | BO62: 0
A63: 13 | X63: 0 | AD63: 0 | AF63: 0 | AL63: 0 | AO63: 0 | AU63: 0 | BG63: 0 | BO63: 0
A64: 14 | X64: 0 | AF64: 0 | AO64: 0
A65: 15 | X65: 0 | AF65: 0 | AO65: 0
A66: 16 | X66: 0 | AF66: 0 | AO66: 0
A67: 17 | X67: 0 | AF67: 0 | AO67: 0
A68: 18 | X68: 0 | AF68: 0 | AO68: 0
A69: 19 | X69: 0 | AF69: 0 | AO69: 0
A70: 20 | X70: 0 | AF70: 0 | AO70: 0
A71: 21 | X71: 0 | AF71: 0 | AO71: 0
A72: 22 | N72: =IF(D72<>1,(M72-M71)/(D72/1000)*SQRT((D72/D71)),0) ->  | X72: 0 | AF72: 0 | AO72: 0
A73: 23 | X73: 0 | AF73: 0 | AO73: 0
A74: 24 | X74: 0 | AF74: 0 | AO74: 0
A75: 25 | X75: 0 | AF75: 0 | AO75: 0
A76: 26 | X76: 0 | AF76: 0 | AO76: 0
A77: 27 | X77: 0 | AF77: 0 | AO77: 0
A78: 28 | X78: 0 | AF78: 0 | AO78: 0
A79: 29 | X79: 0 | AF79: 0 | AO79: 0
A80: 30 | X80: 0 | AF80: 0 | AO80: 0
A81: 31 | X81: 0 | AF81: 0 | AO81: 0
A82: 32 | F82: =E82*Aufzeichnung_Rollenumfang/60/1000 ->  | X82: 0 | AF82: 0 | AO82: 0
A83: 33 | F83: =E83*Aufzeichnung_Rollenumfang/60/1000 ->  | X83: 0 | AF83: 0 | AO83: 0
A84: 34 | X84: 0 | AF84: 0 | AO84: 0
A85: 35 | X85: 0 | AF85: 0 | AO85: 0
A86: 36 | X86: 0 | AF86: 0 | AO86: 0
A87: 37 | X87: 0 | AF87: 0 | AO87: 0
A88: 38 | X88: 0 | AF88: 0 | AO88: 0
A89: 39 | X89: 0 | AF89: 0 | AO89: 0
A90: 40 | X90: 0 | AF90: 0 | AO90: 0
A91: 41 | X91: 0 | AF91: 0 | AO91: 0
A92: 42 | X92: 0 | AF92: 0 | AO92: 0
A93: 43 | X93: 0 | AF93: 0 | AO93: 0
A94: 44 | X94: 0 | AF94: 0 | AO94: 0
A95: 45 | X95: 0 | AF95: 0 | AO95: 0
A96: 46 | X96: 0 | AF96: 0 | AO96: 0
A97: 47 | X97: 0 | AF97: 0 | AO97: 0
A98: 48 | X98: 0 | AF98: 0 | AO98: 0
A99: 49 | X99: 0 | AF99: 0 | AO99: 0
A100: 50 | X100: 0 | AF100: 0 | AO100: 0
A101: 51 | X101: 0 | AF101: 0 | AO101: 0
A102: 52 | X102: 0 | AF102: 0 | AO102: 0
A103: 53 | X103: 0 | AF103: 0 | AO103: 0
A104: 54 | X104: 0 | AF104: 0 | AO104: 0
A105: 55 | X105: 0 | AF105: 0 | AO105: 0
A106: 56 | X106: 0 | AF106: 0 | AO106: 0
A107: 57 | X107: 0 | AF107: 0 | AO107: 0
A108: 58 | X108: 0 | AF108: 0 | AO108: 0
A109: 59 | X109: 0 | AF109: 0 | AO109: 0
A110: 60 | X110: 0 | AF110: 0 | AO110: 0
A111: 61 | X111: 0 | AF111: 0 | AO111: 0
A112: 62 | X112: 0 | AF112: 0 | AO112: 0
A113: 63 | X113: 0 | AF113: 0 | AO113: 0
A114: 64 | X114: 0 | AF114: 0 | AO114: 0
A115: 65 | E115: =C115*60*1000/Aufzeichnung_Impulse/D115 ->  | F115: =E115*Aufzeichnung_Rollenumfang/60/1000 ->  | H115: =E115*Aufzeichnung_Reifenübersetzung ->  | I115: =Aufzeichnung_Übersetzung_berechnet*E115 ->  | K115: =Aufzeichnung_Übersetzung_gemessen*E115 ->  | L115: =IF(Aufzeichnung_Messen="JA",K115,I115) ->  | O115: =IF(Aufzeichnung_LiveNM_Aktiv,IF(OR(AW115<=0,N115=0),0,Aufzeichnung_NM_Faktor*N115+Aufzeichnung_Verluste+AW115),IF(N115>0,Aufzeichnung_NM_Faktor*N115+Aufzeichnung_Verluste,IF(N115<0,Aufzeichnung_NM_Faktor*N115+Aufzeichnung_Verluste_Rolle,0))) ->  | P115: =O115/Aufzeichnung_Übersetzung ->  | Q115: =IF(Aufzeichnung_Messen="JA",2*PI()*K115/60*P115,2*PI()*I115/60*P115) ->  | X115: =W115*Aufzeichnung_EGT_Korrekturfaktor -> 0 | Y115: =Aufzeichnung_EGT_NM+(X115-Aufzeichnung_EGT_Standard)/Aufzeichnung_EGT_Auflösung_vertikal*($AC$52-$AC$51) ->  | AF115: =AE115*Aufzeichnung_Lambda_Korrekturfaktor*Aufzeichnung_Als_AFR -> 0 | AG115: =Aufzeichnung_Lambda_NM+(AF115-Aufzeichnung_Lambda_Standard)/Aufzeichnung_Lambda_Auflösung_vertikal*($AK$52-$AK$51) ->  | AO115: =IF(Aufzeichnung_LiveUmin_Auswahl_Vario="",IF(BP115<>"",AM115/BP115*100-100,0),AM115) -> 0 | AP115: =Aufzeichnung_LiveUmin_NM+(AO115-Aufzeichnung_LiveUmin_Standard)/Aufzeichnung_LiveUmin_Auflösung_vertikal*($AT$51-$AT$52) ->  | BB115: =Aufzeichnung_Analog1_NM+(BA115-Aufzeichnung_Analog1_Standard)/Aufzeichnung_Analog1_Auflösung_vertikal*($BF$52-$BF$51) ->  | BJ115: =Aufzeichnung_Analog2_NM+(BI115-Aufzeichnung_Analog2_Standard)/Aufzeichnung_Analog2_Auflösung_vertikal*($BN$52-$BN$51) ->  | BQ115: =B115/Aufzeichnung_Impulse/Aufzeichnung_Messzyklus*Aufzeichnung_Rollenumfang*3.6 -> 
A116: 66 | G116: =F116*3.6 ->  | M116: =2*PI()*E116/60 ->  | N116: =IF(D116<>1,(M116-M115)/(D116/1000)*SQRT((D116/D115)),0) ->  | R116: =Q116*1.36/1000 ->  | S116: =AVERAGE(R115:R116) ->  | T116: =AVERAGE(P115:P116) ->  | V116: =AVERAGE(G115:G116) ->  | X116: 0 | AF116: 0 | AO116: 0
A117: 67 | U117: =AVERAGE(L116:L117) ->  | X117: 0 | AF117: 0 | AO117: 0
A118: 68 | X118: 0 | AF118: 0 | AO118: 0
A119: 69 | X119: 0 | AF119: 0 | AO119: 0
A120: 70 | X120: 0 | AF120: 0 | AO120: 0
A121: 71 | X121: 0 | AF121: 0 | AO121: 0
A122: 72 | X122: 0 | AF122: 0 | AO122: 0
A123: 73 | X123: 0 | AF123: 0 | AO123: 0
A124: 74 | X124: 0 | AF124: 0 | AO124: 0
A125: 75 | X125: 0 | AF125: 0 | AO125: 0
A126: 76 | X126: 0 | AF126: 0 | AO126: 0
A127: 77 | X127: 0 | AF127: 0 | AO127: 0
A128: 78 | X128: 0 | AF128: 0 | AO128: 0
A129: 79 | X129: 0 | AF129: 0 | AO129: 0
A130: 80 | X130: 0 | AF130: 0 | AO130: 0
A131: 81 | X131: 0 | AF131: 0 | AO131: 0
A132: 82 | X132: 0 | AF132: 0 | AO132: 0
A133: 83 | X133: 0 | AF133: 0 | AO133: 0
A134: 84 | X134: 0 | AF134: 0 | AO134: 0
A135: 85 | X135: 0 | AF135: 0 | AO135: 0
A136: 86 | X136: 0 | AF136: 0 | AO136: 0
A137: 87 | X137: 0 | AF137: 0 | AO137: 0
A138: 88 | X138: 0 | AF138: 0 | AO138: 0
A139: 89 | X139: 0 | AF139: 0 | AO139: 0
A140: 90 | F140: =E140*Aufzeichnung_Rollenumfang/60/1000 ->  | X140: 0 | AF140: 0 | AO140: 0
A141: 91 | X141: 0 | AF141: 0 | AO141: 0
A142: 92 | X142: 0 | AF142: 0 | AO142: 0
A143: 93 | X143: 0 | AF143: 0 | AO143: 0
A144: 94 | X144: 0 | AF144: 0 | AO144: 0
A145: 95 | X145: 0 | AF145: 0 | AO145: 0
A146: 96 | X146: 0 | AF146: 0 | AO146: 0
A147: 97 | X147: 0 | AF147: 0 | AO147: 0
A148: 98 | X148: 0 | AF148: 0 | AO148: 0
A149: 99 | X149: 0 | AF149: 0 | AO149: 0
A150: 100 | X150: 0 | AF150: 0 | AO150: 0
A151: 101 | X151: 0 | AF151: 0 | AO151: 0
A152: 102 | X152: 0 | AF152: 0 | AO152: 0
A153: 103 | X153: 0 | AF153: 0 | AO153: 0
A154: 104 | X154: 0 | AF154: 0 | AO154: 0
A155: 105 | X155: 0 | AF155: 0 | AO155: 0
A156: 106 | X156: 0 | AF156: 0 | AO156: 0
A157: 107 | X157: 0 | AF157: 0 | AO157: 0
A158: 108 | X158: 0 | AF158: 0 | AO158: 0
A159: 109 | X159: 0 | AF159: 0 | AO159: 0
A160: 110 | X160: 0 | AF160: 0 | AO160: 0
A161: 111 | X161: 0 | AF161: 0 | AO161: 0
A162: 112 | X162: 0 | AF162: 0 | AO162: 0
A163: 113 | X163: 0 | AF163: 0 | AO163: 0
A164: 114 | X164: 0 | AF164: 0 | AO164: 0
A165: 115 | X165: 0 | AF165: 0 | AO165: 0
A166: 116 | X166: 0 | AF166: 0 | AO166: 0
A167: 117 | X167: 0 | AF167: 0 | AO167: 0
A168: 118 | F168: =E168*Aufzeichnung_Rollenumfang/60/1000 ->  | X168: 0 | AF168: 0 | AO168: 0
A169: 119 | X169: 0 | AF169: 0 | AO169: 0
A170: 120 | X170: 0 | AF170: 0 | AO170: 0
A171: 121 | X171: 0 | AF171: 0 | AO171: 0
A172: 122 | X172: 0 | AF172: 0 | AO172: 0
A173: 123 | X173: 0 | AF173: 0 | AO173: 0
A174: 124 | X174: 0 | AF174: 0 | AO174: 0
A175: 125 | X175: 0 | AF175: 0 | AO175: 0
A176: 126 | X176: 0 | AF176: 0 | AO176: 0
A177: 127 | X177: 0 | AF177: 0 | AO177: 0
A178: 128 | X178: 0 | AF178: 0 | AO178: 0
A179: 129 | E179: =C179*60*1000/Aufzeichnung_Impulse/D179 ->  | H179: =E179*Aufzeichnung_Reifenübersetzung ->  | I179: =Aufzeichnung_Übersetzung_berechnet*E179 ->  | K179: =Aufzeichnung_Übersetzung_gemessen*E179 ->  | L179: =IF(Aufzeichnung_Messen="JA",K179,I179) ->  | O179: =IF(Aufzeichnung_LiveNM_Aktiv,IF(OR(AW179<=0,N179=0),0,Aufzeichnung_NM_Faktor*N179+Aufzeichnung_Verluste+AW179),IF(N179>0,Aufzeichnung_NM_Faktor*N179+Aufzeichnung_Verluste,IF(N179<0,Aufzeichnung_NM_Faktor*N179+Aufzeichnung_Verluste_Rolle,0))) ->  | P179: =O179/Aufzeichnung_Übersetzung ->  | Q179: =IF(Aufzeichnung_Messen="JA",2*PI()*K179/60*P179,2*PI()*I179/60*P179) ->  | X179: =W179*Aufzeichnung_EGT_Korrekturfaktor -> 0 | Y179: =Aufzeichnung_EGT_NM+(X179-Aufzeichnung_EGT_Standard)/Aufzeichnung_EGT_Auflösung_vertikal*($AC$52-$AC$51) ->  | AF179: =AE179*Aufzeichnung_Lambda_Korrekturfaktor*Aufzeichnung_Als_AFR -> 0 | AG179: =Aufzeichnung_Lambda_NM+(AF179-Aufzeichnung_Lambda_Standard)/Aufzeichnung_Lambda_Auflösung_vertikal*($AK$52-$AK$51) ->  | AO179: =IF(Aufzeichnung_LiveUmin_Auswahl_Vario="",IF(BP179<>"",AM179/BP179*100-100,0),AM179) -> 0 | AP179: =Aufzeichnung_LiveUmin_NM+(AO179-Aufzeichnung_LiveUmin_Standard)/Aufzeichnung_LiveUmin_Auflösung_vertikal*($AT$51-$AT$52) ->  | BB179: =Aufzeichnung_Analog1_NM+(BA179-Aufzeichnung_Analog1_Standard)/Aufzeichnung_Analog1_Auflösung_vertikal*($BF$52-$BF$51) ->  | BJ179: =Aufzeichnung_Analog2_NM+(BI179-Aufzeichnung_Analog2_Standard)/Aufzeichnung_Analog2_Auflösung_vertikal*($BN$52-$BN$51) ->  | BQ179: =B179/Aufzeichnung_Impulse/Aufzeichnung_Messzyklus*Aufzeichnung_Rollenumfang*3.6 -> 
A180: 130 | G180: =F180*3.6 ->  | M180: =2*PI()*E180/60 ->  | N180: =IF(D180<>1,(M180-M179)/(D180/1000)*SQRT((D180/D179)),0) ->  | R180: =Q180*1.36/1000 ->  | S180: =AVERAGE(R179:R180) ->  | T180: =AVERAGE(P179:P180) ->  | V180: =AVERAGE(G179:G180) ->  | X180: 0 | AF180: 0 | AO180: 0
A181: 131 | U181: =AVERAGE(L180:L181) ->  | X181: 0 | AF181: 0 | AO181: 0
A182: 132 | X182: 0 | AF182: 0 | AO182: 0
A183: 133 | X183: 0 | AF183: 0 | AO183: 0
A184: 134 | X184: 0 | AF184: 0 | AO184: 0
A185: 135 | X185: 0 | AF185: 0 | AO185: 0
A186: 136 | X186: 0 | AF186: 0 | AO186: 0
A187: 137 | X187: 0 | AF187: 0 | AO187: 0
A188: 138 | X188: 0 | AF188: 0 | AO188: 0
A189: 139 | X189: 0 | AF189: 0 | AO189: 0
A190: 140 | X190: 0 | AF190: 0 | AO190: 0
A191: 141 | X191: 0 | AF191: 0 | AO191: 0
A192: 142 | X192: 0 | AF192: 0 | AO192: 0
A193: 143 | X193: 0 | AF193: 0 | AO193: 0
A194: 144 | X194: 0 | AF194: 0 | AO194: 0
A195: 145 | X195: 0 | AF195: 0 | AO195: 0
A196: 146 | X196: 0 | AF196: 0 | AO196: 0
A197: 147 | X197: 0 | AF197: 0 | AO197: 0
A198: 148 | X198: 0 | AF198: 0 | AO198: 0
A199: 149 | X199: 0 | AF199: 0 | AO199: 0
A200: 150 | X200: 0 | AF200: 0 | AO200: 0
A201: 151 | X201: 0 | AF201: 0 | AO201: 0
A202: 152 | X202: 0 | AF202: 0 | AO202: 0
A203: 153 | X203: 0 | AF203: 0 | AO203: 0
A204: 154 | X204: 0 | AF204: 0 | AO204: 0
A205: 155 | X205: 0 | AF205: 0 | AO205: 0
A206: 156 | X206: 0 | AF206: 0 | AO206: 0
A207: 157 | X207: 0 | AF207: 0 | AO207: 0
A208: 158 | X208: 0 | AF208: 0 | AO208: 0
A209: 159 | X209: 0 | AF209: 0 | AO209: 0
A210: 160 | X210: 0 | AF210: 0 | AO210: 0
A211: 161 | X211: 0 | AF211: 0 | AO211: 0
A212: 162 | X212: 0 | AF212: 0 | AO212: 0
A213: 163 | X213: 0 | AF213: 0 | AO213: 0
A214: 164 | X214: 0 | AF214: 0 | AO214: 0
A215: 165 | X215: 0 | AF215: 0 | AO215: 0
A216: 166 | X216: 0 | AF216: 0 | AO216: 0
A217: 167 | X217: 0 | AF217: 0 | AO217: 0
A218: 168 | X218: 0 | AF218: 0 | AO218: 0
A219: 169 | X219: 0 | AF219: 0 | AO219: 0
A220: 170 | X220: 0 | AF220: 0 | AO220: 0
A221: 171 | X221: 0 | AF221: 0 | AO221: 0
A222: 172 | X222: 0 | AF222: 0 | AO222: 0
A223: 173 | X223: 0 | AF223: 0 | AO223: 0
A224: 174 | X224: 0 | AF224: 0 | AO224: 0
A225: 175 | X225: 0 | AF225: 0 | AO225: 0
A226: 176 | X226: 0 | AF226: 0 | AO226: 0
A227: 177 | X227: 0 | AF227: 0 | AO227: 0
A228: 178 | X228: 0 | AF228: 0 | AO228: 0
... 822 more rows

Sheet Aufzeichnung 7 (hidden)
B2: Nummer:
D8: TRUE
B25: Ergebnis
B26: Leistung | C26: =IF(ISERROR(MAX(R51:R1050)),0,MAX(R51:R1050)) -> 0 | D26: Drehmoment | E26: =IF(ISERROR(MAX(P51:P1050)),0,MAX(P51:P1050)) -> 0 | F26: maxDrehzahl | G26: =IF(ISERROR(MAX(L51:L1050)),0,MAX(L51:L1050)) -> 0 | H26: max x-Achse | J26: Software: v5.191227
B27: Drehzahl | C27: =IF(ISERROR(INDEX(L51:L1050,MATCH(C26,R51:R1050,0))),0,INDEX(L51:L1050,MATCH(C26,R51:R1050,0))) -> 0 | D27: Drehzahl | E27: =IF(ISERROR(INDEX(U51:U1050,MATCH(E26,P51:P1050,0))),0,INDEX(U51:U1050,MATCH(E26,P51:P1050,0))) -> 0 | F27: Vmax | G27: =IF(ISERROR(MAX(G51:G1050)),0,MAX(G51:G1050)) -> 0 | H27: min x-Achse
B28: Übersetzung | C28: =IF(ISERROR(ROUND(IF(Aufzeichnung_Messen="JA",Aufzeichnung_Übersetzung_gemessen,Aufzeichnung_Übersetzung_berechnet),2)),1,ROUND(IF(Aufzeichnung_Messen="JA",Aufzeichnung_Übersetzung_gemessen,Aufzeichnung_Übersetzung_berechnet),2)) -> 1 | D28: Luftdruck | F28: Temperatur | H28: Luftfeuchte
B30: Getriebe | D30: =IF(#REF!,#REF!,IF(OR(#REF!,Aufzeichnung_Rechenbare_Punkte=0),#REF!,#REF!)) -> 
B31: freie Eingabe | D31: Übersetzung messen | F31: Auspuff | K31: Details
B32: Gang Z1 | D32: Zündungstype | F32: Kurbelwelle | H32: Name
B33: Z2 | D33: Zylinder | F33: Maße | H33: Kommentar
B34: Gang Z2 | D34: Vergaser | F34: Zeiten
B35: Z2 | D35: Zündung | F35: Ansaugsystem
B36: Reifenumfang | D36: Zündeinstellung | F36: Bedüsung
B37: Reifenschlupf | C37: 0 | D37: Schwungrad
B42: Prüfstand | F42: Messzyklus | H42: Gemessene Übersetzung | J42: {EGT Standard} | L42: {EGT Auflösung vertikal} | N42: Lambda Standard | P42: Lambda Auflösung | R42: CRC Daten | U42: drar | W42: LiveUmin Standard | Z42: LiveUmin Auflösung | AB42: LiveNM Aktiv | AD42: FALSE | AE42: Analog1 Standard | AG42: Analog1 Auflösung | AI42: Analog2 Standard | AK42: Analog2 Auflösung
A43: Rollenumfang | D43: Verluste Rolle nur Pnorm | F43: Zündung (nur bei Messverfahren) | H43: Berechnete Übersetzung | I43: =IF(Aufzeichnung_Übersetzung_Manuelle_Eingabe<>"",Aufzeichnung_Übersetzung_Manuelle_Eingabe,IF(ISERROR((Aufzeichnung_Primär_Z2/Aufzeichnung_Primär_Z1)*(Aufzeichnung_Getriebe_Z2/Aufzeichnung_Getriebe_Z1)*Aufzeichnung_Reifenübersetzung),1,(Aufzeichnung_Primär_Z2/Aufzeichnung_Primär_Z1)*(Aufzeichnung_Getriebe_Z2/Aufzeichnung_Getriebe_Z1)*Aufzeichnung_Reifenübersetzung)) -> 1 | J43: {EGT Korr} | N43: Lambda Korrektur | P43: AFR | Q43: 1 | R43: CRC Werte | W43: LiveUmin Korrektur | AB43: LiveNM Faktor | AE43: Analog1 Korrektur | AG43: Analog1 Faktor | AI43: Analog2 Korrektur | AK43: Analog2 Faktor
A44: Trägheitsmoment | D44: Verluste Rolle[NM] | E44: 0 | F44: Rechenbare Punke | H44: Reifen/Rollenübersetzung+ Schlupf | I44: =IF(ISERROR(Aufzeichnung_Rollenumfang/(Aufzeichnung_Reifen*(1+Aufzeichnung_Reifenschlupf))),1,Aufzeichnung_Rollenumfang/(Aufzeichnung_Reifen*(1+Aufzeichnung_Reifenschlupf))) -> 1 | J44: {EGT NM} | N44: Lambda NM | R44: CRC Daten lokal | W44: LiveUmin NM | AB44: Langzeitmessung | AD44: Falsch | AE44: Analog1 NM | AI44: Analog2 NM
B45: Impulse | D45: Verlust NM | E45: 0 | F45: Verluste [NM] | G45: 0 | H45: Prüfstandfaktor | J45: {EGT U/Min} | N45: Lambda U/Min | R45: CRC Werte lokal | W45: LiveUmin U/Min | AE45: Analog1 U/Min | AI45: Analog2 U/Min
A46: FahrzeugID | E46: DIN PS Faktor | F46: JA | G46: =IF(ISERROR((1013/(Aufzeichnung_Luftdruck-Aufzeichnung_Faktor_Feuchte))*((273+Aufzeichnung_Temperatur)/293)),1,(1013/(Aufzeichnung_Luftdruck-Aufzeichnung_Faktor_Feuchte))*((273+Aufzeichnung_Temperatur)/293)) -> 1 | H46: Aktueller NMFaktor | I46: =IF(1=1,drar(),Aufzeichnung_DINPS_Faktor&Aufzeichnung_DIN_PS_Faktor_Aktiv) -> 0 | J46: {EGT Anzahl} | N46: Lambda Anzahl | R46: Version | W46: LiveUmin Anzahl | AE46: Analog1 Anzahl | AI46: Analog2 Anzahl
B47: Detailstype | D47: Gesamtpunkte | F47: Feuchtekorrektur | G47: =(Aufzeichnung_Feuchte*(2.408*10^11*(300/(Aufzeichnung_Temperatur+273.15))^5 *EXP(-22.644*(300/(Aufzeichnung_Temperatur+273.15))))/100) -> 0
A49: lfd Nr. | B49: Impulse | C49: Drehzahl Rolle | H49: Drehzahl Reifen | I49: Drehzahl KW berechnet | J49: Drehzahl KW gemessen | L49: Drehzahl | M49: Winkelgeschwindigkeit | N49: Winkelbeschleunigung | O49: Drehmoment | Q49: Leistung | S49: Anzeige PS | T49: Anzeige NM | U49: Anzeige Drehzahl | V49: Anzeige kmh | W49: EGT | AE49: Lambda | AM49: Livedrehzahl | AV49: LiveNM | AX49: Zeit | AZ49: Analog1 | BH49: Analog2 | BP49: Allgemein Optionen
A50: lfdNr | B50: Werte | C50: Messwerte Berechnet | D50: Zyklus berechnet | E50: U/min | F50: m/s | G50: km/h | H50: U/min | I50: U/min | J50: Werte | K50: U/min | L50: U/min | M50: rad/sec | N50: rad/sec² | O50: am Rad Trägheit | P50: mit Übersetzung | Q50: W | R50: PS | S50: PS | T50: NM | U50: Umin | W50: Messwerte EGT | X50: Werte aufb. | Y50: auf NM | Z50: Horizontal1 | AA50: Horizonal2 | AB50: Vertikal1 | AC50: Vertikal1 NM | AD50: Vertikal2 | AE50: Messwerte Lambda | AF50: Werte aufb. | AG50: auf NM | AH50: Horizontal1 | AI50: Horizonal2 | AJ50: Vertikal1 | AK50: Vertikal1 NM | AL50: Vertikal2 | AM50: LiveDrezahl mit Funkenaufteilung | AN50: Live Umin berechnet | AO50: Werte aufb | AP50: auf NM | AQ50: Horizontal1 | AR50: Horizontal2 | AS50: Vertikal1 | AT50: Vertikal1NM | AU50: Vertikal2 | AV50: Messwerte LiveNM | AW50: Messwerte_LiveNM_berechnet | AX50: sekunden | AY50: Anzeige | AZ50: Messwerte_Analog1 | BA50: Werte aufb. | BB50: auf NM | BC50: Horizontal1 | BD50: Horizonal2 | BE50: Vertikal1 | BF50: Vertikal1 NM | BG50: Vertikal2 | BH50: Messwerte_Analog2 | BI50: Werte aufb. | BJ50: auf NM | BK50: Horizontal1 | BL50: Horizonal2 | BM50: Vertikal1 | BN50: Vertikal1 NM | BO50: Vertikal2 | BP50: Drehzahl | BQ50: KMH
A51: 1 | E51: =C51*60*1000/Aufzeichnung_Impulse/D51 ->  | F51: =E51*Aufzeichnung_Rollenumfang/60/1000 ->  | G51: =F51*3.6 ->  | H51: =E51*Aufzeichnung_Reifenübersetzung ->  | I51: =Aufzeichnung_Übersetzung_berechnet*E51 ->  | K51: =Aufzeichnung_Übersetzung_gemessen*E51 ->  | L51: =IF(Aufzeichnung_Messen="JA",K51,I51) ->  | M51: =2*PI()*E51/60 ->  | N51: 0 | O51: =IF(Aufzeichnung_LiveNM_Aktiv,IF(OR(AW51<=0,N51=0),0,Aufzeichnung_NM_Faktor*N51+Aufzeichnung_Verluste+AW51),IF(N51>0,Aufzeichnung_NM_Faktor*N51+Aufzeichnung_Verluste,IF(N51<0,Aufzeichnung_NM_Faktor*N51+Aufzeichnung_Verluste_Rolle,0))) -> 0 | P51: =O51/Aufzeichnung_Übersetzung -> 0 | Q51: =IF(Aufzeichnung_Messen="JA",2*PI()*K51/60*P51,2*PI()*I51/60*P51) ->  | R51: =Q51*1.36/1000 ->  | S51: =AVERAGE(R50:R51) ->  | T51: =AVERAGE(P50:P51) -> 0 | U51: =AVERAGE(L50:L51) ->  | V51: =AVERAGE(G50:G51) ->  | X51: =W51*Aufzeichnung_EGT_Korrekturfaktor -> 0 | Y51: =Aufzeichnung_EGT_NM+(X51-Aufzeichnung_EGT_Standard)/Aufzeichnung_EGT_Auflösung_vertikal*($AC$52-$AC$51) ->  | Z51: =Aufzeichnung_EGT_NM -> 0 | AA51: 0 | AD51: =Aufzeichnung_EGT_Umin -> 0 | AF51: =AE51*Aufzeichnung_Lambda_Korrekturfaktor*Aufzeichnung_Als_AFR -> 0 | AG51: =Aufzeichnung_Lambda_NM+(AF51-Aufzeichnung_Lambda_Standard)/Aufzeichnung_Lambda_Auflösung_vertikal*($AK$52-$AK$51) ->  | AH51: =Aufzeichnung_Lambda_NM -> 0 | AI51: 0 | AL51: =Aufzeichnung_Lambda_Umin -> 0 | AO51: =IF(Aufzeichnung_LiveUmin_Auswahl_Vario="",IF(BP51<>"",AM51/BP51*100-100,0),AM51) -> 0 | AP51: =Aufzeichnung_LiveUmin_NM+(AO51-Aufzeichnung_LiveUmin_Standard)/Aufzeichnung_LiveUmin_Auflösung_vertikal*($AT$51-$AT$52) ->  | AQ51: =Aufzeichnung_LiveUmin_NM -> 0 | AR51: 0 | AU51: =Aufzeichnung_LiveUmin_Umin -> 0 | BB51: =Aufzeichnung_Analog1_NM+(BA51-Aufzeichnung_Analog1_Standard)/Aufzeichnung_Analog1_Auflösung_vertikal*($BF$52-$BF$51) ->  | BC51: =Aufzeichnung_Analog1_NM -> 0 | BD51: 0 | BG51: =Aufzeichnung_Analog1_Umin -> 0 | BJ51: =Aufzeichnung_Analog2_NM+(BI51-Aufzeichnung_Analog2_Standard)/Aufzeichnung_Analog2_Auflösung_vertikal*($BN$52-$BN$51) ->  | BK51: =Aufzeichnung_Analog2_NM -> 0 | BL51: 0 | BO51: =Aufzeichnung_Analog2_Umin -> 0 | BQ51: =B51/Aufzeichnung_Impulse/Aufzeichnung_Messzyklus*Aufzeichnung_Rollenumfang*3.6 -> 
A52: 2 | F52: =E52*Aufzeichnung_Rollenumfang/60/1000 ->  | G52: =F52*3.6 ->  | M52: =2*PI()*E52/60 ->  | N52: =IF(D52<>1,(M52-M51)/(D52/1000)*SQRT((D52/D51)),0) ->  | R52: =Q52*1.36/1000 ->  | S52: =AVERAGE(R51:R52) ->  | T52: =AVERAGE(P51:P52) ->  | U52: =AVERAGE(L51:L52) ->  | V52: =AVERAGE(G51:G52) ->  | X52: 0 | Y52: =Aufzeichnung_EGT_NM+(X52-Aufzeichnung_EGT_Standard)/Aufzeichnung_EGT_Auflösung_vertikal*($AC$52-$AC$51) ->  | Z52: =Aufzeichnung_EGT_NM -> 0 | AA52: 30000 | AD52: 0 | AF52: 0 | AH52: =Aufzeichnung_Lambda_NM -> 0 | AI52: 30000 | AL52: 0 | AO52: 0 | AQ52: =Aufzeichnung_LiveUmin_NM -> 0 | AR52: 30000 | AU52: 0 | BC52: =Aufzeichnung_Analog1_NM -> 0 | BD52: 300 | BG52: 0 | BJ52: =Aufzeichnung_Analog2_NM+(BI52-Aufzeichnung_Analog2_Standard)/Aufzeichnung_Analog2_Auflösung_vertikal*($BN$52-$BN$51) ->  | BK52: =Aufzeichnung_Analog2_NM -> 0 | BL52: 300 | BO52: 0
A53: 3 | F53: =E53*Aufzeichnung_Rollenumfang/60/1000 ->  | H53: =E53*Aufzeichnung_Reifenübersetzung ->  | I53: =Aufzeichnung_Übersetzung_berechnet*E53 ->  | K53: =Aufzeichnung_Übersetzung_gemessen*E53 ->  | L53: =IF(Aufzeichnung_Messen="JA",K53,I53) ->  | U53: =AVERAGE(L52:L53) ->  | X53: 0 | AD53: 0 | AF53: 0 | AL53: 0 | AO53: 0 | AU53: 0 | BG53: 0 | BO53: 0
A54: 4 | X54: 0 | AD54: 0 | AF54: 0 | AL54: 0 | AO54: 0 | AU54: 0 | BG54: 0 | BO54: 0
A55: 5 | X55: 0 | AD55: 0 | AF55: 0 | AL55: 0 | AO55: 0 | AU55: 0 | BG55: 0 | BO55: 0
A56: 6 | X56: 0 | AD56: 0 | AF56: 0 | AL56: 0 | AO56: 0 | AU56: 0 | BG56: 0 | BO56: 0
A57: 7 | X57: 0 | AD57: 0 | AF57: 0 | AL57: 0 | AO57: 0 | AU57: 0 | BG57: 0 | BO57: 0
A58: 8 | X58: 0 | AD58: 0 | AF58: 0 | AL58: 0 | AO58: 0 | AU58: 0 | BG58: 0 | BO58: 0
A59: 9 | Q59: =IF(Aufzeichnung_Messen="JA",2*PI()*K59/60*P59,2*PI()*I59/60*P59) ->  | X59: 0 | AD59: 0 | AF59: 0 | AL59: 0 | AO59: 0 | AU59: 0 | BG59: 0 | BO59: 0
A60: 10 | X60: 0 | AD60: 0 | AF60: 0 | AL60: 0 | AO60: 0 | AU60: 0 | BG60: 0 | BO60: 0
A61: 11 | X61: 0 | AD61: 0 | AF61: 0 | AL61: 0 | AO61: 0 | AU61: 0 | BG61: 0 | BO61: 0
A62: 12 | X62: 0 | AD62: 0 | AF62: 0 | AL62: 0 | AO62: 0 | AU62: 0 | BG62: 0 | BO62: 0
A63: 13 | X63: 0 | AD63: 0 | AF63: 0 | AL63: 0 | AO63: 0 | AU63: 0 | BG63: 0 | BO63: 0
A64: 14 | X64: 0 | AF64: 0 | AO64: 0
A65: 15 | X65: 0 | AF65: 0 | AO65: 0
A66: 16 | X66: 0 | AF66: 0 | AO66: 0
A67: 17 | X67: 0 | AF67: 0 | AO67: 0
A68: 18 | X68: 0 | AF68: 0 | AO68: 0
A69: 19 | X69: 0 | AF69: 0 | AO69: 0
A70: 20 | X70: 0 | AF70: 0 | AO70: 0
A71: 21 | X71: 0 | AF71: 0 | AO71: 0
A72: 22 | N72: =IF(D72<>1,(M72-M71)/(D72/1000)*SQRT((D72/D71)),0) ->  | X72: 0 | AF72: 0 | AO72: 0
A73: 23 | X73: 0 | AF73: 0 | AO73: 0
A74: 24 | X74: 0 | AF74: 0 | AO74: 0
A75: 25 | X75: 0 | AF75: 0 | AO75: 0
A76: 26 | X76: 0 | AF76: 0 | AO76: 0
A77: 27 | X77: 0 | AF77: 0 | AO77: 0
A78: 28 | X78: 0 | AF78: 0 | AO78: 0
A79: 29 | X79: 0 | AF79: 0 | AO79: 0
A80: 30 | X80: 0 | AF80: 0 | AO80: 0
A81: 31 | X81: 0 | AF81: 0 | AO81: 0
A82: 32 | F82: =E82*Aufzeichnung_Rollenumfang/60/1000 ->  | X82: 0 | AF82: 0 | AO82: 0
A83: 33 | F83: =E83*Aufzeichnung_Rollenumfang/60/1000 ->  | X83: 0 | AF83: 0 | AO83: 0
A84: 34 | X84: 0 | AF84: 0 | AO84: 0
A85: 35 | X85: 0 | AF85: 0 | AO85: 0
A86: 36 | X86: 0 | AF86: 0 | AO86: 0
A87: 37 | X87: 0 | AF87: 0 | AO87: 0
A88: 38 | X88: 0 | AF88: 0 | AO88: 0
A89: 39 | X89: 0 | AF89: 0 | AO89: 0
A90: 40 | X90: 0 | AF90: 0 | AO90: 0
A91: 41 | X91: 0 | AF91: 0 | AO91: 0
A92: 42 | X92: 0 | AF92: 0 | AO92: 0
A93: 43 | X93: 0 | AF93: 0 | AO93: 0
A94: 44 | X94: 0 | AF94: 0 | AO94: 0
A95: 45 | X95: 0 | AF95: 0 | AO95: 0
A96: 46 | X96: 0 | AF96: 0 | AO96: 0
A97: 47 | X97: 0 | AF97: 0 | AO97: 0
A98: 48 | X98: 0 | AF98: 0 | AO98: 0
A99: 49 | X99: 0 | AF99: 0 | AO99: 0
A100: 50 | X100: 0 | AF100: 0 | AO100: 0
A101: 51 | X101: 0 | AF101: 0 | AO101: 0
A102: 52 | X102: 0 | AF102: 0 | AO102: 0
A103: 53 | X103: 0 | AF103: 0 | AO103: 0
A104: 54 | X104: 0 | AF104: 0 | AO104: 0
A105: 55 | X105: 0 | AF105: 0 | AO105: 0
A106: 56 | X106: 0 | AF106: 0 | AO106: 0
A107: 57 | X107: 0 | AF107: 0 | AO107: 0
A108: 58 | X108: 0 | AF108: 0 | AO108: 0
A109: 59 | X109: 0 | AF109: 0 | AO109: 0
A110: 60 | X110: 0 | AF110: 0 | AO110: 0
A111: 61 | X111: 0 | AF111: 0 | AO111: 0
A112: 62 | X112: 0 | AF112: 0 | AO112: 0
A113: 63 | X113: 0 | AF113: 0 | AO113: 0
A114: 64 | X114: 0 | AF114: 0 | AO114: 0
A115: 65 | E115: =C115*60*1000/Aufzeichnung_Impulse/D115 ->  | F115: =E115*Aufzeichnung_Rollenumfang/60/1000 ->  | H115: =E115*Aufzeichnung_Reifenübersetzung ->  | I115: =Aufzeichnung_Übersetzung_berechnet*E115 ->  | K115: =Aufzeichnung_Übersetzung_gemessen*E115 ->  | L115: =IF(Aufzeichnung_Messen="JA",K115,I115) ->  | O115: =IF(Aufzeichnung_LiveNM_Aktiv,IF(OR(AW115<=0,N115=0),0,Aufzeichnung_NM_Faktor*N115+Aufzeichnung_Verluste+AW115),IF(N115>0,Aufzeichnung_NM_Faktor*N115+Aufzeichnung_Verluste,IF(N115<0,Aufzeichnung_NM_Faktor*N115+Aufzeichnung_Verluste_Rolle,0))) ->  | P115: =O115/Aufzeichnung_Übersetzung ->  | Q115: =IF(Aufzeichnung_Messen="JA",2*PI()*K115/60*P115,2*PI()*I115/60*P115) ->  | X115: =W115*Aufzeichnung_EGT_Korrekturfaktor -> 0 | Y115: =Aufzeichnung_EGT_NM+(X115-Aufzeichnung_EGT_Standard)/Aufzeichnung_EGT_Auflösung_vertikal*($AC$52-$AC$51) ->  | AF115: =AE115*Aufzeichnung_Lambda_Korrekturfaktor*Aufzeichnung_Als_AFR -> 0 | AG115: =Aufzeichnung_Lambda_NM+(AF115-Aufzeichnung_Lambda_Standard)/Aufzeichnung_Lambda_Auflösung_vertikal*($AK$52-$AK$51) ->  | AO115: =IF(Aufzeichnung_LiveUmin_Auswahl_Vario="",IF(BP115<>"",AM115/BP115*100-100,0),AM115) -> 0 | AP115: =Aufzeichnung_LiveUmin_NM+(AO115-Aufzeichnung_LiveUmin_Standard)/Aufzeichnung_LiveUmin_Auflösung_vertikal*($AT$51-$AT$52) ->  | BB115: =Aufzeichnung_Analog1_NM+(BA115-Aufzeichnung_Analog1_Standard)/Aufzeichnung_Analog1_Auflösung_vertikal*($BF$52-$BF$51) ->  | BJ115: =Aufzeichnung_Analog2_NM+(BI115-Aufzeichnung_Analog2_Standard)/Aufzeichnung_Analog2_Auflösung_vertikal*($BN$52-$BN$51) ->  | BQ115: =B115/Aufzeichnung_Impulse/Aufzeichnung_Messzyklus*Aufzeichnung_Rollenumfang*3.6 -> 
A116: 66 | G116: =F116*3.6 ->  | M116: =2*PI()*E116/60 ->  | N116: =IF(D116<>1,(M116-M115)/(D116/1000)*SQRT((D116/D115)),0) ->  | R116: =Q116*1.36/1000 ->  | S116: =AVERAGE(R115:R116) ->  | T116: =AVERAGE(P115:P116) ->  | V116: =AVERAGE(G115:G116) ->  | X116: 0 | AF116: 0 | AO116: 0
A117: 67 | U117: =AVERAGE(L116:L117) ->  | X117: 0 | AF117: 0 | AO117: 0
A118: 68 | X118: 0 | AF118: 0 | AO118: 0
A119: 69 | X119: 0 | AF119: 0 | AO119: 0
A120: 70 | X120: 0 | AF120: 0 | AO120: 0
A121: 71 | X121: 0 | AF121: 0 | AO121: 0
A122: 72 | X122: 0 | AF122: 0 | AO122: 0
A123: 73 | X123: 0 | AF123: 0 | AO123: 0
A124: 74 | X124: 0 | AF124: 0 | AO124: 0
A125: 75 | X125: 0 | AF125: 0 | AO125: 0
A126: 76 | X126: 0 | AF126: 0 | AO126: 0
A127: 77 | X127: 0 | AF127: 0 | AO127: 0
A128: 78 | X128: 0 | AF128: 0 | AO128: 0
A129: 79 | X129: 0 | AF129: 0 | AO129: 0
A130: 80 | X130: 0 | AF130: 0 | AO130: 0
A131: 81 | X131: 0 | AF131: 0 | AO131: 0
A132: 82 | X132: 0 | AF132: 0 | AO132: 0
A133: 83 | X133: 0 | AF133: 0 | AO133: 0
A134: 84 | X134: 0 | AF134: 0 | AO134: 0
A135: 85 | X135: 0 | AF135: 0 | AO135: 0
A136: 86 | X136: 0 | AF136: 0 | AO136: 0
A137: 87 | X137: 0 | AF137: 0 | AO137: 0
A138: 88 | X138: 0 | AF138: 0 | AO138: 0
A139: 89 | X139: 0 | AF139: 0 | AO139: 0
A140: 90 | F140: =E140*Aufzeichnung_Rollenumfang/60/1000 ->  | X140: 0 | AF140: 0 | AO140: 0
A141: 91 | X141: 0 | AF141: 0 | AO141: 0
A142: 92 | X142: 0 | AF142: 0 | AO142: 0
A143: 93 | X143: 0 | AF143: 0 | AO143: 0
A144: 94 | X144: 0 | AF144: 0 | AO144: 0
A145: 95 | X145: 0 | AF145: 0 | AO145: 0
A146: 96 | X146: 0 | AF146: 0 | AO146: 0
A147: 97 | X147: 0 | AF147: 0 | AO147: 0
A148: 98 | X148: 0 | AF148: 0 | AO148: 0
A149: 99 | X149: 0 | AF149: 0 | AO149: 0
A150: 100 | X150: 0 | AF150: 0 | AO150: 0
A151: 101 | X151: 0 | AF151: 0 | AO151: 0
A152: 102 | X152: 0 | AF152: 0 | AO152: 0
A153: 103 | X153: 0 | AF153: 0 | AO153: 0
A154: 104 | X154: 0 | AF154: 0 | AO154: 0
A155: 105 | X155: 0 | AF155: 0 | AO155: 0
A156: 106 | X156: 0 | AF156: 0 | AO156: 0
A157: 107 | X157: 0 | AF157: 0 | AO157: 0
A158: 108 | X158: 0 | AF158: 0 | AO158: 0
A159: 109 | X159: 0 | AF159: 0 | AO159: 0
A160: 110 | X160: 0 | AF160: 0 | AO160: 0
A161: 111 | X161: 0 | AF161: 0 | AO161: 0
A162: 112 | X162: 0 | AF162: 0 | AO162: 0
A163: 113 | X163: 0 | AF163: 0 | AO163: 0
A164: 114 | X164: 0 | AF164: 0 | AO164: 0
A165: 115 | X165: 0 | AF165: 0 | AO165: 0
A166: 116 | X166: 0 | AF166: 0 | AO166: 0
A167: 117 | X167: 0 | AF167: 0 | AO167: 0
A168: 118 | F168: =E168*Aufzeichnung_Rollenumfang/60/1000 ->  | X168: 0 | AF168: 0 | AO168: 0
A169: 119 | X169: 0 | AF169: 0 | AO169: 0
A170: 120 | X170: 0 | AF170: 0 | AO170: 0
A171: 121 | X171: 0 | AF171: 0 | AO171: 0
A172: 122 | X172: 0 | AF172: 0 | AO172: 0
A173: 123 | X173: 0 | AF173: 0 | AO173: 0
A174: 124 | X174: 0 | AF174: 0 | AO174: 0
A175: 125 | X175: 0 | AF175: 0 | AO175: 0
A176: 126 | X176: 0 | AF176: 0 | AO176: 0
A177: 127 | X177: 0 | AF177: 0 | AO177: 0
A178: 128 | X178: 0 | AF178: 0 | AO178: 0
A179: 129 | E179: =C179*60*1000/Aufzeichnung_Impulse/D179 ->  | H179: =E179*Aufzeichnung_Reifenübersetzung ->  | I179: =Aufzeichnung_Übersetzung_berechnet*E179 ->  | K179: =Aufzeichnung_Übersetzung_gemessen*E179 ->  | L179: =IF(Aufzeichnung_Messen="JA",K179,I179) ->  | O179: =IF(Aufzeichnung_LiveNM_Aktiv,IF(OR(AW179<=0,N179=0),0,Aufzeichnung_NM_Faktor*N179+Aufzeichnung_Verluste+AW179),IF(N179>0,Aufzeichnung_NM_Faktor*N179+Aufzeichnung_Verluste,IF(N179<0,Aufzeichnung_NM_Faktor*N179+Aufzeichnung_Verluste_Rolle,0))) ->  | P179: =O179/Aufzeichnung_Übersetzung ->  | Q179: =IF(Aufzeichnung_Messen="JA",2*PI()*K179/60*P179,2*PI()*I179/60*P179) ->  | X179: =W179*Aufzeichnung_EGT_Korrekturfaktor -> 0 | Y179: =Aufzeichnung_EGT_NM+(X179-Aufzeichnung_EGT_Standard)/Aufzeichnung_EGT_Auflösung_vertikal*($AC$52-$AC$51) ->  | AF179: =AE179*Aufzeichnung_Lambda_Korrekturfaktor*Aufzeichnung_Als_AFR -> 0 | AG179: =Aufzeichnung_Lambda_NM+(AF179-Aufzeichnung_Lambda_Standard)/Aufzeichnung_Lambda_Auflösung_vertikal*($AK$52-$AK$51) ->  | AO179: =IF(Aufzeichnung_LiveUmin_Auswahl_Vario="",IF(BP179<>"",AM179/BP179*100-100,0),AM179) -> 0 | AP179: =Aufzeichnung_LiveUmin_NM+(AO179-Aufzeichnung_LiveUmin_Standard)/Aufzeichnung_LiveUmin_Auflösung_vertikal*($AT$51-$AT$52) ->  | BB179: =Aufzeichnung_Analog1_NM+(BA179-Aufzeichnung_Analog1_Standard)/Aufzeichnung_Analog1_Auflösung_vertikal*($BF$52-$BF$51) ->  | BJ179: =Aufzeichnung_Analog2_NM+(BI179-Aufzeichnung_Analog2_Standard)/Aufzeichnung_Analog2_Auflösung_vertikal*($BN$52-$BN$51) ->  | BQ179: =B179/Aufzeichnung_Impulse/Aufzeichnung_Messzyklus*Aufzeichnung_Rollenumfang*3.6 -> 
A180: 130 | G180: =F180*3.6 ->  | M180: =2*PI()*E180/60 ->  | N180: =IF(D180<>1,(M180-M179)/(D180/1000)*SQRT((D180/D179)),0) ->  | R180: =Q180*1.36/1000 ->  | S180: =AVERAGE(R179:R180) ->  | T180: =AVERAGE(P179:P180) ->  | V180: =AVERAGE(G179:G180) ->  | X180: 0 | AF180: 0 | AO180: 0
A181: 131 | U181: =AVERAGE(L180:L181) ->  | X181: 0 | AF181: 0 | AO181: 0
A182: 132 | X182: 0 | AF182: 0 | AO182: 0
A183: 133 | X183: 0 | AF183: 0 | AO183: 0
A184: 134 | X184: 0 | AF184: 0 | AO184: 0
A185: 135 | X185: 0 | AF185: 0 | AO185: 0
A186: 136 | X186: 0 | AF186: 0 | AO186: 0
A187: 137 | X187: 0 | AF187: 0 | AO187: 0
A188: 138 | X188: 0 | AF188: 0 | AO188: 0
A189: 139 | X189: 0 | AF189: 0 | AO189: 0
A190: 140 | X190: 0 | AF190: 0 | AO190: 0
A191: 141 | X191: 0 | AF191: 0 | AO191: 0
A192: 142 | X192: 0 | AF192: 0 | AO192: 0
A193: 143 | X193: 0 | AF193: 0 | AO193: 0
A194: 144 | X194: 0 | AF194: 0 | AO194: 0
A195: 145 | X195: 0 | AF195: 0 | AO195: 0
A196: 146 | X196: 0 | AF196: 0 | AO196: 0
A197: 147 | X197: 0 | AF197: 0 | AO197: 0
A198: 148 | X198: 0 | AF198: 0 | AO198: 0
A199: 149 | X199: 0 | AF199: 0 | AO199: 0
A200: 150 | X200: 0 | AF200: 0 | AO200: 0
A201: 151 | X201: 0 | AF201: 0 | AO201: 0
A202: 152 | X202: 0 | AF202: 0 | AO202: 0
A203: 153 | X203: 0 | AF203: 0 | AO203: 0
A204: 154 | X204: 0 | AF204: 0 | AO204: 0
A205: 155 | X205: 0 | AF205: 0 | AO205: 0
A206: 156 | X206: 0 | AF206: 0 | AO206: 0
A207: 157 | X207: 0 | AF207: 0 | AO207: 0
A208: 158 | X208: 0 | AF208: 0 | AO208: 0
A209: 159 | X209: 0 | AF209: 0 | AO209: 0
A210: 160 | X210: 0 | AF210: 0 | AO210: 0
A211: 161 | X211: 0 | AF211: 0 | AO211: 0
A212: 162 | X212: 0 | AF212: 0 | AO212: 0
A213: 163 | X213: 0 | AF213: 0 | AO213: 0
A214: 164 | X214: 0 | AF214: 0 | AO214: 0
A215: 165 | X215: 0 | AF215: 0 | AO215: 0
A216: 166 | X216: 0 | AF216: 0 | AO216: 0
A217: 167 | X217: 0 | AF217: 0 | AO217: 0
A218: 168 | X218: 0 | AF218: 0 | AO218: 0
A219: 169 | X219: 0 | AF219: 0 | AO219: 0
A220: 170 | X220: 0 | AF220: 0 | AO220: 0
A221: 171 | X221: 0 | AF221: 0 | AO221: 0
A222: 172 | X222: 0 | AF222: 0 | AO222: 0
A223: 173 | X223: 0 | AF223: 0 | AO223: 0
A224: 174 | X224: 0 | AF224: 0 | AO224: 0
A225: 175 | X225: 0 | AF225: 0 | AO225: 0
A226: 176 | X226: 0 | AF226: 0 | AO226: 0
A227: 177 | X227: 0 | AF227: 0 | AO227: 0
A228: 178 | X228: 0 | AF228: 0 | AO228: 0
... 822 more rows

Sheet Aufzeichnung 8 (hidden)
B2: Nummer:
D8: TRUE
B25: Ergebnis
B26: Leistung | C26: =IF(ISERROR(MAX(R51:R1050)),0,MAX(R51:R1050)) -> 0 | D26: Drehmoment | E26: =IF(ISERROR(MAX(P51:P1050)),0,MAX(P51:P1050)) -> 0 | F26: maxDrehzahl | G26: =IF(ISERROR(MAX(L51:L1050)),0,MAX(L51:L1050)) -> 0 | H26: max x-Achse | J26: Software: v5.191227
B27: Drehzahl | C27: =IF(ISERROR(INDEX(L51:L1050,MATCH(C26,R51:R1050,0))),0,INDEX(L51:L1050,MATCH(C26,R51:R1050,0))) -> 0 | D27: Drehzahl | E27: =IF(ISERROR(INDEX(U51:U1050,MATCH(E26,P51:P1050,0))),0,INDEX(U51:U1050,MATCH(E26,P51:P1050,0))) -> 0 | F27: Vmax | G27: =IF(ISERROR(MAX(G51:G1050)),0,MAX(G51:G1050)) -> 0 | H27: min x-Achse
B28: Übersetzung | C28: =IF(ISERROR(ROUND(IF(Aufzeichnung_Messen="JA",Aufzeichnung_Übersetzung_gemessen,Aufzeichnung_Übersetzung_berechnet),2)),1,ROUND(IF(Aufzeichnung_Messen="JA",Aufzeichnung_Übersetzung_gemessen,Aufzeichnung_Übersetzung_berechnet),2)) -> 1 | D28: Luftdruck | F28: Temperatur | H28: Luftfeuchte
B30: Getriebe | D30: =IF(#REF!,#REF!,IF(OR(#REF!,Aufzeichnung_Rechenbare_Punkte=0),#REF!,#REF!)) -> 
B31: freie Eingabe | D31: Übersetzung messen | F31: Auspuff | K31: Details
B32: Gang Z1 | D32: Zündungstype | F32: Kurbelwelle | H32: Name
B33: Z2 | D33: Zylinder | F33: Maße | H33: Kommentar
B34: Gang Z2 | D34: Vergaser | F34: Zeiten
B35: Z2 | D35: Zündung | F35: Ansaugsystem
B36: Reifenumfang | D36: Zündeinstellung | F36: Bedüsung
B37: Reifenschlupf | C37: 0 | D37: Schwungrad
B42: Prüfstand | F42: Messzyklus | H42: Gemessene Übersetzung | J42: {EGT Standard} | L42: {EGT Auflösung vertikal} | N42: Lambda Standard | P42: Lambda Auflösung | R42: CRC Daten | U42: drar | W42: LiveUmin Standard | Z42: LiveUmin Auflösung | AB42: LiveNM Aktiv | AD42: FALSE | AE42: Analog1 Standard | AG42: Analog1 Auflösung | AI42: Analog2 Standard | AK42: Analog2 Auflösung
A43: Rollenumfang | D43: Verluste Rolle nur Pnorm | F43: Zündung (nur bei Messverfahren) | H43: Berechnete Übersetzung | I43: =IF(Aufzeichnung_Übersetzung_Manuelle_Eingabe<>"",Aufzeichnung_Übersetzung_Manuelle_Eingabe,IF(ISERROR((Aufzeichnung_Primär_Z2/Aufzeichnung_Primär_Z1)*(Aufzeichnung_Getriebe_Z2/Aufzeichnung_Getriebe_Z1)*Aufzeichnung_Reifenübersetzung),1,(Aufzeichnung_Primär_Z2/Aufzeichnung_Primär_Z1)*(Aufzeichnung_Getriebe_Z2/Aufzeichnung_Getriebe_Z1)*Aufzeichnung_Reifenübersetzung)) -> 1 | J43: {EGT Korr} | N43: Lambda Korrektur | P43: AFR | Q43: 1 | R43: CRC Werte | W43: LiveUmin Korrektur | AB43: LiveNM Faktor | AE43: Analog1 Korrektur | AG43: Analog1 Faktor | AI43: Analog2 Korrektur | AK43: Analog2 Faktor
A44: Trägheitsmoment | D44: Verluste Rolle[NM] | E44: 0 | F44: Rechenbare Punke | H44: Reifen/Rollenübersetzung+ Schlupf | I44: =IF(ISERROR(Aufzeichnung_Rollenumfang/(Aufzeichnung_Reifen*(1+Aufzeichnung_Reifenschlupf))),1,Aufzeichnung_Rollenumfang/(Aufzeichnung_Reifen*(1+Aufzeichnung_Reifenschlupf))) -> 1 | J44: {EGT NM} | N44: Lambda NM | R44: CRC Daten lokal | W44: LiveUmin NM | AB44: Langzeitmessung | AD44: Falsch | AE44: Analog1 NM | AI44: Analog2 NM
B45: Impulse | D45: Verlust NM | E45: 0 | F45: Verluste [NM] | G45: 0 | H45: Prüfstandfaktor | J45: {EGT U/Min} | N45: Lambda U/Min | R45: CRC Werte lokal | W45: LiveUmin U/Min | AE45: Analog1 U/Min | AI45: Analog2 U/Min
A46: FahrzeugID | E46: DIN PS Faktor | F46: JA | G46: =IF(ISERROR((1013/(Aufzeichnung_Luftdruck-Aufzeichnung_Faktor_Feuchte))*((273+Aufzeichnung_Temperatur)/293)),1,(1013/(Aufzeichnung_Luftdruck-Aufzeichnung_Faktor_Feuchte))*((273+Aufzeichnung_Temperatur)/293)) -> 1 | H46: Aktueller NMFaktor | I46: =IF(1=1,drar(),Aufzeichnung_DINPS_Faktor&Aufzeichnung_DIN_PS_Faktor_Aktiv) -> 0 | J46: {EGT Anzahl} | N46: Lambda Anzahl | R46: Version | W46: LiveUmin Anzahl | AE46: Analog1 Anzahl | AI46: Analog2 Anzahl
B47: Detailstype | D47: Gesamtpunkte | F47: Feuchtekorrektur | G47: =(Aufzeichnung_Feuchte*(2.408*10^11*(300/(Aufzeichnung_Temperatur+273.15))^5 *EXP(-22.644*(300/(Aufzeichnung_Temperatur+273.15))))/100) -> 0
A49: lfd Nr. | B49: Impulse | C49: Drehzahl Rolle | H49: Drehzahl Reifen | I49: Drehzahl KW berechnet | J49: Drehzahl KW gemessen | L49: Drehzahl | M49: Winkelgeschwindigkeit | N49: Winkelbeschleunigung | O49: Drehmoment | Q49: Leistung | S49: Anzeige PS | T49: Anzeige NM | U49: Anzeige Drehzahl | V49: Anzeige kmh | W49: EGT | AE49: Lambda | AM49: Livedrehzahl | AV49: LiveNM | AX49: Zeit | AZ49: Analog1 | BH49: Analog2 | BP49: Allgemein Optionen
A50: lfdNr | B50: Werte | C50: Messwerte Berechnet | D50: Zyklus berechnet | E50: U/min | F50: m/s | G50: km/h | H50: U/min | I50: U/min | J50: Werte | K50: U/min | L50: U/min | M50: rad/sec | N50: rad/sec² | O50: am Rad Trägheit | P50: mit Übersetzung | Q50: W | R50: PS | S50: PS | T50: NM | U50: Umin | W50: Messwerte EGT | X50: Werte aufb. | Y50: auf NM | Z50: Horizontal1 | AA50: Horizonal2 | AB50: Vertikal1 | AC50: Vertikal1 NM | AD50: Vertikal2 | AE50: Messwerte Lambda | AF50: Werte aufb. | AG50: auf NM | AH50: Horizontal1 | AI50: Horizonal2 | AJ50: Vertikal1 | AK50: Vertikal1 NM | AL50: Vertikal2 | AM50: LiveDrezahl mit Funkenaufteilung | AN50: Live Umin berechnet | AO50: Werte aufb | AP50: auf NM | AQ50: Horizontal1 | AR50: Horizontal2 | AS50: Vertikal1 | AT50: Vertikal1NM | AU50: Vertikal2 | AV50: Messwerte LiveNM | AW50: Messwerte_LiveNM_berechnet | AX50: sekunden | AY50: Anzeige | AZ50: Messwerte_Analog1 | BA50: Werte aufb. | BB50: auf NM | BC50: Horizontal1 | BD50: Horizonal2 | BE50: Vertikal1 | BF50: Vertikal1 NM | BG50: Vertikal2 | BH50: Messwerte_Analog2 | BI50: Werte aufb. | BJ50: auf NM | BK50: Horizontal1 | BL50: Horizonal2 | BM50: Vertikal1 | BN50: Vertikal1 NM | BO50: Vertikal2 | BP50: Drehzahl | BQ50: KMH
A51: 1 | E51: =C51*60*1000/Aufzeichnung_Impulse/D51 ->  | F51: =E51*Aufzeichnung_Rollenumfang/60/1000 ->  | G51: =F51*3.6 ->  | H51: =E51*Aufzeichnung_Reifenübersetzung ->  | I51: =Aufzeichnung_Übersetzung_berechnet*E51 ->  | K51: =Aufzeichnung_Übersetzung_gemessen*E51 ->  | L51: =IF(Aufzeichnung_Messen="JA",K51,I51) ->  | M51: =2*PI()*E51/60 ->  | N51: 0 | O51: =IF(Aufzeichnung_LiveNM_Aktiv,IF(OR(AW51<=0,N51=0),0,Aufzeichnung_NM_Faktor*N51+Aufzeichnung_Verluste+AW51),IF(N51>0,Aufzeichnung_NM_Faktor*N51+Aufzeichnung_Verluste,IF(N51<0,Aufzeichnung_NM_Faktor*N51+Aufzeichnung_Verluste_Rolle,0))) -> 0 | P51: =O51/Aufzeichnung_Übersetzung -> 0 | Q51: =IF(Aufzeichnung_Messen="JA",2*PI()*K51/60*P51,2*PI()*I51/60*P51) ->  | R51: =Q51*1.36/1000 ->  | S51: =AVERAGE(R50:R51) ->  | T51: =AVERAGE(P50:P51) -> 0 | U51: =AVERAGE(L50:L51) ->  | V51: =AVERAGE(G50:G51) ->  | X51: =W51*Aufzeichnung_EGT_Korrekturfaktor -> 0 | Y51: =Aufzeichnung_EGT_NM+(X51-Aufzeichnung_EGT_Standard)/Aufzeichnung_EGT_Auflösung_vertikal*($AC$52-$AC$51) ->  | Z51: =Aufzeichnung_EGT_NM -> 0 | AA51: 0 | AD51: =Aufzeichnung_EGT_Umin -> 0 | AF51: =AE51*Aufzeichnung_Lambda_Korrekturfaktor*Aufzeichnung_Als_AFR -> 0 | AG51: =Aufzeichnung_Lambda_NM+(AF51-Aufzeichnung_Lambda_Standard)/Aufzeichnung_Lambda_Auflösung_vertikal*($AK$52-$AK$51) ->  | AH51: =Aufzeichnung_Lambda_NM -> 0 | AI51: 0 | AL51: =Aufzeichnung_Lambda_Umin -> 0 | AO51: =IF(Aufzeichnung_LiveUmin_Auswahl_Vario="",IF(BP51<>"",AM51/BP51*100-100,0),AM51) -> 0 | AP51: =Aufzeichnung_LiveUmin_NM+(AO51-Aufzeichnung_LiveUmin_Standard)/Aufzeichnung_LiveUmin_Auflösung_vertikal*($AT$51-$AT$52) ->  | AQ51: =Aufzeichnung_LiveUmin_NM -> 0 | AR51: 0 | AU51: =Aufzeichnung_LiveUmin_Umin -> 0 | BB51: =Aufzeichnung_Analog1_NM+(BA51-Aufzeichnung_Analog1_Standard)/Aufzeichnung_Analog1_Auflösung_vertikal*($BF$52-$BF$51) ->  | BC51: =Aufzeichnung_Analog1_NM -> 0 | BD51: 0 | BG51: =Aufzeichnung_Analog1_Umin -> 0 | BJ51: =Aufzeichnung_Analog2_NM+(BI51-Aufzeichnung_Analog2_Standard)/Aufzeichnung_Analog2_Auflösung_vertikal*($BN$52-$BN$51) ->  | BK51: =Aufzeichnung_Analog2_NM -> 0 | BL51: 0 | BO51: =Aufzeichnung_Analog2_Umin -> 0 | BQ51: =B51/Aufzeichnung_Impulse/Aufzeichnung_Messzyklus*Aufzeichnung_Rollenumfang*3.6 -> 
A52: 2 | F52: =E52*Aufzeichnung_Rollenumfang/60/1000 ->  | G52: =F52*3.6 ->  | M52: =2*PI()*E52/60 ->  | N52: =IF(D52<>1,(M52-M51)/(D52/1000)*SQRT((D52/D51)),0) ->  | R52: =Q52*1.36/1000 ->  | S52: =AVERAGE(R51:R52) ->  | T52: =AVERAGE(P51:P52) ->  | U52: =AVERAGE(L51:L52) ->  | V52: =AVERAGE(G51:G52) ->  | X52: 0 | Y52: =Aufzeichnung_EGT_NM+(X52-Aufzeichnung_EGT_Standard)/Aufzeichnung_EGT_Auflösung_vertikal*($AC$52-$AC$51) ->  | Z52: =Aufzeichnung_EGT_NM -> 0 | AA52: 30000 | AD52: 0 | AF52: 0 | AH52: =Aufzeichnung_Lambda_NM -> 0 | AI52: 30000 | AL52: 0 | AO52: 0 | AQ52: =Aufzeichnung_LiveUmin_NM -> 0 | AR52: 30000 | AU52: 0 | BC52: =Aufzeichnung_Analog1_NM -> 0 | BD52: 300 | BG52: 0 | BJ52: =Aufzeichnung_Analog2_NM+(BI52-Aufzeichnung_Analog2_Standard)/Aufzeichnung_Analog2_Auflösung_vertikal*($BN$52-$BN$51) ->  | BK52: =Aufzeichnung_Analog2_NM -> 0 | BL52: 300 | BO52: 0
A53: 3 | F53: =E53*Aufzeichnung_Rollenumfang/60/1000 ->  | H53: =E53*Aufzeichnung_Reifenübersetzung ->  | I53: =Aufzeichnung_Übersetzung_berechnet*E53 ->  | K53: =Aufzeichnung_Übersetzung_gemessen*E53 ->  | L53: =IF(Aufzeichnung_Messen="JA",K53,I53) ->  | U53: =AVERAGE(L52:L53) ->  | X53: 0 | AD53: 0 | AF53: 0 | AL53: 0 | AO53: 0 | AU53: 0 | BG53: 0 | BO53: 0
A54: 4 | X54: 0 | AD54: 0 | AF54: 0 | AL54: 0 | AO54: 0 | AU54: 0 | BG54: 0 | BO54: 0
A55: 5 | X55: 0 | AD55: 0 | AF55: 0 | AL55: 0 | AO55: 0 | AU55: 0 | BG55: 0 | BO55: 0
A56: 6 | X56: 0 | AD56: 0 | AF56: 0 | AL56: 0 | AO56: 0 | AU56: 0 | BG56: 0 | BO56: 0
A57: 7 | X57: 0 | AD57: 0 | AF57: 0 | AL57: 0 | AO57: 0 | AU57: 0 | BG57: 0 | BO57: 0
A58: 8 | X58: 0 | AD58: 0 | AF58: 0 | AL58: 0 | AO58: 0 | AU58: 0 | BG58: 0 | BO58: 0
A59: 9 | Q59: =IF(Aufzeichnung_Messen="JA",2*PI()*K59/60*P59,2*PI()*I59/60*P59) ->  | X59: 0 | AD59: 0 | AF59: 0 | AL59: 0 | AO59: 0 | AU59: 0 | BG59: 0 | BO59: 0
A60: 10 | X60: 0 | AD60: 0 | AF60: 0 | AL60: 0 | AO60: 0 | AU60: 0 | BG60: 0 | BO60: 0
A61: 11 | X61: 0 | AD61: 0 | AF61: 0 | AL61: 0 | AO61: 0 | AU61: 0 | BG61: 0 | BO61: 0
A62: 12 | X62: 0 | AD62: 0 | AF62: 0 | AL62: 0 | AO62: 0 | AU62: 0 | BG62: 0 | BO62: 0
A63: 13 | X63: 0 | AD63: 0 | AF63: 0 | AL63: 0 | AO63: 0 | AU63: 0 | BG63: 0 | BO63: 0
A64: 14 | X64: 0 | AF64: 0 | AO64: 0
A65: 15 | X65: 0 | AF65: 0 | AO65: 0
A66: 16 | X66: 0 | AF66: 0 | AO66: 0
A67: 17 | X67: 0 | AF67: 0 | AO67: 0
A68: 18 | X68: 0 | AF68: 0 | AO68: 0
A69: 19 | X69: 0 | AF69: 0 | AO69: 0
A70: 20 | X70: 0 | AF70: 0 | AO70: 0
A71: 21 | X71: 0 | AF71: 0 | AO71: 0
A72: 22 | N72: =IF(D72<>1,(M72-M71)/(D72/1000)*SQRT((D72/D71)),0) ->  | X72: 0 | AF72: 0 | AO72: 0
A73: 23 | X73: 0 | AF73: 0 | AO73: 0
A74: 24 | X74: 0 | AF74: 0 | AO74: 0
A75: 25 | X75: 0 | AF75: 0 | AO75: 0
A76: 26 | X76: 0 | AF76: 0 | AO76: 0
A77: 27 | X77: 0 | AF77: 0 | AO77: 0
A78: 28 | X78: 0 | AF78: 0 | AO78: 0
A79: 29 | X79: 0 | AF79: 0 | AO79: 0
A80: 30 | X80: 0 | AF80: 0 | AO80: 0
A81: 31 | X81: 0 | AF81: 0 | AO81: 0
A82: 32 | F82: =E82*Aufzeichnung_Rollenumfang/60/1000 ->  | X82: 0 | AF82: 0 | AO82: 0
A83: 33 | F83: =E83*Aufzeichnung_Rollenumfang/60/1000 ->  | X83: 0 | AF83: 0 | AO83: 0
A84: 34 | X84: 0 | AF84: 0 | AO84: 0
A85: 35 | X85: 0 | AF85: 0 | AO85: 0
A86: 36 | X86: 0 | AF86: 0 | AO86: 0
A87: 37 | X87: 0 | AF87: 0 | AO87: 0
A88: 38 | X88: 0 | AF88: 0 | AO88: 0
A89: 39 | X89: 0 | AF89: 0 | AO89: 0
A90: 40 | X90: 0 | AF90: 0 | AO90: 0
A91: 41 | X91: 0 | AF91: 0 | AO91: 0
A92: 42 | X92: 0 | AF92: 0 | AO92: 0
A93: 43 | X93: 0 | AF93: 0 | AO93: 0
A94: 44 | X94: 0 | AF94: 0 | AO94: 0
A95: 45 | X95: 0 | AF95: 0 | AO95: 0
A96: 46 | X96: 0 | AF96: 0 | AO96: 0
A97: 47 | X97: 0 | AF97: 0 | AO97: 0
A98: 48 | X98: 0 | AF98: 0 | AO98: 0
A99: 49 | X99: 0 | AF99: 0 | AO99: 0
A100: 50 | X100: 0 | AF100: 0 | AO100: 0
A101: 51 | X101: 0 | AF101: 0 | AO101: 0
A102: 52 | X102: 0 | AF102: 0 | AO102: 0
A103: 53 | X103: 0 | AF103: 0 | AO103: 0
A104: 54 | X104: 0 | AF104: 0 | AO104: 0
A105: 55 | X105: 0 | AF105: 0 | AO105: 0
A106: 56 | X106: 0 | AF106: 0 | AO106: 0
A107: 57 | X107: 0 | AF107: 0 | AO107: 0
A108: 58 | X108: 0 | AF108: 0 | AO108: 0
A109: 59 | X109: 0 | AF109: 0 | AO109: 0
A110: 60 | X110: 0 | AF110: 0 | AO110: 0
A111: 61 | X111: 0 | AF111: 0 | AO111: 0
A112: 62 | X112: 0 | AF112: 0 | AO112: 0
A113: 63 | X113: 0 | AF113: 0 | AO113: 0
A114: 64 | X114: 0 | AF114: 0 | AO114: 0
A115: 65 | E115: =C115*60*1000/Aufzeichnung_Impulse/D115 ->  | F115: =E115*Aufzeichnung_Rollenumfang/60/1000 ->  | H115: =E115*Aufzeichnung_Reifenübersetzung ->  | I115: =Aufzeichnung_Übersetzung_berechnet*E115 ->  | K115: =Aufzeichnung_Übersetzung_gemessen*E115 ->  | L115: =IF(Aufzeichnung_Messen="JA",K115,I115) ->  | O115: =IF(Aufzeichnung_LiveNM_Aktiv,IF(OR(AW115<=0,N115=0),0,Aufzeichnung_NM_Faktor*N115+Aufzeichnung_Verluste+AW115),IF(N115>0,Aufzeichnung_NM_Faktor*N115+Aufzeichnung_Verluste,IF(N115<0,Aufzeichnung_NM_Faktor*N115+Aufzeichnung_Verluste_Rolle,0))) ->  | P115: =O115/Aufzeichnung_Übersetzung ->  | Q115: =IF(Aufzeichnung_Messen="JA",2*PI()*K115/60*P115,2*PI()*I115/60*P115) ->  | X115: =W115*Aufzeichnung_EGT_Korrekturfaktor -> 0 | Y115: =Aufzeichnung_EGT_NM+(X115-Aufzeichnung_EGT_Standard)/Aufzeichnung_EGT_Auflösung_vertikal*($AC$52-$AC$51) ->  | AF115: =AE115*Aufzeichnung_Lambda_Korrekturfaktor*Aufzeichnung_Als_AFR -> 0 | AG115: =Aufzeichnung_Lambda_NM+(AF115-Aufzeichnung_Lambda_Standard)/Aufzeichnung_Lambda_Auflösung_vertikal*($AK$52-$AK$51) ->  | AO115: =IF(Aufzeichnung_LiveUmin_Auswahl_Vario="",IF(BP115<>"",AM115/BP115*100-100,0),AM115) -> 0 | AP115: =Aufzeichnung_LiveUmin_NM+(AO115-Aufzeichnung_LiveUmin_Standard)/Aufzeichnung_LiveUmin_Auflösung_vertikal*($AT$51-$AT$52) ->  | BB115: =Aufzeichnung_Analog1_NM+(BA115-Aufzeichnung_Analog1_Standard)/Aufzeichnung_Analog1_Auflösung_vertikal*($BF$52-$BF$51) ->  | BJ115: =Aufzeichnung_Analog2_NM+(BI115-Aufzeichnung_Analog2_Standard)/Aufzeichnung_Analog2_Auflösung_vertikal*($BN$52-$BN$51) ->  | BQ115: =B115/Aufzeichnung_Impulse/Aufzeichnung_Messzyklus*Aufzeichnung_Rollenumfang*3.6 -> 
A116: 66 | G116: =F116*3.6 ->  | M116: =2*PI()*E116/60 ->  | N116: =IF(D116<>1,(M116-M115)/(D116/1000)*SQRT((D116/D115)),0) ->  | R116: =Q116*1.36/1000 ->  | S116: =AVERAGE(R115:R116) ->  | T116: =AVERAGE(P115:P116) ->  | V116: =AVERAGE(G115:G116) ->  | X116: 0 | AF116: 0 | AO116: 0
A117: 67 | U117: =AVERAGE(L116:L117) ->  | X117: 0 | AF117: 0 | AO117: 0
A118: 68 | X118: 0 | AF118: 0 | AO118: 0
A119: 69 | X119: 0 | AF119: 0 | AO119: 0
A120: 70 | X120: 0 | AF120: 0 | AO120: 0
A121: 71 | X121: 0 | AF121: 0 | AO121: 0
A122: 72 | X122: 0 | AF122: 0 | AO122: 0
A123: 73 | X123: 0 | AF123: 0 | AO123: 0
A124: 74 | X124: 0 | AF124: 0 | AO124: 0
A125: 75 | X125: 0 | AF125: 0 | AO125: 0
A126: 76 | X126: 0 | AF126: 0 | AO126: 0
A127: 77 | X127: 0 | AF127: 0 | AO127: 0
A128: 78 | X128: 0 | AF128: 0 | AO128: 0
A129: 79 | X129: 0 | AF129: 0 | AO129: 0
A130: 80 | X130: 0 | AF130: 0 | AO130: 0
A131: 81 | X131: 0 | AF131: 0 | AO131: 0
A132: 82 | X132: 0 | AF132: 0 | AO132: 0
A133: 83 | X133: 0 | AF133: 0 | AO133: 0
A134: 84 | X134: 0 | AF134: 0 | AO134: 0
A135: 85 | X135: 0 | AF135: 0 | AO135: 0
A136: 86 | X136: 0 | AF136: 0 | AO136: 0
A137: 87 | X137: 0 | AF137: 0 | AO137: 0
A138: 88 | X138: 0 | AF138: 0 | AO138: 0
A139: 89 | X139: 0 | AF139: 0 | AO139: 0
A140: 90 | F140: =E140*Aufzeichnung_Rollenumfang/60/1000 ->  | X140: 0 | AF140: 0 | AO140: 0
A141: 91 | X141: 0 | AF141: 0 | AO141: 0
A142: 92 | X142: 0 | AF142: 0 | AO142: 0
A143: 93 | X143: 0 | AF143: 0 | AO143: 0
A144: 94 | X144: 0 | AF144: 0 | AO144: 0
A145: 95 | X145: 0 | AF145: 0 | AO145: 0
A146: 96 | X146: 0 | AF146: 0 | AO146: 0
A147: 97 | X147: 0 | AF147: 0 | AO147: 0
A148: 98 | X148: 0 | AF148: 0 | AO148: 0
A149: 99 | X149: 0 | AF149: 0 | AO149: 0
A150: 100 | X150: 0 | AF150: 0 | AO150: 0
A151: 101 | X151: 0 | AF151: 0 | AO151: 0
A152: 102 | X152: 0 | AF152: 0 | AO152: 0
A153: 103 | X153: 0 | AF153: 0 | AO153: 0
A154: 104 | X154: 0 | AF154: 0 | AO154: 0
A155: 105 | X155: 0 | AF155: 0 | AO155: 0
A156: 106 | X156: 0 | AF156: 0 | AO156: 0
A157: 107 | X157: 0 | AF157: 0 | AO157: 0
A158: 108 | X158: 0 | AF158: 0 | AO158: 0
A159: 109 | X159: 0 | AF159: 0 | AO159: 0
A160: 110 | X160: 0 | AF160: 0 | AO160: 0
A161: 111 | X161: 0 | AF161: 0 | AO161: 0
A162: 112 | X162: 0 | AF162: 0 | AO162: 0
A163: 113 | X163: 0 | AF163: 0 | AO163: 0
A164: 114 | X164: 0 | AF164: 0 | AO164: 0
A165: 115 | X165: 0 | AF165: 0 | AO165: 0
A166: 116 | X166: 0 | AF166: 0 | AO166: 0
A167: 117 | X167: 0 | AF167: 0 | AO167: 0
A168: 118 | F168: =E168*Aufzeichnung_Rollenumfang/60/1000 ->  | X168: 0 | AF168: 0 | AO168: 0
A169: 119 | X169: 0 | AF169: 0 | AO169: 0
A170: 120 | X170: 0 | AF170: 0 | AO170: 0
A171: 121 | X171: 0 | AF171: 0 | AO171: 0
A172: 122 | X172: 0 | AF172: 0 | AO172: 0
A173: 123 | X173: 0 | AF173: 0 | AO173: 0
A174: 124 | X174: 0 | AF174: 0 | AO174: 0
A175: 125 | X175: 0 | AF175: 0 | AO175: 0
A176: 126 | X176: 0 | AF176: 0 | AO176: 0
A177: 127 | X177: 0 | AF177: 0 | AO177: 0
A178: 128 | X178: 0 | AF178: 0 | AO178: 0
A179: 129 | E179: =C179*60*1000/Aufzeichnung_Impulse/D179 ->  | H179: =E179*Aufzeichnung_Reifenübersetzung ->  | I179: =Aufzeichnung_Übersetzung_berechnet*E179 ->  | K179: =Aufzeichnung_Übersetzung_gemessen*E179 ->  | L179: =IF(Aufzeichnung_Messen="JA",K179,I179) ->  | O179: =IF(Aufzeichnung_LiveNM_Aktiv,IF(OR(AW179<=0,N179=0),0,Aufzeichnung_NM_Faktor*N179+Aufzeichnung_Verluste+AW179),IF(N179>0,Aufzeichnung_NM_Faktor*N179+Aufzeichnung_Verluste,IF(N179<0,Aufzeichnung_NM_Faktor*N179+Aufzeichnung_Verluste_Rolle,0))) ->  | P179: =O179/Aufzeichnung_Übersetzung ->  | Q179: =IF(Aufzeichnung_Messen="JA",2*PI()*K179/60*P179,2*PI()*I179/60*P179) ->  | X179: =W179*Aufzeichnung_EGT_Korrekturfaktor -> 0 | Y179: =Aufzeichnung_EGT_NM+(X179-Aufzeichnung_EGT_Standard)/Aufzeichnung_EGT_Auflösung_vertikal*($AC$52-$AC$51) ->  | AF179: =AE179*Aufzeichnung_Lambda_Korrekturfaktor*Aufzeichnung_Als_AFR -> 0 | AG179: =Aufzeichnung_Lambda_NM+(AF179-Aufzeichnung_Lambda_Standard)/Aufzeichnung_Lambda_Auflösung_vertikal*($AK$52-$AK$51) ->  | AO179: =IF(Aufzeichnung_LiveUmin_Auswahl_Vario="",IF(BP179<>"",AM179/BP179*100-100,0),AM179) -> 0 | AP179: =Aufzeichnung_LiveUmin_NM+(AO179-Aufzeichnung_LiveUmin_Standard)/Aufzeichnung_LiveUmin_Auflösung_vertikal*($AT$51-$AT$52) ->  | BB179: =Aufzeichnung_Analog1_NM+(BA179-Aufzeichnung_Analog1_Standard)/Aufzeichnung_Analog1_Auflösung_vertikal*($BF$52-$BF$51) ->  | BJ179: =Aufzeichnung_Analog2_NM+(BI179-Aufzeichnung_Analog2_Standard)/Aufzeichnung_Analog2_Auflösung_vertikal*($BN$52-$BN$51) ->  | BQ179: =B179/Aufzeichnung_Impulse/Aufzeichnung_Messzyklus*Aufzeichnung_Rollenumfang*3.6 -> 
A180: 130 | G180: =F180*3.6 ->  | M180: =2*PI()*E180/60 ->  | N180: =IF(D180<>1,(M180-M179)/(D180/1000)*SQRT((D180/D179)),0) ->  | R180: =Q180*1.36/1000 ->  | S180: =AVERAGE(R179:R180) ->  | T180: =AVERAGE(P179:P180) ->  | V180: =AVERAGE(G179:G180) ->  | X180: 0 | AF180: 0 | AO180: 0
A181: 131 | U181: =AVERAGE(L180:L181) ->  | X181: 0 | AF181: 0 | AO181: 0
A182: 132 | X182: 0 | AF182: 0 | AO182: 0
A183: 133 | X183: 0 | AF183: 0 | AO183: 0
A184: 134 | X184: 0 | AF184: 0 | AO184: 0
A185: 135 | X185: 0 | AF185: 0 | AO185: 0
A186: 136 | X186: 0 | AF186: 0 | AO186: 0
A187: 137 | X187: 0 | AF187: 0 | AO187: 0
A188: 138 | X188: 0 | AF188: 0 | AO188: 0
A189: 139 | X189: 0 | AF189: 0 | AO189: 0
A190: 140 | X190: 0 | AF190: 0 | AO190: 0
A191: 141 | X191: 0 | AF191: 0 | AO191: 0
A192: 142 | X192: 0 | AF192: 0 | AO192: 0
A193: 143 | X193: 0 | AF193: 0 | AO193: 0
A194: 144 | X194: 0 | AF194: 0 | AO194: 0
A195: 145 | X195: 0 | AF195: 0 | AO195: 0
A196: 146 | X196: 0 | AF196: 0 | AO196: 0
A197: 147 | X197: 0 | AF197: 0 | AO197: 0
A198: 148 | X198: 0 | AF198: 0 | AO198: 0
A199: 149 | X199: 0 | AF199: 0 | AO199: 0
A200: 150 | X200: 0 | AF200: 0 | AO200: 0
A201: 151 | X201: 0 | AF201: 0 | AO201: 0
A202: 152 | X202: 0 | AF202: 0 | AO202: 0
A203: 153 | X203: 0 | AF203: 0 | AO203: 0
A204: 154 | X204: 0 | AF204: 0 | AO204: 0
A205: 155 | X205: 0 | AF205: 0 | AO205: 0
A206: 156 | X206: 0 | AF206: 0 | AO206: 0
A207: 157 | X207: 0 | AF207: 0 | AO207: 0
A208: 158 | X208: 0 | AF208: 0 | AO208: 0
A209: 159 | X209: 0 | AF209: 0 | AO209: 0
A210: 160 | X210: 0 | AF210: 0 | AO210: 0
A211: 161 | X211: 0 | AF211: 0 | AO211: 0
A212: 162 | X212: 0 | AF212: 0 | AO212: 0
A213: 163 | X213: 0 | AF213: 0 | AO213: 0
A214: 164 | X214: 0 | AF214: 0 | AO214: 0
A215: 165 | X215: 0 | AF215: 0 | AO215: 0
A216: 166 | X216: 0 | AF216: 0 | AO216: 0
A217: 167 | X217: 0 | AF217: 0 | AO217: 0
A218: 168 | X218: 0 | AF218: 0 | AO218: 0
A219: 169 | X219: 0 | AF219: 0 | AO219: 0
A220: 170 | X220: 0 | AF220: 0 | AO220: 0
A221: 171 | X221: 0 | AF221: 0 | AO221: 0
A222: 172 | X222: 0 | AF222: 0 | AO222: 0
A223: 173 | X223: 0 | AF223: 0 | AO223: 0
A224: 174 | X224: 0 | AF224: 0 | AO224: 0
A225: 175 | X225: 0 | AF225: 0 | AO225: 0
A226: 176 | X226: 0 | AF226: 0 | AO226: 0
A227: 177 | X227: 0 | AF227: 0 | AO227: 0
A228: 178 | X228: 0 | AF228: 0 | AO228: 0
... 822 more rows

Sheet Aufzeichnung 9 (hidden)
B2: Nummer:
D8: TRUE
B25: Ergebnis
B26: Leistung | C26: =IF(ISERROR(MAX(R51:R1050)),0,MAX(R51:R1050)) -> 0 | D26: Drehmoment | E26: =IF(ISERROR(MAX(P51:P1050)),0,MAX(P51:P1050)) -> 0 | F26: maxDrehzahl | G26: =IF(ISERROR(MAX(L51:L1050)),0,MAX(L51:L1050)) -> 0 | H26: max x-Achse | J26: Software: v5.191227
B27: Drehzahl | C27: =IF(ISERROR(INDEX(L51:L1050,MATCH(C26,R51:R1050,0))),0,INDEX(L51:L1050,MATCH(C26,R51:R1050,0))) -> 0 | D27: Drehzahl | E27: =IF(ISERROR(INDEX(U51:U1050,MATCH(E26,P51:P1050,0))),0,INDEX(U51:U1050,MATCH(E26,P51:P1050,0))) -> 0 | F27: Vmax | G27: =IF(ISERROR(MAX(G51:G1050)),0,MAX(G51:G1050)) -> 0 | H27: min x-Achse
B28: Übersetzung | C28: =IF(ISERROR(ROUND(IF(Aufzeichnung_Messen="JA",Aufzeichnung_Übersetzung_gemessen,Aufzeichnung_Übersetzung_berechnet),2)),1,ROUND(IF(Aufzeichnung_Messen="JA",Aufzeichnung_Übersetzung_gemessen,Aufzeichnung_Übersetzung_berechnet),2)) -> 1 | D28: Luftdruck | F28: Temperatur | H28: Luftfeuchte
B30: Getriebe | D30: =IF(#REF!,#REF!,IF(OR(#REF!,Aufzeichnung_Rechenbare_Punkte=0),#REF!,#REF!)) -> 
B31: freie Eingabe | D31: Übersetzung messen | F31: Auspuff | K31: Details
B32: Gang Z1 | D32: Zündungstype | F32: Kurbelwelle | H32: Name
B33: Z2 | D33: Zylinder | F33: Maße | H33: Kommentar
B34: Gang Z2 | D34: Vergaser | F34: Zeiten
B35: Z2 | D35: Zündung | F35: Ansaugsystem
B36: Reifenumfang | D36: Zündeinstellung | F36: Bedüsung
B37: Reifenschlupf | C37: 0 | D37: Schwungrad
B42: Prüfstand | F42: Messzyklus | H42: Gemessene Übersetzung | J42: {EGT Standard} | L42: {EGT Auflösung vertikal} | N42: Lambda Standard | P42: Lambda Auflösung | R42: CRC Daten | U42: drar | W42: LiveUmin Standard | Z42: LiveUmin Auflösung | AB42: LiveNM Aktiv | AD42: FALSE | AE42: Analog1 Standard | AG42: Analog1 Auflösung | AI42: Analog2 Standard | AK42: Analog2 Auflösung
A43: Rollenumfang | D43: Verluste Rolle nur Pnorm | F43: Zündung (nur bei Messverfahren) | H43: Berechnete Übersetzung | I43: =IF(Aufzeichnung_Übersetzung_Manuelle_Eingabe<>"",Aufzeichnung_Übersetzung_Manuelle_Eingabe,IF(ISERROR((Aufzeichnung_Primär_Z2/Aufzeichnung_Primär_Z1)*(Aufzeichnung_Getriebe_Z2/Aufzeichnung_Getriebe_Z1)*Aufzeichnung_Reifenübersetzung),1,(Aufzeichnung_Primär_Z2/Aufzeichnung_Primär_Z1)*(Aufzeichnung_Getriebe_Z2/Aufzeichnung_Getriebe_Z1)*Aufzeichnung_Reifenübersetzung)) -> 1 | J43: {EGT Korr} | N43: Lambda Korrektur | P43: AFR | Q43: 1 | R43: CRC Werte | W43: LiveUmin Korrektur | AB43: LiveNM Faktor | AE43: Analog1 Korrektur | AG43: Analog1 Faktor | AI43: Analog2 Korrektur | AK43: Analog2 Faktor
A44: Trägheitsmoment | D44: Verluste Rolle[NM] | E44: 0 | F44: Rechenbare Punke | H44: Reifen/Rollenübersetzung+ Schlupf | I44: =IF(ISERROR(Aufzeichnung_Rollenumfang/(Aufzeichnung_Reifen*(1+Aufzeichnung_Reifenschlupf))),1,Aufzeichnung_Rollenumfang/(Aufzeichnung_Reifen*(1+Aufzeichnung_Reifenschlupf))) -> 1 | J44: {EGT NM} | N44: Lambda NM | R44: CRC Daten lokal | W44: LiveUmin NM | AB44: Langzeitmessung | AD44: Falsch | AE44: Analog1 NM | AI44: Analog2 NM
B45: Impulse | D45: Verlust NM | E45: 0 | F45: Verluste [NM] | G45: 0 | H45: Prüfstandfaktor | J45: {EGT U/Min} | N45: Lambda U/Min | R45: CRC Werte lokal | W45: LiveUmin U/Min | AE45: Analog1 U/Min | AI45: Analog2 U/Min
A46: FahrzeugID | E46: DIN PS Faktor | F46: JA | G46: =IF(ISERROR((1013/(Aufzeichnung_Luftdruck-Aufzeichnung_Faktor_Feuchte))*((273+Aufzeichnung_Temperatur)/293)),1,(1013/(Aufzeichnung_Luftdruck-Aufzeichnung_Faktor_Feuchte))*((273+Aufzeichnung_Temperatur)/293)) -> 1 | H46: Aktueller NMFaktor | I46: =IF(1=1,drar(),Aufzeichnung_DINPS_Faktor&Aufzeichnung_DIN_PS_Faktor_Aktiv) -> 0 | J46: {EGT Anzahl} | N46: Lambda Anzahl | R46: Version | W46: LiveUmin Anzahl | AE46: Analog1 Anzahl | AI46: Analog2 Anzahl
B47: Detailstype | D47: Gesamtpunkte | F47: Feuchtekorrektur | G47: =(Aufzeichnung_Feuchte*(2.408*10^11*(300/(Aufzeichnung_Temperatur+273.15))^5 *EXP(-22.644*(300/(Aufzeichnung_Temperatur+273.15))))/100) -> 0
A49: lfd Nr. | B49: Impulse | C49: Drehzahl Rolle | H49: Drehzahl Reifen | I49: Drehzahl KW berechnet | J49: Drehzahl KW gemessen | L49: Drehzahl | M49: Winkelgeschwindigkeit | N49: Winkelbeschleunigung | O49: Drehmoment | Q49: Leistung | S49: Anzeige PS | T49: Anzeige NM | U49: Anzeige Drehzahl | V49: Anzeige kmh | W49: EGT | AE49: Lambda | AM49: Livedrehzahl | AV49: LiveNM | AX49: Zeit | AZ49: Analog1 | BH49: Analog2 | BP49: Allgemein Optionen
A50: lfdNr | B50: Werte | C50: Messwerte Berechnet | D50: Zyklus berechnet | E50: U/min | F50: m/s | G50: km/h | H50: U/min | I50: U/min | J50: Werte | K50: U/min | L50: U/min | M50: rad/sec | N50: rad/sec² | O50: am Rad Trägheit | P50: mit Übersetzung | Q50: W | R50: PS | S50: PS | T50: NM | U50: Umin | W50: Messwerte EGT | X50: Werte aufb. | Y50: auf NM | Z50: Horizontal1 | AA50: Horizonal2 | AB50: Vertikal1 | AC50: Vertikal1 NM | AD50: Vertikal2 | AE50: Messwerte Lambda | AF50: Werte aufb. | AG50: auf NM | AH50: Horizontal1 | AI50: Horizonal2 | AJ50: Vertikal1 | AK50: Vertikal1 NM | AL50: Vertikal2 | AM50: LiveDrezahl mit Funkenaufteilung | AN50: Live Umin berechnet | AO50: Werte aufb | AP50: auf NM | AQ50: Horizontal1 | AR50: Horizontal2 | AS50: Vertikal1 | AT50: Vertikal1NM | AU50: Vertikal2 | AV50: Messwerte LiveNM | AW50: Messwerte_LiveNM_berechnet | AX50: sekunden | AY50: Anzeige | AZ50: Messwerte_Analog1 | BA50: Werte aufb. | BB50: auf NM | BC50: Horizontal1 | BD50: Horizonal2 | BE50: Vertikal1 | BF50: Vertikal1 NM | BG50: Vertikal2 | BH50: Messwerte_Analog2 | BI50: Werte aufb. | BJ50: auf NM | BK50: Horizontal1 | BL50: Horizonal2 | BM50: Vertikal1 | BN50: Vertikal1 NM | BO50: Vertikal2 | BP50: Drehzahl | BQ50: KMH
A51: 1 | E51: =C51*60*1000/Aufzeichnung_Impulse/D51 ->  | F51: =E51*Aufzeichnung_Rollenumfang/60/1000 ->  | G51: =F51*3.6 ->  | H51: =E51*Aufzeichnung_Reifenübersetzung ->  | I51: =Aufzeichnung_Übersetzung_berechnet*E51 ->  | K51: =Aufzeichnung_Übersetzung_gemessen*E51 ->  | L51: =IF(Aufzeichnung_Messen="JA",K51,I51) ->  | M51: =2*PI()*E51/60 ->  | N51: 0 | O51: =IF(Aufzeichnung_LiveNM_Aktiv,IF(OR(AW51<=0,N51=0),0,Aufzeichnung_NM_Faktor*N51+Aufzeichnung_Verluste+AW51),IF(N51>0,Aufzeichnung_NM_Faktor*N51+Aufzeichnung_Verluste,IF(N51<0,Aufzeichnung_NM_Faktor*N51+Aufzeichnung_Verluste_Rolle,0))) -> 0 | P51: =O51/Aufzeichnung_Übersetzung -> 0 | Q51: =IF(Aufzeichnung_Messen="JA",2*PI()*K51/60*P51,2*PI()*I51/60*P51) ->  | R51: =Q51*1.36/1000 ->  | S51: =AVERAGE(R50:R51) ->  | T51: =AVERAGE(P50:P51) -> 0 | U51: =AVERAGE(L50:L51) ->  | V51: =AVERAGE(G50:G51) ->  | X51: =W51*Aufzeichnung_EGT_Korrekturfaktor -> 0 | Y51: =Aufzeichnung_EGT_NM+(X51-Aufzeichnung_EGT_Standard)/Aufzeichnung_EGT_Auflösung_vertikal*($AC$52-$AC$51) ->  | Z51: =Aufzeichnung_EGT_NM -> 0 | AA51: 0 | AD51: =Aufzeichnung_EGT_Umin -> 0 | AF51: =AE51*Aufzeichnung_Lambda_Korrekturfaktor*Aufzeichnung_Als_AFR -> 0 | AG51: =Aufzeichnung_Lambda_NM+(AF51-Aufzeichnung_Lambda_Standard)/Aufzeichnung_Lambda_Auflösung_vertikal*($AK$52-$AK$51) ->  | AH51: =Aufzeichnung_Lambda_NM -> 0 | AI51: 0 | AL51: =Aufzeichnung_Lambda_Umin -> 0 | AO51: =IF(Aufzeichnung_LiveUmin_Auswahl_Vario="",IF(BP51<>"",AM51/BP51*100-100,0),AM51) -> 0 | AP51: =Aufzeichnung_LiveUmin_NM+(AO51-Aufzeichnung_LiveUmin_Standard)/Aufzeichnung_LiveUmin_Auflösung_vertikal*($AT$51-$AT$52) ->  | AQ51: =Aufzeichnung_LiveUmin_NM -> 0 | AR51: 0 | AU51: =Aufzeichnung_LiveUmin_Umin -> 0 | BB51: =Aufzeichnung_Analog1_NM+(BA51-Aufzeichnung_Analog1_Standard)/Aufzeichnung_Analog1_Auflösung_vertikal*($BF$52-$BF$51) ->  | BC51: =Aufzeichnung_Analog1_NM -> 0 | BD51: 0 | BG51: =Aufzeichnung_Analog1_Umin -> 0 | BJ51: =Aufzeichnung_Analog2_NM+(BI51-Aufzeichnung_Analog2_Standard)/Aufzeichnung_Analog2_Auflösung_vertikal*($BN$52-$BN$51) ->  | BK51: =Aufzeichnung_Analog2_NM -> 0 | BL51: 0 | BO51: =Aufzeichnung_Analog2_Umin -> 0 | BQ51: =B51/Aufzeichnung_Impulse/Aufzeichnung_Messzyklus*Aufzeichnung_Rollenumfang*3.6 -> 
A52: 2 | F52: =E52*Aufzeichnung_Rollenumfang/60/1000 ->  | G52: =F52*3.6 ->  | M52: =2*PI()*E52/60 ->  | N52: =IF(D52<>1,(M52-M51)/(D52/1000)*SQRT((D52/D51)),0) ->  | R52: =Q52*1.36/1000 ->  | S52: =AVERAGE(R51:R52) ->  | T52: =AVERAGE(P51:P52) ->  | U52: =AVERAGE(L51:L52) ->  | V52: =AVERAGE(G51:G52) ->  | X52: 0 | Y52: =Aufzeichnung_EGT_NM+(X52-Aufzeichnung_EGT_Standard)/Aufzeichnung_EGT_Auflösung_vertikal*($AC$52-$AC$51) ->  | Z52: =Aufzeichnung_EGT_NM -> 0 | AA52: 30000 | AD52: 0 | AF52: 0 | AH52: =Aufzeichnung_Lambda_NM -> 0 | AI52: 30000 | AL52: 0 | AO52: 0 | AQ52: =Aufzeichnung_LiveUmin_NM -> 0 | AR52: 30000 | AU52: 0 | BC52: =Aufzeichnung_Analog1_NM -> 0 | BD52: 300 | BG52: 0 | BJ52: =Aufzeichnung_Analog2_NM+(BI52-Aufzeichnung_Analog2_Standard)/Aufzeichnung_Analog2_Auflösung_vertikal*($BN$52-$BN$51) ->  | BK52: =Aufzeichnung_Analog2_NM -> 0 | BL52: 300 | BO52: 0
A53: 3 | F53: =E53*Aufzeichnung_Rollenumfang/60/1000 ->  | H53: =E53*Aufzeichnung_Reifenübersetzung ->  | I53: =Aufzeichnung_Übersetzung_berechnet*E53 ->  | K53: =Aufzeichnung_Übersetzung_gemessen*E53 ->  | L53: =IF(Aufzeichnung_Messen="JA",K53,I53) ->  | U53: =AVERAGE(L52:L53) ->  | X53: 0 | AD53: 0 | AF53: 0 | AL53: 0 | AO53: 0 | AU53: 0 | BG53: 0 | BO53: 0
A54: 4 | X54: 0 | AD54: 0 | AF54: 0 | AL54: 0 | AO54: 0 | AU54: 0 | BG54: 0 | BO54: 0
A55: 5 | X55: 0 | AD55: 0 | AF55: 0 | AL55: 0 | AO55: 0 | AU55: 0 | BG55: 0 | BO55: 0
A56: 6 | X56: 0 | AD56: 0 | AF56: 0 | AL56: 0 | AO56: 0 | AU56: 0 | BG56: 0 | BO56: 0
A57: 7 | X57: 0 | AD57: 0 | AF57: 0 | AL57: 0 | AO57: 0 | AU57: 0 | BG57: 0 | BO57: 0
A58: 8 | X58: 0 | AD58: 0 | AF58: 0 | AL58: 0 | AO58: 0 | AU58: 0 | BG58: 0 | BO58: 0
A59: 9 | Q59: =IF(Aufzeichnung_Messen="JA",2*PI()*K59/60*P59,2*PI()*I59/60*P59) ->  | X59: 0 | AD59: 0 | AF59: 0 | AL59: 0 | AO59: 0 | AU59: 0 | BG59: 0 | BO59: 0
A60: 10 | X60: 0 | AD60: 0 | AF60: 0 | AL60: 0 | AO60: 0 | AU60: 0 | BG60: 0 | BO60: 0
A61: 11 | X61: 0 | AD61: 0 | AF61: 0 | AL61: 0 | AO61: 0 | AU61: 0 | BG61: 0 | BO61: 0
A62: 12 | X62: 0 | AD62: 0 | AF62: 0 | AL62: 0 | AO62: 0 | AU62: 0 | BG62: 0 | BO62: 0
A63: 13 | X63: 0 | AD63: 0 | AF63: 0 | AL63: 0 | AO63: 0 | AU63: 0 | BG63: 0 | BO63: 0
A64: 14 | X64: 0 | AF64: 0 | AO64: 0
A65: 15 | X65: 0 | AF65: 0 | AO65: 0
A66: 16 | X66: 0 | AF66: 0 | AO66: 0
A67: 17 | X67: 0 | AF67: 0 | AO67: 0
A68: 18 | X68: 0 | AF68: 0 | AO68: 0
A69: 19 | X69: 0 | AF69: 0 | AO69: 0
A70: 20 | X70: 0 | AF70: 0 | AO70: 0
A71: 21 | X71: 0 | AF71: 0 | AO71: 0
A72: 22 | N72: =IF(D72<>1,(M72-M71)/(D72/1000)*SQRT((D72/D71)),0) ->  | X72: 0 | AF72: 0 | AO72: 0
A73: 23 | X73: 0 | AF73: 0 | AO73: 0
A74: 24 | X74: 0 | AF74: 0 | AO74: 0
A75: 25 | X75: 0 | AF75: 0 | AO75: 0
A76: 26 | X76: 0 | AF76: 0 | AO76: 0
A77: 27 | X77: 0 | AF77: 0 | AO77: 0
A78: 28 | X78: 0 | AF78: 0 | AO78: 0
A79: 29 | X79: 0 | AF79: 0 | AO79: 0
A80: 30 | X80: 0 | AF80: 0 | AO80: 0
A81: 31 | X81: 0 | AF81: 0 | AO81: 0
A82: 32 | F82: =E82*Aufzeichnung_Rollenumfang/60/1000 ->  | X82: 0 | AF82: 0 | AO82: 0
A83: 33 | F83: =E83*Aufzeichnung_Rollenumfang/60/1000 ->  | X83: 0 | AF83: 0 | AO83: 0
A84: 34 | X84: 0 | AF84: 0 | AO84: 0
A85: 35 | X85: 0 | AF85: 0 | AO85: 0
A86: 36 | X86: 0 | AF86: 0 | AO86: 0
A87: 37 | X87: 0 | AF87: 0 | AO87: 0
A88: 38 | X88: 0 | AF88: 0 | AO88: 0
A89: 39 | X89: 0 | AF89: 0 | AO89: 0
A90: 40 | X90: 0 | AF90: 0 | AO90: 0
A91: 41 | X91: 0 | AF91: 0 | AO91: 0
A92: 42 | X92: 0 | AF92: 0 | AO92: 0
A93: 43 | X93: 0 | AF93: 0 | AO93: 0
A94: 44 | X94: 0 | AF94: 0 | AO94: 0
A95: 45 | X95: 0 | AF95: 0 | AO95: 0
A96: 46 | X96: 0 | AF96: 0 | AO96: 0
A97: 47 | X97: 0 | AF97: 0 | AO97: 0
A98: 48 | X98: 0 | AF98: 0 | AO98: 0
A99: 49 | X99: 0 | AF99: 0 | AO99: 0
A100: 50 | X100: 0 | AF100: 0 | AO100: 0
A101: 51 | X101: 0 | AF101: 0 | AO101: 0
A102: 52 | X102: 0 | AF102: 0 | AO102: 0
A103: 53 | X103: 0 | AF103: 0 | AO103: 0
A104: 54 | X104: 0 | AF104: 0 | AO104: 0
A105: 55 | X105: 0 | AF105: 0 | AO105: 0
A106: 56 | X106: 0 | AF106: 0 | AO106: 0
A107: 57 | X107: 0 | AF107: 0 | AO107: 0
A108: 58 | X108: 0 | AF108: 0 | AO108: 0
A109: 59 | X109: 0 | AF109: 0 | AO109: 0
A110: 60 | X110: 0 | AF110: 0 | AO110: 0
A111: 61 | X111: 0 | AF111: 0 | AO111: 0
A112: 62 | X112: 0 | AF112: 0 | AO112: 0
A113: 63 | X113: 0 | AF113: 0 | AO113: 0
A114: 64 | X114: 0 | AF114: 0 | AO114: 0
A115: 65 | E115: =C115*60*1000/Aufzeichnung_Impulse/D115 ->  | F115: =E115*Aufzeichnung_Rollenumfang/60/1000 ->  | H115: =E115*Aufzeichnung_Reifenübersetzung ->  | I115: =Aufzeichnung_Übersetzung_berechnet*E115 ->  | K115: =Aufzeichnung_Übersetzung_gemessen*E115 ->  | L115: =IF(Aufzeichnung_Messen="JA",K115,I115) ->  | O115: =IF(Aufzeichnung_LiveNM_Aktiv,IF(OR(AW115<=0,N115=0),0,Aufzeichnung_NM_Faktor*N115+Aufzeichnung_Verluste+AW115),IF(N115>0,Aufzeichnung_NM_Faktor*N115+Aufzeichnung_Verluste,IF(N115<0,Aufzeichnung_NM_Faktor*N115+Aufzeichnung_Verluste_Rolle,0))) ->  | P115: =O115/Aufzeichnung_Übersetzung ->  | Q115: =IF(Aufzeichnung_Messen="JA",2*PI()*K115/60*P115,2*PI()*I115/60*P115) ->  | X115: =W115*Aufzeichnung_EGT_Korrekturfaktor -> 0 | Y115: =Aufzeichnung_EGT_NM+(X115-Aufzeichnung_EGT_Standard)/Aufzeichnung_EGT_Auflösung_vertikal*($AC$52-$AC$51) ->  | AF115: =AE115*Aufzeichnung_Lambda_Korrekturfaktor*Aufzeichnung_Als_AFR -> 0 | AG115: =Aufzeichnung_Lambda_NM+(AF115-Aufzeichnung_Lambda_Standard)/Aufzeichnung_Lambda_Auflösung_vertikal*($AK$52-$AK$51) ->  | AO115: =IF(Aufzeichnung_LiveUmin_Auswahl_Vario="",IF(BP115<>"",AM115/BP115*100-100,0),AM115) -> 0 | AP115: =Aufzeichnung_LiveUmin_NM+(AO115-Aufzeichnung_LiveUmin_Standard)/Aufzeichnung_LiveUmin_Auflösung_vertikal*($AT$51-$AT$52) ->  | BB115: =Aufzeichnung_Analog1_NM+(BA115-Aufzeichnung_Analog1_Standard)/Aufzeichnung_Analog1_Auflösung_vertikal*($BF$52-$BF$51) ->  | BJ115: =Aufzeichnung_Analog2_NM+(BI115-Aufzeichnung_Analog2_Standard)/Aufzeichnung_Analog2_Auflösung_vertikal*($BN$52-$BN$51) ->  | BQ115: =B115/Aufzeichnung_Impulse/Aufzeichnung_Messzyklus*Aufzeichnung_Rollenumfang*3.6 -> 
A116: 66 | G116: =F116*3.6 ->  | M116: =2*PI()*E116/60 ->  | N116: =IF(D116<>1,(M116-M115)/(D116/1000)*SQRT((D116/D115)),0) ->  | R116: =Q116*1.36/1000 ->  | S116: =AVERAGE(R115:R116) ->  | T116: =AVERAGE(P115:P116) ->  | V116: =AVERAGE(G115:G116) ->  | X116: 0 | AF116: 0 | AO116: 0
A117: 67 | U117: =AVERAGE(L116:L117) ->  | X117: 0 | AF117: 0 | AO117: 0
A118: 68 | X118: 0 | AF118: 0 | AO118: 0
A119: 69 | X119: 0 | AF119: 0 | AO119: 0
A120: 70 | X120: 0 | AF120: 0 | AO120: 0
A121: 71 | X121: 0 | AF121: 0 | AO121: 0
A122: 72 | X122: 0 | AF122: 0 | AO122: 0
A123: 73 | X123: 0 | AF123: 0 | AO123: 0
A124: 74 | X124: 0 | AF124: 0 | AO124: 0
A125: 75 | X125: 0 | AF125: 0 | AO125: 0
A126: 76 | X126: 0 | AF126: 0 | AO126: 0
A127: 77 | X127: 0 | AF127: 0 | AO127: 0
A128: 78 | X128: 0 | AF128: 0 | AO128: 0
A129: 79 | X129: 0 | AF129: 0 | AO129: 0
A130: 80 | X130: 0 | AF130: 0 | AO130: 0
A131: 81 | X131: 0 | AF131: 0 | AO131: 0
A132: 82 | X132: 0 | AF132: 0 | AO132: 0
A133: 83 | X133: 0 | AF133: 0 | AO133: 0
A134: 84 | X134: 0 | AF134: 0 | AO134: 0
A135: 85 | X135: 0 | AF135: 0 | AO135: 0
A136: 86 | X136: 0 | AF136: 0 | AO136: 0
A137: 87 | X137: 0 | AF137: 0 | AO137: 0
A138: 88 | X138: 0 | AF138: 0 | AO138: 0
A139: 89 | X139: 0 | AF139: 0 | AO139: 0
A140: 90 | F140: =E140*Aufzeichnung_Rollenumfang/60/1000 ->  | X140: 0 | AF140: 0 | AO140: 0
A141: 91 | X141: 0 | AF141: 0 | AO141: 0
A142: 92 | X142: 0 | AF142: 0 | AO142: 0
A143: 93 | X143: 0 | AF143: 0 | AO143: 0
A144: 94 | X144: 0 | AF144: 0 | AO144: 0
A145: 95 | X145: 0 | AF145: 0 | AO145: 0
A146: 96 | X146: 0 | AF146: 0 | AO146: 0
A147: 97 | X147: 0 | AF147: 0 | AO147: 0
A148: 98 | X148: 0 | AF148: 0 | AO148: 0
A149: 99 | X149: 0 | AF149: 0 | AO149: 0
A150: 100 | X150: 0 | AF150: 0 | AO150: 0
A151: 101 | X151: 0 | AF151: 0 | AO151: 0
A152: 102 | X152: 0 | AF152: 0 | AO152: 0
A153: 103 | X153: 0 | AF153: 0 | AO153: 0
A154: 104 | X154: 0 | AF154: 0 | AO154: 0
A155: 105 | X155: 0 | AF155: 0 | AO155: 0
A156: 106 | X156: 0 | AF156: 0 | AO156: 0
A157: 107 | X157: 0 | AF157: 0 | AO157: 0
A158: 108 | X158: 0 | AF158: 0 | AO158: 0
A159: 109 | X159: 0 | AF159: 0 | AO159: 0
A160: 110 | X160: 0 | AF160: 0 | AO160: 0
A161: 111 | X161: 0 | AF161: 0 | AO161: 0
A162: 112 | X162: 0 | AF162: 0 | AO162: 0
A163: 113 | X163: 0 | AF163: 0 | AO163: 0
A164: 114 | X164: 0 | AF164: 0 | AO164: 0
A165: 115 | X165: 0 | AF165: 0 | AO165: 0
A166: 116 | X166: 0 | AF166: 0 | AO166: 0
A167: 117 | X167: 0 | AF167: 0 | AO167: 0
A168: 118 | F168: =E168*Aufzeichnung_Rollenumfang/60/1000 ->  | X168: 0 | AF168: 0 | AO168: 0
A169: 119 | X169: 0 | AF169: 0 | AO169: 0
A170: 120 | X170: 0 | AF170: 0 | AO170: 0
A171: 121 | X171: 0 | AF171: 0 | AO171: 0
A172: 122 | X172: 0 | AF172: 0 | AO172: 0
A173: 123 | X173: 0 | AF173: 0 | AO173: 0
A174: 124 | X174: 0 | AF174: 0 | AO174: 0
A175: 125 | X175: 0 | AF175: 0 | AO175: 0
A176: 126 | X176: 0 | AF176: 0 | AO176: 0
A177: 127 | X177: 0 | AF177: 0 | AO177: 0
A178: 128 | X178: 0 | AF178: 0 | AO178: 0
A179: 129 | E179: =C179*60*1000/Aufzeichnung_Impulse/D179 ->  | H179: =E179*Aufzeichnung_Reifenübersetzung ->  | I179: =Aufzeichnung_Übersetzung_berechnet*E179 ->  | K179: =Aufzeichnung_Übersetzung_gemessen*E179 ->  | L179: =IF(Aufzeichnung_Messen="JA",K179,I179) ->  | O179: =IF(Aufzeichnung_LiveNM_Aktiv,IF(OR(AW179<=0,N179=0),0,Aufzeichnung_NM_Faktor*N179+Aufzeichnung_Verluste+AW179),IF(N179>0,Aufzeichnung_NM_Faktor*N179+Aufzeichnung_Verluste,IF(N179<0,Aufzeichnung_NM_Faktor*N179+Aufzeichnung_Verluste_Rolle,0))) ->  | P179: =O179/Aufzeichnung_Übersetzung ->  | Q179: =IF(Aufzeichnung_Messen="JA",2*PI()*K179/60*P179,2*PI()*I179/60*P179) ->  | X179: =W179*Aufzeichnung_EGT_Korrekturfaktor -> 0 | Y179: =Aufzeichnung_EGT_NM+(X179-Aufzeichnung_EGT_Standard)/Aufzeichnung_EGT_Auflösung_vertikal*($AC$52-$AC$51) ->  | AF179: =AE179*Aufzeichnung_Lambda_Korrekturfaktor*Aufzeichnung_Als_AFR -> 0 | AG179: =Aufzeichnung_Lambda_NM+(AF179-Aufzeichnung_Lambda_Standard)/Aufzeichnung_Lambda_Auflösung_vertikal*($AK$52-$AK$51) ->  | AO179: =IF(Aufzeichnung_LiveUmin_Auswahl_Vario="",IF(BP179<>"",AM179/BP179*100-100,0),AM179) -> 0 | AP179: =Aufzeichnung_LiveUmin_NM+(AO179-Aufzeichnung_LiveUmin_Standard)/Aufzeichnung_LiveUmin_Auflösung_vertikal*($AT$51-$AT$52) ->  | BB179: =Aufzeichnung_Analog1_NM+(BA179-Aufzeichnung_Analog1_Standard)/Aufzeichnung_Analog1_Auflösung_vertikal*($BF$52-$BF$51) ->  | BJ179: =Aufzeichnung_Analog2_NM+(BI179-Aufzeichnung_Analog2_Standard)/Aufzeichnung_Analog2_Auflösung_vertikal*($BN$52-$BN$51) ->  | BQ179: =B179/Aufzeichnung_Impulse/Aufzeichnung_Messzyklus*Aufzeichnung_Rollenumfang*3.6 -> 
A180: 130 | G180: =F180*3.6 ->  | M180: =2*PI()*E180/60 ->  | N180: =IF(D180<>1,(M180-M179)/(D180/1000)*SQRT((D180/D179)),0) ->  | R180: =Q180*1.36/1000 ->  | S180: =AVERAGE(R179:R180) ->  | T180: =AVERAGE(P179:P180) ->  | V180: =AVERAGE(G179:G180) ->  | X180: 0 | AF180: 0 | AO180: 0
A181: 131 | U181: =AVERAGE(L180:L181) ->  | X181: 0 | AF181: 0 | AO181: 0
A182: 132 | X182: 0 | AF182: 0 | AO182: 0
A183: 133 | X183: 0 | AF183: 0 | AO183: 0
A184: 134 | X184: 0 | AF184: 0 | AO184: 0
A185: 135 | X185: 0 | AF185: 0 | AO185: 0
A186: 136 | X186: 0 | AF186: 0 | AO186: 0
A187: 137 | X187: 0 | AF187: 0 | AO187: 0
A188: 138 | X188: 0 | AF188: 0 | AO188: 0
A189: 139 | X189: 0 | AF189: 0 | AO189: 0
A190: 140 | X190: 0 | AF190: 0 | AO190: 0
A191: 141 | X191: 0 | AF191: 0 | AO191: 0
A192: 142 | X192: 0 | AF192: 0 | AO192: 0
A193: 143 | X193: 0 | AF193: 0 | AO193: 0
A194: 144 | X194: 0 | AF194: 0 | AO194: 0
A195: 145 | X195: 0 | AF195: 0 | AO195: 0
A196: 146 | X196: 0 | AF196: 0 | AO196: 0
A197: 147 | X197: 0 | AF197: 0 | AO197: 0
A198: 148 | X198: 0 | AF198: 0 | AO198: 0
A199: 149 | X199: 0 | AF199: 0 | AO199: 0
A200: 150 | X200: 0 | AF200: 0 | AO200: 0
A201: 151 | X201: 0 | AF201: 0 | AO201: 0
A202: 152 | X202: 0 | AF202: 0 | AO202: 0
A203: 153 | X203: 0 | AF203: 0 | AO203: 0
A204: 154 | X204: 0 | AF204: 0 | AO204: 0
A205: 155 | X205: 0 | AF205: 0 | AO205: 0
A206: 156 | X206: 0 | AF206: 0 | AO206: 0
A207: 157 | X207: 0 | AF207: 0 | AO207: 0
A208: 158 | X208: 0 | AF208: 0 | AO208: 0
A209: 159 | X209: 0 | AF209: 0 | AO209: 0
A210: 160 | X210: 0 | AF210: 0 | AO210: 0
A211: 161 | X211: 0 | AF211: 0 | AO211: 0
A212: 162 | X212: 0 | AF212: 0 | AO212: 0
A213: 163 | X213: 0 | AF213: 0 | AO213: 0
A214: 164 | X214: 0 | AF214: 0 | AO214: 0
A215: 165 | X215: 0 | AF215: 0 | AO215: 0
A216: 166 | X216: 0 | AF216: 0 | AO216: 0
A217: 167 | X217: 0 | AF217: 0 | AO217: 0
A218: 168 | X218: 0 | AF218: 0 | AO218: 0
A219: 169 | X219: 0 | AF219: 0 | AO219: 0
A220: 170 | X220: 0 | AF220: 0 | AO220: 0
A221: 171 | X221: 0 | AF221: 0 | AO221: 0
A222: 172 | X222: 0 | AF222: 0 | AO222: 0
A223: 173 | X223: 0 | AF223: 0 | AO223: 0
A224: 174 | X224: 0 | AF224: 0 | AO224: 0
A225: 175 | X225: 0 | AF225: 0 | AO225: 0
A226: 176 | X226: 0 | AF226: 0 | AO226: 0
A227: 177 | X227: 0 | AF227: 0 | AO227: 0
A228: 178 | X228: 0 | AF228: 0 | AO228: 0
... 822 more rows

Sheet Aufzeichnung 10 (hidden)
B2: Nummer:
D8: TRUE
B25: Ergebnis
B26: Leistung | C26: =IF(ISERROR(MAX(R51:R1050)),0,MAX(R51:R1050)) -> 0 | D26: Drehmoment | E26: =IF(ISERROR(MAX(P51:P1050)),0,MAX(P51:P1050)) -> 0 | F26: maxDrehzahl | G26: =IF(ISERROR(MAX(L51:L1050)),0,MAX(L51:L1050)) -> 0 | H26: max x-Achse | J26: Software: v5.191227
B27: Drehzahl | C27: =IF(ISERROR(INDEX(L51:L1050,MATCH(C26,R51:R1050,0))),0,INDEX(L51:L1050,MATCH(C26,R51:R1050,0))) -> 0 | D27: Drehzahl | E27: =IF(ISERROR(INDEX(U51:U1050,MATCH(E26,P51:P1050,0))),0,INDEX(U51:U1050,MATCH(E26,P51:P1050,0))) -> 0 | F27: Vmax | G27: =IF(ISERROR(MAX(G51:G1050)),0,MAX(G51:G1050)) -> 0 | H27: min x-Achse
B28: Übersetzung | C28: =IF(ISERROR(ROUND(IF(Aufzeichnung_Messen="JA",Aufzeichnung_Übersetzung_gemessen,Aufzeichnung_Übersetzung_berechnet),2)),1,ROUND(IF(Aufzeichnung_Messen="JA",Aufzeichnung_Übersetzung_gemessen,Aufzeichnung_Übersetzung_berechnet),2)) -> 1 | D28: Luftdruck | F28: Temperatur | H28: Luftfeuchte
B30: Getriebe | D30: =IF(#REF!,#REF!,IF(OR(#REF!,Aufzeichnung_Rechenbare_Punkte=0),#REF!,#REF!)) -> 
B31: freie Eingabe | D31: Übersetzung messen | F31: Auspuff | K31: Details
B32: Gang Z1 | D32: Zündungstype | F32: Kurbelwelle | H32: Name
B33: Z2 | D33: Zylinder | F33: Maße | H33: Kommentar
B34: Gang Z2 | D34: Vergaser | F34: Zeiten
B35: Z2 | D35: Zündung | F35: Ansaugsystem
B36: Reifenumfang | D36: Zündeinstellung | F36: Bedüsung
B37: Reifenschlupf | C37: 0 | D37: Schwungrad
B42: Prüfstand | F42: Messzyklus | H42: Gemessene Übersetzung | J42: {EGT Standard} | L42: {EGT Auflösung vertikal} | N42: Lambda Standard | P42: Lambda Auflösung | R42: CRC Daten | U42: drar | W42: LiveUmin Standard | Z42: LiveUmin Auflösung | AB42: LiveNM Aktiv | AD42: FALSE | AE42: Analog1 Standard | AG42: Analog1 Auflösung | AI42: Analog2 Standard | AK42: Analog2 Auflösung
A43: Rollenumfang | D43: Verluste Rolle nur Pnorm | F43: Zündung (nur bei Messverfahren) | H43: Berechnete Übersetzung | I43: =IF(Aufzeichnung_Übersetzung_Manuelle_Eingabe<>"",Aufzeichnung_Übersetzung_Manuelle_Eingabe,IF(ISERROR((Aufzeichnung_Primär_Z2/Aufzeichnung_Primär_Z1)*(Aufzeichnung_Getriebe_Z2/Aufzeichnung_Getriebe_Z1)*Aufzeichnung_Reifenübersetzung),1,(Aufzeichnung_Primär_Z2/Aufzeichnung_Primär_Z1)*(Aufzeichnung_Getriebe_Z2/Aufzeichnung_Getriebe_Z1)*Aufzeichnung_Reifenübersetzung)) -> 1 | J43: {EGT Korr} | N43: Lambda Korrektur | P43: AFR | Q43: 1 | R43: CRC Werte | W43: LiveUmin Korrektur | AB43: LiveNM Faktor | AE43: Analog1 Korrektur | AG43: Analog1 Faktor | AI43: Analog2 Korrektur | AK43: Analog2 Faktor
A44: Trägheitsmoment | D44: Verluste Rolle[NM] | E44: 0 | F44: Rechenbare Punke | H44: Reifen/Rollenübersetzung+ Schlupf | I44: =IF(ISERROR(Aufzeichnung_Rollenumfang/(Aufzeichnung_Reifen*(1+Aufzeichnung_Reifenschlupf))),1,Aufzeichnung_Rollenumfang/(Aufzeichnung_Reifen*(1+Aufzeichnung_Reifenschlupf))) -> 1 | J44: {EGT NM} | N44: Lambda NM | R44: CRC Daten lokal | W44: LiveUmin NM | AB44: Langzeitmessung | AD44: Falsch | AE44: Analog1 NM | AI44: Analog2 NM
B45: Impulse | D45: Verlust NM | E45: 0 | F45: Verluste [NM] | G45: 0 | H45: Prüfstandfaktor | J45: {EGT U/Min} | N45: Lambda U/Min | R45: CRC Werte lokal | W45: LiveUmin U/Min | AE45: Analog1 U/Min | AI45: Analog2 U/Min
A46: FahrzeugID | E46: DIN PS Faktor | F46: JA | G46: =IF(ISERROR((1013/(Aufzeichnung_Luftdruck-Aufzeichnung_Faktor_Feuchte))*((273+Aufzeichnung_Temperatur)/293)),1,(1013/(Aufzeichnung_Luftdruck-Aufzeichnung_Faktor_Feuchte))*((273+Aufzeichnung_Temperatur)/293)) -> 1 | H46: Aktueller NMFaktor | I46: =IF(1=1,drar(),Aufzeichnung_DINPS_Faktor&Aufzeichnung_DIN_PS_Faktor_Aktiv) -> 0 | J46: {EGT Anzahl} | N46: Lambda Anzahl | R46: Version | W46: LiveUmin Anzahl | AE46: Analog1 Anzahl | AI46: Analog2 Anzahl
B47: Detailstype | D47: Gesamtpunkte | F47: Feuchtekorrektur | G47: =(Aufzeichnung_Feuchte*(2.408*10^11*(300/(Aufzeichnung_Temperatur+273.15))^5 *EXP(-22.644*(300/(Aufzeichnung_Temperatur+273.15))))/100) -> 0
A49: lfd Nr. | B49: Impulse | C49: Drehzahl Rolle | H49: Drehzahl Reifen | I49: Drehzahl KW berechnet | J49: Drehzahl KW gemessen | L49: Drehzahl | M49: Winkelgeschwindigkeit | N49: Winkelbeschleunigung | O49: Drehmoment | Q49: Leistung | S49: Anzeige PS | T49: Anzeige NM | U49: Anzeige Drehzahl | V49: Anzeige kmh | W49: EGT | AE49: Lambda | AM49: Livedrehzahl | AV49: LiveNM | AX49: Zeit | AZ49: Analog1 | BH49: Analog2 | BP49: Allgemein Optionen
A50: lfdNr | B50: Werte | C50: Messwerte Berechnet | D50: Zyklus berechnet | E50: U/min | F50: m/s | G50: km/h | H50: U/min | I50: U/min | J50: Werte | K50: U/min | L50: U/min | M50: rad/sec | N50: rad/sec² | O50: am Rad Trägheit | P50: mit Übersetzung | Q50: W | R50: PS | S50: PS | T50: NM | U50: Umin | W50: Messwerte EGT | X50: Werte aufb. | Y50: auf NM | Z50: Horizontal1 | AA50: Horizonal2 | AB50: Vertikal1 | AC50: Vertikal1 NM | AD50: Vertikal2 | AE50: Messwerte Lambda | AF50: Werte aufb. | AG50: auf NM | AH50: Horizontal1 | AI50: Horizonal2 | AJ50: Vertikal1 | AK50: Vertikal1 NM | AL50: Vertikal2 | AM50: LiveDrezahl mit Funkenaufteilung | AN50: Live Umin berechnet | AO50: Werte aufb | AP50: auf NM | AQ50: Horizontal1 | AR50: Horizontal2 | AS50: Vertikal1 | AT50: Vertikal1NM | AU50: Vertikal2 | AV50: Messwerte LiveNM | AW50: Messwerte_LiveNM_berechnet | AX50: sekunden | AY50: Anzeige | AZ50: Messwerte_Analog1 | BA50: Werte aufb. | BB50: auf NM | BC50: Horizontal1 | BD50: Horizonal2 | BE50: Vertikal1 | BF50: Vertikal1 NM | BG50: Vertikal2 | BH50: Messwerte_Analog2 | BI50: Werte aufb. | BJ50: auf NM | BK50: Horizontal1 | BL50: Horizonal2 | BM50: Vertikal1 | BN50: Vertikal1 NM | BO50: Vertikal2 | BP50: Drehzahl | BQ50: KMH
A51: 1 | E51: =C51*60*1000/Aufzeichnung_Impulse/D51 ->  | F51: =E51*Aufzeichnung_Rollenumfang/60/1000 ->  | G51: =F51*3.6 ->  | H51: =E51*Aufzeichnung_Reifenübersetzung ->  | I51: =Aufzeichnung_Übersetzung_berechnet*E51 ->  | K51: =Aufzeichnung_Übersetzung_gemessen*E51 ->  | L51: =IF(Aufzeichnung_Messen="JA",K51,I51) ->  | M51: =2*PI()*E51/60 ->  | N51: 0 | O51: =IF(Aufzeichnung_LiveNM_Aktiv,IF(OR(AW51<=0,N51=0),0,Aufzeichnung_NM_Faktor*N51+Aufzeichnung_Verluste+AW51),IF(N51>0,Aufzeichnung_NM_Faktor*N51+Aufzeichnung_Verluste,IF(N51<0,Aufzeichnung_NM_Faktor*N51+Aufzeichnung_Verluste_Rolle,0))) -> 0 | P51: =O51/Aufzeichnung_Übersetzung -> 0 | Q51: =IF(Aufzeichnung_Messen="JA",2*PI()*K51/60*P51,2*PI()*I51/60*P51) ->  | R51: =Q51*1.36/1000 ->  | S51: =AVERAGE(R50:R51) ->  | T51: =AVERAGE(P50:P51) -> 0 | U51: =AVERAGE(L50:L51) ->  | V51: =AVERAGE(G50:G51) ->  | X51: =W51*Aufzeichnung_EGT_Korrekturfaktor -> 0 | Y51: =Aufzeichnung_EGT_NM+(X51-Aufzeichnung_EGT_Standard)/Aufzeichnung_EGT_Auflösung_vertikal*($AC$52-$AC$51) ->  | Z51: =Aufzeichnung_EGT_NM -> 0 | AA51: 0 | AD51: =Aufzeichnung_EGT_Umin -> 0 | AF51: =AE51*Aufzeichnung_Lambda_Korrekturfaktor*Aufzeichnung_Als_AFR -> 0 | AG51: =Aufzeichnung_Lambda_NM+(AF51-Aufzeichnung_Lambda_Standard)/Aufzeichnung_Lambda_Auflösung_vertikal*($AK$52-$AK$51) ->  | AH51: =Aufzeichnung_Lambda_NM -> 0 | AI51: 0 | AL51: =Aufzeichnung_Lambda_Umin -> 0 | AO51: =IF(Aufzeichnung_LiveUmin_Auswahl_Vario="",IF(BP51<>"",AM51/BP51*100-100,0),AM51) -> 0 | AP51: =Aufzeichnung_LiveUmin_NM+(AO51-Aufzeichnung_LiveUmin_Standard)/Aufzeichnung_LiveUmin_Auflösung_vertikal*($AT$51-$AT$52) ->  | AQ51: =Aufzeichnung_LiveUmin_NM -> 0 | AR51: 0 | AU51: =Aufzeichnung_LiveUmin_Umin -> 0 | BB51: =Aufzeichnung_Analog1_NM+(BA51-Aufzeichnung_Analog1_Standard)/Aufzeichnung_Analog1_Auflösung_vertikal*($BF$52-$BF$51) ->  | BC51: =Aufzeichnung_Analog1_NM -> 0 | BD51: 0 | BG51: =Aufzeichnung_Analog1_Umin -> 0 | BJ51: =Aufzeichnung_Analog2_NM+(BI51-Aufzeichnung_Analog2_Standard)/Aufzeichnung_Analog2_Auflösung_vertikal*($BN$52-$BN$51) ->  | BK51: =Aufzeichnung_Analog2_NM -> 0 | BL51: 0 | BO51: =Aufzeichnung_Analog2_Umin -> 0 | BQ51: =B51/Aufzeichnung_Impulse/Aufzeichnung_Messzyklus*Aufzeichnung_Rollenumfang*3.6 -> 
A52: 2 | F52: =E52*Aufzeichnung_Rollenumfang/60/1000 ->  | G52: =F52*3.6 ->  | M52: =2*PI()*E52/60 ->  | N52: =IF(D52<>1,(M52-M51)/(D52/1000)*SQRT((D52/D51)),0) ->  | R52: =Q52*1.36/1000 ->  | S52: =AVERAGE(R51:R52) ->  | T52: =AVERAGE(P51:P52) ->  | U52: =AVERAGE(L51:L52) ->  | V52: =AVERAGE(G51:G52) ->  | X52: 0 | Y52: =Aufzeichnung_EGT_NM+(X52-Aufzeichnung_EGT_Standard)/Aufzeichnung_EGT_Auflösung_vertikal*($AC$52-$AC$51) ->  | Z52: =Aufzeichnung_EGT_NM -> 0 | AA52: 30000 | AD52: 0 | AF52: 0 | AH52: =Aufzeichnung_Lambda_NM -> 0 | AI52: 30000 | AL52: 0 | AO52: 0 | AQ52: =Aufzeichnung_LiveUmin_NM -> 0 | AR52: 30000 | AU52: 0 | BC52: =Aufzeichnung_Analog1_NM -> 0 | BD52: 300 | BG52: 0 | BJ52: =Aufzeichnung_Analog2_NM+(BI52-Aufzeichnung_Analog2_Standard)/Aufzeichnung_Analog2_Auflösung_vertikal*($BN$52-$BN$51) ->  | BK52: =Aufzeichnung_Analog2_NM -> 0 | BL52: 300 | BO52: 0
A53: 3 | F53: =E53*Aufzeichnung_Rollenumfang/60/1000 ->  | H53: =E53*Aufzeichnung_Reifenübersetzung ->  | I53: =Aufzeichnung_Übersetzung_berechnet*E53 ->  | K53: =Aufzeichnung_Übersetzung_gemessen*E53 ->  | L53: =IF(Aufzeichnung_Messen="JA",K53,I53) ->  | U53: =AVERAGE(L52:L53) ->  | X53: 0 | AD53: 0 | AF53: 0 | AL53: 0 | AO53: 0 | AU53: 0 | BG53: 0 | BO53: 0
A54: 4 | X54: 0 | AD54: 0 | AF54: 0 | AL54: 0 | AO54: 0 | AU54: 0 | BG54: 0 | BO54: 0
A55: 5 | X55: 0 | AD55: 0 | AF55: 0 | AL55: 0 | AO55: 0 | AU55: 0 | BG55: 0 | BO55: 0
A56: 6 | X56: 0 | AD56: 0 | AF56: 0 | AL56: 0 | AO56: 0 | AU56: 0 | BG56: 0 | BO56: 0
A57: 7 | X57: 0 | AD57: 0 | AF57: 0 | AL57: 0 | AO57: 0 | AU57: 0 | BG57: 0 | BO57: 0
A58: 8 | X58: 0 | AD58: 0 | AF58: 0 | AL58: 0 | AO58: 0 | AU58: 0 | BG58: 0 | BO58: 0
A59: 9 | Q59: =IF(Aufzeichnung_Messen="JA",2*PI()*K59/60*P59,2*PI()*I59/60*P59) ->  | X59: 0 | AD59: 0 | AF59: 0 | AL59: 0 | AO59: 0 | AU59: 0 | BG59: 0 | BO59: 0
A60: 10 | X60: 0 | AD60: 0 | AF60: 0 | AL60: 0 | AO60: 0 | AU60: 0 | BG60: 0 | BO60: 0
A61: 11 | X61: 0 | AD61: 0 | AF61: 0 | AL61: 0 | AO61: 0 | AU61: 0 | BG61: 0 | BO61: 0
A62: 12 | X62: 0 | AD62: 0 | AF62: 0 | AL62: 0 | AO62: 0 | AU62: 0 | BG62: 0 | BO62: 0
A63: 13 | X63: 0 | AD63: 0 | AF63: 0 | AL63: 0 | AO63: 0 | AU63: 0 | BG63: 0 | BO63: 0
A64: 14 | X64: 0 | AF64: 0 | AO64: 0
A65: 15 | X65: 0 | AF65: 0 | AO65: 0
A66: 16 | X66: 0 | AF66: 0 | AO66: 0
A67: 17 | X67: 0 | AF67: 0 | AO67: 0
A68: 18 | X68: 0 | AF68: 0 | AO68: 0
A69: 19 | X69: 0 | AF69: 0 | AO69: 0
A70: 20 | X70: 0 | AF70: 0 | AO70: 0
A71: 21 | X71: 0 | AF71: 0 | AO71: 0
A72: 22 | N72: =IF(D72<>1,(M72-M71)/(D72/1000)*SQRT((D72/D71)),0) ->  | X72: 0 | AF72: 0 | AO72: 0
A73: 23 | X73: 0 | AF73: 0 | AO73: 0
A74: 24 | X74: 0 | AF74: 0 | AO74: 0
A75: 25 | X75: 0 | AF75: 0 | AO75: 0
A76: 26 | X76: 0 | AF76: 0 | AO76: 0
A77: 27 | X77: 0 | AF77: 0 | AO77: 0
A78: 28 | X78: 0 | AF78: 0 | AO78: 0
A79: 29 | X79: 0 | AF79: 0 | AO79: 0
A80: 30 | X80: 0 | AF80: 0 | AO80: 0
A81: 31 | X81: 0 | AF81: 0 | AO81: 0
A82: 32 | F82: =E82*Aufzeichnung_Rollenumfang/60/1000 ->  | X82: 0 | AF82: 0 | AO82: 0
A83: 33 | F83: =E83*Aufzeichnung_Rollenumfang/60/1000 ->  | X83: 0 | AF83: 0 | AO83: 0
A84: 34 | X84: 0 | AF84: 0 | AO84: 0
A85: 35 | X85: 0 | AF85: 0 | AO85: 0
A86: 36 | X86: 0 | AF86: 0 | AO86: 0
A87: 37 | X87: 0 | AF87: 0 | AO87: 0
A88: 38 | X88: 0 | AF88: 0 | AO88: 0
A89: 39 | X89: 0 | AF89: 0 | AO89: 0
A90: 40 | X90: 0 | AF90: 0 | AO90: 0
A91: 41 | X91: 0 | AF91: 0 | AO91: 0
A92: 42 | X92: 0 | AF92: 0 | AO92: 0
A93: 43 | X93: 0 | AF93: 0 | AO93: 0
A94: 44 | X94: 0 | AF94: 0 | AO94: 0
A95: 45 | X95: 0 | AF95: 0 | AO95: 0
A96: 46 | X96: 0 | AF96: 0 | AO96: 0
A97: 47 | X97: 0 | AF97: 0 | AO97: 0
A98: 48 | X98: 0 | AF98: 0 | AO98: 0
A99: 49 | X99: 0 | AF99: 0 | AO99: 0
A100: 50 | X100: 0 | AF100: 0 | AO100: 0
A101: 51 | X101: 0 | AF101: 0 | AO101: 0
A102: 52 | X102: 0 | AF102: 0 | AO102: 0
A103: 53 | X103: 0 | AF103: 0 | AO103: 0
A104: 54 | X104: 0 | AF104: 0 | AO104: 0
A105: 55 | X105: 0 | AF105: 0 | AO105: 0
A106: 56 | X106: 0 | AF106: 0 | AO106: 0
A107: 57 | X107: 0 | AF107: 0 | AO107: 0
A108: 58 | X108: 0 | AF108: 0 | AO108: 0
A109: 59 | X109: 0 | AF109: 0 | AO109: 0
A110: 60 | X110: 0 | AF110: 0 | AO110: 0
A111: 61 | X111: 0 | AF111: 0 | AO111: 0
A112: 62 | X112: 0 | AF112: 0 | AO112: 0
A113: 63 | X113: 0 | AF113: 0 | AO113: 0
A114: 64 | X114: 0 | AF114: 0 | AO114: 0
A115: 65 | E115: =C115*60*1000/Aufzeichnung_Impulse/D115 ->  | F115: =E115*Aufzeichnung_Rollenumfang/60/1000 ->  | H115: =E115*Aufzeichnung_Reifenübersetzung ->  | I115: =Aufzeichnung_Übersetzung_berechnet*E115 ->  | K115: =Aufzeichnung_Übersetzung_gemessen*E115 ->  | L115: =IF(Aufzeichnung_Messen="JA",K115,I115) ->  | O115: =IF(Aufzeichnung_LiveNM_Aktiv,IF(OR(AW115<=0,N115=0),0,Aufzeichnung_NM_Faktor*N115+Aufzeichnung_Verluste+AW115),IF(N115>0,Aufzeichnung_NM_Faktor*N115+Aufzeichnung_Verluste,IF(N115<0,Aufzeichnung_NM_Faktor*N115+Aufzeichnung_Verluste_Rolle,0))) ->  | P115: =O115/Aufzeichnung_Übersetzung ->  | Q115: =IF(Aufzeichnung_Messen="JA",2*PI()*K115/60*P115,2*PI()*I115/60*P115) ->  | X115: =W115*Aufzeichnung_EGT_Korrekturfaktor -> 0 | Y115: =Aufzeichnung_EGT_NM+(X115-Aufzeichnung_EGT_Standard)/Aufzeichnung_EGT_Auflösung_vertikal*($AC$52-$AC$51) ->  | AF115: =AE115*Aufzeichnung_Lambda_Korrekturfaktor*Aufzeichnung_Als_AFR -> 0 | AG115: =Aufzeichnung_Lambda_NM+(AF115-Aufzeichnung_Lambda_Standard)/Aufzeichnung_Lambda_Auflösung_vertikal*($AK$52-$AK$51) ->  | AO115: =IF(Aufzeichnung_LiveUmin_Auswahl_Vario="",IF(BP115<>"",AM115/BP115*100-100,0),AM115) -> 0 | AP115: =Aufzeichnung_LiveUmin_NM+(AO115-Aufzeichnung_LiveUmin_Standard)/Aufzeichnung_LiveUmin_Auflösung_vertikal*($AT$51-$AT$52) ->  | BB115: =Aufzeichnung_Analog1_NM+(BA115-Aufzeichnung_Analog1_Standard)/Aufzeichnung_Analog1_Auflösung_vertikal*($BF$52-$BF$51) ->  | BJ115: =Aufzeichnung_Analog2_NM+(BI115-Aufzeichnung_Analog2_Standard)/Aufzeichnung_Analog2_Auflösung_vertikal*($BN$52-$BN$51) ->  | BQ115: =B115/Aufzeichnung_Impulse/Aufzeichnung_Messzyklus*Aufzeichnung_Rollenumfang*3.6 -> 
A116: 66 | G116: =F116*3.6 ->  | M116: =2*PI()*E116/60 ->  | N116: =IF(D116<>1,(M116-M115)/(D116/1000)*SQRT((D116/D115)),0) ->  | R116: =Q116*1.36/1000 ->  | S116: =AVERAGE(R115:R116) ->  | T116: =AVERAGE(P115:P116) ->  | V116: =AVERAGE(G115:G116) ->  | X116: 0 | AF116: 0 | AO116: 0
A117: 67 | U117: =AVERAGE(L116:L117) ->  | X117: 0 | AF117: 0 | AO117: 0
A118: 68 | X118: 0 | AF118: 0 | AO118: 0
A119: 69 | X119: 0 | AF119: 0 | AO119: 0
A120: 70 | X120: 0 | AF120: 0 | AO120: 0
A121: 71 | X121: 0 | AF121: 0 | AO121: 0
A122: 72 | X122: 0 | AF122: 0 | AO122: 0
A123: 73 | X123: 0 | AF123: 0 | AO123: 0
A124: 74 | X124: 0 | AF124: 0 | AO124: 0
A125: 75 | X125: 0 | AF125: 0 | AO125: 0
A126: 76 | X126: 0 | AF126: 0 | AO126: 0
A127: 77 | X127: 0 | AF127: 0 | AO127: 0
A128: 78 | X128: 0 | AF128: 0 | AO128: 0
A129: 79 | X129: 0 | AF129: 0 | AO129: 0
A130: 80 | X130: 0 | AF130: 0 | AO130: 0
A131: 81 | X131: 0 | AF131: 0 | AO131: 0
A132: 82 | X132: 0 | AF132: 0 | AO132: 0
A133: 83 | X133: 0 | AF133: 0 | AO133: 0
A134: 84 | X134: 0 | AF134: 0 | AO134: 0
A135: 85 | X135: 0 | AF135: 0 | AO135: 0
A136: 86 | X136: 0 | AF136: 0 | AO136: 0
A137: 87 | X137: 0 | AF137: 0 | AO137: 0
A138: 88 | X138: 0 | AF138: 0 | AO138: 0
A139: 89 | X139: 0 | AF139: 0 | AO139: 0
A140: 90 | F140: =E140*Aufzeichnung_Rollenumfang/60/1000 ->  | X140: 0 | AF140: 0 | AO140: 0
A141: 91 | X141: 0 | AF141: 0 | AO141: 0
A142: 92 | X142: 0 | AF142: 0 | AO142: 0
A143: 93 | X143: 0 | AF143: 0 | AO143: 0
A144: 94 | X144: 0 | AF144: 0 | AO144: 0
A145: 95 | X145: 0 | AF145: 0 | AO145: 0
A146: 96 | X146: 0 | AF146: 0 | AO146: 0
A147: 97 | X147: 0 | AF147: 0 | AO147: 0
A148: 98 | X148: 0 | AF148: 0 | AO148: 0
A149: 99 | X149: 0 | AF149: 0 | AO149: 0
A150: 100 | X150: 0 | AF150: 0 | AO150: 0
A151: 101 | X151: 0 | AF151: 0 | AO151: 0
A152: 102 | X152: 0 | AF152: 0 | AO152: 0
A153: 103 | X153: 0 | AF153: 0 | AO153: 0
A154: 104 | X154: 0 | AF154: 0 | AO154: 0
A155: 105 | X155: 0 | AF155: 0 | AO155: 0
A156: 106 | X156: 0 | AF156: 0 | AO156: 0
A157: 107 | X157: 0 | AF157: 0 | AO157: 0
A158: 108 | X158: 0 | AF158: 0 | AO158: 0
A159: 109 | X159: 0 | AF159: 0 | AO159: 0
A160: 110 | X160: 0 | AF160: 0 | AO160: 0
A161: 111 | X161: 0 | AF161: 0 | AO161: 0
A162: 112 | X162: 0 | AF162: 0 | AO162: 0
A163: 113 | X163: 0 | AF163: 0 | AO163: 0
A164: 114 | X164: 0 | AF164: 0 | AO164: 0
A165: 115 | X165: 0 | AF165: 0 | AO165: 0
A166: 116 | X166: 0 | AF166: 0 | AO166: 0
A167: 117 | X167: 0 | AF167: 0 | AO167: 0
A168: 118 | F168: =E168*Aufzeichnung_Rollenumfang/60/1000 ->  | X168: 0 | AF168: 0 | AO168: 0
A169: 119 | X169: 0 | AF169: 0 | AO169: 0
A170: 120 | X170: 0 | AF170: 0 | AO170: 0
A171: 121 | X171: 0 | AF171: 0 | AO171: 0
A172: 122 | X172: 0 | AF172: 0 | AO172: 0
A173: 123 | X173: 0 | AF173: 0 | AO173: 0
A174: 124 | X174: 0 | AF174: 0 | AO174: 0
A175: 125 | X175: 0 | AF175: 0 | AO175: 0
A176: 126 | X176: 0 | AF176: 0 | AO176: 0
A177: 127 | X177: 0 | AF177: 0 | AO177: 0
A178: 128 | X178: 0 | AF178: 0 | AO178: 0
A179: 129 | E179: =C179*60*1000/Aufzeichnung_Impulse/D179 ->  | H179: =E179*Aufzeichnung_Reifenübersetzung ->  | I179: =Aufzeichnung_Übersetzung_berechnet*E179 ->  | K179: =Aufzeichnung_Übersetzung_gemessen*E179 ->  | L179: =IF(Aufzeichnung_Messen="JA",K179,I179) ->  | O179: =IF(Aufzeichnung_LiveNM_Aktiv,IF(OR(AW179<=0,N179=0),0,Aufzeichnung_NM_Faktor*N179+Aufzeichnung_Verluste+AW179),IF(N179>0,Aufzeichnung_NM_Faktor*N179+Aufzeichnung_Verluste,IF(N179<0,Aufzeichnung_NM_Faktor*N179+Aufzeichnung_Verluste_Rolle,0))) ->  | P179: =O179/Aufzeichnung_Übersetzung ->  | Q179: =IF(Aufzeichnung_Messen="JA",2*PI()*K179/60*P179,2*PI()*I179/60*P179) ->  | X179: =W179*Aufzeichnung_EGT_Korrekturfaktor -> 0 | Y179: =Aufzeichnung_EGT_NM+(X179-Aufzeichnung_EGT_Standard)/Aufzeichnung_EGT_Auflösung_vertikal*($AC$52-$AC$51) ->  | AF179: =AE179*Aufzeichnung_Lambda_Korrekturfaktor*Aufzeichnung_Als_AFR -> 0 | AG179: =Aufzeichnung_Lambda_NM+(AF179-Aufzeichnung_Lambda_Standard)/Aufzeichnung_Lambda_Auflösung_vertikal*($AK$52-$AK$51) ->  | AO179: =IF(Aufzeichnung_LiveUmin_Auswahl_Vario="",IF(BP179<>"",AM179/BP179*100-100,0),AM179) -> 0 | AP179: =Aufzeichnung_LiveUmin_NM+(AO179-Aufzeichnung_LiveUmin_Standard)/Aufzeichnung_LiveUmin_Auflösung_vertikal*($AT$51-$AT$52) ->  | BB179: =Aufzeichnung_Analog1_NM+(BA179-Aufzeichnung_Analog1_Standard)/Aufzeichnung_Analog1_Auflösung_vertikal*($BF$52-$BF$51) ->  | BJ179: =Aufzeichnung_Analog2_NM+(BI179-Aufzeichnung_Analog2_Standard)/Aufzeichnung_Analog2_Auflösung_vertikal*($BN$52-$BN$51) ->  | BQ179: =B179/Aufzeichnung_Impulse/Aufzeichnung_Messzyklus*Aufzeichnung_Rollenumfang*3.6 -> 
A180: 130 | G180: =F180*3.6 ->  | M180: =2*PI()*E180/60 ->  | N180: =IF(D180<>1,(M180-M179)/(D180/1000)*SQRT((D180/D179)),0) ->  | R180: =Q180*1.36/1000 ->  | S180: =AVERAGE(R179:R180) ->  | T180: =AVERAGE(P179:P180) ->  | V180: =AVERAGE(G179:G180) ->  | X180: 0 | AF180: 0 | AO180: 0
A181: 131 | U181: =AVERAGE(L180:L181) ->  | X181: 0 | AF181: 0 | AO181: 0
A182: 132 | X182: 0 | AF182: 0 | AO182: 0
A183: 133 | X183: 0 | AF183: 0 | AO183: 0
A184: 134 | X184: 0 | AF184: 0 | AO184: 0
A185: 135 | X185: 0 | AF185: 0 | AO185: 0
A186: 136 | X186: 0 | AF186: 0 | AO186: 0
A187: 137 | X187: 0 | AF187: 0 | AO187: 0
A188: 138 | X188: 0 | AF188: 0 | AO188: 0
A189: 139 | X189: 0 | AF189: 0 | AO189: 0
A190: 140 | X190: 0 | AF190: 0 | AO190: 0
A191: 141 | X191: 0 | AF191: 0 | AO191: 0
A192: 142 | X192: 0 | AF192: 0 | AO192: 0
A193: 143 | X193: 0 | AF193: 0 | AO193: 0
A194: 144 | X194: 0 | AF194: 0 | AO194: 0
A195: 145 | X195: 0 | AF195: 0 | AO195: 0
A196: 146 | X196: 0 | AF196: 0 | AO196: 0
A197: 147 | X197: 0 | AF197: 0 | AO197: 0
A198: 148 | X198: 0 | AF198: 0 | AO198: 0
A199: 149 | X199: 0 | AF199: 0 | AO199: 0
A200: 150 | X200: 0 | AF200: 0 | AO200: 0
A201: 151 | X201: 0 | AF201: 0 | AO201: 0
A202: 152 | X202: 0 | AF202: 0 | AO202: 0
A203: 153 | X203: 0 | AF203: 0 | AO203: 0
A204: 154 | X204: 0 | AF204: 0 | AO204: 0
A205: 155 | X205: 0 | AF205: 0 | AO205: 0
A206: 156 | X206: 0 | AF206: 0 | AO206: 0
A207: 157 | X207: 0 | AF207: 0 | AO207: 0
A208: 158 | X208: 0 | AF208: 0 | AO208: 0
A209: 159 | X209: 0 | AF209: 0 | AO209: 0
A210: 160 | X210: 0 | AF210: 0 | AO210: 0
A211: 161 | X211: 0 | AF211: 0 | AO211: 0
A212: 162 | X212: 0 | AF212: 0 | AO212: 0
A213: 163 | X213: 0 | AF213: 0 | AO213: 0
A214: 164 | X214: 0 | AF214: 0 | AO214: 0
A215: 165 | X215: 0 | AF215: 0 | AO215: 0
A216: 166 | X216: 0 | AF216: 0 | AO216: 0
A217: 167 | X217: 0 | AF217: 0 | AO217: 0
A218: 168 | X218: 0 | AF218: 0 | AO218: 0
A219: 169 | X219: 0 | AF219: 0 | AO219: 0
A220: 170 | X220: 0 | AF220: 0 | AO220: 0
A221: 171 | X221: 0 | AF221: 0 | AO221: 0
A222: 172 | X222: 0 | AF222: 0 | AO222: 0
A223: 173 | X223: 0 | AF223: 0 | AO223: 0
A224: 174 | X224: 0 | AF224: 0 | AO224: 0
A225: 175 | X225: 0 | AF225: 0 | AO225: 0
A226: 176 | X226: 0 | AF226: 0 | AO226: 0
A227: 177 | X227: 0 | AF227: 0 | AO227: 0
A228: 178 | X228: 0 | AF228: 0 | AO228: 0
... 822 more rows

Sheet Aufzeichnung 11 (hidden)
B2: Nummer:
D8: TRUE
B25: Ergebnis
B26: Leistung | C26: =IF(ISERROR(MAX(R51:R1050)),0,MAX(R51:R1050)) -> 0 | D26: Drehmoment | E26: =IF(ISERROR(MAX(P51:P1050)),0,MAX(P51:P1050)) -> 0 | F26: maxDrehzahl | G26: =IF(ISERROR(MAX(L51:L1050)),0,MAX(L51:L1050)) -> 0 | H26: max x-Achse | J26: Software: v5.191227
B27: Drehzahl | C27: =IF(ISERROR(INDEX(L51:L1050,MATCH(C26,R51:R1050,0))),0,INDEX(L51:L1050,MATCH(C26,R51:R1050,0))) -> 0 | D27: Drehzahl | E27: =IF(ISERROR(INDEX(U51:U1050,MATCH(E26,P51:P1050,0))),0,INDEX(U51:U1050,MATCH(E26,P51:P1050,0))) -> 0 | F27: Vmax | G27: =IF(ISERROR(MAX(G51:G1050)),0,MAX(G51:G1050)) -> 0 | H27: min x-Achse
B28: Übersetzung | C28: =IF(ISERROR(ROUND(IF(Aufzeichnung_Messen="JA",Aufzeichnung_Übersetzung_gemessen,Aufzeichnung_Übersetzung_berechnet),2)),1,ROUND(IF(Aufzeichnung_Messen="JA",Aufzeichnung_Übersetzung_gemessen,Aufzeichnung_Übersetzung_berechnet),2)) -> 1 | D28: Luftdruck | F28: Temperatur | H28: Luftfeuchte
B30: Getriebe | D30: =IF(#REF!,#REF!,IF(OR(#REF!,Aufzeichnung_Rechenbare_Punkte=0),#REF!,#REF!)) -> 
B31: freie Eingabe | D31: Übersetzung messen | F31: Auspuff | K31: Details
B32: Gang Z1 | D32: Zündungstype | F32: Kurbelwelle | H32: Name
B33: Z2 | D33: Zylinder | F33: Maße | H33: Kommentar
B34: Gang Z2 | D34: Vergaser | F34: Zeiten
B35: Z2 | D35: Zündung
B36: Reifenumfang | D36: Zündeinstellung | F36: Bedüsung
B37: Reifenschlupf | C37: 0 | D37: Schwungrad
B42: Prüfstand | F42: Messzyklus | H42: Gemessene Übersetzung | J42: {EGT Standard} | L42: {EGT Auflösung vertikal} | N42: Lambda Standard | P42: Lambda Auflösung | R42: CRC Daten | U42: drar | W42: LiveUmin Standard | Z42: LiveUmin Auflösung | AB42: LiveNM Aktiv | AD42: FALSE | AE42: Analog1 Standard | AG42: Analog1 Auflösung | AI42: Analog2 Standard | AK42: Analog2 Auflösung
A43: Rollenumfang | D43: Verluste Rolle nur Pnorm | F43: Zündung (nur bei Messverfahren) | H43: Berechnete Übersetzung | I43: =IF(Aufzeichnung_Übersetzung_Manuelle_Eingabe<>"",Aufzeichnung_Übersetzung_Manuelle_Eingabe,IF(ISERROR((Aufzeichnung_Primär_Z2/Aufzeichnung_Primär_Z1)*(Aufzeichnung_Getriebe_Z2/Aufzeichnung_Getriebe_Z1)*Aufzeichnung_Reifenübersetzung),1,(Aufzeichnung_Primär_Z2/Aufzeichnung_Primär_Z1)*(Aufzeichnung_Getriebe_Z2/Aufzeichnung_Getriebe_Z1)*Aufzeichnung_Reifenübersetzung)) -> 1 | J43: {EGT Korr} | N43: Lambda Korrektur | P43: AFR | Q43: 1 | R43: CRC Werte | W43: LiveUmin Korrektur | AB43: LiveNM Faktor | AE43: Analog1 Korrektur | AG43: Analog1 Faktor | AI43: Analog2 Korrektur | AK43: Analog2 Faktor
A44: Trägheitsmoment | D44: Verluste Rolle[NM] | E44: 0 | F44: Rechenbare Punke | H44: Reifen/Rollenübersetzung+ Schlupf | I44: =IF(ISERROR(Aufzeichnung_Rollenumfang/(Aufzeichnung_Reifen*(1+Aufzeichnung_Reifenschlupf))),1,Aufzeichnung_Rollenumfang/(Aufzeichnung_Reifen*(1+Aufzeichnung_Reifenschlupf))) -> 1 | J44: {EGT NM} | N44: Lambda NM | R44: CRC Daten lokal | W44: LiveUmin NM | AB44: Langzeitmessung | AD44: Falsch | AE44: Analog1 NM | AI44: Analog2 NM
B45: Impulse | D45: Verlust NM | E45: 0 | F45: Verluste [NM] | G45: 0 | H45: Prüfstandfaktor | J45: {EGT U/Min} | N45: Lambda U/Min | R45: CRC Werte lokal | W45: LiveUmin U/Min | AE45: Analog1 U/Min | AI45: Analog2 U/Min
A46: FahrzeugID | E46: DIN PS Faktor | F46: JA | G46: =IF(ISERROR((1013/(Aufzeichnung_Luftdruck-Aufzeichnung_Faktor_Feuchte))*((273+Aufzeichnung_Temperatur)/293)),1,(1013/(Aufzeichnung_Luftdruck-Aufzeichnung_Faktor_Feuchte))*((273+Aufzeichnung_Temperatur)/293)) -> 1 | H46: Aktueller NMFaktor | I46: =IF(1=1,drar(),Aufzeichnung_DINPS_Faktor&Aufzeichnung_DIN_PS_Faktor_Aktiv) -> 0 | J46: {EGT Anzahl} | N46: Lambda Anzahl | R46: Version | W46: LiveUmin Anzahl | AE46: Analog1 Anzahl | AI46: Analog2 Anzahl
B47: Detailstype | D47: Gesamtpunkte | F47: Feuchtekorrektur | G47: =(Aufzeichnung_Feuchte*(2.408*10^11*(300/(Aufzeichnung_Temperatur+273.15))^5 *EXP(-22.644*(300/(Aufzeichnung_Temperatur+273.15))))/100) -> 0
A49: lfd Nr. | B49: Impulse | C49: Drehzahl Rolle | H49: Drehzahl Reifen | I49: Drehzahl KW berechnet | J49: Drehzahl KW gemessen | L49: Drehzahl | M49: Winkelgeschwindigkeit | N49: Winkelbeschleunigung | O49: Drehmoment | Q49: Leistung | S49: Anzeige PS | T49: Anzeige NM | U49: Anzeige Drehzahl | V49: Anzeige kmh | W49: EGT | AE49: Lambda | AM49: Livedrehzahl | AV49: LiveNM | AX49: Zeit | AZ49: Analog1 | BH49: Analog2 | BP49: Allgemein Optionen
A50: lfdNr | B50: Werte | C50: Messwerte Berechnet | D50: Zyklus berechnet | E50: U/min | F50: m/s | G50: km/h | H50: U/min | I50: U/min | J50: Werte | K50: U/min | L50: U/min | M50: rad/sec | N50: rad/sec² | O50: am Rad Trägheit | P50: mit Übersetzung | Q50: W | R50: PS | S50: PS | T50: NM | U50: Umin | W50: Messwerte EGT | X50: Werte aufb. | Y50: auf NM | Z50: Horizontal1 | AA50: Horizonal2 | AB50: Vertikal1 | AC50: Vertikal1 NM | AD50: Vertikal2 | AE50: Messwerte Lambda | AF50: Werte aufb. | AG50: auf NM | AH50: Horizontal1 | AI50: Horizonal2 | AJ50: Vertikal1 | AK50: Vertikal1 NM | AL50: Vertikal2 | AM50: LiveDrezahl mit Funkenaufteilung | AN50: Live Umin berechnet | AO50: Werte aufb | AP50: auf NM | AQ50: Horizontal1 | AR50: Horizontal2 | AS50: Vertikal1 | AT50: Vertikal1NM | AU50: Vertikal2 | AV50: Messwerte LiveNM | AW50: Messwerte_LiveNM_berechnet | AX50: sekunden | AY50: Anzeige | AZ50: Messwerte_Analog1 | BA50: Werte aufb. | BB50: auf NM | BC50: Horizontal1 | BD50: Horizonal2 | BE50: Vertikal1 | BF50: Vertikal1 NM | BG50: Vertikal2 | BH50: Messwerte_Analog2 | BI50: Werte aufb. | BJ50: auf NM | BK50: Horizontal1 | BL50: Horizonal2 | BM50: Vertikal1 | BN50: Vertikal1 NM | BO50: Vertikal2 | BP50: Drehzahl | BQ50: KMH
A51: 1 | E51: =C51*60*1000/Aufzeichnung_Impulse/D51 ->  | F51: =E51*Aufzeichnung_Rollenumfang/60/1000 ->  | G51: =F51*3.6 ->  | H51: =E51*Aufzeichnung_Reifenübersetzung ->  | I51: =Aufzeichnung_Übersetzung_berechnet*E51 ->  | K51: =Aufzeichnung_Übersetzung_gemessen*E51 ->  | L51: =IF(Aufzeichnung_Messen="JA",K51,I51) ->  | M51: =2*PI()*E51/60 ->  | N51: 0 | O51: =IF(Aufzeichnung_LiveNM_Aktiv,IF(OR(AW51<=0,N51=0),0,Aufzeichnung_NM_Faktor*N51+Aufzeichnung_Verluste+AW51),IF(N51>0,Aufzeichnung_NM_Faktor*N51+Aufzeichnung_Verluste,IF(N51<0,Aufzeichnung_NM_Faktor*N51+Aufzeichnung_Verluste_Rolle,0))) -> 0 | P51: =O51/Aufzeichnung_Übersetzung -> 0 | Q51: =IF(Aufzeichnung_Messen="JA",2*PI()*K51/60*P51,2*PI()*I51/60*P51) ->  | R51: =Q51*1.36/1000 ->  | S51: =AVERAGE(R50:R51) ->  | T51: =AVERAGE(P50:P51) -> 0 | U51: =AVERAGE(L50:L51) ->  | V51: =AVERAGE(G50:G51) ->  | X51: =W51*Aufzeichnung_EGT_Korrekturfaktor -> 0 | Y51: =Aufzeichnung_EGT_NM+(X51-Aufzeichnung_EGT_Standard)/Aufzeichnung_EGT_Auflösung_vertikal*($AC$52-$AC$51) ->  | Z51: =Aufzeichnung_EGT_NM -> 0 | AA51: 0 | AD51: =Aufzeichnung_EGT_Umin -> 0 | AF51: =AE51*Aufzeichnung_Lambda_Korrekturfaktor*Aufzeichnung_Als_AFR -> 0 | AG51: =Aufzeichnung_Lambda_NM+(AF51-Aufzeichnung_Lambda_Standard)/Aufzeichnung_Lambda_Auflösung_vertikal*($AK$52-$AK$51) ->  | AH51: =Aufzeichnung_Lambda_NM -> 0 | AI51: 0 | AL51: =Aufzeichnung_Lambda_Umin -> 0 | AO51: =IF(Aufzeichnung_LiveUmin_Auswahl_Vario="",IF(BP51<>"",AM51/BP51*100-100,0),AM51) -> 0 | AP51: =Aufzeichnung_LiveUmin_NM+(AO51-Aufzeichnung_LiveUmin_Standard)/Aufzeichnung_LiveUmin_Auflösung_vertikal*($AT$51-$AT$52) ->  | AQ51: =Aufzeichnung_LiveUmin_NM -> 0 | AR51: 0 | AU51: =Aufzeichnung_LiveUmin_Umin -> 0 | BB51: =Aufzeichnung_Analog1_NM+(BA51-Aufzeichnung_Analog1_Standard)/Aufzeichnung_Analog1_Auflösung_vertikal*($BF$52-$BF$51) ->  | BC51: =Aufzeichnung_Analog1_NM -> 0 | BD51: 0 | BG51: =Aufzeichnung_Analog1_Umin -> 0 | BJ51: =Aufzeichnung_Analog2_NM+(BI51-Aufzeichnung_Analog2_Standard)/Aufzeichnung_Analog2_Auflösung_vertikal*($BN$52-$BN$51) ->  | BK51: =Aufzeichnung_Analog2_NM -> 0 | BL51: 0 | BO51: =Aufzeichnung_Analog2_Umin -> 0 | BQ51: =B51/Aufzeichnung_Impulse/Aufzeichnung_Messzyklus*Aufzeichnung_Rollenumfang*3.6 -> 
A52: 2 | F52: =E52*Aufzeichnung_Rollenumfang/60/1000 ->  | G52: =F52*3.6 ->  | M52: =2*PI()*E52/60 ->  | N52: =IF(D52<>1,(M52-M51)/(D52/1000)*SQRT((D52/D51)),0) ->  | R52: =Q52*1.36/1000 ->  | S52: =AVERAGE(R51:R52) ->  | T52: =AVERAGE(P51:P52) ->  | U52: =AVERAGE(L51:L52) ->  | V52: =AVERAGE(G51:G52) ->  | X52: 0 | Y52: =Aufzeichnung_EGT_NM+(X52-Aufzeichnung_EGT_Standard)/Aufzeichnung_EGT_Auflösung_vertikal*($AC$52-$AC$51) ->  | Z52: =Aufzeichnung_EGT_NM -> 0 | AA52: 30000 | AD52: 0 | AF52: 0 | AH52: =Aufzeichnung_Lambda_NM -> 0 | AI52: 30000 | AL52: 0 | AO52: 0 | AQ52: =Aufzeichnung_LiveUmin_NM -> 0 | AR52: 30000 | AU52: 0 | BC52: =Aufzeichnung_Analog1_NM -> 0 | BD52: 300 | BG52: 0 | BJ52: =Aufzeichnung_Analog2_NM+(BI52-Aufzeichnung_Analog2_Standard)/Aufzeichnung_Analog2_Auflösung_vertikal*($BN$52-$BN$51) ->  | BK52: =Aufzeichnung_Analog2_NM -> 0 | BL52: 300 | BO52: 0
A53: 3 | F53: =E53*Aufzeichnung_Rollenumfang/60/1000 ->  | H53: =E53*Aufzeichnung_Reifenübersetzung ->  | I53: =Aufzeichnung_Übersetzung_berechnet*E53 ->  | K53: =Aufzeichnung_Übersetzung_gemessen*E53 ->  | L53: =IF(Aufzeichnung_Messen="JA",K53,I53) ->  | U53: =AVERAGE(L52:L53) ->  | X53: 0 | AD53: 0 | AF53: 0 | AL53: 0 | AO53: 0 | AU53: 0 | BG53: 0 | BO53: 0
A54: 4 | X54: 0 | AD54: 0 | AF54: 0 | AL54: 0 | AO54: 0 | AU54: 0 | BG54: 0 | BO54: 0
A55: 5 | X55: 0 | AD55: 0 | AF55: 0 | AL55: 0 | AO55: 0 | AU55: 0 | BG55: 0 | BO55: 0
A56: 6 | X56: 0 | AD56: 0 | AF56: 0 | AL56: 0 | AO56: 0 | AU56: 0 | BG56: 0 | BO56: 0
A57: 7 | X57: 0 | AD57: 0 | AF57: 0 | AL57: 0 | AO57: 0 | AU57: 0 | BG57: 0 | BO57: 0
A58: 8 | X58: 0 | AD58: 0 | AF58: 0 | AL58: 0 | AO58: 0 | AU58: 0 | BG58: 0 | BO58: 0
A59: 9 | Q59: =IF(Aufzeichnung_Messen="JA",2*PI()*K59/60*P59,2*PI()*I59/60*P59) ->  | X59: 0 | AD59: 0 | AF59: 0 | AL59: 0 | AO59: 0 | AU59: 0 | BG59: 0 | BO59: 0
A60: 10 | X60: 0 | AD60: 0 | AF60: 0 | AL60: 0 | AO60: 0 | AU60: 0 | BG60: 0 | BO60: 0
A61: 11 | X61: 0 | AD61: 0 | AF61: 0 | AL61: 0 | AO61: 0 | AU61: 0 | BG61: 0 | BO61: 0
A62: 12 | X62: 0 | AD62: 0 | AF62: 0 | AL62: 0 | AO62: 0 | AU62: 0 | BG62: 0 | BO62: 0
A63: 13 | X63: 0 | AD63: 0 | AF63: 0 | AL63: 0 | AO63: 0 | AU63: 0 | BG63: 0 | BO63: 0
A64: 14 | X64: 0 | AF64: 0 | AO64: 0
A65: 15 | X65: 0 | AF65: 0 | AO65: 0
A66: 16 | X66: 0 | AF66: 0 | AO66: 0
A67: 17 | X67: 0 | AF67: 0 | AO67: 0
A68: 18 | X68: 0 | AF68: 0 | AO68: 0
A69: 19 | X69: 0 | AF69: 0 | AO69: 0
A70: 20 | X70: 0 | AF70: 0 | AO70: 0
A71: 21 | X71: 0 | AF71: 0 | AO71: 0
A72: 22 | N72: =IF(D72<>1,(M72-M71)/(D72/1000)*SQRT((D72/D71)),0) ->  | X72: 0 | AF72: 0 | AO72: 0
A73: 23 | X73: 0 | AF73: 0 | AO73: 0
A74: 24 | X74: 0 | AF74: 0 | AO74: 0
A75: 25 | X75: 0 | AF75: 0 | AO75: 0
A76: 26 | X76: 0 | AF76: 0 | AO76: 0
A77: 27 | X77: 0 | AF77: 0 | AO77: 0
A78: 28 | X78: 0 | AF78: 0 | AO78: 0
A79: 29 | X79: 0 | AF79: 0 | AO79: 0
A80: 30 | X80: 0 | AF80: 0 | AO80: 0
A81: 31 | X81: 0 | AF81: 0 | AO81: 0
A82: 32 | F82: =E82*Aufzeichnung_Rollenumfang/60/1000 ->  | X82: 0 | AF82: 0 | AO82: 0
A83: 33 | F83: =E83*Aufzeichnung_Rollenumfang/60/1000 ->  | X83: 0 | AF83: 0 | AO83: 0
A84: 34 | X84: 0 | AF84: 0 | AO84: 0
A85: 35 | X85: 0 | AF85: 0 | AO85: 0
A86: 36 | X86: 0 | AF86: 0 | AO86: 0
A87: 37 | X87: 0 | AF87: 0 | AO87: 0
A88: 38 | X88: 0 | AF88: 0 | AO88: 0
A89: 39 | X89: 0 | AF89: 0 | AO89: 0
A90: 40 | X90: 0 | AF90: 0 | AO90: 0
A91: 41 | X91: 0 | AF91: 0 | AO91: 0
A92: 42 | X92: 0 | AF92: 0 | AO92: 0
A93: 43 | X93: 0 | AF93: 0 | AO93: 0
A94: 44 | X94: 0 | AF94: 0 | AO94: 0
A95: 45 | X95: 0 | AF95: 0 | AO95: 0
A96: 46 | X96: 0 | AF96: 0 | AO96: 0
A97: 47 | X97: 0 | AF97: 0 | AO97: 0
A98: 48 | X98: 0 | AF98: 0 | AO98: 0
A99: 49 | X99: 0 | AF99: 0 | AO99: 0
A100: 50 | X100: 0 | AF100: 0 | AO100: 0
A101: 51 | X101: 0 | AF101: 0 | AO101: 0
A102: 52 | X102: 0 | AF102: 0 | AO102: 0
A103: 53 | X103: 0 | AF103: 0 | AO103: 0
A104: 54 | X104: 0 | AF104: 0 | AO104: 0
A105: 55 | X105: 0 | AF105: 0 | AO105: 0
A106: 56 | X106: 0 | AF106: 0 | AO106: 0
A107: 57 | X107: 0 | AF107: 0 | AO107: 0
A108: 58 | X108: 0 | AF108: 0 | AO108: 0
A109: 59 | X109: 0 | AF109: 0 | AO109: 0
A110: 60 | X110: 0 | AF110: 0 | AO110: 0
A111: 61 | X111: 0 | AF111: 0 | AO111: 0
A112: 62 | X112: 0 | AF112: 0 | AO112: 0
A113: 63 | X113: 0 | AF113: 0 | AO113: 0
A114: 64 | X114: 0 | AF114: 0 | AO114: 0
A115: 65 | E115: =C115*60*1000/Aufzeichnung_Impulse/D115 ->  | F115: =E115*Aufzeichnung_Rollenumfang/60/1000 ->  | H115: =E115*Aufzeichnung_Reifenübersetzung ->  | I115: =Aufzeichnung_Übersetzung_berechnet*E115 ->  | K115: =Aufzeichnung_Übersetzung_gemessen*E115 ->  | L115: =IF(Aufzeichnung_Messen="JA",K115,I115) ->  | O115: =IF(Aufzeichnung_LiveNM_Aktiv,IF(OR(AW115<=0,N115=0),0,Aufzeichnung_NM_Faktor*N115+Aufzeichnung_Verluste+AW115),IF(N115>0,Aufzeichnung_NM_Faktor*N115+Aufzeichnung_Verluste,IF(N115<0,Aufzeichnung_NM_Faktor*N115+Aufzeichnung_Verluste_Rolle,0))) ->  | P115: =O115/Aufzeichnung_Übersetzung ->  | Q115: =IF(Aufzeichnung_Messen="JA",2*PI()*K115/60*P115,2*PI()*I115/60*P115) ->  | X115: =W115*Aufzeichnung_EGT_Korrekturfaktor -> 0 | Y115: =Aufzeichnung_EGT_NM+(X115-Aufzeichnung_EGT_Standard)/Aufzeichnung_EGT_Auflösung_vertikal*($AC$52-$AC$51) ->  | AF115: =AE115*Aufzeichnung_Lambda_Korrekturfaktor*Aufzeichnung_Als_AFR -> 0 | AG115: =Aufzeichnung_Lambda_NM+(AF115-Aufzeichnung_Lambda_Standard)/Aufzeichnung_Lambda_Auflösung_vertikal*($AK$52-$AK$51) ->  | AO115: =IF(Aufzeichnung_LiveUmin_Auswahl_Vario="",IF(BP115<>"",AM115/BP115*100-100,0),AM115) -> 0 | AP115: =Aufzeichnung_LiveUmin_NM+(AO115-Aufzeichnung_LiveUmin_Standard)/Aufzeichnung_LiveUmin_Auflösung_vertikal*($AT$51-$AT$52) ->  | BB115: =Aufzeichnung_Analog1_NM+(BA115-Aufzeichnung_Analog1_Standard)/Aufzeichnung_Analog1_Auflösung_vertikal*($BF$52-$BF$51) ->  | BJ115: =Aufzeichnung_Analog2_NM+(BI115-Aufzeichnung_Analog2_Standard)/Aufzeichnung_Analog2_Auflösung_vertikal*($BN$52-$BN$51) ->  | BQ115: =B115/Aufzeichnung_Impulse/Aufzeichnung_Messzyklus*Aufzeichnung_Rollenumfang*3.6 -> 
A116: 66 | G116: =F116*3.6 ->  | M116: =2*PI()*E116/60 ->  | N116: =IF(D116<>1,(M116-M115)/(D116/1000)*SQRT((D116/D115)),0) ->  | R116: =Q116*1.36/1000 ->  | S116: =AVERAGE(R115:R116) ->  | T116: =AVERAGE(P115:P116) ->  | V116: =AVERAGE(G115:G116) ->  | X116: 0 | AF116: 0 | AO116: 0
A117: 67 | U117: =AVERAGE(L116:L117) ->  | X117: 0 | AF117: 0 | AO117: 0
A118: 68 | X118: 0 | AF118: 0 | AO118: 0
A119: 69 | X119: 0 | AF119: 0 | AO119: 0
A120: 70 | X120: 0 | AF120: 0 | AO120: 0
A121: 71 | X121: 0 | AF121: 0 | AO121: 0
A122: 72 | X122: 0 | AF122: 0 | AO122: 0
A123: 73 | X123: 0 | AF123: 0 | AO123: 0
A124: 74 | X124: 0 | AF124: 0 | AO124: 0
A125: 75 | X125: 0 | AF125: 0 | AO125: 0
A126: 76 | X126: 0 | AF126: 0 | AO126: 0
A127: 77 | X127: 0 | AF127: 0 | AO127: 0
A128: 78 | X128: 0 | AF128: 0 | AO128: 0
A129: 79 | X129: 0 | AF129: 0 | AO129: 0
A130: 80 | X130: 0 | AF130: 0 | AO130: 0
A131: 81 | X131: 0 | AF131: 0 | AO131: 0
A132: 82 | X132: 0 | AF132: 0 | AO132: 0
A133: 83 | X133: 0 | AF133: 0 | AO133: 0
A134: 84 | X134: 0 | AF134: 0 | AO134: 0
A135: 85 | X135: 0 | AF135: 0 | AO135: 0
A136: 86 | X136: 0 | AF136: 0 | AO136: 0
A137: 87 | X137: 0 | AF137: 0 | AO137: 0
A138: 88 | X138: 0 | AF138: 0 | AO138: 0
A139: 89 | X139: 0 | AF139: 0 | AO139: 0
A140: 90 | F140: =E140*Aufzeichnung_Rollenumfang/60/1000 ->  | X140: 0 | AF140: 0 | AO140: 0
A141: 91 | X141: 0 | AF141: 0 | AO141: 0
A142: 92 | X142: 0 | AF142: 0 | AO142: 0
A143: 93 | X143: 0 | AF143: 0 | AO143: 0
A144: 94 | X144: 0 | AF144: 0 | AO144: 0
A145: 95 | X145: 0 | AF145: 0 | AO145: 0
A146: 96 | X146: 0 | AF146: 0 | AO146: 0
A147: 97 | X147: 0 | AF147: 0 | AO147: 0
A148: 98 | X148: 0 | AF148: 0 | AO148: 0
A149: 99 | X149: 0 | AF149: 0 | AO149: 0
A150: 100 | X150: 0 | AF150: 0 | AO150: 0
A151: 101 | X151: 0 | AF151: 0 | AO151: 0
A152: 102 | X152: 0 | AF152: 0 | AO152: 0
A153: 103 | X153: 0 | AF153: 0 | AO153: 0
A154: 104 | X154: 0 | AF154: 0 | AO154: 0
A155: 105 | X155: 0 | AF155: 0 | AO155: 0
A156: 106 | X156: 0 | AF156: 0 | AO156: 0
A157: 107 | X157: 0 | AF157: 0 | AO157: 0
A158: 108 | X158: 0 | AF158: 0 | AO158: 0
A159: 109 | X159: 0 | AF159: 0 | AO159: 0
A160: 110 | X160: 0 | AF160: 0 | AO160: 0
A161: 111 | X161: 0 | AF161: 0 | AO161: 0
A162: 112 | X162: 0 | AF162: 0 | AO162: 0
A163: 113 | X163: 0 | AF163: 0 | AO163: 0
A164: 114 | X164: 0 | AF164: 0 | AO164: 0
A165: 115 | X165: 0 | AF165: 0 | AO165: 0
A166: 116 | X166: 0 | AF166: 0 | AO166: 0
A167: 117 | X167: 0 | AF167: 0 | AO167: 0
A168: 118 | F168: =E168*Aufzeichnung_Rollenumfang/60/1000 ->  | X168: 0 | AF168: 0 | AO168: 0
A169: 119 | X169: 0 | AF169: 0 | AO169: 0
A170: 120 | X170: 0 | AF170: 0 | AO170: 0
A171: 121 | X171: 0 | AF171: 0 | AO171: 0
A172: 122 | X172: 0 | AF172: 0 | AO172: 0
A173: 123 | X173: 0 | AF173: 0 | AO173: 0
A174: 124 | X174: 0 | AF174: 0 | AO174: 0
A175: 125 | X175: 0 | AF175: 0 | AO175: 0
A176: 126 | X176: 0 | AF176: 0 | AO176: 0
A177: 127 | X177: 0 | AF177: 0 | AO177: 0
A178: 128 | X178: 0 | AF178: 0 | AO178: 0
A179: 129 | E179: =C179*60*1000/Aufzeichnung_Impulse/D179 ->  | H179: =E179*Aufzeichnung_Reifenübersetzung ->  | I179: =Aufzeichnung_Übersetzung_berechnet*E179 ->  | K179: =Aufzeichnung_Übersetzung_gemessen*E179 ->  | L179: =IF(Aufzeichnung_Messen="JA",K179,I179) ->  | O179: =IF(Aufzeichnung_LiveNM_Aktiv,IF(OR(AW179<=0,N179=0),0,Aufzeichnung_NM_Faktor*N179+Aufzeichnung_Verluste+AW179),IF(N179>0,Aufzeichnung_NM_Faktor*N179+Aufzeichnung_Verluste,IF(N179<0,Aufzeichnung_NM_Faktor*N179+Aufzeichnung_Verluste_Rolle,0))) ->  | P179: =O179/Aufzeichnung_Übersetzung ->  | Q179: =IF(Aufzeichnung_Messen="JA",2*PI()*K179/60*P179,2*PI()*I179/60*P179) ->  | X179: =W179*Aufzeichnung_EGT_Korrekturfaktor -> 0 | Y179: =Aufzeichnung_EGT_NM+(X179-Aufzeichnung_EGT_Standard)/Aufzeichnung_EGT_Auflösung_vertikal*($AC$52-$AC$51) ->  | AF179: =AE179*Aufzeichnung_Lambda_Korrekturfaktor*Aufzeichnung_Als_AFR -> 0 | AG179: =Aufzeichnung_Lambda_NM+(AF179-Aufzeichnung_Lambda_Standard)/Aufzeichnung_Lambda_Auflösung_vertikal*($AK$52-$AK$51) ->  | AO179: =IF(Aufzeichnung_LiveUmin_Auswahl_Vario="",IF(BP179<>"",AM179/BP179*100-100,0),AM179) -> 0 | AP179: =Aufzeichnung_LiveUmin_NM+(AO179-Aufzeichnung_LiveUmin_Standard)/Aufzeichnung_LiveUmin_Auflösung_vertikal*($AT$51-$AT$52) ->  | BB179: =Aufzeichnung_Analog1_NM+(BA179-Aufzeichnung_Analog1_Standard)/Aufzeichnung_Analog1_Auflösung_vertikal*($BF$52-$BF$51) ->  | BJ179: =Aufzeichnung_Analog2_NM+(BI179-Aufzeichnung_Analog2_Standard)/Aufzeichnung_Analog2_Auflösung_vertikal*($BN$52-$BN$51) ->  | BQ179: =B179/Aufzeichnung_Impulse/Aufzeichnung_Messzyklus*Aufzeichnung_Rollenumfang*3.6 -> 
A180: 130 | G180: =F180*3.6 ->  | M180: =2*PI()*E180/60 ->  | N180: =IF(D180<>1,(M180-M179)/(D180/1000)*SQRT((D180/D179)),0) ->  | R180: =Q180*1.36/1000 ->  | S180: =AVERAGE(R179:R180) ->  | T180: =AVERAGE(P179:P180) ->  | V180: =AVERAGE(G179:G180) ->  | X180: 0 | AF180: 0 | AO180: 0
A181: 131 | U181: =AVERAGE(L180:L181) ->  | X181: 0 | AF181: 0 | AO181: 0
A182: 132 | X182: 0 | AF182: 0 | AO182: 0
A183: 133 | X183: 0 | AF183: 0 | AO183: 0
A184: 134 | X184: 0 | AF184: 0 | AO184: 0
A185: 135 | X185: 0 | AF185: 0 | AO185: 0
A186: 136 | X186: 0 | AF186: 0 | AO186: 0
A187: 137 | X187: 0 | AF187: 0 | AO187: 0
A188: 138 | X188: 0 | AF188: 0 | AO188: 0
A189: 139 | X189: 0 | AF189: 0 | AO189: 0
A190: 140 | X190: 0 | AF190: 0 | AO190: 0
A191: 141 | X191: 0 | AF191: 0 | AO191: 0
A192: 142 | X192: 0 | AF192: 0 | AO192: 0
A193: 143 | X193: 0 | AF193: 0 | AO193: 0
A194: 144 | X194: 0 | AF194: 0 | AO194: 0
A195: 145 | X195: 0 | AF195: 0 | AO195: 0
A196: 146 | X196: 0 | AF196: 0 | AO196: 0
A197: 147 | X197: 0 | AF197: 0 | AO197: 0
A198: 148 | X198: 0 | AF198: 0 | AO198: 0
A199: 149 | X199: 0 | AF199: 0 | AO199: 0
A200: 150 | X200: 0 | AF200: 0 | AO200: 0
A201: 151 | X201: 0 | AF201: 0 | AO201: 0
A202: 152 | X202: 0 | AF202: 0 | AO202: 0
A203: 153 | X203: 0 | AF203: 0 | AO203: 0
A204: 154 | X204: 0 | AF204: 0 | AO204: 0
A205: 155 | X205: 0 | AF205: 0 | AO205: 0
A206: 156 | X206: 0 | AF206: 0 | AO206: 0
A207: 157 | X207: 0 | AF207: 0 | AO207: 0
A208: 158 | X208: 0 | AF208: 0 | AO208: 0
A209: 159 | X209: 0 | AF209: 0 | AO209: 0
A210: 160 | X210: 0 | AF210: 0 | AO210: 0
A211: 161 | X211: 0 | AF211: 0 | AO211: 0
A212: 162 | X212: 0 | AF212: 0 | AO212: 0
A213: 163 | X213: 0 | AF213: 0 | AO213: 0
A214: 164 | X214: 0 | AF214: 0 | AO214: 0
A215: 165 | X215: 0 | AF215: 0 | AO215: 0
A216: 166 | X216: 0 | AF216: 0 | AO216: 0
A217: 167 | X217: 0 | AF217: 0 | AO217: 0
A218: 168 | X218: 0 | AF218: 0 | AO218: 0
A219: 169 | X219: 0 | AF219: 0 | AO219: 0
A220: 170 | X220: 0 | AF220: 0 | AO220: 0
A221: 171 | X221: 0 | AF221: 0 | AO221: 0
A222: 172 | X222: 0 | AF222: 0 | AO222: 0
A223: 173 | X223: 0 | AF223: 0 | AO223: 0
A224: 174 | X224: 0 | AF224: 0 | AO224: 0
A225: 175 | X225: 0 | AF225: 0 | AO225: 0
A226: 176 | X226: 0 | AF226: 0 | AO226: 0
A227: 177 | X227: 0 | AF227: 0 | AO227: 0
A228: 178 | X228: 0 | AF228: 0 | AO228: 0
... 822 more rows

Sheet Aufzeichnung 12 (hidden)
B2: Nummer:
D8: TRUE
B25: Ergebnis
B26: Leistung | C26: =IF(ISERROR(MAX(R51:R1050)),0,MAX(R51:R1050)) -> 0 | D26: Drehmoment | E26: =IF(ISERROR(MAX(P51:P1050)),0,MAX(P51:P1050)) -> 0 | F26: maxDrehzahl | G26: =IF(ISERROR(MAX(L51:L1050)),0,MAX(L51:L1050)) -> 0 | H26: max x-Achse | J26: Software: v5.191227
B27: Drehzahl | C27: =IF(ISERROR(INDEX(L51:L1050,MATCH(C26,R51:R1050,0))),0,INDEX(L51:L1050,MATCH(C26,R51:R1050,0))) -> 0 | D27: Drehzahl | E27: =IF(ISERROR(INDEX(U51:U1050,MATCH(E26,P51:P1050,0))),0,INDEX(U51:U1050,MATCH(E26,P51:P1050,0))) -> 0 | F27: Vmax | G27: =IF(ISERROR(MAX(G51:G1050)),0,MAX(G51:G1050)) -> 0 | H27: min x-Achse
B28: Übersetzung | C28: =IF(ISERROR(ROUND(IF(Aufzeichnung_Messen="JA",Aufzeichnung_Übersetzung_gemessen,Aufzeichnung_Übersetzung_berechnet),2)),1,ROUND(IF(Aufzeichnung_Messen="JA",Aufzeichnung_Übersetzung_gemessen,Aufzeichnung_Übersetzung_berechnet),2)) -> 1 | D28: Luftdruck | F28: Temperatur | H28: Luftfeuchte
B30: Getriebe | D30: =IF(#REF!,#REF!,IF(OR(#REF!,Aufzeichnung_Rechenbare_Punkte=0),#REF!,#REF!)) -> 
B31: freie Eingabe | D31: Übersetzung messen | F31: Auspuff | K31: Details
B32: Gang Z1 | D32: Zündungstype | F32: Kurbelwelle | H32: Name
B33: Z2 | D33: Zylinder | F33: Maße | H33: Kommentar
B34: Gang Z2 | D34: Vergaser | F34: Zeiten
B35: Z2 | D35: Zündung
B36: Reifenumfang | D36: Zündeinstellung | F36: Bedüsung
B37: Reifenschlupf | C37: 0 | D37: Schwungrad
B42: Prüfstand | F42: Messzyklus | H42: Gemessene Übersetzung | J42: {EGT Standard} | L42: {EGT Auflösung vertikal} | N42: Lambda Standard | P42: Lambda Auflösung | R42: CRC Daten | U42: drar | W42: LiveUmin Standard | Z42: LiveUmin Auflösung | AB42: LiveNM Aktiv | AD42: FALSE | AE42: Analog1 Standard | AG42: Analog1 Auflösung | AI42: Analog2 Standard | AK42: Analog2 Auflösung
A43: Rollenumfang | D43: Verluste Rolle nur Pnorm | F43: Zündung (nur bei Messverfahren) | H43: Berechnete Übersetzung | I43: =IF(Aufzeichnung_Übersetzung_Manuelle_Eingabe<>"",Aufzeichnung_Übersetzung_Manuelle_Eingabe,IF(ISERROR((Aufzeichnung_Primär_Z2/Aufzeichnung_Primär_Z1)*(Aufzeichnung_Getriebe_Z2/Aufzeichnung_Getriebe_Z1)*Aufzeichnung_Reifenübersetzung),1,(Aufzeichnung_Primär_Z2/Aufzeichnung_Primär_Z1)*(Aufzeichnung_Getriebe_Z2/Aufzeichnung_Getriebe_Z1)*Aufzeichnung_Reifenübersetzung)) -> 1 | J43: {EGT Korr} | N43: Lambda Korrektur | P43: AFR | Q43: 1 | R43: CRC Werte | W43: LiveUmin Korrektur | AB43: LiveNM Faktor | AE43: Analog1 Korrektur | AG43: Analog1 Faktor | AI43: Analog2 Korrektur | AK43: Analog2 Faktor
A44: Trägheitsmoment | D44: Verluste Rolle[NM] | E44: 0 | F44: Rechenbare Punke | H44: Reifen/Rollenübersetzung+ Schlupf | I44: =IF(ISERROR(Aufzeichnung_Rollenumfang/(Aufzeichnung_Reifen*(1+Aufzeichnung_Reifenschlupf))),1,Aufzeichnung_Rollenumfang/(Aufzeichnung_Reifen*(1+Aufzeichnung_Reifenschlupf))) -> 1 | J44: {EGT NM} | N44: Lambda NM | R44: CRC Daten lokal | W44: LiveUmin NM | AB44: Langzeitmessung | AD44: Falsch | AE44: Analog1 NM | AI44: Analog2 NM
B45: Impulse | D45: Verlust NM | E45: 0 | F45: Verluste [NM] | G45: 0 | H45: Prüfstandfaktor | J45: {EGT U/Min} | N45: Lambda U/Min | R45: CRC Werte lokal | W45: LiveUmin U/Min | AE45: Analog1 U/Min | AI45: Analog2 U/Min
A46: FahrzeugID | E46: DIN PS Faktor | F46: JA | G46: =IF(ISERROR((1013/(Aufzeichnung_Luftdruck-Aufzeichnung_Faktor_Feuchte))*((273+Aufzeichnung_Temperatur)/293)),1,(1013/(Aufzeichnung_Luftdruck-Aufzeichnung_Faktor_Feuchte))*((273+Aufzeichnung_Temperatur)/293)) -> 1 | H46: Aktueller NMFaktor | I46: =IF(1=1,drar(),Aufzeichnung_DINPS_Faktor&Aufzeichnung_DIN_PS_Faktor_Aktiv) -> 0 | J46: {EGT Anzahl} | N46: Lambda Anzahl | R46: Version | W46: LiveUmin Anzahl | AE46: Analog1 Anzahl | AI46: Analog2 Anzahl
B47: Detailstype | D47: Gesamtpunkte | F47: Feuchtekorrektur | G47: =(Aufzeichnung_Feuchte*(2.408*10^11*(300/(Aufzeichnung_Temperatur+273.15))^5 *EXP(-22.644*(300/(Aufzeichnung_Temperatur+273.15))))/100) -> 0
A49: lfd Nr. | B49: Impulse | C49: Drehzahl Rolle | H49: Drehzahl Reifen | I49: Drehzahl KW berechnet | J49: Drehzahl KW gemessen | L49: Drehzahl | M49: Winkelgeschwindigkeit | N49: Winkelbeschleunigung | O49: Drehmoment | Q49: Leistung | S49: Anzeige PS | T49: Anzeige NM | U49: Anzeige Drehzahl | V49: Anzeige kmh | W49: EGT | AE49: Lambda | AM49: Livedrehzahl | AV49: LiveNM | AX49: Zeit | AZ49: Analog1 | BH49: Analog2 | BP49: Allgemein Optionen
